Workbook

Sheet Содержание
A1: Свернуть
A7: Газпром в цифрах 2020 г. Справочник.
B8: Примечания
B9: Газпром в энергетике России и мира
B10: Финансовые показатели
B11: Макроэкономические данные
B12: Рыночные индикаторы
B13: Разведка и добыча на территории Российской Федерации
A14: + | B14: Запасы
B15: Запасы углеводородов Группы Газпром на территории Российской Федерации
B16: Месторождения и залежи углеводородов, открытые Группой Газпром на территории Российской Федерации
B17: Коэффициент восполнения разведанных запасов углеводородов Группы Газпром по российской классификации
B18: Запасы природного газа Группы Газпром по стандартам PRMS на территории Российской Федерации
B19: Запасы газового конденсата Группы Газпром по стандартам PRMS на территории Российской Федерации
B20: Запасы нефти Группы Газпром по стандартам PRMS на территории Российской Федерации
B21: Распределение разведанных запасов углеводородов по российской классификации Группы Газпром на территории Российской Федерации
B22: Разведанные запасы углеводородов по российской классификации ассоциированных организаций и совместных предприятий на территории Российской Федерации в доле, приходящейся на Группу Газпром
B23: Движение разведанных запасов углеводородов Группы Газпром по российской классификации на территории Российской Федерации
B24: Наименования месторождений углеводородов, открытых Группой Газпром на территории Российской Федерации
A25: + | B25: Лицензии
B26: Лицензионные участки на территории Российской Федерации
B27: Распределение площади лицензионных участков на территории Российской Федерации
B28: Лицензии на основные месторождения углеводородов
A29: + | B29: Добыча
B30: Добыча углеводородов Группой Газпром на территории Российской Федерации
B31: Среднесуточная добыча углеводородов Группой Газпром на территории Российской Федерации
B32: Добыча углеводородов Группой Газпром на территории Российской Федерации
B33: Распределение добычи углеводородов Группы Газпром на территории Российской Федерации
B34: Полезное использование ПНГ Группой Газпром на территории Российской Федерации
B35: Фактическая максимальная суточная добыча природного и попутного газа в осенне-зимний период
B36: Добыча углеводородов ассоциированными организациями и совместными предприятиями на территории России в доле, приходящейся на Группу Газпром
A37: + | B37: Геологоразведка, эксплуатационное бурение и промысловые мощности
B38: Основные показатели ГРР Группы Газпром на углеводороды
B39: Основные показатели ГРР на углеводороды организаций, инвестиции в которые классифицированы как совместные операции
B40: Эксплуатационное бурение Группы Газпром
B41: Эксплуатационное бурение организаций, инвестиции в которые классифицированы как совместные операции
B42: Производственные мощности Группы Газпром в добыче углеводородов
B43: Производственные мощности в добыче углеводородов организаций, инвестиции в которые классифицированы как совместные операции
A44: + | B44: Перспективные месторождения
B45: Разрабатываемые месторождения Группы Газпром
B46: Разведываемые месторождения и перспективные лицензионные участки Группы Газпром
B47: Месторождения и перспективные лицензионные участки совместных предприятий и ассоциированных организаций Группы Газпром
A48: + | B48: Разведка и добыча на территории зарубежных стран
B49: Основные показатели ГРР Группы Газпром на углеводороды на территории зарубежных стран
B50: Производственные мощности Группы Газпром в добыче углеводородов на территории зарубежных стран
B51: Эксплуатационное бурение Группы Газпром на газ и нефть на территории зарубежных стран
B52: Добыча углеводородов дочерними организациями Группы Газпром на территории зарубежных стран
B53: Добыча углеводородов в рамках основных зарубежных проектов с участием Группы Газпром
B54: Добыча углеводородов ассоциированными организациями и совместными предприятиями в области поиска, разведки и добычи углеводородов в зарубежных странах
B55: Проекты Группы Газпром в области разведки и добычи углеводородов в зарубежных странах, находящиеся на стадии поиска и разведки
B56: Проекты Группы Газпром в области разведки и добычи углеводородов в зарубежных странах, находящиеся на стадиях освоения и добычи
B57: Деятельность ассоциированных организаций и совместных предприятий в области поиска, разведки и добычи углеводородов в зарубежных странах
A58: - | B58: Транспортировка и подземное хранение
A59: + | B59: Транспортировка
B60: Развитие и капитальный ремонт ГТС на территории России
B61: Диагностическое обследование ГТС на территории России
B62: Основные технические характеристики газотранспортных активов, эксплуатируемых газотранспортными дочерними обществами Группы Газпром в России
B63: Структура эксплуатируемых газотранспортными дочерними обществами Группы Газпром МГ и газопроводов-отводов на территории России по сроку эксплуатации
B64: Поступление газа в ГТС Газпрома на территории Российской Федерации
B65: Объемы транспортировки газа по газопроводам «Сила Сибири», «Северный поток», «Голубой поток», «Турецкий поток»
B66: Оказание для ПАО «Газпром» услуг по транспортировке газа по территории сопредельных государств
B67: Основные характеристики объектов транспорта газа дочерних обществ Группы Газпром на территории зарубежных стран
B68: Объем газа, использованный на собственные технологические нужды ГТС и ПХГ на территории Российской Федерации
B69: Основные действующие маршруты транспортировки газа ПАО «Газпром» на экспорт
B70: Основные газотранспортные проекты Группы Газпром
A71: + | B71: Подземное хранение газа
B72: Характеристика российских ПХГ Газпрома
B73: Хранение газа на территории России
B74: Закачка и отбор газа Группы Газпром из ПХГ зарубежных стран
B75: Основные проекты по развитию подземного хранения газа на территории России
B76: Характеристика зарубежных объектов ПХГ с участием Группы Газпром
B77: Среднесрочные коммерческие контракты на использование ООО «Газпром экспорт» мощностей ПХГ в европейских странах дальнего зарубежья, действовавшие к началу сезона отбора 2020/2021 г.
B78: Перспективные объекты ПХГ с участием Группы Газпром за рубежом
A79: + | B79: Переработка углеводородного сырья, газо- и нефтехимия, проекты производства СПГ
B80: Объемы переработки углеводородов Группой Газпром
B81: Переработка (очистка и стабилизация) нестабильного газового конденсата основными дочерними обществами ПАО «Газпром»
B82: Переработка на мощностях основных дочерних обществ ПАО «Газпром» природного и попутного газа компаний, не входящих в Группу Газпром
B83: Производство основных видов продукции переработки, газо- и нефтехимии Группой Газпром
B84: Области применения отдельных видов продукции переработки, газо- и нефтехимии, производимой Группой Газпром
B85: Производство основных видов продукции переработки дочерними обществами Группы Газпром
B86: Предприятия по переработке углеводородного сырья и производству газо- и нефтехимической продукции
B87: Основные инвестиционные проекты на действующих предприятиях по переработке углеводородного сырья, производству газо- и нефтехимической продукции Группы Газпром
B88: Основные проекты Группы Газпром по созданию новых предприятий по переработке углеводородного сырья, производству продукции газо- и нефтехимии
B89: Проекты Группы Газпром по транспортировке жидких углеводородов из Надым-Пур-Тазовского региона
B90: Мощности Группы Газпром по транспортировке жидких углеводородов из Надым-Пур-Тазовского региона
B91: Мощности Группы Газпром по приему, хранению и регазификации СПГ
B92: Перспективные проекты Группы Газпром по производству мало- и среднетоннажного СПГ
B93: Перспективные проекты по переработке углеводородного сырья, производству крупнотоннажного СПГ с участием Группы Газпром
A94: + | B94: Электроэнергетика
B95: Электрические мощности Группы Газпром
B96: Тепловые мощности Группы Газпром
B97: Производство электроэнергии Группой Газпром
B98: Производство тепла Группой Газпром
A99: + | B99: Инвестиционные проекты в электроэнергетике
B100: Основные проекты по созданию новых мощностей
B101: Основные проекты по реконструкции и модернизации
A102: - | B102: Маркетинг
A103: + | B103: Реализация газа
B104: Выручка от продажи газа
B105: Средняя цена реализации газа
B106: Реализация газа Группой Газпром
B107: Реализация газа Группой Газпром в зарубежные страны
B108: Участие Газпрома в обеспечении внутреннего потребления газа в России
B109: Средневзвешенные оптовые регулируемые цены на газ в России
B110: Объемы реализации газа конечным потребителям дочерними организациями Группы Газпром в странах дальнего зарубежья
B111: Объемы продаж крупнотоннажного СПГ Группой Газпром на рынки зарубежных стран
B112: Газораспределение и газификация в России
B113: Деятельность Группы Газпром в области газораспределения на территории зарубежных стран
A114: + | B114: Реализация нефти, газового конденсата и продуктов переработки
B115: Выручка от реализации нефти и газового конденсата
B116: Объемы реализации нефти и газового конденсата Группой Газпром по географическим сегментам
B117: Выручка от реализации продуктов нефтегазопереработки
B118: Объемы реализация продуктов переработки Группой Газпром по географическим сегментам
B119: Реализация продуктов переработки, газо- и нефтехимии Группой Газпром по видам
B120: Реализация гелия Группой Газпром
A121: + | B121: Реализация электроэнергии и тепла, услуг по транспортировке газа
B122: Выручка от продажи электрической и тепловой энергии
B123: Выручка от продажи услуг по транспортировке газа
B124: Оказание услуг по транспортировке газа компаниям, не входящим в Группу Газпром
A125: + | B125: Экология и энергосбережение
B126: Основные показатели воздействия Группы Газпром на окружающую среду в Российской Федерации
B127: Затраты на охрану окружающей среды по Группе Газпром в Российской Федерации
B128: Выбросы парниковых газов (область охвата 1) по Группе Газпром в Российской Федерации
B129: Удельные выбросы парниковых газов (область охвата 1) на т н. э. реализованных продуктов в организациях Группы Газпром в Российской Федерации
B130: Удельные выбросы парниковых газов (область охвата 1) на барр. н. э. реализованных продуктов в организациях Группы Газпром в Российской Федерации
B131: Выбросы парниковых газов (область охвата 1) по Группе Газпром в Российской Федерации в детализации по видам парниковых газов
B132: Выбросы парниковых газов (область охвата 2) в Российской Федерации в организациях Группы Газпром
B133: Выбросы парниковых газов (область охвата 3) для реализованных продуктов Группы Газпром в детализации по видам реализованных продуктов
B134: Удельные выбросы парниковых газов (область охвата 3) для реализованных продуктов Группы Газпром
B135: Энергосбережение в ПАО «Газпром» и его дочерних обществах, включенных в программы энергосбережения ПАО «Газпром»
A136: + | B136: Производственная безопасность
B137: Показатели производственной безопасности организаций Группы Газпром, входящих в сферу действия ЕСУПБ
B138: Показатели производственной безопасности организаций Группы Газпром, не входящих в сферу действия ЕСУПБ
A139: + | B139: Управление патентными правами, НИОКР
B140: Количество патентов на объекты патентных прав, принадлежащих ПАО «Газпром» и его дочерним обществам, и их использование в производственной деятельности
B141: Объем НИОКР в денежном выражении, выполненных по заказу Группы Газпром
A142: - | B142: Персонал
A143: + | B143: Справочная информация
B144: Условные обозначения
B145: Коэффициенты пересчета
B146: Порядок расчета скорректированных показателей финансовой отчетности и финансовых коэффициентов
B147: Глоссарий основных понятий и сокращений

Sheet Примечания
A1: Примечания
A2: Настоящий информационно-статистический материал подготовлен в формате электронных таблиц на основе Cправочника «Газпром в цифрах 2016–2020».
A3: Справочник «Газпром в цифрах 2016–2020» является информационно-статистическим изданием, подготовленным к годовому Общему собранию акционеров ПАО «Газпром» в 2021 г. Справочник подготовлен на основе данных корпоративной отчетности ПАО «Газпром», а также с использованием материалов, содержащихся в российских и зарубежных информационных изданиях.
A4: Показатели консолидированной финансовой отчетности Группы Газпром, подготовленной в соответствии с МСФО (далее – консолидированная финансовая отчетность по МСФО) дополнены данными за 2010–2015 гг., а производственные и иные показатели – сопоставимыми данными из Справочников, Годовых отчетов, Отчетов руководства ПАО «Газпром» за 2015 г. и предыдущие периоды.
A5: В настоящем Справочнике термины ПАО «Газпром», Компания относятся к головной компании Группы Газпром — Публичному акционерному обществу «Газпром» (до 17 июля 2015 г. — Открытое акционерное общество «Газпром», ОАО «Газпром»).
A6: Под Группой Газпром, Группой или Газпромом следует понимать совокупность компаний, состоящую из ПАО «Газпром» и его дочерних организаций. Для целей настоящего Справочника использованы перечни дочерних организаций, организаций, инвестиции в которые классифицированы как совместные операции, ассоциированных организаций и совместных предприятий Группы Газпром, составленные на основе принципов формирования консолидированной финансовой отчетности Группы Газпром, подготовленной в соответствии с Международными стандартами финансовой отчетности (МСФО). Аналогично под терминами Группа Газпром нефть и Газпром нефть подразумеваются ПАО «Газпром нефть» и его дочерние организации, под термином Газпром энергохолдинг — ООО «Газпром энергохолдинг» и его дочерние общества, под термином Газпром нефтехим Салават — ООО «Газпром нефтехим Салават» и его дочерние общества.
A7: Приведенные в издании показатели деятельности Газпрома в целом сформированы на основании принципов составления консолидированной финансовой отчетности Группы Газпром, подготовленной в соответствии с МСФО (далее — консолидированная финансовая отчетность по МСФО), и (или) в отношении совокупности организаций Группы Газпром, принятой для целей составления консолидированной финансовой отчетности Группы Газпром по МСФО. В соответствии с МСФО 11 «Совместное предпринимательство» объемы запасов, добычи и переработки углеводородного сырья отражаются с учетом доли Группы Газпром в показателях организаций, инвестиции в которые классифицированы как совместные операции.
A8: Ряд показателей деятельности ПАО «Газпром», его дочерних организаций приводится на основе управленческой отчетности. В связи с различиями в методологии подготовки консолидированной финансовой отчетности и ведения управленческой отчетности показатели, рассчитанные по данным методикам, могут быть несопоставимы.
A9: Группа осуществляет управленческий учет в метрических единицах измерения. Приведенные данные в баррелях нефтяного эквивалента (барр. н. э.) получены расчетным путем по указанным коэффициентам пересчета.
A10: Финансовые показатели Группы приводятся в соответствии с консолидированной финансовой отчетностью Группы Газпром по МСФО. Валютой отчетности Группы Газпром является российский рубль. Приведенные данные в долларах США и евро получены расчетным путем по указанным обменным курсам и не являются данными финансовой отчетности Группы.
A12: Вернуться к содержанию

Sheet Газпром в мире
A1: Газпром в энергетике России и мира
B2: За год и по состоянию на 31 декабря
B3: 2005 | C3: 2006 | D3: 2007 | E3: 2008 | F3: 2009 | G3: 2010 | H3: 2011 | I3: 2012 | J3: 2013 | K3: 2014 | L3: 2015 | M3: 2016 | N3: 2017 | O3: 2018 | P3: 2019 | Q3: 2020
A4: Вклад в формирование показателей мировой газовой промышленности
A5: Запасы газа*,*** | B5: 0.166 | C5: 0.168 | D5: 0.165 | E5: 0.18 | F5: 0.18 | G5: 0.176 | H5: 0.183 | I5: 0.183 | J5: 0.166 | K5: 0.168 | L5: 0.169 | M5: 0.171 | N5: 0.167 | O5: 0.162 | P5: 0.163 | Q5: 15,6 %
A6: Добыча газа*,*** | B6: =0.185 -> 0.185 | C6: =0.181 -> 0.181 | D6: =0.174 -> 0.174 | E6: 0.167 | F6: 0.145 | G6: 0.148 | H6: 0.145 | I6: 0.136 | J6: 0.135 | K6: 0.121 | L6: 0.112 | M6: 0.112 | N6: 0.12 | O6: 0.121 | P6: 0.117 | Q6: 10,9 %
A7: Вклад в формирование показателей топливно-энергетического комплекса России
A8: Контролируемые российские запасы газа*** | B8: 0.609 | C8: 0.624 | D8: 0.621 | E8: 0.689 | F8: 0.698 | G8: 0.687 | H8: 0.718 | I8: 0.72 | J8: 0.723 | K8: 0.723 | L8: 0.716 | M8: 0.717 | N8: 0.717 | O8: 0.711 | P8: 0.711 | Q8: 70,3 %
A9: Добыча газа**,*** | B9: 0.866 | C9: 0.847 | D9: 0.839 | E9: 0.827 | F9: 0.792 | G9: 0.781 | H9: 0.765 | I9: 0.746 | J9: 0.731 | K9: 0.693 | L9: 0.66 | M9: 0.656 | N9: 0.683 | O9: 0.687 | P9: 0.679 | Q9: 65,6 %
A10: Добыча нефти и газового конденсата**,*** | B10: 0.045 | C10: 0.094 | D10: 0.092 | E10: 0.088 | F10: 0.084 | G10: 0.086 | H10: 0.087 | I10: 0.106 | J10: 0.109 | K10: 0.11 | L10: 0.111 | M10: 0.115 | N10: 0.118 | O10: 0.116 | P10: 0.115 | Q10: 12,4 %
A11: Первичная переработка нефти и стабильного газового конденсата**,*** | B11: 0.049 | C11: 0.14 | D11: 0.141 | E11: 0.145 | F11: 0.155 | G11: 0.165 | H11: 0.172 | I11: 0.188 | J11: 0.194 | K11: 0.189 | L11: 0.185 | M11: 0.184 | N11: 0.177 | O11: 0.182 | P11: 0.182 | Q11: 18,7 %
A12: Выработка электроэнергии**,*** | B12: – | C12: – | D12: 0.031 | E12: 0.105 | F12: 0.139 | G12: 0.169 | H12: 0.169 | I12: 0.162 | J12: 0.153 | K12: 0.146 | L12: 0.143 | M12: 0.146 | N12: 0.148 | O12: 0.141 | P12: 0.137 | Q12: 12,5 %
A13: Протяженность эксплуатируемых газотранспортными дочерними обществами Группы Газпром магистральных газопроводов (МГ) и отводов на территории России****, тыс. км | B13: 155 | C13: 156.9 | D13: 158.2 | E13: 159.5 | F13: 160.4 | G13: 161.7 | H13: 164.7 | I13: 168.3 | J13: 168.9 | K13: 170.7 | L13: 171.2 | M13: 171.8 | N13: 172.1 | O13: 172.6 | P13: 175.2 | Q13: 176.8
A14: * Рассчитано на основе данных Международного центра по природному газу CEDIGAZ и ПАО «Газпром». Данные международной статистики по добыче приведены к российским стандартным условиям с применением коэффициента 1,07.
A15: ** Рассчитано на основе данных Росстата, Минэнерго России, Системного оператора Единой энергетической системы России и ПАО «Газпром».
A16: *** Начиная с 1 января 2012 г. рассчитано с учетом доли Группы Газпром в запасах и добыче компаний, инвестиции в которые классифицированы как совместные операции.
A17: **** Начиная с данных по состоянию на 31 декабря 2013 г., протяженность приведена с учетом технологических перемычек.
A19: Вернуться к содержанию

Sheet Фин. показатели
A1: Финансовые показатели
A2: Основные финансовые показатели и коэффициенты Группы Газпром
B3: За год и по состоянию на 31 декабря
B4: 2010 | C4: 2011 | D4: 2012 | E4: 2013 | F4: 2014 | G4: 2015 | H4: 2016 | I4: 2017 | J4: 2018 | K4: 2019 | L4: 2020
A5: Показатели отчета о совокупном доходе
A6: Выручка от продаж, млн руб. | B6: 3597054 | C6: 4637090 | D6: 4766495 | E6: 5249965 | F6: 5589811 | G6: 6073318 | H6: 6111051 | I6: 6546143 | J6: 8224177 | K6: 7659623 | L6: 6 321 559
A7: Операционные расходы, млн руб. | B7: 2440777 | C7: 2942181 | D7: 3421847 | E7: 3600908 | F7: 4128330 | G7: 4762444 | H7: 5280876 | I7: 5697056 | J7: 6181191 | K7: 6387071 | L7: 5 665 762
A8: Прибыль от продаж, млн руб. | B8: 1113822 | C8: 1656843 | D8: 1350677 | E8: 1587209 | F8: 1309509 | G8: 1237422 | H8: 726639 | I8: 871405 | J8: 1930030 | K8: 1119857 | L8: 614 851
A9: Приведенный показатель EBITDA, млн руб. | B9: 1363778 | C9: 1930533 | D9: 1645921 | E9: 2009475 | F9: 1961643 | G9: 1883847 | H9: 1323258 | I9: 1467692 | J9: 2599284 | K9: 1859679 | L9: 1 466 541
A10: Прибыль за год, млн руб. | B10: 997993 | C10: 1342442 | D10: 1252415 | E10: 1165705 | F10: 157192 | G10: 805199 | H10: 997104 | I10: 766879 | J10: 1528996 | K10: 1269517 | L10: 162 407
A11: Прибыль за год, относящаяся к акционерам ПАО «Газпром», млн руб. | B11: 968557 | C11: 1307018 | D11: 1224474 | E11: 1139261 | F11: 159004 | G11: 787056 | H11: 951637 | I11: 714302 | J11: 1456270 | K11: 1202887 | L11: 135 341
A12: Базовая и разводненная прибыль в расчете на одну акцию, относящаяся к акционерам ПАО «Газпром» (в российских рублях), руб. | B12: 42.2 | C12: 56.95 | D12: 53.35 | E12: 49.64 | F12: 6.93 | G12: 34.29 | H12: 42.19 | I12: 32.32 | J12: 65.89 | K12: 53.47 | L12: 5.66
A13: Показатели бухгалтерского баланса
A14: Активы, млн руб. | B14: 9235993 | C14: 10900696 | D14: 11956836 | E14: 13436236 | F14: 15177470 | G14: 17052040 | H14: 16918938 | I14: 18238770 | J14: 20810440 | K14: 21882348 | L14: 23 352 185
A15: Оборотные активы, млн руб. | B15: 1865895 | C15: 2240293 | D15: 2420803 | E15: 2862670 | F15: 3461155 | G15: 3993722 | H15: 3234346 | I15: 3469266 | J15: 4212230 | K15: 3828153 | L15: 3 774 289
A16: Товарно-материальные запасы, млн руб. | B16: 325739 | C16: 407530 | D16: 462746 | E16: 569724 | F16: 671916 | G16: 804364 | H16: 711199 | I16: 772314 | J16: 909677 | K16: 946361 | L16: 971789
A17: Краткосрочные обязательства, млн руб. | B17: 1011261 | C17: 1309255 | D17: 1492066 | E17: 1391465 | F17: 1855947 | G17: 2124701 | H17: 1921808 | I17: 2589516 | J17: 2473695 | K17: 2527476 | L17: 2 626 964
A18: Общий долг, млн руб. | B18: 1315447 | C18: 1536819 | D18: 1500592 | E18: 1801928 | F18: 2688824 | G18: 3442215 | H18: 2829623 | I18: 3266518 | J18: 3863822 | K18: 3863904 | L18: 4 907 614
A19: Чистый долг, млн руб. | B19: 870993 | C19: 1028176 | D19: 1 071 214 | E19: 1112798 | F19: 1650633 | G19: 2083120 | H19: 1932895 | I19: 2397511 | J19: 3014403 | K19: 3167847 | L19: 3 872 695
A20: Акционерный (собственный) капитал, не включая неконтролирующую долю участия, млн руб. | B20: 6249751 | C20: 7463571 | D20: 8170733 | E20: 9319590 | F20: 9816558 | G20: 10589586 | H20: 11094531 | I20: 11629086 | J20: 13300009 | K20: 14104833 | L20: 14 237 943
A21: Акционерный (собственный) капитал, включая неконтролирующую долю участия, млн руб. | B21: 6536361 | C21: 7760991 | D21: 8479945 | E21: 9634354 | F21: 10120021 | G21: 10914622 | H21: 11441839 | I21: 12015481 | J21: 13776153 | K21: 14615687 | L21: 14 804 732
A22: Капитальные вложения*, млн руб. | B22: 920133 | C22: 1351590 | D22: 1233210 | E22: 1213850 | F22: 1221328 | G22: 1349635 | H22: 1357336 | I22: 1504600 | J22: 1795884 | K22: 1818677 | L22: 1 494 185
A23: Показатели отчета о движении денежных средств
A24: Чистые денежные средства от операционной деятельности, млн руб. | B24: 1460116 | C24: 1637450 | D24: 1472779 | E24: 1741804 | F24: 1915769 | G24: 2030927 | H24: 1571323 | I24: 1187022 | J24: 1617384 | K24: 1709384 | L24: 1 918 891
A25: Капитальные вложения, млн руб. | B25: -1042642 | C25: -1553118 | D25: -1349114 | E25: -1397195 | F25: -1262140 | G25: -1641024 | H25: -1369052 | I25: -1405780 | J25: -1639474 | K25: -1775923 | L25: -1 522 565
A26: Чистые денежные средства, использованные в инвестиционной деятельности, млн руб. | B26: -1050307 | C26: -1605245 | D26: -1287216 | E26: -1466512 | F26: -1441305 | G26: -1664156 | H26: -1445965 | I26: -1368131 | J26: -1617718 | K26: -1938109 | L26: -1 545 602
A27: Чистые денежные средства, (использованные в) полученные от финансовой деятельности, млн руб. | B27: -212384 | C27: 31814 | D27: -253870 | E27: -33262 | F27: -262587 | G27: -138305 | H27: -460479 | I27: 149944 | J27: -96070 | K27: 152375 | L27: -106 421
A28: Денежные средства и их эквиваленты на конец отчетного года, млн руб. | B28: 440786 | C28: 501344 | D28: 425720 | E28: 689130 | F28: 1038191 | G28: 1359095 | H28: 896728 | I28: 869007 | J28: 849419 | K28: 696057 | L28: 1 034 919
A29: Коэффициент самофинансирования | B29: 1.4 | C29: 1.05 | D29: 1.09 | E29: 1.25 | F29: 1.52 | G29: 1.24 | H29: 1.15 | I29: 0.84 | J29: 0.99 | K29: 0.96 | L29: 1.26
A30: Скорректированные показатели финансовой отчетности**
A31: Прибыль за год, относящаяся к акционерам ПАО «Газпром», (скорректированная), млн руб. | G31: 1329369 | H31: 609184 | I31: 651670 | J31: 1678319 | K31: 994309 | L31: 594143
A32: Чистый долг (скорректированный), млн руб. | G32: 1951528 | H32: 1746630 | I32: 2067983 | J32: 2216831 | K32: 2491425 | L32: 3 856 032
A33: Коэффициенты рентабельности***
A34: Рентабельность прибыли от продаж (операционная рентабельность) | B34: 0.31 | C34: 0.36 | D34: 0.28 | E34: 0.3 | F34: 0.23 | G34: 0.2 | H34: 0.12 | I34: 0.13 | J34: 0.23 | K34: 0.15 | L34: 0.1
A35: Рентабельность приведенного показателя EBITDA | B35: 0.38 | C35: 0.42 | D35: 0.35 | E35: 0.38 | F35: 0.35 | G35: 0.31 | H35: 0.22 | I35: 0.22 | J35: 0.32 | K35: 0.24 | L35: 0.23
A36: Рентабельность прибыли за год | B36: 0.28 | C36: 0.29 | D36: 0.26 | E36: 0.22 | F36: 0.03 | G36: 0.13 | H36: 0.16 | I36: 0.12 | J36: 0.19 | K36: 0.17 | L36: 0.03
A37: Рентабельность активов (ROA) | B37: 0.1133791712 | C37: 0.13 | D37: 0.11 | E37: 0.09 | F37: 0.01 | G37: 0.05 | H37: 0.06 | I37: 0.04 | J37: 0.08 | K37: 0.06 | L37: 0.01
A38: Рентабельность акционерного (собственного) капитала (ROE) | B38: 0.1637976438 | C38: 0.19 | D38: 0.15 | E38: 0.13 | F38: 0.02 | G38: 0.08 | H38: 0.09 | I38: 0.07 | J38: 0.12 | K38: 0.09 | L38: 0.01
A39: Коэффициенты общего и чистого долга
A40: Отношение общего долга к сумме акционерного капитала и неконтролирующей доле участия | B40: 0.2 | C40: 0.2 | D40: 0.18 | E40: 0.19 | F40: 0.27 | G40: 0.32 | H40: 0.25 | I40: 0.27 | J40: 0.28 | K40: 0.26 | L40: 0.33
A41: Отношение общего долга к сумме общего долга, акционерного капитала и неконтролирующей доле участия | B41: 0.17 | C41: 0.17 | D41: 0.15 | E41: 0.16 | F41: 0.21 | G41: 0.24 | H41: 0.2 | I41: 0.21 | J41: 0.22 | K41: 0.21 | L41: 0.25
A42: Отношение общего долга к общим активам | B42: 0.14 | C42: 0.14 | D42: 0.13 | E42: 0.13 | F42: 0.18 | G42: 0.2 | H42: 0.17 | I42: 0.18 | J42: 0.19 | K42: 0.18 | L42: 0.21
A43: Отношение общего долга к приведенному показателю EBITDA | B43: 0.96 | C43: 0.8 | D43: 0.91 | E43: 0.9 | F43: 1.37 | G43: 1.83 | H43: 2.14 | I43: 2.23 | J43: 1.49 | K43: 2.08 | L43: 3.35
A44: Отношение чистого долга к приведенному показателю EBITDA | B44: 0.64 | C44: 0.54 | D44: 0.65 | E44: 0.55 | F44: 0.84 | G44: 1.11 | H44: 1.46 | I44: 1.63 | J44: 1.16 | K44: 1.7 | L44: 2.64
A45: Отношение чистого долга (скорректированного) к приведенному показателю EBITDA | G45: 1.04 | H45: 1.32 | I45: 1.41 | J45: 0.85 | K45: 1.34 | L45: 2.63
A46: Коэффициенты ликвидности***
A47: Коэффициент текущей ликвидности | B47: 1.85 | C47: 1.71 | D47: 1.62 | E47: 2.06 | F47: 1.86 | G47: 1.88 | H47: 1.68 | I47: 1.34 | J47: 1.7 | K47: 1.51 | L47: 1.44
A48: Коэффициент быстрой ликвидности | B48: 1.523005436 | C48: 1.4 | D48: 1.31 | E48: 1.65 | F48: 1.5 | G48: 1.5 | H48: 1.31 | I48: 1.04 | J48: 1.34 | K48: 1.14 | L48: 1.07
A49: Прочие коэффициенты***
A50: Коэффициент EV / EBITDA | B50: 3.999667518 | C50: 2.6 | D50: 2.7 | E50: 2.2 | F50: 2.4 | G50: 2.8 | H50: 4.2 | I50: 3.7 | J50: 2.6 | K50: 5 | L50: 6.1
A51: Коэффициент P / E | B51: 4.588151659 | C51: 3 | D51: 2.7 | E51: 2.8 | F51: 18.8 | G51: 4 | H51: 3.6 | I51: 4 | J51: 2.3 | K51: 4.8 | L51: 37.6
A52: Коэффициент P / S | B52: 1.274283224 | C52: 0.9 | D52: 0.7 | E52: 0.6 | F52: 0.6 | G52: 0.5 | H52: 0.6 | I52: 0.5 | J52: 0.4 | K52: 0.8 | L52: 0.8
A53: * Приведены капитальные вложения, отраженные в составе информации по сегментам в консолидированной финансовой отчетности Группы Газпром по МСФО.
A54: ** Показатели не являются частью финансовой отчетности. Расчет производится в соответствии с Дивидендной политикой ПАО «Газпром», утвержденной Советом директоров ПАО «Газпром» в 2019 г. (решение Совета директоров ПАО «Газпром» от 24 декабря 2019 г. № 3363). Формулы расчета показателей приведены в разделе «Порядок расчета скорректированных показателей финансовой отчетности и финансовых коэффициентов».
A55: *** Формулы расчета коэффициентов приведены в разделе «Порядок расчета скорректированных показателей финансовой отчетности и финансовых коэффициентов».
A57: Вернуться к содержанию

Sheet Макроэкономика
A1: Макроэкономические данные
A2: Показатель* | B2: Единица измерения | C2: За год и по состоянию на 31 декабря
C3: 2005 | D3: 2006 | E3: 2007 | F3: 2008 | G3: 2009 | H3: 2010 | I3: 2011 | J3: 2012 | K3: 2013 | L3: 2014 | M3: 2015 | N3: 2016 | O3: 2017 | P3: 2018 | Q3: 2019 | R3: 2020
A4: Индекс потребительских цен (декабрь к декабрю предыдущего года), прирост | B4: % | C4: 0.109 | D4: 0.09 | E4: 0.119 | F4: 0.133 | G4: 0.088 | H4: 0.088 | I4: 0.061 | J4: 0.066 | K4: 0.065 | L4: 0.114 | M4: 0.129 | N4: 0.054 | O4: 0.025 | P4: 0.043 | Q4: 0.03 | R4: 0.049
A5: Индекс цен производителей промышленных товаров (декабрь к декабрю предыдущего года), прирост | B5: % | C5: 0.134 | D5: 0.104 | E5: 0.251 | F5: -0.07 | G5: 0.139 | H5: 0.167 | I5: 0.12 | J5: 0.051 | K5: 0.037 | L5: 0.059 | M5: 0.107 | N5: 0.074 | O5: 0.084 | P5: 0.117 | Q5: -0.043 | R5: 0.036
A6: Средний обменный курс рубля к доллару за период | B6: руб./долл. | C6: 28.32 | D6: 27.14 | E6: 25.55 | F6: 24.87 | G6: 31.75 | H6: 30.38 | I6: 29.39 | J6: 31.08 | K6: 31.9 | L6: 38.6 | M6: 61.32 | N6: 66.83 | O6: 58.31 | P6: 62.9 | Q6: 64.64 | R6: 72.43
A7: Обменный курс рубля к доллару на конец периода | B7: руб./долл. | C7: 28.78 | D7: 26.33 | E7: 24.55 | F7: 29.38 | G7: 30.24 | H7: 30.36 | I7: 32.2 | J7: 30.37 | K7: 32.73 | L7: 56.26 | M7: 72.88 | N7: 60.66 | O7: 57.6 | P7: 69.47 | Q7: 61.91 | R7: 73.88
A8: Средний обменный курс рубля к евро за период | B8: руб./евро | C8: 35.15 | D8: 34.11 | E8: 35.03 | F8: 36.45 | G8: 44.19 | H8: 40.21 | I8: 40.9 | J8: 39.92 | K8: 42.39 | L8: 50.99 | M8: 67.99 | N8: 73.99 | O8: 66.02 | P8: 74.11 | Q8: 72.35 | R8: 82.89
A9: Обменный курс рубля к евро на конец периода | B9: руб./евро | C9: 34.19 | D9: 34.7 | E9: 35.93 | F9: 41.44 | G9: 43.39 | H9: 39.9 | I9: 41.67 | J9: 40.23 | K9: 44.97 | L9: 68.34 | M9: 79.7 | N9: 63.81 | O9: 68.87 | P9: 79.46 | Q9: 69.34 | R9: 90.68
A10: Цена нефти Brent (Dated)** | B10: долл./барр. | C10: 58.21 | D10: 58.93 | E10: 96.02 | F10: 36.55 | G10: 77.67 | H10: 92.54 | I10: 106.51 | J10: 109.99 | K10: 110.28 | L10: 55,98 | M10: 35.74 | N10: 54.94 | O10: 66.54 | P10: 50.21 | Q10: 66.77 | R10: 50.49
A11: Цена нефти Urals (среднее CIF MED/RDAM)** | B11: долл./барр. | C11: 53.61 | D11: 55.26 | E11: 93.09 | F11: 35.89 | G11: 77 | H11: 90.27 | I11: 104.29 | J11: 108.09 | K11: 109.1 | L11: 53,40 | M11: 33.11 | N11: 53.27 | O11: 66.19 | P11: 51.18 | Q11: 62.38 | R11: 49.2
A12: Среднегодовая цена нефти Brent (Dated)** | B12: долл./барр. | C12: 54.52 | D12: 65.14 | E12: 72.39 | F12: 97.28 | G12: 61.67 | H12: 79.5 | I12: 111.26 | J12: 111.67 | K12: 108.66 | L12: 98,95 | M12: 52.39 | N12: 43.73 | O12: 54.19 | P12: 71.31 | Q12: 64.21 | R12: 41.84
A13: Среднегодовая цена нефти Urals (среднее CIF MED/RDAM)** | B13: долл./барр. | C13: 50.59 | D13: 61.28 | E13: 69.28 | F13: 94.82 | G13: 61.18 | H13: 78.28 | I13: 109.1 | J13: 110.37 | K13: 107.71 | L13: 96,94 | M13: 51.42 | N13: 42.1 | O13: 53.06 | P13: 70.05 | Q13: 63.37 | R13: 41.88
A14: * Экономические показатели и обменные курсы представлены по данным Банка России и Росстата. Средние обменные курсы рассчитаны по данным Банка России как среднее значение курсов в рабочие дни соответствующего года.
A15: ** По данным агентства Platts.
A17: Вернуться к содержанию

Sheet Индикаторы
A1: Рыночные индикаторы
A2: Показатель | B2: Единица измерения | C2: За год и по состоянию на 31 декабря
C3: 2005 | D3: 2006 | E3: 2007 | F3: 2008 | G3: 2009 | H3: 2010 | I3: 2011 | J3: 2012 | K3: 2013 | L3: 2014 | M3: 2015 | N3: 2016 | O3: 2017 | P3: 2018 | Q3: 2019 | R3: 2020
A4: Цена за акцию на закрытие торгов на ПАО Московская Биржа
A5: на конец года | B5: руб. | C5: 194.3 | D5: 302.89 | E5: 342.88 | F5: 108.6 | G5: 183.21 | H5: 193.62 | I5: 171.37 | J5: 143.91 | K5: 138.75 | L5: 130,31 | M5: 136.09 | N5: 154.55 | O5: 130.5 | P5: 153.5 | Q5: 256.4 | R5: 212.69
A6: минимальная за год | B6: руб. | C6: 69.6 | D6: 216 | E6: 227.99 | F6: 86.6 | G6: 101.91 | H6: 142.84 | I6: 143.03 | J6: 137.18 | K6: 107.17 | L6: 117,87 | M6: 130.9 | N6: 124.6 | O6: 115.35 | P6: 132.2 | Q6: 149.49 | R6: 154.28
A7: максимальная за год | B7: руб. | C7: 195 | D7: 350.25 | E7: 357.2 | F7: 367.4 | G7: 200.16 | H7: 197.34 | I7: 243.93 | J7: 199.69 | K7: 158 | L7: 153,25 | M7: 163 | N7: 168.47 | O7: 157.97 | P7: 172.11 | Q7: 270.74 | R7: 259
A8: Цена за АДР* на закрытие торгов на ЛФБ
A9: на конец года | B9: долл. | C9: 28.68 | D9: 46 | E9: 56.7 | F9: 14.25 | G9: 25.5 | H9: 25.25 | I9: 10.66 | J9: 9.46 | K9: 8.55 | L9: 4,65 | M9: 3.69 | N9: 5.05 | O9: 4.41 | P9: 4.43 | Q9: 8.23 | R9: 5.59
A10: минимальная за год | B10: долл. | C10: 11.92 | D10: 29.48 | E10: 35.4 | F10: 11.91 | G10: 12.26 | H10: 18.06 | I10: 8.74 | J10: 8.7 | K10: 6.48 | L10: 3,73 | M10: 3.62 | N10: 3.02 | O10: 3.85 | P10: 4.14 | Q10: 4.47 | R10: 3.83
A11: максимальная за год | B11: долл. | C11: 31.4 | D11: 52.64 | E11: 58.5 | F11: 62.5 | G11: 27.3 | H11: 26.64 | I11: 17.4 | J11: 13.53 | K11: 9.82 | L11: 9,06 | M11: 6.24 | N11: 5.27 | O11: 5.27 | P11: 5.31 | Q11: 8.35 | R11: 8.42
A12: Количество выпущенных обыкновенных акций ПАО «Газпром» по состоянию на конец года | B12: млн шт. | C12: 23674 | D12: 23674 | E12: 23674 | F12: 23674 | G12: 23674 | H12: 23674 | I12: 23674 | J12: 23674 | K12: 23674 | L12: 23 674 | M12: 23 674 | N12: 23673.5129 | O12: 23673.5129 | P12: 23673.5129 | Q12: 23674 | R12: 23674
A13: Количество выпущенных обыкновенных акций в собственности дочерних организаций ПАО «Газпром» по состоянию на конец года | B13: млн шт. | C13: 848 | D13: 749 | E13: 66 | F13: 30 | G13: 724 | H13: 723 | I13: 726 | J13: 724 | K13: 723 | L13: 723 | M13: 723 | N13: 1573 | O13: 1573 | P13: 1573 | Q13: 29 | R13: 29
A14: Количество выпущенных обыкновенных акций ПАО «Газпром» за вычетом акций, находящихся в собственности дочерних организаций ПАО «Газпром», по состоянию на конец года** | B14: млн шт. | C14: =C12-C13 -> 22826 | D14: 22925 | E14: 23608 | F14: 23644 | G14: 22950 | H14: 22951 | I14: 22948 | J14: 22950 | K14: 22 951 | L14: 22 951 | M14: 22 951 | N14: 22101 | O14: 22101 | P14: 22101 | Q14: 23645 | R14: 23 645
A15: Рыночная капитализация на конец года*** | B15: млрд долл. | C15: 160.3 | D15: 272 | E15: 330.9 | F15: 86 | G15: 144.5 | H15: 150.9 | I15: 122.6 | J15: 111.6 | K15: 99.9 | L15: 54,8 | M15: 44.2 | N15: 60.3 | O15: 53.6 | P15: 52.3 | Q15: 98 | R15: 68.2
A16: изменение к прошлому году | B16: % | C16: 1.418 | D16: =ROUND((D15-C15)/C15,3) -> 0.697 | E16: 0.217 | F16: -0.74 | G16: 0.68 | H16: 0.044 | I16: -0.188 | J16: -0.09 | K16: -0.105 | L16: -0.451 | M16: -0.193 | N16: 0.364 | O16: -0.111 | P16: -0.024 | Q16: 0.875 | R16: -0.305
A17: Индекс МосБиржи (ранее – индекс ММВБ) | B17: пункты | C17: 1011 | D17: 1693 | E17: 1889 | F17: 620 | G17: 1370 | H17: 1688 | I17: 1402 | J17: 1475 | K17: 1504 | L17: 1 397 | M17: 1761 | N17: 2233 | O17: 2110 | P17: 2369 | Q17: 3046 | R17: 3289
A18: изменение к прошлому году | B18: % | C18: 0.832 | D18: =ROUND((D17-C17)/C17,3) -> 0.675 | E18: 0.116 | F18: -0.672 | G18: 1.21 | H18: 0.232 | I18: -0.169 | J18: 0.052 | K18: 0.02 | L18: -0.071 | M18: 0.261 | N18: 0.268 | O18: -0.055 | P18: 0.123 | Q18: 0.286 | R18: 0.08
A19: Индекс РТС | B19: пункты | C19: 1126 | D19: 1922 | E19: 2291 | F19: 632 | G19: 1445 | H19: 1770 | I19: 1382 | J19: 1527 | K19: 1443 | L19: 791 | M19: 757 | N19: 1152 | O19: 1154 | P19: 1069 | Q19: 1549 | R19: 1387
A20: изменение к прошлому году | B20: % | C20: 0.858 | D20: =ROUND((D19-C19)/C19,3) -> 0.707 | E20: 0.192 | F20: -0.724 | G20: 1.286 | H20: 0.225 | I20: -0.219 | J20: 0.105 | K20: -0.055 | L20: -0.452 | M20: -0.043 | N20: 0.522 | O20: 0.002 | P20: -0.074 | Q20: 0.449 | R20: -0.105
A21: Среднедневной объем торгов на ПАО Московская Биржа | B21: млн акций | C21: 20.8 | D21: 49.2 | E21: 47.8 | F21: 67.2 | G21: 85.2 | H21: 56.4 | I21: 74.6 | J21: 39.4 | K21: 43.9 | L21: 52,5 | M21: 32.5 | N21: 29.9 | O21: 28.9 | P21: 26.3 | Q21: 37 | R21: 56.6
A22: Среднедневной объем торгов на ЛФБ | B22: млн АДР | C22: 1.7 | D22: 4.4 | E22: 7.2 | F22: 16.9 | G22: 12.6 | H22: 13.7 | I22: 43.2 | J22: 32.1 | K22: 25 | L22: 27,6 | M22: 16.4 | N22: 15.9 | O22: 12 | P22: 9.2 | Q22: 8.1 | R22: 8.4
A23: Дивиденды на обыкновенную акцию**** | B23: руб. | C23: 1.5 | D23: 2.54 | E23: 2.66 | F23: 0.36 | G23: 2.39 | H23: 3.85 | I23: 8.97 | J23: 5.99 | K23: 7.2 | L23: 7,20 | M23: 7.89 | N23: 8.0397 | O23: 8.04 | P23: 16.61 | Q23: 15.24 | R23: 12.55
A24: Структура акционерного капитала
A25: Российская Федерация в лице Федерального агентства по управлению государственным имуществом***** | B25: % | C25: 0.38373 | D25: 0.38373 | E25: 0.38373 | F25: 0.38373 | G25: 0.38373 | H25: 0.38373 | I25: 0.3837 | J25: 0.3837 | K25: 0.3837 | L25: 0.3837 | M25: 0.3837 | N25: 0.3837 | O25: 0.3837 | P25: 0.3837 | Q25: 0.3837 | R25: 0.3837
A26: АО «РОСНЕФТЕГАЗ» | B26: % | C26: 0.1074 | D26: 0.1074 | E26: 0.1074 | F26: 0.1074 | G26: 0.1074 | H26: 0.1074 | I26: 0.1074 | J26: 0.1074 | K26: 0.1097 | L26: 0.1097 | M26: 0.1097 | N26: 0.1097 | O26: 0.1097 | P26: 0.1097 | Q26: 0.1097 | R26: 0.1097
A27: АО «Росгазификация» | B27: % | C27: 0.00889 | D27: 0.00889 | E27: 0.00889 | F27: 0.00889 | G27: 0.00889 | H27: 0.00889 | I27: 0.0089 | J27: 0.0089 | K27: 0.0089 | L27: 0.0089 | M27: 0.0089 | N27: 0.0089 | O27: 0.0089 | P27: 0.0089 | Q27: 0.0089 | R27: 0.0089
A28: Владельцы АДР****** | B28: % | C28: 0.04422 | D28: 0.132 | E28: 0.2102 | F28: 0.2215 | G28: 0.2435 | H28: 0.2757 | I28: 0.2835 | J28: 0.2696 | K28: 0.2578 | L28: 0.2805 | M28: 0.2783 | N28: 0.2686 | O28: 0.252 | P28: 0.2413 | Q28: 0.197 | R28: 0.1671
A29: Прочие зарегистрированные лица | B29: % | C29: 0.45576 | D29: 0.36798 | E29: 0.28978 | F29: 0.27848 | G29: 0.25648 | H29: 0.22428 | I29: 0.2165 | J29: 0.2304 | K29: 0.2399 | L29: 0.2172 | M29: 0.2194 | N29: 0.2291 | O29: 0.2457 | P29: 0.2564 | Q29: 0.3007 | R29: 0.3306
A30: Всего | B30: % | C30: =SUM(C25:C29) -> 1 | D30: 1 | E30: 1 | F30: 1 | G30: 1 | H30: 1 | I30: 1 | J30: 1 | K30: 1 | L30: 1 | M30: 1 | N30: 1 | O30: 1 | P30: 1 | Q30: 1 | R30: 1
A31: * До апреля 2011 г. одна АДР предоставляла право на четыре обыкновенные акции ОАО «Газпром». Начиная с апреля 2011 г. одна АДР предоставляет право на две обыкновенные акции ОАО «Газпром» (после 17 июля 2015 г. – ПАО «Газпром»).
A32: ** По состоянию на 31 декабря соответствующего года отсутствовали акции ПАО «Газпром», право собственности на которые перешло к Компании.
A33: *** Рыночная капитализация рассчитана по котировкам ПАО Московская Биржа, конвертирована в доллары.
A34: **** За 2020 г. приведены рекомендуемые дивиденды.
A35: ***** По состоянию на 31 декабря соответствующего года суммарная доля акций ПАО «Газпром», находящихся под прямым и косвенным контролем Российской Федерации, полученная путемпрямого сложения, составляет 50,23 % и обеспечивается 100 % долей участия Российской Федерации в АО «РОСНЕФТЕГАЗ», которое также является владельцем 74,55 % акций АО «Росгазификация».
A36: ****** Банк-эмитент американских депозитарных расписок (АДР) на акции ПАО «Газпром» – The Bank of New York Mellon.
A38: Вернуться к содержанию

Sheet Запасы
A1: Разведка и добыча на территории Российской Федерации
A2: Запасы
A3: Запасы углеводородов Группы Газпром на территории Российской Федерации
A4: (с учетом доли в запасах организаций, инвестиции в которые классифицированы как совместные операции)
A5: Метрические единицы
B6: По состоянию на 31 декабря
B7: 2005* | C7: 2006* | D7: 2007* | E7: 2008* | F7: 2009* | G7: 2010* | H7: 2011* | I7: 2012 | J7: 2013 | K7: 2014 | L7: 2015 | M7: 2016 | N7: 2017 | O7: 2018 | P7: 2019 | Q7: 2020
A8: Природный газ, млрд м3
A9: Разведанные запасы по российской классификации | B9: 29130.7 | C9: 29854.2 | D9: 29785.4 | E9: 33123.2 | F9: 33578.4 | G9: 33052.3 | H9: 35046.9 | I9: 35169.8 | J9: 35696.6 | K9: 36101.4 | L9: 36147.3 | M9: 36443.9 | N9: 35355.4 | O9: 35195.3 | P9: 34899 | Q9: 33574.5
A10: из них прошедшие оценку по стандартам PRMS | B10: 0.95 | C10: 0.93 | D10: 0.95 | E10: 0.88 | F10: 0.89 | G10: 0.93 | H10: 0.9 | I10: 0.94 | J10: 0.93 | K10: 0.94 | L10: 0.94 | M10: 0.95 | N10: 0.94 | O10: 0.93 | P10: 0.93 | Q10: 0.92
A11: Доказанные | B11: 16052.1 | C11: 18187.6 | D11: 18286.5 | E11: 18187.8 | F11: 18609.9 | G11: 18991.3 | H11: 19212.6 | I11: 19133 | J11: 18939.3 | K11: 18894.7 | L11: 18791.2 | M11: 18596.5 | N11: 18253.4 | O11: 17890.4 | P11: 17715.1 | Q11: 17475.4
A12: Вероятные | B12: 4757.2 | C12: 2580 | D12: 2551.5 | E12: 3088.2 | F12: 3338.1 | G12: 3529 | H12: 3631.5 | I12: 4254.1 | J12: 4325.2 | K12: 4616 | L12: 4913.8 | M12: 5258.6 | N12: 5893.2 | O12: 6364.7 | P12: 6680.4 | Q12: 7045.6
A13: Доказанные и вероятные | B13: 20809.3 | C13: 20767.6 | D13: 20838 | E13: 21276 | F13: 21948 | G13: 22520.3 | H13: 22844.1 | I13: 23387.1 | J13: 23264.5 | K13: 23510.7 | L13: 23705 | M13: 23855.1 | N13: 24146.6 | O13: 24255.1 | P13: 24395.5 | Q13: 24521
A14: Газовый конденсат, млн т
A15: Разведанные запасы по российской классификации | B15: 1216.3 | C15: 1217 | D15: 1212.5 | E15: 1287.1 | F15: 1325.1 | G15: 1284.8 | H15: 1395.5 | I15: 1386.1 | J15: 1384.4 | K15: 1447 | L15: 1499.5 | M15: 1534.9 | N15: 1595.6 | O15: 1604.4 | P15: 1569.7 | Q15: 1494.4
A16: из них прошедшие оценку по стандартам PRMS | B16: 0.9 | C16: 0.9 | D16: 0.9 | E16: 0.85 | F16: 0.82 | G16: 0.86 | H16: 0.83 | I16: 0.89 | J16: 0.89 | K16: 0.92 | L16: 0.92 | M16: 0.94 | N16: 0.93 | O16: 0.94 | P16: 0.95 | Q16: 0.95
A17: Доказанные | B17: 507.9 | C17: 528.9 | D17: 568.9 | E17: 587.9 | F17: 586 | G17: 572.1 | H17: 605.2 | I17: 633.8 | J17: 638.8 | K17: 642.3 | L17: 699.5 | M17: 759.2 | N17: 797.7 | O17: 759.7 | P17: 730.2 | Q17: 750.8
A18: Вероятные | B18: 184.7 | C18: 130.1 | D18: 117.2 | E18: 141.9 | F18: 141.2 | G18: 147.2 | H18: 152.6 | I18: 174.9 | J18: 193.6 | K18: 206.3 | L18: 233.8 | M18: 259.7 | N18: 308 | O18: 330.5 | P18: 333 | Q18: 359.4
A19: Доказанные и вероятные | B19: 692.6 | C19: 659 | D19: 686.1 | E19: 729.8 | F19: 727.2 | G19: 719.3 | H19: 757.8 | I19: 808.7 | J19: 832.4 | K19: 848.6 | L19: 933.3 | M19: 1018.9 | N19: 1105.7 | O19: 1090.2 | P19: 1063.2 | Q19: 1110.2
A20: Нефть, млн т
A21: Разведанные запасы по российской классификации | B21: 1357.5 | C21: 1386.9 | D21: 1509.9 | E21: 1601.7 | F21: 1785 | G21: 1732.9 | H21: 1767.3 | I21: 1992.2 | J21: 2019 | K21: 2053.1 | L21: 2082 | M21: 2078.5 | N21: 2045.3 | O21: 2015.7 | P21: 2005.7 | Q21: 2023.8
A22: из них прошедшие оценку по стандартам PRMS | B22: 0.93 | C22: 0.93 | D22: 0.93 | E22: 0.92 | F22: 0.85 | G22: 0.9 | H22: 0.89 | I22: 0.89 | J22: 0.89 | K22: 0.91 | L22: 0.92 | M22: 0.93 | N22: 0.94 | O22: 0.94 | P22: 0.96 | Q22: 0.96
A23: Доказанные | B23: 528.8 | C23: 688.9 | D23: 727 | E23: 713.2 | F23: 718.5 | G23: 717.4 | H23: 723.9 | I23: 819.5 | J23: 834.8 | K23: 830.5 | L23: 792.7 | M23: 789.5 | N23: 736.8 | O23: 712.3 | P23: 707.5 | Q23: 699.7
A24: Вероятные | B24: 702.9 | C24: 377.6 | D24: 405.5 | E24: 565 | F24: 435.5 | G24: 464.5 | H24: 492.2 | I24: 588.8 | J24: 572.4 | K24: 543.9 | L24: 562.7 | M24: 589.2 | N24: 623.2 | O24: 623.1 | P24: 667.3 | Q24: 703.5
A25: Доказанные и вероятные | B25: 1231.7 | C25: 1066.5 | D25: 1132.5 | E25: 1278.2 | F25: 1154 | G25: 1181.9 | H25: 1216.1 | I25: 1408.3 | J25: 1407.2 | K25: 1374.4 | L25: 1355.4 | M25: 1378.7 | N25: 1360 | O25: 1335.4 | P25: 1374.8 | Q25: 1403.2
A26: * Без учета доли Группы Газпром в запасах организаций, инвестиции в которые классифицированы как совместные операции.
A28: Нефтяной эквивалент
B29: По состоянию на 31 декабря
B30: 2005* | C30: 2006* | D30: 2007* | E30: 2008* | F30: 2009* | G30: 2010* | H30: 2011* | I30: 2012 | J30: 2013 | K30: 2014 | L30: 2015 | M30: 2016 | N30: 2017 | O30: 2018 | P30: 2019 | Q30: 2020
A31: Природный газ, млн барр. н. э.
A32: Разведанные запасы по российской классификации | B32: =B9*6.49 -> 189058.243 | C32: 193753.758 | D32: 193307.246 | E32: 214969.568 | F32: 217923.816 | G32: 214509.427 | H32: 227454.381 | I32: 228252 | J32: 231670.9 | K32: 234298.1 | L32: 234596 | M32: 236520.9 | N32: 229456.5 | O32: 228417.5 | P32: 226494.5 | Q32: 217898.5
A33: Доказанные | B33: 104178.2 | C33: =C11*6.49 -> 118037.524 | D33: 118679.385 | E33: 118038.822 | F33: 120778.2 | G33: 123253.537 | H33: 124689.774 | I33: 124173.2 | J33: 122916.1 | K33: 122626.6 | L33: 121954.9 | M33: 120691.3 | N33: 118464.5 | O33: 116108.7 | P33: 114971 | Q33: 113415.4
A34: Вероятные | B34: =B12*6.49 -> 30874.228 | C34: 16744.2 | D34: 16559.235 | E34: 20042.418 | F34: 21664.269 | G34: 22903.21 | H34: 23568.435 | I34: 27609.1 | J34: 28070.5 | K34: 29957.8 | L34: 31890.6 | M34: 34128.3 | N34: 38246.9 | O34: 41306.9 | P34: 43355.8 | Q34: 45725.9
A35: Доказанные и вероятные | B35: =B13*6.49 -> 135052.357 | C35: 134781.724 | D35: 135238.62 | E35: 138081.24 | F35: 142442.52 | G35: 146156.747 | H35: 148258.209 | I35: 151782.3 | J35: 150986.6 | K35: 152584.4 | L35: 153845.5 | M35: 154819.6 | N35: 156711.4 | O35: 157415.6 | P35: 158326.8 | Q35: 159141.3
A36: Газовый конденсат, млн барр. н. э.
A37: Разведанные запасы по российской классификации | B37: 9949.3 | C37: 9955.1 | D37: 9918.3 | E37: 10528.5 | F37: 10839.3 | G37: 10509.7 | H37: 11415.2 | I37: 11338.3 | J37: 11324.4 | K37: 11836.5 | L37: 12265.9 | M37: 12555.5 | N37: 13052 | O37: 13124 | P37: 12840.1 | Q37: 12224.2
A38: Доказанные | B38: 4154.6 | C38: 4326.4 | D38: 4653.6 | E38: 4809 | F38: 4793.5 | G38: 4679.8 | H38: 4950.5 | I38: 5184.5 | J38: 5225.4 | K38: 5254 | L38: 5721.9 | M38: 6210.3 | N38: 6525.2 | O38: 6214.3 | P38: 5973 | Q38: 6141.5
A39: Вероятные | B39: 1510.9 | C39: 1064.2 | D39: 958.7 | E39: 1160.8 | F39: 1155 | G39: 1204.1 | H39: 1248.3 | I39: 1430.7 | J39: 1583.6 | K39: 1687.5 | L39: 1912.5 | M39: 2124.3 | N39: 2519.4 | O39: 2703.5 | P39: 2723.9 | Q39: 2939.9
A40: Доказанные и вероятные | B40: 5665.5 | C40: 5390.6 | D40: 5612.3 | E40: 5969.8 | F40: 5948.5 | G40: 5883.9 | H40: 6198.8 | I40: 6615.2 | J40: 6809 | K40: 6941.5 | L40: 7634.4 | M40: 8334.6 | N40: 9044.6 | O40: 8917.8 | P40: 8696.9 | Q40: 9081.4
A41: Нефть, млн барр. н. э.
A42: Разведанные запасы по российской классификации | B42: 9950.5 | C42: 10166 | D42: 11067.6 | E42: 11740.5 | F42: 13084.1 | G42: 12702.2 | H42: 12954.3 | I42: 14602.8 | J42: 14799.3 | K42: 15049.2 | L42: 15261.1 | M42: 15235.4 | N42: 14992.1 | O42: 14775.1 | P42: 14701.8 | Q42: 14834.5
A43: Доказанные | B43: 3876.1 | C43: 5049.6 | D43: 5328.9 | E43: 5227.8 | F43: 5266.6 | G43: 5258.5 | H43: 5306.2 | I43: 6006.9 | J43: 6119.1 | K43: 6087.6 | L43: 5810.5 | M43: 5787 | N43: 5400.7 | O43: 5221.2 | P43: 5186 | Q43: 5128.8
A44: Вероятные | B44: 5152.3 | C44: 2767.8 | D44: 2972.3 | E44: 4141.4 | F44: 3192.2 | G44: 3404.8 | H44: 3607.8 | I44: 4315.9 | J44: 4195.7 | K44: 3986.8 | L44: 4124.6 | M44: 4318.8 | N44: 4568.1 | O44: 4567.3 | P44: 4891.3 | Q44: 5156.7
A45: Доказанные и вероятные | B45: 9028.4 | C45: 7817.4 | D45: 8301.2 | E45: 9369.2 | F45: 8458.8 | G45: 8663.3 | H45: 8914 | I45: 10322.8 | J45: 10314.8 | K45: 10074.4 | L45: 9935.1 | M45: 10105.9 | N45: 9968.8 | O45: 9788.5 | P45: 10077.3 | Q45: 10285.5
A46: Всего, млн барр. н. э.
A47: Разведанные запасы по российской классификации | B47: =B32+B37+B42 -> 208958.043 | C47: 213874.858 | D47: 214293.146 | E47: 237238.568 | F47: 241847.216 | G47: 237721.327 | H47: 251823.881 | I47: 254193.1 | J47: 257794.6 | K47: 261183.8 | L47: 262123 | M47: 264311.8 | N47: 257 500,6 | O47: 256316.6 | P47: 254036.4 | Q47: 244957.2
A48: Доказанные | B48: 112208.9 | C48: 127413.524 | D48: 128661.885 | E48: 128075.622 | F48: 130838.3 | G48: 133191.837 | H48: 134946.474 | I48: 135364.6 | J48: 134260.6 | K48: 133968.2 | L48: 133487.3 | M48: 132688.6 | N48: 130 390,4 | O48: 127544.2 | P48: 126130 | Q48: 124685.7
A49: Вероятные | B49: 37537.428 | C49: 20576.2 | D49: 20490.235 | E49: 25344.618 | F49: 26011.469 | G49: 27512.11 | H49: 28424.535 | I49: 33355.7 | J49: 33849.8 | K49: 35632.1 | L49: 37927.7 | M49: 40571.5 | N49: 45 334,4 | O49: 48577.7 | P49: 50971 | Q49: 53822.5
A50: Доказанные и вероятные | B50: 149746.257 | C50: 147989.724 | D50: 149152.12 | E50: 153420.24 | F50: 156849.82 | G50: 160703.947 | H50: 163371.009 | I50: 168720.3 | J50: 168110.4 | K50: 169600.3 | L50: 171415 | M50: 173260.1 | N50: 175 724,8 | O50: 176121.9 | P50: 177101 | Q50: 178508.2
A51: * Без учета доли Группы Газпром в запасах организаций, инвестиции в которые классифицированы как совместные операции.
A52: Примечание. Группа Газпром осуществляет управленческий учет запасов и добычи углеводородов в метрических единицах измерения. В настоящем Справочнике пересчет объемов запасов газа из метрической системы в баррели нефтяного эквивалента выполнен исходя из соотношения 1 тыс. м3 природного газа = 6,49 барр. н. э.
A54: Месторождения и залежи углеводородов, открытые Группой Газпром на территории Российской Федерации
B55: За год, закончившийся 31 декабря
B56: 2005* | C56: 2006 | D56: 2007 | E56: 2008 | F56: 2009 | G56: 2010 | H56: 2011 | I56: 2012 | J56: 2013 | K56: 2014 | L56: 2015 | M56: 2016 | N56: 2017 | O56: 2018 | P56: 2019 | Q56: 2020
A57: Группа Газпром
A58: Месторождения | B58: 3 | C58: 4 | D58: 3 | E58: 3 | F58: 7 | G58: 3 | H58: 5 | I58: 5 | J58: 2 | K58: 1 | L58: 2 | M58: 2 | N58: 4 | O58: 3 | P58: 4 | Q58: 3
A59: Залежи на ранее открытых месторождениях | B59: 14 | C59: 30 | D59: 24 | E59: 22 | F59: 14 | G59: 26 | H59: 28 | I59: 49 | J59: 27 | K59: 37 | L59: 22 | M59: 15 | N59: 47 | O59: 12 | P59: 25 | Q59: 22
A60: Организации, инвестиции в которые классифицированы как совместные операции
A61: Месторождения | B61: x | C61: x | D61: x | E61: x | F61: x | G61: x | H61: x | I61: – | J61: – | K61: – | L61: – | M61: – | N61: 1 | O61: 1 | P61: 1 | Q61: 1
A62: Залежи на ранее открытых месторождениях | B62: x | C62: x | D62: x | E62: x | F62: x | G62: x | H62: x | I62: 2 | J62: 1 | K62: 2 | L62: 6 | M62: 3 | N62: 5 | O62: 3 | P62: 2 | Q62: 3
A63: * Без учета Группы Газпром нефть.
A65: Коэффициент восполнения разведанных запасов углеводородов Группы Газпром по российской классификации
A66: (с учетом доли в запасах и добыче организаций, инвестиции в которые классифицированы как совместные операции)
B67: За год, закончившийся 31 декабря
B68: 2005* | C68: 2006* | D68: 2007* | E68: 2008* | F68: 2009* | G68: 2010* | H68: 2011* | I68: 2012* | J68: 2013 | K68: 2014 | L68: 2015 | M68: 2016 | N68: 2017 | O68: 2018 | P68: 2019 | Q68: 2020
A69: Природный газ | B69: 1 | C69: 1.1 | D69: 1.1 | E69: 1.1 | F69: 1 | G69: 1.1 | H69: 1.4 | I69: 1.18 | J69: 1.33 | K69: 1.86 | L69: 1.27 | M69: 1.1 | N69: 1.82 | O69: 1.6 | P69: 1.11 | Q69: 1.08
A70: Газовый конденсат | B70: 1.82 | C70: 1.42 | D70: 1.18 | E70: 0.86 | F70: 5.28 | G70: 3.99 | H70: 4.41 | I70: 2.31 | J70: 0.52 | K70: 10.88 | L70: 6.12 | M70: 3.25 | N70: 7.97 | O70: 1.74 | P70: 0.88 | Q70: 1.3
A71: Нефть | B71: 0.51 | C71: 1.38 | D71: 0.59 | E71: 1.69 | F71: 1.83 | G71: 2.6 | H71: 1.78 | I71: 1.67 | J71: 1.14 | K71: 0.57 | L71: 0.47 | M71: 0.41 | N71: 0.07 | O71: 0.41 | P71: 0.61 | Q71: 0.21
A72: Всего | B72: 1.02 | C72: 1.09 | D72: 1.04 | E72: 1.1 | F72: 1.15 | G72: 1.24 | H72: 1.49 | I72: 1.24 | J72: 1.29 | K72: 1.95 | L72: 1.32 | M72: 1.08 | N72: 1.81 | O72: 1.49 | P72: 1.06 | Q72: 1
A73: * Без учета доли Группы Газпром в запасах и добыче организаций, инвестиции в которые классифицированы как совместные операции.
A75: Запасы природного газа Группы Газпром по стандартам PRMS на территории Российской Федерации, млрд м3
A76: (с учетом доли в запасах организаций, инвестиции в которые классифицированы как совместные операции)
B77: По состоянию на 31 декабря
B78: 2005* | C78: 2006* | D78: 2007* | E78: 2008* | F78: 2009* | G78: 2010* | H78: 2011* | I78: 2012 | J78: 2013 | K78: 2014 | L78: 2015 | M78: 2016 | N78: 2017 | O78: 2018 | P78: 2019 | Q78: 2020
A79: ПАО «Газпром» и его основные дочерние общества**
A80: Доказанные | B80: 15714.7 | C80: 17902.5 | D80: 17319.5 | E80: 17196.8 | F80: 17645.5 | G80: 18029.4 | H80: 18208.1 | I80: 18133.7 | J80: 18036.7 | K80: 18023.7 | L80: 17942.5 | M80: 17780.9 | N80: 17 429,6 | O80: 17075.8 | P80: 16831.4 | Q80: 15987.4
A81: Вероятные | B81: =IF(4672<>B82-B80,B82-B80,4672) -> 4671.9 | C81: 2572.4 | D81: 2539.4 | E81: 2908.8 | F81: 3255.2 | G81: 3420.6 | H81: 3505.7 | I81: 4068.2 | J81: 4072.4 | K81: 4303.7 | L81: 4587.6 | M81: 4930.2 | N81: 5 536,8 | O81: 6007.5 | P81: 6290.7 | Q81: 6122.6
A82: Доказанные и вероятные | B82: 20386.6 | C82: 20474.9 | D82: 19858.9 | E82: 20105.6 | F82: 20900.7 | G82: 21450 | H82: 21713.8 | I82: 22201.9 | J82: 22109.1 | K82: 22327.4 | L82: 22530.1 | M82: 22711.1 | N82: 22 966,4 | O82: 23083.3 | P82: 23122.1 | Q82: 22110
A83: ПАО «Газпром нефть» и его дочерние общества
A84: Доказанные | B84: 66.8 | C84: 29.5 | D84: 20.6 | E84: 73.2 | F84: 80.7 | G84: 118.9 | H84: 147.2 | I84: 193.8 | J84: 216.7 | K84: 223.5 | L84: 239.5 | M84: 243 | N84: 288.2 | O84: 322.3 | P84: 389.1 | Q84: 388.6
A85: Вероятные | B85: 81.3 | C85: 3.6 | D85: 1.8 | E85: 169.1 | F85: 72.6 | G85: 98.1 | H85: 106.4 | I85: 133.1 | J85: 111.3 | K85: 168.3 | L85: 182.1 | M85: 183 | N85: 210.5 | O85: 212.2 | P85: 259.5 | Q85: 275.5
A86: Доказанные и вероятные | B86: 148.1 | C86: 33.1 | D86: 22.4 | E86: 242.3 | F86: 153.3 | G86: 217 | H86: 253.6 | I86: 326.9 | J86: 328 | K86: 391.8 | L86: 421.6 | M86: 426 | N86: 498.7 | O86: 534.5 | P86: 648.6 | Q86: 664.1
A87: Объекты месторождений ПАО «Газпром» и его основных дочерних обществ, разрабатываемые ООО «Газпромнефть-Заполярье»
A88: Доказанные | B88: x | C88: x | D88: x | E88: x | F88: x | G88: x | H88: x | I88: x | J88: x | K88: x | L88: x | M88: x | N88: x | O88: x | P88: x | Q88: 645.5
A89: Вероятные | B89: x | C89: x | D89: x | E89: x | F89: x | G89: x | H89: x | I89: x | J89: x | K89: x | L89: x | M89: x | N89: x | O89: x | P89: x | Q89: 523.7
A90: Доказанные и вероятные | B90: x | C90: x | D90: x | E90: x | F90: x | G90: x | H90: x | I90: x | J90: x | K90: x | L90: x | M90: x | N90: x | O90: x | P90: x | Q90: 1 169,2
A91: ЗАО «Пургаз»
A92: Доказанные | B92: 270.6 | C92: 255.6 | D92: 233.1 | E92: 217.9 | F92: 206.4 | G92: 191.3 | H92: 188 | I92: 172.9 | J92: 158.3 | K92: 145 | L92: 132.3 | M92: 120.6 | N92: 109.7 | O92: 92 | P92: 83.2 | Q92: 73.4
A93: Вероятные | B93: 4 | C93: 4 | D93: 3.9 | E93: 3.9 | F93: 3.9 | G93: 3.9 | H93: 12.8 | I93: 12.9 | J93: 12.9 | K93: 12.9 | L93: 12.9 | M93: 12.9 | N93: 12.9 | O93: 12.7 | P93: 12.8 | Q93: 12.7
A94: Доказанные и вероятные | B94: 274.6 | C94: 259.6 | D94: 237 | E94: 221.8 | F94: 210.3 | G94: 195.2 | H94: 200.8 | I94: 185.8 | J94: 171.2 | K94: 157.9 | L94: 145.2 | M94: 133.5 | N94: 122.6 | O94: 104.7 | P94: 96 | Q94: 86.1
A95: ОАО «Севернефтегазпром»
A96: Доказанные | B96: x | C96: x | D96: 713.3 | E96: 699.9 | F96: 677.3 | G96: 651.7 | H96: 669.3 | I96: 613.7 | J96: 510 | K96: 484.9 | L96: 459.8 | M96: 434.6 | N96: 409.9 | O96: 384.8 | P96: 397.1 | Q96: 367.4
A97: Вероятные | B97: x | C97: x | D97: 6.4 | E97: 6.4 | F97: 6.4 | G97: 6.4 | H97: 6.6 | I97: 36.8 | J97: 125.7 | K97: 125.7 | L97: 125.7 | M97: 125.7 | N97: 125.5 | O97: 125.4 | P97: 110.5 | Q97: 104.2
A98: Доказанные и вероятные | B98: x | C98: x | D98: 719.7 | E98: 706.3 | F98: 683.7 | G98: 658.1 | H98: 675.9 | I98: 650.5 | J98: 635.7 | K98: 610.6 | L98: 585.5 | M98: 560.3 | N98: 535.4 | O98: 510.2 | P98: 507.6 | Q98: 471.6
A99: Всего без учета доли в запасах организаций, инвестиции в которые классифицированы как совместные операции
A100: Доказанные | B100: 16052.1 | C100: 18187.6 | D100: 18286.5 | E100: 18187.8 | F100: 18609.9 | G100: 18991.3 | H100: 19212.6 | I100: 19114.1 | J100: 18921.7 | K100: 18877.1 | L100: 18774.1 | M100: 18579.1 | N100: 18 237,4 | O100: 17874.9 | P100: 17700.8 | Q100: 17462.3
A101: Вероятные | B101: 4757.2 | C101: 2580 | D101: 2551.5 | E101: 3088.2 | F101: 3338.1 | G101: 3529 | H101: 3631.5 | I101: 4251 | J101: 4322.3 | K101: 4610.6 | L101: 4908.3 | M101: 5251.8 | N101: 5 885,7 | O101: 6357.8 | P101: 6673.5 | Q101: 7038.7
A102: Доказанные и вероятные | B102: 20809.3 | C102: 20767.6 | D102: 20838 | E102: 21276 | F102: 21948 | G102: 22520.3 | H102: 22844.1 | I102: 23365.1 | J102: 23244 | K102: 23487.7 | L102: 23682.4 | M102: 23830.9 | N102: 24123.1 | O102: 24232.7 | P102: 24374.3 | Q102: 24501
A103: Организации, инвестиции в которые классифицированы как совместные операции в доле, приходящейся на Группу Газпром
A104: Доказанные | B104: x | C104: x | D104: x | E104: x | F104: x | G104: x | H104: x | I104: 18.9 | J104: 17.6 | K104: 17.6 | L104: 17.1 | M104: 17.4 | N104: 16 | O104: 15.5 | P104: 14.3 | Q104: 13.1
A105: Вероятные | B105: x | C105: x | D105: x | E105: x | F105: x | G105: x | H105: x | I105: 3.1 | J105: 2.9 | K105: 5.4 | L105: 5.5 | M105: 6.8 | N105: 7.5 | O105: 6.9 | P105: 6.9 | Q105: 6.9
A106: Доказанные и вероятные | B106: x | C106: x | D106: x | E106: x | F106: x | G106: x | H106: x | I106: 22 | J106: 20.5 | K106: 23 | L106: 22.6 | M106: 24.2 | N106: 23.5 | O106: 22.4 | P106: 21.2 | Q106: 20
A107: Всего с учетом доли в запасах организаций, инвестиции в которые классифицированы как совместные операции
A108: Доказанные | B108: x | C108: x | D108: x | E108: x | F108: x | G108: x | H108: x | I108: 19133 | J108: 18939.3 | K108: 18894.7 | L108: 18791.2 | M108: 18596.5 | N108: 18 253,4 | O108: 17890.4 | P108: 17715.1 | Q108: 17475.4
A109: Вероятные | B109: x | C109: x | D109: x | E109: x | F109: x | G109: x | H109: x | I109: 4254.1 | J109: 4325.2 | K109: 4616 | L109: 4913.8 | M109: 5258.6 | N109: 5 893,2 | O109: 6364.7 | P109: 6680.4 | Q109: 7045.6
A110: Доказанные и вероятные | B110: x | C110: x | D110: x | E110: x | F110: x | G110: x | H110: x | I110: 23387.1 | J110: 23264.5 | K110: 23510.7 | L110: 23705 | M110: 23855.1 | N110: 24 146,6 | O110: 24255.1 | P110: 24395.5 | Q110: 24521
A111: * Без учета доли Группы Газпром в запасах корганизаций, инвестиции в которые классифицированы как совместные операции.
A112: ** Начиная с оценки по состоянию на 31 декабря 2020 г. данные приводятся без учета запасов объектов месторождений, лицензии на право пользования которыми принадлежат ПАО «Газпром» или его основным дочерним обществам, а разработка осуществляется ООО «Газпромнефть-Заполярье» в соответствии с условиями заключенных в 2018–2020 гг. долгосрочных рисковых операторских договоров.
A114: Запасы газового конденсата Группы Газпром по стандартам PRMS на территории Российской Федерации, млн т
A115: (с учетом доли в запасах организаций, инвестиции в которые классифицированы как совместные операции)
B116: По состоянию на 31 декабря
B117: 2005* | C117: 2006* | D117: 2007* | E117: 2008* | F117: 2009* | G117: 2010* | H117: 2011* | I117: 2012 | J117: 2013 | K117: 2014 | L117: 2015 | M117: 2016 | N117: 2017 | O117: 2018 | P117: 2019 | Q117: 2020
A118: ПАО «Газпром» и его основные дочерние общества**
A119: Доказанные | B119: 507.9 | C119: 528.9 | D119: 568.9 | E119: 587.9 | F119: 586 | G119: 572.1 | H119: 605.2 | I119: 633.8 | J119: 634.4 | K119: 637.3 | L119: 691.9 | M119: 751.7 | N119: 788.9 | O119: 748.5 | P119: 719.1 | Q119: 696.9
A120: Вероятные | B120: 184.7 | C120: 130.1 | D120: 117.2 | E120: 141.9 | F120: 141.2 | G120: 147.2 | H120: 152.6 | I120: 174.9 | J120: 190.3 | K120: 202.8 | L120: 230.2 | M120: 257 | N120: 303.5 | O120: 327.2 | P120: 329.7 | Q120: 313.5
A121: Доказанные и вероятные | B121: 692.6 | C121: 659 | D121: 686.1 | E121: 729.8 | F121: 727.2 | G121: 719.3 | H121: 757.8 | I121: 808.7 | J121: 824.7 | K121: 840.1 | L121: 922.1 | M121: 1008.7 | N121: 1 092,4 | O121: 1075.7 | P121: 1048.8 | Q121: 1010.4
A122: ПАО «Газпром нефть» и его дочерние общества
A123: Доказанные*** | B123: x | C123: x | D123: x | E123: x | F123: x | G123: x | H123: x | I123: x | J123: 4.4 | K123: 5 | L123: 7.6 | M123: 7.5 | N123: 8.8 | O123: 11.2 | P123: 11.1 | Q123: 10.4
A124: Вероятные*** | B124: x | C124: x | D124: x | E124: x | F124: x | G124: x | H124: x | I124: x | J124: 3.3 | K124: 3.5 | L124: 3.6 | M124: 2.7 | N124: 4.5 | O124: 3.3 | P124: 3.3 | Q124: 2.8
A125: Доказанные и вероятные*** | B125: x | C125: x | D125: x | E125: x | F125: x | G125: x | H125: x | I125: x | J125: 7.7 | K125: 8.5 | L125: 11.2 | M125: 10.2 | N125: 13.3 | O125: 14.5 | P125: 14.4 | Q125: 13.2
A126: Объекты месторождений ПАО «Газпром» и его основных дочерних обществ, разрабатываемые ООО «Газпромнефть-Заполярье»
A127: Доказанные | B127: x | C127: x | D127: x | E127: x | F127: x | G127: x | H127: x | I127: x | J127: x | K127: x | L127: x | M127: x | N127: x | O127: x | P127: x | Q127: 43.5
A128: Вероятные | B128: x | C128: x | D128: x | E128: x | F128: x | G128: x | H128: x | I128: x | J128: x | K128: x | L128: x | M128: x | N128: x | O128: x | P128: x | Q128: 43.1
A129: Доказанные и вероятные | B129: x | C129: x | D129: x | E129: x | F129: x | G129: x | H129: x | I129: x | J129: x | K129: x | L129: x | M129: x | N129: x | O129: x | P129: x | Q129: 86.6
A130: Всего
A131: Доказанные | B131: 507.9 | C131: 528.9 | D131: 568.9 | E131: 587.9 | F131: 586 | G131: 572.1 | H131: 605.2 | I131: 633.8 | J131: 638.8 | K131: 642.3 | L131: 699.5 | M131: 759.2 | N131: 797.7 | O131: 759.7 | P131: 730.2 | Q131: 750.8
A132: Вероятные | B132: 184.7 | C132: 130.1 | D132: 117.2 | E132: 141.9 | F132: 141.2 | G132: 147.2 | H132: 152.6 | I132: 174.9 | J132: 193.6 | K132: 206.3 | L132: 233.8 | M132: 259.7 | N132: 308 | O132: 330.5 | P132: 333 | Q132: 359.4
A133: Доказанные и вероятные | B133: 692.6 | C133: 659 | D133: 686.1 | E133: 729.8 | F133: 727.2 | G133: 719.3 | H133: 757.8 | I133: 808.7 | J133: 832.4 | K133: 848.6 | L133: 933.3 | M133: 1 018,9 | N133: 1 105,7 | O133: 1090.2 | P133: 1063.2 | Q133: 1110.2
A134: * Без учета доли Группы Газпром в запасах и добыче организаций, инвестиции в которые классифицированы как совместные операции.
A135: ** Начиная с оценки по состоянию на 31 декабря 2020 г. данные приводятся без учета запасов объектов месторождений, лицензии на право пользования которыми принадлежат ПАО «Газпром» или его основным дочерним обществам, а разработка осуществляется ООО «Газпромнефть-Заполярье» в соответствии с условиями заключенных в 2018–2020 гг. долгосрочных рисковых операторских договоров.
A136: *** До оценки, подготовленной по состоянию на 31 декабря 2013 г., запасы газового конденсата Группы Газпром нефть учитывались в запасах нефти.
A138: Запасы нефти Группы Газпром по стандартам PRMS на территории Российской Федерации, млн т
A139: (с учетом доли в запасах организаций, инвестиции в которые классифицированы как совместные операции)
B140: По состоянию на 31 декабря
B141: 2005* | C141: 2006* | D141: 2007* | E141: 2008* | F141: 2009* | G141: 2010* | H141: 2011* | I141: 2012 | J141: 2013 | K141: 2014 | L141: 2015 | M141: 2016 | N141: 2017 | O141: 2018 | P141: 2019 | Q141: 2020
A142: ПАО «Газпром» и его основные дочерние общества**
A143: Доказанные | B143: 67.3 | C143: 87.1 | D143: 76.9 | E143: 97.6 | F143: 93 | G143: 82.9 | H143: 57.3 | I143: 58.9 | J143: 55.5 | K143: 55.6 | L143: 44.7 | M143: 44.6 | N143: 16.5 | O143: 17.2 | P143: 22 | Q143: 10.5
A144: Вероятные | B144: 232.2 | C144: 203.8 | D144: 210 | E144: 185.7 | F144: 159.8 | G144: 179.1 | H144: 171.2 | I144: 105 | J144: 121 | K144: 45.9 | L144: 35 | M144: 35 | N144: 46.5 | O144: 46.7 | P144: 58.1 | Q144: 48.7
A145: Доказанные и вероятные | B145: 299.5 | C145: 290.9 | D145: 286.9 | E145: 283.3 | F145: 252.8 | G145: 262 | H145: 228.5 | I145: 163.9 | J145: 176.5 | K145: 101.5 | L145: 79.7 | M145: 79.6 | N145: 63 | O145: 63.9 | P145: 80.1 | Q145: 59.2
A146: ПАО «Газпром нефть» и его дочерние общества
A147: Доказанные | B147: 461.5 | C147: 601.8 | D147: 650.1 | E147: 615.6 | F147: 625.5 | G147: 634.5 | H147: 666.6 | I147: 654.9 | J147: 683.9 | K147: 675.9 | L147: 655.6 | M147: 652.8 | N147: 630.8 | O147: 611.1 | P147: 605 | Q147: 597.4
A148: Вероятные | B148: 470.7 | C148: 173.8 | D148: 195.5 | E148: 379.3 | F148: 275.7 | G148: 285.4 | H148: 321 | I148: 418.8 | J148: 393.8 | K148: 432.8 | L148: 458.7 | M148: 486.1 | N148: 507.4 | O148: 507.7 | P148: 535.8 | Q148: 572.6
A149: Доказанные и вероятные | B149: 932.2 | C149: 775.6 | D149: 845.6 | E149: 994.9 | F149: 901.2 | G149: 919.9 | H149: 987.6 | I149: 1073.7 | J149: 1077.7 | K149: 1108.7 | L149: 1114.3 | M149: 1138.9 | N149: 1 138,2 | O149: 118.8 | P149: 1140.8 | Q149: 1170
A150: Объекты месторождений ПАО «Газпром» и его основных дочерних обществ, разрабатываемые ООО «Газпромнефть-Заполярье»
A151: Доказанные | B151: x | C151: x | D151: x | E151: x | F151: x | G151: x | H151: x | I151: x | J151: x | K151: x | L151: x | M151: x | N151: x | O151: x | P151: x | Q151: 15
A152: Вероятные | B152: x | C152: x | D152: x | E152: x | F152: x | G152: x | H152: x | I152: x | J152: x | K152: x | L152: x | M152: x | N152: x | O152: x | P152: x | Q152: 10
A153: Доказанные и вероятные | B153: x | C153: x | D153: x | E153: x | F153: x | G153: x | H153: x | I153: x | J153: x | K153: x | L153: x | M153: x | N153: x | O153: x | P153: x | Q153: 25
A154: Всего без учета доли в запасах организаций, инвестиции в которые классифицированы как совместные операции
A155: Доказанные | B155: 528.8 | C155: 688.9 | D155: 727 | E155: 713.2 | F155: 718.5 | G155: 717.4 | H155: 723.9 | I155: 713.8 | J155: 739.4 | K155: 731.5 | L155: 700.3 | M155: 697.4 | N155: 647.3 | O155: 628.3 | P155: 627 | Q155: 622.9
A156: Вероятные | B156: 702.9 | C156: 377.6 | D156: 405.5 | E156: 565 | F156: 435.5 | G156: 464.5 | H156: 492.2 | I156: 523.8 | J156: 514.8 | K156: 478.7 | L156: 493.7 | M156: 521.1 | N156: 553.9 | O156: 554.4 | P156: 593.9 | Q156: 631.3
A157: Доказанные и вероятные | B157: 1231.7 | C157: 1066.5 | D157: 1132.5 | E157: 1278.2 | F157: 1154 | G157: 1181.9 | H157: 1216.1 | I157: 1237.6 | J157: 1254.2 | K157: 1210.2 | L157: 1194 | M157: 1218.5 | N157: 1 201,2 | O157: 1182.7 | P157: 1220.9 | Q157: 1254.2
A158: Организации, инвестиции в которые классифицированы как совместные операции в доле, приходящейся на Группу Газпром
A159: Доказанные | B159: x | C159: x | D159: x | E159: x | F159: x | G159: x | H159: x | I159: 105.7 | J159: 95.4 | K159: 99.1 | L159: 92.4 | M159: 92.1 | N159: 89.5 | O159: 84 | P159: 80.5 | Q159: 76.9
A160: Вероятные | B160: x | C160: x | D160: x | E160: x | F160: x | G160: x | H160: x | I160: 65 | J160: 57.6 | K160: 65.1 | L160: 69 | M160: 68.1 | N160: 69.3 | O160: 68.7 | P160: 73.4 | Q160: 72.1
A161: Доказанные и вероятные | B161: х | C161: х | D161: х | E161: х | F161: х | G161: х | H161: х | I161: 170.7 | J161: 153 | K161: 164.2 | L161: 161.4 | M161: 160.2 | N161: 158.8 | O161: 152.7 | P161: 153.9 | Q161: 149
A162: Всего с учетом доли в запасах организаций, инвестиции в которые классифицированы как совместные операции
A163: Доказанные | B163: x | C163: x | D163: x | E163: x | F163: x | G163: x | H163: x | I163: 819.5 | J163: 834.8 | K163: 830.5 | L163: 792.7 | M163: 789.5 | N163: 736.8 | O163: 712.3 | P163: 707.5 | Q163: 699.8
A164: Вероятные | B164: x | C164: x | D164: x | E164: x | F164: x | G164: x | H164: x | I164: 588.8 | J164: 572.4 | K164: 543.9 | L164: 562.7 | M164: 589.2 | N164: 623.2 | O164: 623.1 | P164: 667.3 | Q164: 703.4
A165: Доказанные и вероятные | B165: x | C165: x | D165: x | E165: x | F165: x | G165: x | H165: x | I165: 1408.3 | J165: 1407.2 | K165: 1374.4 | L165: 1355.4 | M165: 1378.7 | N165: 1 360,0 | O165: 1355.4 | P165: 1374.8 | Q165: 1403.2
A166: * Без учета доли Группы Газпром в запасах и добыче организаций, инвестиции в которые классифицированы как совместные операции.
A167: ** Начиная с оценки по состоянию на 31 декабря 2020 г. данные приводятся без учета запасов объектов месторождений, лицензии на право пользования которыми принадлежат ПАО «Газпром» или его основным дочерним обществам, а разработка осуществляется ООО «Газпромнефть-Заполярье» в соответствии с условиями заключенных в 2018–2020 гг. долгосрочных рисковых операторских договоров.
A169: Распределение разведанных запасов углеводородов по российской классификации Группы Газпром на территории Российской Федерации
A170: (с учетом доли в запасах организаций, инвестиции в которые классифицированы как совместные операции)
B171: По состоянию на 31 декабря
B172: 2005* | C172: 2006* | D172: 2007* | E172: 2008* | F172: 2009* | G172: 2010* | H172: 2011* | I172: 2012 | J172: 2013 | K172: 2014 | L172: 2015 | M172: 2016 | N172: 2017 | O172: 2018 | P172: 2019 | Q172: 2020
A173: Природный газ, млрд м3
A174: Уральский ФО | B174: 22341.2 | C174: 21937.3 | D174: 21514.1 | E174: 24265.2 | F174: 24390.6 | G174: 23566.8 | H174: 23401.1 | I174: 23144.2 | J174: 22456.6 | K174: 22032.2 | L174: 21613.5 | M174: 21309 | N174: 20 302,6 | O174: 19735.7 | P174: 19257.7 | Q174: 18372.5
A175: Северо-Западный ФО | B175: 94.2 | C175: 93.2 | D175: 93.3 | E175: 92.2 | F175: 90.4 | G175: 89.3 | H175: 88.2 | I175: 87.4 | J175: 86.9 | K175: 85.8 | L175: 85.1 | M175: 307.3 | N175: 319.3 | O175: 318.6 | P175: 315.1 | Q175: 315
A176: Южный и Северо-Кавказский ФО | B176: 2616.6 | C176: 2594.8 | D176: 2581.8 | E176: 2569 | F176: 2560.7 | G176: 2545.4 | H176: 2523.1 | I176: 2510.5 | J176: 2498.9 | K176: 2997.4 | L176: 2985.3 | M176: 2973.1 | N176: 2 961,1 | O176: 2948.2 | P176: 2924.6 | Q176: 2911.4
A177: Приволжский ФО | B177: 830.4 | C177: 810.6 | D177: 792.8 | E177: 774.7 | F177: 758.5 | G177: 751.3 | H177: 735.4 | I177: 717.8 | J177: 696.2 | K177: 684.1 | L177: 663.5 | M177: 648.9 | N177: 640.7 | O177: 626.9 | P177: 666.6 | Q177: 452.6
A178: Сибирский ФО | B178: 303.9 | C178: 295 | D178: 275.5 | E178: 291.7 | F178: 284.7 | G178: 308.3 | H178: 1668.1 | I178: 1737.5 | J178: 1755.1 | K178: 1936.7 | L178: 1971.6 | M178: 2103.3 | N178: 2 102,1 | O178: 2094.2 | P178: 2080.5 | Q178: 1803.8
A179: Дальневосточный ФО | B179: 8.8 | C179: 8.8 | D179: 22 | E179: 401.7 | F179: 402.2 | G179: 456.6 | H179: 1106.2 | I179: 1181 | J179: 1197.2 | K179: 1197.2 | L179: 1402.1 | M179: 1488.3 | N179: 1 420,1 | O179: 1415.8 | P179: 1425.4 | Q179: 1420.3
A180: Континентальный шельф Российской Федерации | B180: 2935.6 | C180: 4114.5 | D180: 4505.9 | E180: 4728.7 | F180: 5091.3 | G180: 5334.6 | H180: 5524.8 | I180: 5791.4 | J180: 7005.7 | K180: 7168 | L180: 7426.2 | M180: 7614 | N180: 7 609,5 | O180: 8055.9 | P180: 8229.1 | Q180: 8298.9
A181: Всего | B181: 29130.7 | C181: 29854.2 | D181: 29785.4 | E181: =SUM(E174:E180) -> 33123.2 | F181: =SUM(F174:F180) -> 33578.4 | G181: =SUM(G174:G180) -> 33052.3 | H181: 35046.9 | I181: 35169.8 | J181: 35696.6 | K181: 36101.4 | L181: 36147.3 | M181: 36443.9 | N181: 35 355,4 | O181: 35195.3 | P181: 34899 | Q181: 33574.5
A182: Газовый конденсат, млн т
A183: Уральский ФО | B183: 688.4 | C183: 689.7 | D183: 690.2 | E183: 760.4 | F183: 770.9 | G183: 724 | H183: 730.5 | I183: 713.8 | J183: 712.4 | K183: 675.7 | L183: 695.2 | M183: 690.6 | N183: 750 | O183: 744.1 | P183: 739.2 | Q183: 724.3
A184: Северо-Западный ФО | B184: 21.5 | C184: 21.3 | D184: 21.3 | E184: 21.2 | F184: 20.9 | G184: 20.8 | H184: 20.7 | I184: 20.6 | J184: 20.6 | K184: 20.5 | L184: 20.5 | M184: 31.3 | N184: 33.1 | O184: 33 | P184: 32.3 | Q184: 32.1
A185: Южный и Северо-Кавказский ФО | B185: 395.8 | C185: 392.4 | D185: 389.2 | E185: 386 | F185: 383.5 | G185: 380.6 | H185: 377.4 | I185: 374.3 | J185: 371.5 | K185: 447.5 | L185: 444.7 | M185: 441.9 | N185: 439 | O185: 436 | P185: 432.4 | Q185: 429.7
A186: Приволжский ФО | B186: 59.2 | C186: 58.7 | D186: 58 | E186: 57.5 | F186: 57.2 | G186: 57.4 | H186: 57.1 | I186: 57.4 | J186: 56.9 | K186: 56.5 | L186: 56 | M186: 55.7 | N186: 55.6 | O186: 55.3 | P186: 55 | Q186: 16.5
A187: Сибирский ФО | B187: 26.9 | C187: 26.3 | D187: 21.8 | E187: 22.6 | F187: 21.1 | G187: 21.2 | H187: 89.9 | I187: 92.8 | J187: 91.4 | K187: 92.6 | L187: 92.3 | M187: 97 | N187: 96.9 | O187: 96 | P187: 94.6 | Q187: 75.4
A188: Дальневосточный ФО | B188: 0.1 | C188: 0.1 | D188: 0.1 | E188: 5.8 | F188: 6 | G188: 6.9 | H188: 25.2 | I188: 26.4 | J188: 27.3 | K188: 27.3 | L188: 29.6 | M188: 30.5 | N188: 29.4 | O188: 29.3 | P188: 31.6 | Q188: 31.4
A189: Континентальный шельф Российской Федерации | B189: 24.4 | C189: 28.5 | D189: 31.9 | E189: 33.6 | F189: 65.5 | G189: 73.9 | H189: 94.7 | I189: 100.8 | J189: 104.3 | K189: 126.9 | L189: 161.2 | M189: 187.9 | N189: 191.6 | O189: 210.7 | P189: 184.6 | Q189: 185
A190: Всего | B190: 1216.3 | C190: 1217 | D190: 1212.5 | E190: =SUM(E183:E189) -> 1287.1 | F190: =SUM(F183:F189) -> 1325.1 | G190: =SUM(G183:G189) -> 1284.8 | H190: 1395.5 | I190: 1386.1 | J190: 1384.4 | K190: 1447 | L190: 1499.5 | M190: 1534.9 | N190: 1 595,6 | O190: 1604.4 | P190: 1569.7 | Q190: 1494.4
A191: Нефть, млн т
A192: Уральский ФО | B192: 1152 | C192: 1146 | D192: 1261.1 | E192: 1303.1 | F192: 1461.6 | G192: 1400.1 | H192: 1400.3 | I192: 1532.9 | J192: 1550.9 | K192: 1560.1 | L192: 1541.6 | M192: 1531.3 | N192: 1 494,3 | O192: 1471.2 | P192: 1466.8 | Q192: 1466
A193: Северо-Западный ФО | B193: 2.1 | C193: 13.5 | D193: 14.2 | E193: 15.7 | F193: 16.9 | G193: 17.3 | H193: 17.3 | I193: 4.8 | J193: 4.8 | K193: 4.8 | L193: 5.6 | M193: 19.8 | N193: 20.3 | O193: 20.3 | P193: 19.5 | Q193: 20
A194: Южный и Северо-Кавказский ФО | B194: 3.5 | C194: 4.5 | D194: 5.4 | E194: 8.8 | F194: 9.7 | G194: 10.6 | H194: 7.4 | I194: 7.3 | J194: 8 | K194: 7.9 | L194: 8 | M194: 7.9 | N194: 7.8 | O194: 7.7 | P194: 7.8 | Q194: 7.7
A195: Приволжский ФО | B195: 118.6 | C195: 134.3 | D195: 133.9 | E195: 133.3 | F195: 145.1 | G195: 144.5 | H195: 153.8 | I195: 156.2 | J195: 159 | K195: 159.9 | L195: 200.2 | M195: 202.5 | N195: 228.1 | O195: 227.7 | P195: 224.9 | Q195: 235.5
A196: Сибирский ФО | B196: 31.3 | C196: 38.5 | D196: 44.6 | E196: 47.6 | F196: 58.3 | G196: 61.9 | H196: 86 | I196: 188.5 | J196: 191.4 | K196: 198.9 | L196: 205 | M196: 201.3 | N196: 199.6 | O196: 187.4 | P196: 188.4 | Q196: 189.2
A197: Дальневосточный ФО | B197: 2.7 | C197: 2.7 | D197: 3.3 | E197: 45.8 | F197: 46 | G197: 51.1 | H197: 55.1 | I197: 55.1 | J197: 57.5 | K197: 57.6 | L197: 58.4 | M197: 54.6 | N197: 36.8 | O197: 36.8 | P197: 36.9 | Q197: 36.7
A198: Континентальный шельф Российской Федерации | B198: 47.3 | C198: 47.4 | D198: 47.4 | E198: 47.4 | F198: 47.4 | G198: 47.4 | H198: 47.4 | I198: 47.4 | J198: 47.4 | K198: 63.9 | L198: 63.2 | M198: 61.1 | N198: 58.4 | O198: 64.6 | P198: 61.4 | Q198: 68.7
A199: Всего | B199: 1357.5 | C199: 1386.9 | D199: 1509.9 | E199: =SUM(E192:E198) -> 1601.7 | F199: =SUM(F192:F198) -> 1785 | G199: =SUM(G192:G198) -> 1732.9 | H199: 1767.3 | I199: 1992.2 | J199: 2019 | K199: 2053.1 | L199: 2082 | M199: 2078.5 | N199: 2 045,3 | O199: 2015.7 | P199: 2005.7 | Q199: 2023.8
A200: * Без учета доли Группы Газпром в запасах организаций, инвестиции в которые классифицированы как совместные операции.
A201: Примечание. До 2016 г. запасы углеводородов приведены по категориям A+B+C1, начиная с оценки по состоянию на 31 декабря 2016 г. — по категориям A+B1+C1. В соответствии с Классификацией запасов и ресурсов нефти и горючих газов, утвержденной приказом Минприроды России от 1 ноября 2013 г. № 477 и вступившей в силу с 1 января 2016 г., категории А+В1+С1 представляют собой разведанные запасы с высокой степенью геологической изученности и соответствуют ранее принятым категориям А+В+С1.
A203: Вернуться к содержанию

Sheet Запасы ассоц. и СП
A1: Разведанные запасы углеводородов по российской классификации ассоциированных организаций и совместных предприятий на территории Российской Федерации в доле, приходящейся на Группу Газпром
A2: Метрические единицы
B3: По состоянию на 31 декабря
B4: 2010* | C4: 2011* | D4: 2012 | E4: 2013 | F4: 2014 | G4: 2015 | H4: 2016 | I4: 2017 | J4: 2018 | K4: 2019 | L4: 2020
A5: Природный газ, млрд м3 | B5: 645.4 | C5: 717.4 | D5: 732.2 | E5: 851.5 | F5: 971.7 | G5: 1035.5 | H5: 999.1 | I5: 1 003,8 | J5: 1146.7 | K5: 1064 | L5: 1046.2
A6: Газовый конденсат, млн т | B6: 57.8 | C6: 60.1 | D6: 62 | E6: 80.1 | F6: 97 | G6: 112.1 | H6: 104.5 | I6: 100.8 | J6: 110.1 | K6: 111.1 | L6: 110.1
A7: Нефть, млн т | B7: 611.8 | C7: 728.6 | D7: 518.3 | E7: 542 | F7: 575.4 | G7: 566.9 | H7: 571.5 | I7: 578.3 | J7: 592 | K7: 588.6 | L7: 595.7
A8: * Включая долю Группы Газпром в запасах организаций, инвестиции в которые классифицированы как совместные операции.
A10: Нефтяной эквивалент
B11: По состоянию на 31 декабря
B12: 2010* | C12: 2011* | D12: 2012 | E12: 2013 | F12: 2014 | G12: 2015 | H12: 2016 | I12: 2017 | J12: 2018 | K12: 2019 | L12: 2020
A13: Природный газ, млн барр. н. э. | B13: =B5*6.49 -> 4188.646 | C13: 4655.926 | D13: 4751.978 | E13: 5526.235 | F13: 6306.333 | G13: 6720.395 | H13: =H5*6.49 -> 6484.159 | I13: 6 514,7 | J13: 7442.1 | K13: 6905.4 | L13: 6789.8
A14: Газовый конденсат, млн барр. н. э. | B14: =B6*8.18 -> 472.804 | C14: 491.618 | D14: 507.16 | E14: 655.218 | F14: 793.46 | G14: 916.978 | H14: =H6*8.18 -> 854.81 | I14: 824.5 | J14: 900.6 | K14: 908.8 | L14: 900.6
A15: Нефть, млн барр. н. э. | B15: 4484.5 | C15: 5340.6 | D15: 3799.1 | E15: 3972.9 | F15: 4217.7 | G15: 4155.4 | H15: =H7*7.33 -> 4189.095 | I15: 4 238,9 | J15: 4339.4 | K15: 4314.4 | L15: 4366.5
A16: Всего, млн барр. н. э. | B16: =B13+B14+B15 -> 9145.95 | C16: 10488.144 | D16: 9058.238 | E16: 10154.353 | F16: 11317.493 | G16: 11792.773 | H16: =H13+H14+H15 -> 11528.064 | I16: 11 578,1 | J16: 12682.1 | K16: 12128.6 | L16: 12056.9
A17: * Включая долю Группы Газпром в запасах организаций, инвестиции в которые классифицированы как совместные операции.
A18: Примечание. Группа Газпром осуществляет управленческий учет запасов и добычи углеводородов в метрических единицах измерения. В настоящем Справочнике пересчет объемов запасов газа из метрической системы в баррели нефтяного эквивалента выполнен исходя из соотношения 1 тыс. м3 природного газа = 6,49 барр. н. э.
A20: Вернуться к содержанию

Sheet Движение запасов
A1: Движение разведанных запасов углеводородов Группы Газпром по российской классификации на территории Российской Федерации, 2013–2020 гг.
A2: (с учетом доли в запасах организаций, инвестиции в которые классифицированы как совместные операции)
B3: Природный газ | C3: Газовый конденсат* | D3: Нефть
B4: млрд м3 | C4: млн т | D4: млн т
A5: Запасы на 31.12.2012 г. | B5: 35169.8 | C5: 1386.1 | D5: 1992.2
A6: Прирост запасов за счет геологоразведки | B6: 647.8 | C6: 5.4 | D6: 48.2
A7: Передача запасов, разведанных в 2013 г., в нераспределенный фонд недр России** и на баланс других компаний, приобретение с баланса других компаний | B7: -137.2 | C7: -1.9 | D7: -1.4
A8: Получение лицензий, в т. ч.: | B8: 484.1 | C8: 3.6 | D8: –
A9: по факту открытия*** | B9: 0.9 | C9: 0.1 | D9: –
A10: по результатам аукционов и конкурсов | B10: – | C10: – | D10: –
A11: по решению Правительства России без проведения конкурса | B11: 483.2 | C11: 3.5 | D11: –
A12: Сдача лицензий | B12: – | C12: – | D12: –
A13: Приобретение активов | B13: 13.7 | C13: 0.5 | D13: –
A14: Выбытие активов | B14: – | C14: – | D14: –
A15: Переоценка | B15: 5.6 | C15: 1.2 | D15: 22.3
A16: Добыча (включая потери) | B16: -487,2**** | C16: -10.5 | D16: -42.3
A17: Запасы на 31.12.2013 г. | B17: 35696.6 | C17: 1384.4 | D17: 2019
A18: Прирост запасов за счет геологоразведки | B18: 822.5 | C18: 114.2 | D18: 24.7
A19: Передача запасов, разведанных в 2014 г., в нераспределенный фонд недр России** и на баланс других компаний, приобретение с баланса других компаний | B19: -91.1 | C19: -6.9 | D19: 2.3
A20: Получение лицензий, в т. ч.: | B20: 182.3 | C20: 2.8 | D20: 5.8
A21: по факту открытия*** | B21: – | C21: – | D21: –
A22: по результатам аукционов и конкурсов | B22: – | C22: – | D22: 5.8
A23: по решению Правительства России без проведения конкурса | B23: 182 | C23: 2.7 | D23: –
A24: Сдача лицензий | B24: – | C24: – | D24: -0.1
A25: Приобретение активов | B25: – | C25: – | D25: –
A26: Выбытие активов | B26: – | C26: – | D26: –
A27: Переоценка | B27: -66 | C27: -37 | D27: 44.7
A28: Добыча (включая потери) | B28: -442,9**** | C28: -10.5 | D28: -43.3
A29: Запасы на 31.12.2014 г. | B29: 36101.4 | C29: 1447 | D29: 2053.1
A30: Прирост запасов за счет геологоразведки | B30: 531.1 | C30: 68.5 | D30: 20.6
A31: Передача запасов, разведанных в 2015 г., в нераспределенный фонд недр России** и на баланс других компаний, приобретение с баланса других компаний | B31: -62.9 | C31: -4.7 | D31: 0.9
A32: Получение лицензий, в т. ч.: | B32: – | C32: – | D32: 4.2
A33: по факту открытия*** | B33: – | C33: – | D33: –
A34: по результатам аукционов и конкурсов | B34: – | C34: – | D34: 4.2
A35: по решению Правительства России без проведения конкурса | B35: – | C35: – | D35: –
A36: Сдача лицензий | B36: – | C36: – | D36: –
A37: Приобретение активов | B37: – | C37: – | D37: –
A38: Выбытие активов | B38: – | C38: – | D38: –
A39: Переоценка | B39: -5 | C39: -0.1 | D39: 47.1
A40: Добыча (включая потери) | B40: -417,3**** | C40: -11.2 | D40: -43.9
A41: Запасы на 31.12.2015 г. | B41: 36147.3 | C41: 1499.5 | D41: 2082
A42: Прирост запасов за счет геологоразведки | B42: 457.4 | C42: 38 | D42: 19.3
A43: Передача запасов, разведанных в 2016 г., в нераспределенный фонд недр России** и на баланс других компаний, приобретение с баланса других компаний | B43: -2.4 | C43: -1.7 | D43: -2
A44: Получение лицензий, в т. ч.: | B44: 257.5 | C44: 10.9 | D44: 15
A45: по факту открытия*** | B45: − | C45: − | D45: −
A46: по результатам аукционов и конкурсов | B46: 257.5 | C46: 10.9 | D46: 15
A47: по решению Правительства России без проведения конкурса | B47: − | C47: − | D47: −
A48: Сдача лицензий | B48: -0.6 | C48: − | D48: −
A49: Приобретение активов | B49: − | C49: − | D49: −
A50: Выбытие активов | B50: − | C50: − | D50: −
A51: Переоценка | B51: 2 | C51: -0.1 | D51: 11.1
A52: Добыча (включая потери) | B52: -417,3**** | C52: -11.7 | D52: -46.9
A53: Запасы на 31.12.2016 г. | B53: 36443.9 | C53: 1534.9 | D53: 2078.5
A54: Прирост запасов за счет геологоразведки | B54: 852.9 | C54: 95.6 | D54: 3.3
A55: Передача запасов, разведанных в 2017 г., в нераспределенный фонд недр России** и на баланс других компаний, приобретение с баланса других компаний | B55: -46.4 | C55: − | D55: 1.2
A56: Получение лицензий, в т. ч.: | B56: 12.8 | C56: 1.9 | D56: −
A57: по факту открытия*** | B57: − | C57: − | D57: −
A58: по результатам аукционов и конкурсов | B58: 12.8 | C58: 1.9 | D58: –
A59: по решению Правительства России без проведения конкурса | B59: − | C59: − | D59: −
A60: Сдача лицензий | B60: -0.1 | C60: − | D60: −
A61: Приобретение активов | B61: − | C61: − | D61: −
A62: Выбытие активов | B62: − | C62: − | D62: -9.4
A63: Переоценка | B63: -1437.8 | C63: -24.8 | D63: 19.8
A64: Добыча (включая потери) | B64: -469,9**** | C64: -12 | D64: -48.1
A65: Запасы на 31.12.2017 г. | B65: 35355.4 | C65: 1595.6 | D65: 2045.3
A66: Прирост запасов за счет геологоразведки | B66: 796.6 | C66: 21.8 | D66: 19.4
A67: Передача запасов, разведанных в 2018 г., в нераспределенный фонд недр России** и на баланс других компаний, приобретение с баланса других компаний | B67: -409.3 | C67: -0.6 | D67: -5.7
A68: Получение лицензий, в т. ч.: | B68: − | C68: − | D68: 0.8
A69: по факту открытия*** | B69: − | C69: − | D69: 0.8
A70: по результатам аукционов и конкурсов | B70: − | C70: − | D70: −
A71: по решению Правительства России без проведения конкурса | B71: − | C71: − | D71: −
A72: Сдача лицензий | B72: − | C72: − | D72: −
A73: Приобретение активов | B73: − | C73: − | D73: 0.1
A74: Выбытие активов | B74: − | C74: − | D74: −
A75: Переоценка | B75: -49.6 | C75: 0.1 | D75: 3.1
A76: Добыча (включая потери) | B76: -497,8**** | C76: -12.5 | D76: -47.3
A77: Запасы на 31.12.2018 г. | B77: 35195.3 | C77: 1604.4 | D77: 2015.7
A78: Прирост запасов за счет геологоразведки | B78: 556.7 | C78: 11.7 | D78: 29
A79: Передача запасов, разведанных в 2019 г., в нераспределенный фонд недр России** и на баланс других компаний, приобретение с баланса других компаний | B79: -0.4 | C79: – | D79: -0.2
A80: Получение лицензий, в т. ч.: | B80: 2.7 | C80: – | D80: 7.4
A81: по факту открытия*** | B81: 2.7 | C81: – | D81: –
A82: по результатам аукционов и конкурсов | B82: – | C82: – | D82: 7.4
A83: по решению Правительства России без проведения конкурса | B83: – | C83: – | D83: –
A84: Сдача лицензий | B84: -0.8 | C84: – | D84: -0.1
A85: Приобретение активов | B85: 100.6 | C85: 6.3 | D85: –
A86: Выбытие активов | B86: – | C86: – | D86: –
A87: Переоценка | B87: -455.4 | C87: -39.4 | D87: 1.4
A88: Добыча (включая потери) | B88: -499,7**** | C88: -13.3 | D88: -47.5
A89: Запасы на 31.12.2019 г. | B89: 34899 | C89: 1569.7 | D89: 2005.7
A90: Прирост запасов за счет геологоразведки | B90: 486.3 | C90: 17.2 | D90: 9.5
A91: Передача запасов, разведанных в 2020 г., в нераспределенный фонд недр России** и на баланс других компаний, приобретение с баланса других компаний | B91: -2.9 | C91: – | D91: 0.2
A92: Получение лицензий, в т. ч.: | B92: 15.7 | C92: 1.2 | D92: 2.8
A93: по факту открытия*** | B93: – | C93: – | D93: –
A94: по результатам аукционов и конкурсов | B94: 15.7 | C94: 1.2 | D94: –
A95: по решению Правительства России без проведения конкурса | B95: – | C95: – | D95: –
A96: Сдача лицензий | B96: – | C96: – | D96: –
A97: Приобретение активов | B97: – | C97: – | D97: –
A98: Выбытие активов | B98: – | C98: – | D98: –
A99: Переоценка | B99: -1371.8 | C99: -80.5 | D99: 51.4
A100: Добыча (включая потери) | B100: -451,8**** | C100: -13.2 | D100: -45.8
A101: Запасы на 31.12.2020 г. | B101: 33574.5 | C101: 1494.4 | D101: 2023.8
A102: * Изменение запасов газового конденсата за счет добычи отражается в пересчете на стабильный газовый конденсат (С5+). Объем добычи нестабильного газового конденсата Группой Газпром приведен в разделе «Добыча».
A103: ** В соответствии с законодательством России недропользователь не имеет безусловного права на разработку запасов, обнаруженных им на участках лицензий с целью геологического изучения и за пределами лицензионных участков. Такие запасы передаются в нераспределенный фонд недр Российской Федерации. В дальнейшем недропользователь имеет преимущественное право на получение лицензии на их разработку.
A104: *** Включает полученные лицензии на разработку запасов, разведанных Группой в предыдущие годы.
A105: **** Исключая растворенный газ.
A107: Вернуться к содержанию

Sheet Открытые месторождения
A1: Наименования месторождений углеводородов, открытых Группой Газпром на территории Российской Федерации, 2013–2020 гг.
A2: (без учета месторождений, открытых организациями, инвестиции в которые классифицированы как совместные операции)
A3: Наименования открытых месторождений | B3: Год открытия | C3: Типы открытых месторождений* | D3: Местоположение
A4: им. П. Мангазеева | B4: 2013 | C4: Н | D4: Томская область
A5: Восточно-Мыгинское | C5: Н | D5: Томская область
A6: Восточно-Имбинское | B6: 2014 | C6: Г | D6: Красноярский край
A7: Падинское | B7: 2015 | C7: ГК | D7: ЯНАО
A8: Нарыкско-Осташкинское | C8: метаноугольное | D8: Кемеровская область
A9: Западно-Чатылькинское | B9: 2016 | C9: Н | D9: ЯНАО
A10: Новосамарское | C10: Н | D10: Оренбургская область
A11: Южно-Лунское | B11: 2017 | C11: ГК | D11: Континентальный шельф Российской Федерации в Охотском море
A12: Салаирское | C12: ГК | D12: Красноярский край
A13: им. А. Жагрина | C13: Н | D13: ХМАО – Югра
A14: Новозаринское | C14: Н | D14: Оренбургская область
A15: Нептун | B15: 2018 | C15: Н | D15: Континентальный шельф Российской Федерации в Охотском море
A16: Тритон | C16: Н | D16: Континентальный шельф Российской Федерации в Охотском море
A17: Ближненовопортовское | C17: Г | D17: ЯНАО
A18: Им. В.А. Динкова | B18: 2019 | C18: ГК | D18: Континентальный шельф Российской Федерации в Карском море
A19: Нярмейское | C19: Г | D19: Континентальный шельф Российской Федерации в Карском море
A20: Ягодное | C20: Н | D20: Оренбургская область
A21: Рощинское | C21: Н | D21: Оренбургская область
A22: 75 лет Победы | B22: 2020 | C22: Г | D22: Континентальный шельф Российской Федерации в Карском море
A23: Солхэм | C23: Н | D23: ХМАО — Югра
A24: Центрально-Уранское | C24: Н | D24: Оренбургская область
A25: * Тип в соответствии с действующей в России Классификацией запасов и ресурсов нефти и горючих газов: НГК — нефтегазоконденсатное, НГ — нефтегазовое, ГК — газоконденсатное, Г — газовое, Н — нефтяное.
A27: Вернуться к содержанию

Sheet Лицензии
A1: Лицензии
A2: Лицензионные участки на территории Российской Федерации
B3: По состоянию на 31 декабря
B4: 2013 | C4: 2014 | D4: 2015 | E4: 2016 | F4: 2017 | G4: 2018 | H4: 2019 | I4: 2020
A5: Группа Газпром
A6: Количество лицензий на пользование недрами с целью геологического изучения, разведки и добычи углеводородного сырья | B6: 258 | C6: 261 | D6: 267 | E6: 267 | F6: 265 | G6: 274 | H6: 302 | I6: 317
A7: Площадь лицензионных участков, тыс. км2 | B7: 614.2 | C7: 546.3 | D7: 546.9 | E7: 545.6 | F7: 547.5 | G7: 559.3 | H7: 573.2 | I7: 582.5
A8: Организации, инвестиции в которые классифицированы как совместные операции
A9: Количество лицензий на пользование недрами с целью геологического изучения, разведки и добычи углеводородного сырья | B9: 36 | C9: 35 | D9: 35 | E9: 36 | F9: 36 | G9: 36 | H9: 37 | I9: 37
A10: Площадь лицензионных участков, тыс. км2 | B10: 21.7 | C10: 21.6 | D10: 22.9 | E10: 23.1 | F10: 23.1 | G10: 23.1 | H10: 23.9 | I10: 23.7
A12: Распределение площади лицензионных участков на территории Российской Федерации по состоянию на 31 декабря 2020 г., тыс. км2
A13: Категория лицензии* | C13: Уральский ФО | D13: Северо-Западный ФО | E13: Южный и Северо- Кавказский ФО | F13: Приволжский ФО | G13: Сибирский ФО | H13: Дальневосточный ФО | I13: Континентальный шельф Российской Федерации
A14: Группа Газпром
A15: С целью поиска, разведки и добычи (НР) | C15: 33.8 | D15: – | E15: 2.8 | F15: 6.3 | G15: 43.1 | H15: – | I15: 325.9
A16: С целью разведки и добычи (НЭ) | C16: 68 | D16: 1.5 | E16: 5.4 | F16: 3.1 | G16: 20.7 | H16: 12.6 | I16: 11.8
A17: С целью геологического изучения недр (НП) | C17: 32.1 | D17: – | E17: 0.3 | F17: 2.3 | G17: 11 | H17: 1.8 | I17: –
A18: Всего | C18: 133.9 | D18: 1.5 | E18: 8.5 | F18: 11.7 | G18: 74.8 | H18: 14.4 | I18: 337.7
A19: Организации, инвестиции в которые классифицированы как совместные операции
A20: С целью поиска, разведки и добычи (НР) | C20: 0.6 | D20: – | E20: – | F20: – | G20: – | H20: – | I20: –
A21: С целью разведки и добычи (НЭ) | C21: 4.1 | D21: – | E21: – | F21: – | G21: 18.9 | H21: – | I21: –
A22: С целью геологического изучения недр (НП) | C22: 0.1 | D22: – | E22: – | F22: – | G22: – | H22: – | I22: –
A23: Всего | C23: 4.8 | D23: – | E23: – | F23: – | G23: 18.9 | H23: – | I23: –
A24: * Категории лицензий указаны в соответствии с российским законодательством.
A26: Вернуться к содержанию

Sheet Основные лицензии
A1: Лицензии на основные месторождения углеводородов по состоянию на 31 декабря 2020 г.
A2: Наименование месторождения | B2: Год начала добычи | C2: Общество – держатель лицензии | D2: Доля Группы*, % | E2: Тип месторождения** | F2: Категория лицензии*** | G2: Год истечения срока лицензии****
A3: Группа Газпром
A4: Западная Сибирь (Уральский ФО)
A5: Уренгойское | B5: 1978 | C5: ООО «Газпром добыча Уренгой» | D5: 1 | E5: НГК | F5: НЭ | G5: 2038
A6: Северо-Уренгойское | B6: 1987 | E6: НГК | F6: НЭ | G6: 2030
A7: Ен-Яхинское | B7: 1985 | E7: НГК | F7: НЭ | G7: 2038
A8: Песцовое | B8: 2004 | E8: НГК | F8: НЭ | G8: 2041
A9: Ямбургское | B9: 1991 | C9: ООО «Газпром добыча Ямбург» | D9: 1 | E9: НГК | F9: НЭ | G9: 2054
A10: Заполярное | B10: 2001 | E10: НГК | F10: НЭ | G10: 2114
A11: Медвежье | B11: 1972 | C11: ООО «Газпром добыча Надым» | D11: 1 | E11: НГК | F11: НЭ | G11: 2086
A12: Ямсовейское | B12: 1997 | E12: НГК | F12: НЭ | G12: 2039
A13: Юбилейное | B13: 1992 | E13: НГК | F13: НЭ | G13: 2063
A14: Харасавэйское | B14: – | E14: ГК | F14: НЭ | G14: 2033
A15: Бованенковское | B15: 2012 | E15: НГК | F15: НЭ | G15: 2042
A16: Новопортовское | B16: 2016 | C16: ООО «Газпромнефть-Ямал» | D16: 1 | E16: НГК | F16: НЭ | G16: 2150
A17: Комсомольское | B17: 1993 | C17: ООО «Газпром добыча Ноябрьск» | D17: 1 | E17: НГК | F17: НЭ | G17: 2049
A18: Еты-Пуровское | B18: 2004 | E18: НГК | F18: НЭ | G18: 2038
A19: Западно-Таркосалинское | B19: 1996 | E19: НГК | F19: НР | G19: 2116
A20: Губкинское | B20: 1999 | C20: ЗАО «Пургаз» | D20: 0.51 | E20: НГК | F20: НЭ | G20: 2040
A21: Южно-Русское | B21: 2007 | C21: ОАО «Севернефтегазпром» | D21: 50,001% (обыкновенных акций) | E21: НГК | F21: НЭ | G21: 2043
A22: Тамбейское (включая Западно-Тамбейский, Северо-Тамбейский, Тасийский лицензионные участки) | B22: – | C22: ПАО «Газпром» | E22: НГК | F22: НЭ | G22: 2028
A23: Крузенштернское | B23: – | E23: ГК | F23: НЭ | G23: 2028
A24: Малыгинское | B24: – | E24: ГК | F24: НЭ | G24: 2028
A25: Антипаютинское | B25: – | E25: Г | F25: НЭ | G25: 2028
A26: Тота-Яхинское | B26: – | E26: Г | F26: НЭ | G26: 2028
A27: Тазовское | B27: – | C27: ООО «Меретояханефтегаз» | D27: 1 | E27: НГК | F27: НР | G27: 2025
A28: Сугмутское | B28: 1995 | C28: АО «Газпромнефть-Ноябрьскнефтегаз» | D28: 1 | E28: Н | F28: НЭ | G28: 2089
A29: Суторминское | B29: 1982 | E29: НГК | F29: НЭ | G29: 2110
A30: Муравленковское | B30: 1982 | E30: НГ | F30: НЭ | G30: 2072
A31: Спорышевское | B31: 1996 | E31: Н | F31: НЭ | G31: 2083
A32: Вынгапуровское (ХМАО — Югра) | B32: 1982 | E32: НГК | F32: НЭ | G32: 2090
A33: Вынгапуровское (ЯНАО) | B33: 1982 | E33: НГК | F33: НЭ | G33: 2113
A34: Южная часть Приобского месторождения | B34: 1999 | C34: ООО «Газпромнефть-Хантос» | D34: 1 | E34: Н | F34: НЭ | G34: 2038
A35: Юг России (Южный ФО)
A36: Астраханское | B36: 1986 | C36: ООО «Газпром добыча Астрахань» | D36: 1 | E36: ГК | F36: НЭ | G36: 2222
A37: Западно-Астраханское | B37: – | E37: ГК | F37: НР | G37: 2029
A38: Южный Урал (Приволжский ФО)
A39: Оренбургское | B39: 1974 | C39: ООО «Газпром добыча Оренбург» | D39: 1 | E39: НГК | F39: НЭ | G39: 2038
A40: Восточный участок Оренбургского НГКМ | B40: 1994 | C40: ООО «Газпромнефть-Оренбург» | D40: 1 | E40: НГК | F40: НЭ | G40: 2138
A41: Восточная Сибирь и Дальний Восток (Сибирский и Дальневосточный ФО)
A42: Чаяндинское | B42: 2019 | C42: ПАО «Газпром» | E42: НГК | F42: НЭ | G42: 2028
A43: Ковыктинское (включая Хандинскую площадь) | B43: – | E43: ГК | F43: НЭ | G43: 2037
A44: Тас-Юряхское | B44: – | E44: НГК | F44: НЭ | G44: 2031
A45: Соболох-Неджелинское | B45: – | E45: ГК | F45: НЭ | G45: 2031
A46: Часть Среднетюнгского месторождения | B46: – | E46: ГК | F46: НЭ | G46: 2031
A47: Верхневилючанское | B47: – | E47: НГК | F47: НЭ | G47: 2031
A48: Чиканское | B48: – | E48: ГК | F48: НЭ | G48: 2028
A49: Собинское | B49: – | C49: ООО «Газпром добыча Краснодар» | D49: 1 | E49: НГК | F49: НР | G49: 2028
A50: Континентальный шельф Российской Федерации
A51: Штокмановское (включая западную часть) | B51: – | C51: ПАО «Газпром» | E51: ГК | F51: НЭ | G51: 2043
A52: Киринское | B52: 2013 | E52: ГК | F52: НЭ | G52: 2028
A53: Южно-Киринское | B53: – | E53: ГК | F53: НР | G53: 2039
A54: Южно-Лунское | B54: – | E54: ГК | F54: НР | G54: 2039
A55: Мынгинское | B55: – | E55: ГК | F55: НР | G55: 2039
A56: Ледовое | B56: – | E56: ГК | F56: НЭ | G56: 2033
A57: Русановское | B57: – | E57: ГК | F57: НР | G57: 2043
A58: Лудловское | B58: – | E58: Г | F58: НР | G58: 2043
A59: Ленинградское | B59: – | E59: ГК | F59: НР | G59: 2043
A60: Каменномысское-море | B60: – | C60: ООО «Газпром добыча Ямбург» | D60: 1 | E60: Г | F60: НЭ | G60: 2057
A61: Северо-Каменномысское | B61: – | E61: ГК | F61: НЭ | G61: 2076
A62: Приразломное | B62: 2013 | C62: ООО «Газпром нефть шельф» | D62: 1 | E62: Н | F62: НЭ | G62: 2043
A63: Долгинское | B63: – | E63: Н | F63: НЭ | G63: 2035
A64: Организации, инвестиции в которые классифицированы как совместные операции
A65: Западная Сибирь (Уральский ФО)
A66: Западно-Салымское | B66: 2004 | C66: Salym Petroleum Development N.V. | D66: 0.5 | E66: Н | F66: НЭ | G66: 2130
A67: Советское (ХМАО — Югра) | B67: 1966 | C67: АО «Томскнефть» ВНК | D67: 0.5 | E67: Н | F67: НЭ | G67: 2145
A68: Восточная Сибирь и Дальний Восток (Сибирский и Дальневосточный ФО)
A69: Крапивинское | B69: 1984 | C69: АО «Томскнефть» ВНК | D69: 0.5 | E69: Н | F69: НЭ | G69: 2159
A70: Советское (Томская область) | B70: 1966 | E70: Н | F70: НЭ | G70: 2145
A71: Первомайское (Томская область) | B71: 1981 | E71: Н | F71: НЭ | G71: 2105
A72: Лугинецкое | B72: 1982 | E72: НГК | F72: НЭ | G72: 2098
A73: Ассоциированные организации и совместные предприятия
A74: Западная Сибирь (Уральский ФО)
A75: Восточно-Мессояхское | B75: 2016 | C75: АО «Мессояханефтегаз» | D75: 0.5 | E75: НГК | F75: НР | G75: 2140
A76: Западно-Мессояхское | B76: – | E76: НГ | F76: НР | G76: 2027
A77: Северо-Парусовое | B77: – | C77: ООО «РусГазАльянс»***** | D77: 0.5 | E77: НГК | F77: НЭ | G77: 2027
A78: Восточная Сибирь и Дальний Восток (Сибирский и Дальневосточный ФО)
A79: Куюмбинское | B79: 2018 | C79: ООО «Славнефть-Красноярскнефтегаз» | D79: 0.5 | E79: НГК | F79: НР | G79: 2171
A80: Пильтун-Астохское | B80: 1999 | C80: Sakhalin Energy Investment Company Ltd. | D80: 50% + 1 акция | E80: НГК | F80: НР | G80: 2026
A81: Лунское | B81: 2009 | E81: НГК | F81: НР | G81: 2026
A82: * Суммарная доля Группы в уставном капитале объектов вложения, отраженная в консолидированной финансовой отчетности Группы Газпром по МСФО.
A83: ** Тип в соответствии с действующей в России Классификацией запасов и ресурсов нефти и горючих газов: НГК – нефтегазоконденсатное, НГ – нефтегазовое, ГК – газоконденсатное, Г – газовое, Н – нефтяное.
A84: *** В соответствии с российским законодательством существует несколько типов лицензий для изучения, геологоразведки и добычи природных ресурсов, в т.ч.: лицензии на геологическое изучение (НП); лицензии на разведку и добычу углеводородов (НЭ); лицензии на поиск, разведку и добычу углеводородов (НР). Сокращения приведены в соответствии с классификацией, определенной российским законодательством.
A85: **** Держатели лицензий Группы Газпром выполняют основные условия лицензионных соглашений и имеют право на продление действующих лицензий для завершения поиска или разработки месторождений. Газпром планирует продлевать свои лицензии на период до завершения рентабельной разработки месторождений.
A86: ***** Показатели организации не включены в консолидированную финансовую отчетность по МСФО за 2020 г. в связи с их несущественностью.
A88: Вернуться к содержанию

Sheet Добыча
A1: Добыча
A2: Добыча углеводородов Группой Газпром на территории Российской Федерации
A3: (с учетом доли в добыче организаций, инвестиции в которые классифицированы как совместные операции)
A4: Метрические единицы
B5: За год, закончившийся 31 декабря
B6: 2005* | C6: 2006* | D6: 2007* | E6: 2008* | F6: 2009* | G6: 2010* | H6: 2011* | I6: 2012 | J6: 2013 | K6: 2014 | L6: 2015 | M6: 2016 | N6: 2017 | O6: 2018 | P6: 2019 | Q6: 2020
A7: Природный и попутный газ, млрд м3 | B7: 555 | C7: 555.95 | D7: 548.55 | E7: 549.73 | F7: 461.52 | G7: 508.59 | H7: 513.17 | I7: 487.99 | J7: 488.39 | K7: 444.9 | L7: 419.52 | M7: 420.13 | N7: 472.05 | O7: 498.68 | P7: 501.22 | Q7: 454.51
A8: Газовый конденсат, млн т | B8: 11.5 | C8: 11.37 | D8: 11.27 | E8: 10.93 | F8: 10.07 | G8: 11.29 | H8: 12.07 | I8: 12.85 | J8: 14.66 | K8: 14.49 | L8: 15.34 | M8: 15.85 | N8: 15.94 | O8: 15.93 | P8: 16.71 | Q8: 16.25
A9: Нефть, млн т | B9: 9.49 | C9: 34.02 | D9: 33.98 | E9: 32.05 | F9: 31.62 | G9: 32.01 | H9: 32.28 | I9: 42.26 | J9: 42.41 | K9: 43.53 | L9: 44.04 | M9: 47.15 | N9: 48.63 | O9: 48.28 | P9: 47.96 | Q9: 47.11
A10: * Без учета доли Группы Газпром в добыче организаций, инвестиции в которые классифицированы как совместные операции.
A12: Нефтяной эквивалент
B13: За год, закончившийся 31 декабря
B14: 2005* | C14: 2006* | D14: 2007* | E14: 2008* | F14: 2009* | G14: 2010* | H14: 2011* | I14: 2012 | J14: 2013 | K14: 2014 | L14: 2015 | M14: 2016 | N14: 2017 | O14: 2018 | P14: 2019 | Q14: 2020
A15: Природный и попутный газ, млн барр. н. э. | B15: =B7*6.49 -> 3601.95 | C15: 3608.1155 | D15: 3560.0895 | E15: 3567.7477 | F15: 2995.2648 | G15: 3300.7491 | H15: 3330.4733 | I15: 3167.06 | J15: 3169.65 | K15: 2887.4 | L15: 2722.68 | M15: 2726.64 | N15: 3063.6 | O15: 3236.43 | P15: 3252.92 | Q15: 2949.77
A16: Газовый конденсат, млн барр. н. э. | B16: 94.07 | C16: 93.01 | D16: 92.19 | E16: 89.41 | F16: 82.37 | G16: 92.35 | H16: 98.73 | I16: 105.11 | J16: 119.92 | K16: 118.53 | L16: 125.48 | M16: 129.65 | N16: 130.39 | O16: 130.31 | P16: 136.69 | Q16: 132.93
A17: Нефть, млн барр. н. э. | B17: 69.56 | C17: 249.37 | D17: 249.07 | E17: 234.93 | F17: 231.77 | G17: 234.63 | H17: 236.61 | I17: 309.77 | J17: 310.87 | K17: 319.07 | L17: 322.81 | M17: 345.61 | N17: 356.46 | O17: 353.89 | P17: 351.55 | Q17: 345.32
A18: Всего, млн барр. н. э. | B18: =B15+B16+B17 -> 3765.58 | C18: 3950.4955 | D18: 3901.3495 | E18: 3892.0877 | F18: 3309.4048 | G18: 3627.7291 | H18: 3665.8133 | I18: 3581.94 | J18: 3600.44 | K18: 3325 | L18: 3170.97 | M18: 3201.91 | N18: 3550.45 | O18: 3720.63 | P18: 3741.16 | Q18: 3428.02
A19: * Без учета доли Группы Газпром в добыче организаций, инвестиции в которые классифицированы как совместные операции.
A20: Примечание. Группа Газпром осуществляет управленческий учет запасов и добычи углеводородов в метрических единицах измерения. В настоящем Справочнике пересчет объемов добычи газа из метрической системы в баррели нефтяного эквивалента выполнен исходя из соотношения 1 тыс. м3 природного газа = 6,49 барр. н. э.
A22: Среднесуточная добыча углеводородов Группой Газпром на территории Российской Федерации
A23: (с учетом доли в добыче организаций, инвестиции в которые классифицированы как совместные операции)
B24: За год, закончившийся 31 декабря
B25: 2005* | C25: 2006* | D25: 2007* | E25: 2008* | F25: 2009* | G25: 2010* | H25: 2011* | I25: 2012 | J25: 2013 | K25: 2014 | L25: 2015 | M25: 2016 | N25: 2017 | O25: 2018 | P25: 2019 | Q25: 2020
A26: Природный и попутный газ, млн м3 / сут. | B26: 1520.55 | C26: 1523.15 | D26: 1502.88 | E26: 1501.99 | F26: 1264.4 | G26: 1393.4 | H26: 1405.9 | I26: 1333.3 | J26: 1338 | K26: 1218.9 | L26: 1149.4 | M26: 1147.9 | N26: 1293.3 | O26: 1366.2 | P26: 1373.2 | Q26: 1241.8
A27: Газовый конденсат, тыс. т / сут. | B27: 31.51 | C27: 31.15 | D27: 30.88 | E27: 29.86 | F27: 27.6 | G27: 30.9 | H27: 33.1 | I27: 35.1 | J27: 40.2 | K27: 39.7 | L27: 42 | M27: 43.3 | N27: 43.7 | O27: 43.7 | P27: 45.8 | Q27: 44.4
A28: Нефть, тыс. т / сут. | B28: 26 | C28: 93.21 | D28: 93.1 | E28: 87.57 | F28: 86.6 | G28: 87.7 | H28: 88.4 | I28: 115.5 | J28: 116.2 | K28: 119.3 | L28: 120.7 | M28: 128.8 | N28: 133.2 | O28: 132.3 | P28: 131.4 | Q28: 128.7
A29: * Без учета доли Группы Газпром в добыче организаций, инвестиции в которые классифицированы как совместные операции.
A31: Добыча углеводородов Группой Газпром на территории Российской Федерации
A32: (с учетом доли в добыче организаций, инвестиции в которые классифицированы как совместные операции)
B33: За год, закончившийся 31 декабря
B34: 2005* | C34: 2006* | D34: 2007* | E34: 2008* | F34: 2009* | G34: 2010* | H34: 2011* | I34: 2012 | J34: 2013 | K34: 2014 | L34: 2015 | M34: 2016 | N34: 2017 | O34: 2018 | P34: 2019 | Q34: 2020
A35: Природный и попутный газ, млрд м3
A36: ПАО «Газпром» и его основные дочерние общества**,*** | B36: 539.35 | C36: 538.84 | D36: 530.51 | E36: 517.63 | F36: 425.02 | G36: 465.14 | H36: 464.81 | I36: 437.9 | J36: 436.29 | K36: 393.73 | L36: 368.2 | M36: 368.6 | N36: 419.72 | O36: 444.99 | P36: 445.09 | Q36: 399.15
A37: ПАО «Газпром нефть» и его дочерние общества | B37: 0.55 | C37: 2.07 | D37: 1.77 | E37: 2.16 | F37: 2.08 | G37: 2.95 | H37: 7.33 | I37: 8.73 | J37: 11.36 | K37: 11.86 | L37: 12.53 | M37: 13.64 | N37: 15.4 | O37: 17.84 | P37: 21.26 | Q37: 22.39
A38: Объекты месторождений ПАО «Газпром» и его основных дочерних обществ, разрабатываемые ООО «Газпромнефть-Заполярье» | B38: x | C38: x | D38: x | E38: x | F38: x | G38: x | H38: x | I38: x | J38: x | K38: x | L38: x | M38: x | N38: x | O38: x | P38: x | Q38: 0.19
A39: ЗАО «Пургаз» | B39: 15.1 | C39: 15.04 | D39: 15.02 | E39: 14.87 | F39: 11.84 | G39: 15.14 | H39: 15.37 | I39: 15.04 | J39: 14.62 | K39: 13.25 | L39: 12.7 | M39: 11.74 | N39: 10.82 | O39: 9.64 | P39: 8.72 | Q39: 7.81
A40: ОАО «Севернефтегазпром» | B40: – | C40: – | D40: 1.25 | E40: 15.07 | F40: 22.58 | G40: 25.36 | H40: 25.66 | I40: 25.35 | J40: 25.12 | K40: 25.04 | L40: 25.05 | M40: 25.12 | N40: 25.04 | O40: 25.13 | P40: 25.07 | Q40: 24
A41: Всего без учета доли в добыче организаций, инвестиции в которые классифицированы как совместные операции | B41: 555 | C41: 555.95 | D41: 548.55 | E41: 549.73 | F41: 461.52 | G41: 508.59 | H41: 513.17 | I41: 487.02 | J41: 487.39 | K41: 443.88 | L41: 418.48 | M41: 419.1 | N41: 470.98 | O41: 497.6 | P41: 500.14 | Q41: 453.54
A42: Организации, инвестиции в которые классифицированы как совместные операции в доле, приходящейся на Группу Газпром | B42: x | C42: x | D42: x | E42: x | F42: x | G42: x | H42: x | I42: 0.97 | J42: 1 | K42: 1.02 | L42: 1.04 | M42: 1.03 | N42: 1.07 | O42: 1.08 | P42: 1.08 | Q42: 0.97
A43: Всего с учетом доли в добыче организаций, инвестиции в которые классифицированы как совместные операции | B43: x | C43: x | D43: x | E43: x | F43: x | G43: x | H43: x | I43: 487.99 | J43: 488.39 | K43: 444.9 | L43: 419.52 | M43: 420.13 | N43: 472.05 | O43: 498.68 | P43: 501.22 | Q43: 454.51
A44: Газовый конденсат, млн т
A45: ПАО «Газпром» и его основные дочерние общества** | B45: 11.5 | C45: 11.37 | D45: 11.27 | E45: 10.93 | F45: 10.07 | G45: 11.29 | H45: 12.07 | I45: 12.84 | J45: 14.65 | K45: 14.47 | L45: 15.31 | M45: 15.83 | N45: 15.92 | O45: 15.9 | P45: 16.67 | Q45: 16.21
A46: ПАО «Газпром нефть» и его дочерние общества | B46: – | C46: – | D46: – | E46: – | F46: – | G46: – | H46: – | I46: 0.01 | J46: 0.01 | K46: 0.02 | L46: 0.03 | M46: 0.02 | N46: 0.02 | O46: 0.03 | P46: 0.04 | Q46: 0.04
A47: Всего | B47: 11.5 | C47: 11.37 | D47: 11.27 | E47: 10.93 | F47: 10.07 | G47: 11.29 | H47: 12.07 | I47: 12.85 | J47: 14.66 | K47: 14.49 | L47: 15.34 | M47: 15.85 | N47: 15.94 | O47: 15.93 | P47: 16.71 | Q47: 16.25
A48: Нефть, млн т
A49: ПАО «Газпром» и его основные дочерние общества**,*** | B49: 1.29 | C49: 1.3 | D49: 1.32 | E49: 1.27 | F49: 1.55 | G49: 1.85 | H49: 1.9 | I49: 1.7 | J49: 1.69 | K49: 1.73 | L49: 1.74 | M49: 1.55 | N49: 1.5 | O49: 1.45 | P49: 1.67 | Q49: 1.26
A50: ПАО «Газпром нефть» и его дочерние общества | B50: 8.2 | C50: 32.72 | D50: 32.66 | E50: 30.78 | F50: 30.07 | G50: 30.16 | H50: 30.38 | I50: 31.63 | J50: 32.15 | K50: 33.56 | L50: 34.3 | M50: 37.74 | N50: 39.48 | O50: 39.46 | P50: 39.11 | Q50: 38.88
A51: Объекты месторождений ПАО «Газпром» и его основных дочерних обществ, разрабатываемые ООО «Газпромнефть-Заполярье» | B51: x | C51: x | D51: x | E51: x | F51: x | G51: x | H51: x | I51: x | J51: x | K51: x | L51: x | M51: x | N51: x | O51: x | P51: x | Q51: 1.47
A52: Всего без учета доли в добыче организаций, инвестиции в которые классифицированы как совместные операции | B52: 9.49 | C52: 34.02 | D52: 33.98 | E52: 32.05 | F52: 31.62 | G52: 32.01 | H52: 32.28 | I52: 33.33 | J52: 33.84 | K52: 35.29 | L52: 36.04 | M52: 39.29 | N52: 40.98 | O52: 40.91 | P52: 40.78 | Q52: 41.61
A53: Организации, инвестиции в которые классифицированы как совместные операции в доле, приходящейся на Группу Газпром | B53: x | C53: x | D53: x | E53: x | F53: x | G53: x | H53: x | I53: 8.93 | J53: 8.57 | K53: 8.24 | L53: 8 | M53: 7.86 | N53: 7.65 | O53: 7.37 | P53: 7.18 | Q53: 5.5
A54: Всего с учетом доли в добыче организаций, инвестиции в которые классифицированы как совместные операции | B54: x | C54: x | D54: x | E54: x | F54: x | G54: x | H54: x | I54: 42.26 | J54: 42.41 | K54: 43.53 | L54: 44.04 | M54: 47.15 | N54: 48.63 | O54: 48.28 | P54: 47.96 | Q54: 47.11
A55: * Без учета доли Группы Газпром в добыче организаций, инвестиции в которые классифицированы как совместные операции.
A56: ** С учетом объемов добычи ООО «Газпром добыча шельф Южно-Сахалинск», АО «Газпром добыча Томск». Также учтены объемы добычи АО «Газпром газораспределение Элиста», ООО «Газпром добыча Иркутск» и ООО «Сервиснефтегаз», финансовые показатели которых в связи с их несущественностью не включаются в консолидированную финансовую отчетность Группы Газпром по МСФО.
A57: *** Начиная с 2020 г. данные приводятся без учета объемов добычи по объектам месторождений, лицензии на право пользования которыми принадлежат ПАО «Газпром» или его основным дочерним обществам, а разработка осуществляется ООО «Газпромнефть-Заполярье» в соответствии с условиями заключенных в 2018–2020 гг. долгосрочных рисковых операторских договоров.
A59: Распределение добычи углеводородов Группы Газпром на территории Российской Федерации
A60: (c учетом доли в добыче организаций, инвестиции в которые классифицированы как совместные операции)
B61: За год, закончившийся 31 декабря
B62: 2005* | C62: 2006* | D62: 2007* | E62: 2008* | F62: 2009* | G62: 2010* | H62: 2011* | I62: 2012 | J62: 2013 | K62: 2014 | L62: 2015 | M62: 2016 | N62: 2017 | O62: 2018 | P62: 2019 | Q62: 2020
A63: Природный и попутный газ, млрд м3
A64: Уральский ФО | B64: 516.39 | C64: 517.88 | D64: 510.57 | E64: 512.17 | F64: 427.44 | G64: 471.68 | H64: 476.53 | I64: 450.96 | J64: 452.34 | K64: 409.96 | L64: 385.18 | M64: 385.46 | N64: 437.56 | O64: 464.36 | P64: 465.76 | Q64: 416.51
A65: Северо-Западный ФО | B65: 2.82 | C65: 2.75 | D65: 2.75 | E65: 2.64 | F65: 2.54 | G65: 2.52 | H65: 2.4 | I65: 2.33 | J65: 2.38 | K65: 2.25 | L65: 2.14 | M65: 2.06 | N65: 2.02 | O65: 1.89 | P65: 1.99 | Q65: 1.99
A66: Южный и Северо-Кавказский ФО | B66: 13.55 | C66: 13.36 | D66: 13.37 | E66: 13.23 | F66: 10.76 | G66: 13.01 | H66: 13.21 | I66: 12.89 | J66: 11.86 | K66: 11.24 | L66: 11.15 | M66: 11.28 | N66: 11.58 | O66: 11.94 | P66: 12.22 | Q66: 11.2
A67: Приволжский ФО | B67: 18.72 | C67: 18.64 | D67: 18.7 | E67: 18.71 | F67: 17.85 | G67: 18.59 | H67: 17.94 | I67: 17.52 | J67: 17.27 | K67: 16.73 | L67: 16.22 | M67: 15.65 | N67: 14.95 | O67: 14.4 | P67: 14.42 | Q67: 14.31
A68: Сибирский ФО | B68: 3.52 | C68: 3.32 | D68: 3.16 | E68: 2.98 | F68: 2.93 | G68: 2.79 | H68: 3.09 | I68: 4.29 | J68: 4.43 | K68: 4.23 | L68: 3.82 | M68: 4.55 | N68: 4.88 | O68: 4.91 | P68: 4.86 | Q68: 4.87
A69: Дальневосточный ФО | B69: – | C69: – | D69: – | E69: – | F69: – | G69: – | H69: – | I69: – | J69: 0.2 | K69: 0.39 | L69: 0.4 | M69: 0.41 | N69: 0.43 | O69: 0.45 | P69: 1.21 | Q69: 4.79
A70: Континентальный шельф Российской Федерации | B70: – | C70: – | D70: – | E70: – | F70: – | G70: – | H70: – | I70: – | J70: 0.01 | K70: 0.1 | L70: 0.61 | M70: 0.72 | N70: 0.63 | O70: 0.73 | P70: 0.76 | Q70: 0.84
A71: Всего | B71: 555 | C71: 555.95 | D71: 548.55 | E71: 549.73 | F71: 461.52 | G71: 508.59 | H71: 513.17 | I71: 487.99 | J71: 488.39 | K71: 444.9 | L71: 419.52 | M71: 420.13 | N71: 472.05 | O71: 498.68 | P71: 501.22 | Q71: 454.51
A72: Газовый конденсат, млн т
A73: Уральский ФО | B73: 6.38 | C73: 6.29 | D73: 6.22 | E73: 5.95 | F73: 6.04 | G73: 6.34 | H73: 7.1 | I73: 8.04 | J73: 10.18 | K73: 10.3 | L73: 11.14 | M73: 11.59 | N73: 11.51 | O73: 11.38 | P73: 12.1 | Q73: 11.88
A74: Северо-Западный ФО | B74: 0.25 | C74: 0.23 | D74: 0.21 | E74: 0.19 | F74: 0.17 | G74: 0.15 | H74: 0.14 | I74: 0.13 | J74: 0.14 | K74: 0.13 | L74: 0.12 | M74: 0.12 | N74: 0.12 | O74: 0.12 | P74: 0.11 | Q74: 0.11
A75: Южный и Северо-Кавказский ФО | B75: 4.24 | C75: 4.25 | D75: 4.27 | E75: 4.26 | F75: 3.35 | G75: 4.14 | H75: 4.22 | I75: 4.13 | J75: 3.78 | K75: 3.56 | L75: 3.51 | M75: 3.56 | N75: 3.68 | O75: 3.81 | P75: 3.9 | Q75: 3.61
A76: Приволжский ФО | B76: 0.27 | C76: 0.27 | D76: 0.28 | E76: 0.27 | F76: 0.26 | G76: 0.27 | H76: 0.25 | I76: 0.22 | J76: 0.19 | K76: 0.16 | L76: 0.15 | M76: 0.14 | N76: 0.12 | O76: 0.12 | P76: 0.13 | Q76: 0.13
A77: Сибирский ФО | B77: 0.36 | C77: 0.33 | D77: 0.29 | E77: 0.26 | F77: 0.25 | G77: 0.39 | H77: 0.36 | I77: 0.33 | J77: 0.37 | K77: 0.31 | L77: 0.31 | M77: 0.31 | N77: 0.39 | O77: 0.37 | P77: 0.32 | Q77: 0.3
A78: Дальневосточный ФО | B78: – | C78: – | D78: – | E78: – | F78: – | G78: – | H78: – | I78: – | J78: 0 | K78: 0.01 | L78: 0.01 | M78: 0.01 | N78: 0.01 | O78: 0.02 | P78: 0.02 | Q78: 0.08
A79: Континентальный шельф Российской Федерации | B79: – | C79: – | D79: – | E79: – | F79: – | G79: – | H79: – | I79: – | J79: – | K79: 0.02 | L79: 0.1 | M79: 0.12 | N79: 0.11 | O79: 0.11 | P79: 0.13 | Q79: 0.14
A80: Всего | B80: 11.5 | C80: 11.37 | D80: 11.27 | E80: 10.93 | F80: 10.07 | G80: 11.29 | H80: 12.07 | I80: 12.85 | J80: 14.66 | K80: 14.49 | L80: 15.34 | M80: 15.85 | N80: 15.94 | O80: 15.93 | P80: 16.71 | Q80: 16.25
A81: Нефть, млн т
A82: Уральский ФО | B82: 8.43 | C82: 31.92 | D82: 31.74 | E82: 29.6 | F82: 28.91 | G82: 28.73 | H82: 28.66 | I82: 32.95 | J82: 32.7 | K82: 32.83 | L82: 32.39 | M82: 34.45 | N82: 35.71 | O82: 36.82 | P82: 36.34 | Q82: 36.2
A83: Северо-Западный ФО | B83: 0.09 | C83: 0.07 | D83: 0.08 | E83: 0.07 | F83: 0.06 | G83: 0.06 | H83: 0.05 | I83: 0.04 | J83: 0.05 | K83: 0.03 | L83: 0.04 | M83: 0.03 | N83: 0.02 | O83: 0.02 | P83: 0.02 | Q83: 0.02
A84: Южный и Северо-Кавказский ФО | B84: 0.12 | C84: 0.11 | D84: 0.08 | E84: 0.08 | F84: 0.12 | G84: 0.16 | H84: 0.16 | I84: 0.16 | J84: 0.14 | K84: 0.11 | L84: 0.09 | M84: 0.09 | N84: 0.09 | O84: 0.08 | P84: 0.12 | Q84: 0.11
A85: Приволжский ФО | B85: 0.56 | C85: 0.6 | D85: 0.64 | E85: 0.68 | F85: 0.7 | G85: 0.69 | H85: 0.75 | I85: 1.23 | J85: 1.77 | K85: 2.46 | L85: 2.76 | M85: 2.85 | N85: 2.85 | O85: 2.79 | P85: 3.1 | Q85: 3.16
A86: Сибирский ФО | B86: 0.29 | C86: 1.32 | D86: 1.44 | E86: 1.62 | F86: 1.83 | G86: 2.37 | H86: 2.66 | I86: 7.88 | J86: 7.75 | K86: 7.84 | L86: 7.87 | M86: 7.58 | N86: 7.32 | O86: 5.38 | P86: 5.24 | Q86: 4.16
A87: Дальневосточный ФО | B87: – | C87: – | D87: – | E87: – | F87: – | G87: – | H87: – | I87: – | J87: – | K87: – | L87: 0 | M87: – | N87: 0 | O87: 0 | P87: 0 | Q87: 0.19
A88: Континентальный шельф Российской Федерации | B88: – | C88: – | D88: – | E88: – | F88: – | G88: – | H88: – | I88: – | J88: – | K88: 0.26 | L88: 0.89 | M88: 2.15 | N88: 2.64 | O88: 3.19 | P88: 3.14 | Q88: 3.27
A89: Всего | B89: 9.49 | C89: 34.02 | D89: 33.98 | E89: 32.05 | F89: 31.62 | G89: 32.01 | H89: 32.28 | I89: 42.26 | J89: 42.41 | K89: 43.53 | L89: 44.04 | M89: 47.15 | N89: 48.63 | O89: 48.28 | P89: 47.96 | Q89: 47.11
A90: * Без учета доли Группы Газпром в добыче организаций, инвестиции в которые классифицированы как совместные операции.
A92: Полезное использование ПНГ Группой Газпром на территории Российской Федерации
A93: (c учетом доли в добыче организаций, инвестиции в которые классифицированы как совместные операции)
B94: За год, закончившийся 31 декабря
C95: 2006* | D95: 2007* | E95: 2008* | F95: 2009* | G95: 2010* | H95: 2011* | I95: 2012* | J95: 2013 | K95: 2014 | L95: 2015 | M95: 2016 | N95: 2017 | O95: 2018 | P95: 2019 | Q95: 2020
A96: Использование ПНГ, млрд м3
A97: ПАО «Газпром» и его основные дочерние общества**,*** | C97: 1.73 | D97: 1.69 | E97: 1.62 | F97: 1.68 | G97: 1.83 | H97: 2.05 | I97: 1.48 | J97: 1.27 | K97: 1.42 | L97: 1.87 | M97: 1.79 | N97: 1.64 | O97: 1.57 | P97: 1.66 | Q97: 1.59
A98: ПАО «Газпром нефть» и его дочерние общества | C98: 2.04 | D98: 1.75 | E98: 2.14 | F98: 2.06 | G98: 2.45 | H98: 2.66 | I98: 4.18 | J98: 5.39 | K98: 6.13 | L98: 6.51 | M98: 7.63 | N98: 8.71 | O98: 11.29 | P98: 14.81 | Q98: 16.3
A99: Объекты месторождений ПАО «Газпром» и его основных дочерних обществ, разрабатываемые ООО «Газпромнефть-Заполярье» | C99: x | D99: x | E99: x | F99: x | G99: x | H99: x | I99: x | J99: x | K99: x | L99: x | M99: x | N99: x | O99: x | P99: x | Q99: 0.17
A100: Всего без учета доли в добыче организаций, инвестиции в которые классифицированы как совместные операции | C100: 3.77 | D100: 3.44 | E100: 3.76 | F100: 3.74 | G100: 4.28 | H100: 4.71 | I100: 5.66 | J100: 6.66 | K100: 7.55 | L100: 8.38 | M100: 9.42 | N100: 10.35 | O100: 12.86 | P100: 16.47 | Q100: 18.06
A101: Организации, инвестиции в которые классифицированы как совместные операции в доле, приходящейся на Группу Газпром | J101: 0.99 | K101: 1.02 | L101: 1.05 | M101: 1.03 | N101: 1.07 | O101: 1.08 | P101: 1.08 | Q101: 0.97
A102: Всего с учетом доли в добыче организаций, инвестиции в которые классифицированы как совместные операции | J102: 7.65 | K102: 8.58 | L102: 9.43 | M102: 10.45 | N102: 11.42 | O102: 13.94 | P102: 17.55 | Q102: 19.03
A103: Уровень полезного использования ПНГ, %
A104: ПАО «Газпром» и его основные дочерние общества** | C104: 81.2 | D104: 82.8 | E104: 83.3 | F104: 81.8 | G104: 81.6 | H104: 87 | I104: 83.2 | J104: 90.9 | K104: 93.5 | L104: 95.6 | M104: 97.8 | N104: 98.4 | O104: 98.1 | P104: 98.5 | Q104: 98.2
A105: ПАО «Газпром нефть» и его дочерние общества**** | C105: 45 | D105: 35.7 | E105: 46.8 | F105: 48.1 | G105: 55.3 | H105: 58.8 | I105: 65.7 | J105: 79.5 | K105: 80.5 | L105: 79.6 | M105: 79.2 | N105: 76.2 | O105: 78.4 | P105: 89 | Q105: 91.1
A106: Всего без учета доли в добыче организаций, инвестиции в которые классифицированы как совместные операции | C106: 56.6 | D106: 49.7 | E106: 57.7 | F106: 59.1 | G106: 64.1 | H106: 68.4 | I106: 69.2 | J106: 81.4 | K106: 82.7 | L106: 82.7 | M106: 82.2 | N106: 79 | O106: 80.3 | P106: 89.9 | Q106: 91.6
A107: Организации, инвестиции в которые классифицированы как совместные операции в доле, приходящейся на Группу Газпром | J107: 87.3 | K107: 90 | L107: 89.9 | M107: 87.2 | N107: 88.9 | O107: 91.6 | P107: 91.8 | Q107: 95.2
A108: Всего с учетом доли в добыче организаций, инвестиции в которые классифицированы как совместные операции | J108: 82.2 | K108: 83.5 | L108: 83.5 | M108: 82.7 | N108: 79.8 | O108: 81.8 | P108: 90.1 | Q108: 92
A109: * Без учета доли Группы Газпром добыче организаций, инвестиции в которые классифицированы как совместные операции.
A110: ** С учетом объема добычи АО «Газпром добыча Томск». Также учтен объем добычи ООО «Сервиснефтегаз», финансовые показатели которого в связи с их несущественностью не включаются в консолидированную финансовую отчетность Группы Газпром по МСФО.
A111: *** Начиная с 2020 г., приводится без учета объемов добычи по объектам месторождений, лицензии на право пользования которыми принадлежат ПАО «Газпром» или его основным дочерним обществам, а разработка осуществляется ООО «Газпромнефть-Заполярье» в соответствии с условиями заключенных в 2018–2020 гг. долгосрочных рисковых операторских договоров.
A112: **** С учетом объемов добычи по объектам месторождений, лицензии на право пользования которыми принадлежат ПАО «Газпром» или его основным дочерним обществам, а разработка осуществляется ООО «Газпромнефть-Заполярье» в соответствии с условиями заключенных в 2018–2020 гг. долгосрочных рисковых операторских договоров.
A114: Вернуться к содержанию

Sheet Макс. суточная добыча газа
A1: Фактическая максимальная суточная добыча природного и попутного газа в осенне-зимний период
A2: (без учета доли в добыче организаций, инвестиции в которые классифицированы как совместные операции)
B3: Осенне-зимний период
B4: 2015/2016 | C4: 2016/2017 | D4: 2017/2018 | E4: 2018/2019 | F4: 2019/2020
A5: Дата | B5: 2015-10-22 | C5: 2016-12-02 | D5: 2018-02-23 | E5: 2019-01-19 | F5: 2019-12-28
A6: Объем добычи, млн м3 | B6: 1555.7 | C6: 1535.6 | D6: 1512.6 | E6: 1538.6 | F6: 1514.1
A7: в т. ч. в зоне ЕСГ* | B7: 1554.1 | C7: 1528.8 | D7: 1505.9 | E7: 1531.3 | F7: 1496.8
A8: * Объемы максимальной суточной добычи в зоне Единой системы газоснабжения (ЕСГ) в осенне-зимний период 2019/2020 г. приведены с учетом объемов ООО «Газпромнефть-Ямал». В целях обеспечения сопоставимости данных объемы добычи в предшествующие периоды пересчитаны.
A10: Вернуться к содержанию

Sheet Добыча ассоц. и СП
A1: Добыча углеводородов ассоциированными организациями и совместными предприятиями на территории России в доле, приходящейся на Группу Газпром
A2: Метрические единицы
B3: За год, закончившийся 31 декабря
B4: 2007* | C4: 2008* | D4: 2009* | E4: 2010* | F4: 2011* | G4: 2012 | H4: 2013 | I4: 2014 | J4: 2015 | K4: 2016 | L4: 2017 | M4: 2018 | N4: 2019 | O4: 2020
A5: Природный и попутный газ, млрд м3 | B5: 8.53 | C5: 10.99 | D5: 13.58 | E5: 17.63 | F5: 11.3302 | G5: 11.88 | H5: 13.04 | I5: 18.18 | J5: 25.55 | K5: 27.21 | L5: 27.04 | M5: 26.92 | N5: 26.86 | O5: 28.36
A6: Газовый конденсат, млн т | B6: 0.73 | C6: 0.73 | D6: 1.21 | E6: 1.59 | F6: 0.99 | G6: 1.13 | H6: 1.26 | I6: 2.32 | J6: 4.7 | K6: 5.17 | L6: 4.96 | M6: 4.87 | N6: 4.74 | O6: 5.07
A7: Нефть, млн т | B7: 11.33 | C7: 16.26 | D7: 19.17 | E7: 20.74 | F7: 20.52 | G7: 10.82 | H7: 10.25 | I7: 9.96 | J7: 9.59 | K7: 9.93 | L7: 10.91 | M7: 11.22 | N7: 11.77 | O7: 9.43
A8: * Включая долю Группы Газпром в добыче компаний, инвестиции в которые классифицированы как совместные операции.
A10: Нефтяной эквивалент
B11: За год, закончившийся 31 декабря
B12: 2007* | C12: 2008* | D12: 2009* | E12: 2010* | F12: 2011* | G12: 2012 | H12: 2013 | I12: 2014 | J12: 2015 | K12: 2016 | L12: 2017 | M12: 2018 | N12: 2019 | O12: 2020
A13: Природный и попутный газ, млн барр. н. э. | B13: =ROUND(B5*6.49,2) -> 55.36 | C13: 71.33 | D13: 88.13 | E13: 114.42 | F13: 73.53 | G13: 77.1 | H13: 84.63 | I13: 117.99 | J13: 165.82 | K13: 176.59 | L13: 175.49 | M13: 174.71 | N13: 174.32 | O13: 184.06
A14: Газовый конденсат, млн барр. н. э. | B14: =ROUND(B6*8.18,2) -> 5.97 | C14: 5.97 | D14: 9.9 | E14: 13.01 | F14: 8.1 | G14: 9.24 | H14: 10.31 | I14: 18.98 | J14: 38.45 | K14: 42.29 | L14: 40.57 | M14: 39.84 | N14: 38.77 | O14: 41.47
A15: Нефть, млн барр. н. э. | B15: =ROUND(B7*7.33,2) -> 83.05 | C15: 119.19 | D15: 140.52 | E15: 152.02 | F15: 150.41 | G15: 79.31 | H15: 75.13 | I15: 73.01 | J15: 70.29 | K15: 72.79 | L15: 79.97 | M15: 82.24 | N15: 86.27 | O15: 69.12
A16: Всего, млн барр. н. э. | B16: =B13+B14+B15 -> 144.38 | C16: 196.49 | D16: 238.55 | E16: 279.45 | F16: 232.04 | G16: 165.65 | H16: 170.07 | I16: 209.98 | J16: 274.56 | K16: 291.67 | L16: 296.03 | M16: 296.79 | N16: 299.36 | O16: 294.65
A17: * Включая долю Группы Газпром в добыче организаций, инвестиции в которые классифицированы как совместные операции.
A18: Примечание. Группа Газпром осуществляет управленческий учет запасов и добычи углеводородов в метрических единицах измерения. В настоящем Справочнике пересчет объемов добычи газа из метрической системы в баррели нефтяного эквивалента выполнен исходя из соотношения 1 тыс. м3 природного газа = 6,49 барр. н. э.
A20: Вернуться к содержанию

Sheet ГРР и бурение в России
A1: Геологоразведка, эксплуатационное бурение и промысловые мощности
A2: Основные показатели ГРР Группы Газпром на углеводороды
A3: (без учета организаций, инвестиции в которые классифицированы как совместные операции)
B4: За год, закончившийся 31 декабря
B5: 2005 | C5: 2006 | D5: 2007 | E5: 2008 | F5: 2009 | G5: 2010 | H5: 2011 | I5: 2012 | J5: 2013 | K5: 2014 | L5: 2015 | M5: 2016 | N5: 2017 | O5: 2018 | P5: 2019 | Q5: 2020
A6: Разведочное бурение, тыс. м | B6: 136.3 | C6: 177.7 | D6: 207.6 | E6: 284.9 | F6: 163.7 | G6: 204.9 | H6: 157.7 | I6: 126.4 | J6: 146.4 | K6: 165.4 | L6: 143.6 | M6: 111.6 | N6: 85.9 | O6: 157.6 | P6: 201.7 | Q6: 162
A7: Законченные строительством поисково-разведочные скважины, ед. | B7: 44 | C7: 62 | D7: 39 | E7: 80 | F7: 75 | G7: 82 | H7: 60 | I7: 54 | J7: 53 | K7: 41 | L7: 43 | M7: 40 | N7: 36 | O7: 25 | P7: 41 | Q7: 34
A8: в т.ч. продуктивные | B8: 35 | C8: 50 | D8: 20 | E8: 50 | F8: 43 | G8: 64 | H8: 45 | I8: 46 | J8: 37 | K8: 31 | L8: 38 | M8: 34 | N8: 31 | O8: 20 | P8: 39 | Q8: 27
A9: Сейсморазведка 2D, тыс. пог. км | B9: 9.8 | C9: 9.2 | D9: 6.4 | E9: 12.4 | F9: 14.7 | G9: 18.5 | H9: 2.8 | I9: 1.9 | J9: 1.4 | K9: 6.6 | L9: 0.3 | M9: 1.1 | N9: – | O9: 5.7 | P9: 15 | Q9: –
A10: Сейсморазведка 3D, тыс. км2 | B10: 3.2 | C10: 7.9 | D10: 5.7 | E10: 6.6 | F10: 9.5 | G10: 10.8 | H10: 8.7 | I10: 8.4 | J10: 13.3 | K10: 12.6 | L10: 20 | M10: 20.6 | N10: 18.7 | O10: 9.5 | P10: 7.9 | Q10: 5.9
A11: Прирост запасов углеводородов, млн барр. н. э. | B11: 3706.2 | C11: 3961.4 | D11: 3712.7 | E11: 3889.2 | F11: 3498 | G11: 4100 | H11: 4978.8 | I11: 3955.5 | J11: 4183.5 | K11: 5942.2 | L11: 3835.1 | M11: 3404 | N11: 6341.5 | O11: 5440.6 | P11: 3906.6 | Q11: 3 358,4
A12: Эффективность бурения, тыс. барр. н. э. / м | B12: 27.1 | C12: 22.1 | D12: 17.9 | E12: 13.7 | F12: 21.4 | G12: 20 | H12: 31.2 | I12: 31.3 | J12: 28.6 | K12: 35.9 | L12: 26.7 | M12: 30.5 | N12: 73.8 | O12: 34.5 | P12: 19.4 | Q12: 20.7
A14: Основные показатели ГРР на углеводороды организаций, инвестиции в которые классифицированы как совместные операции
B15: За год, закончившийся 31 декабря
B16: 2005 | C16: 2006 | D16: 2007 | E16: 2008 | F16: 2009 | G16: 2010 | H16: 2011 | I16: 2012 | J16: 2013 | K16: 2014 | L16: 2015 | M16: 2016 | N16: 2017 | O16: 2018 | P16: 2019 | Q16: 2020
A17: Разведочное бурение, тыс. м | B17: x | C17: x | D17: x | E17: x | F17: x | G17: x | H17: x | I17: 14 | J17: 11.6 | K17: 13.1 | L17: 3.2 | M17: 7.4 | N17: 12.8 | O17: 28.7 | P17: 21 | Q17: 8.1
A18: Законченные строительством поисково-разведочные скважины, ед. | B18: x | C18: x | D18: x | E18: x | F18: x | G18: x | H18: x | I18: 5 | J18: 5 | K18: 4 | L18: 1 | M18: 2 | N18: 4 | O18: 8 | P18: 7 | Q18: 3
A19: в т.ч. продуктивные | B19: x | C19: x | D19: x | E19: x | F19: x | G19: x | H19: x | I19: 4 | J19: 3 | K19: 3 | L19: 1 | M19: 1 | N19: 4 | O19: 5 | P19: 3 | Q19: –
A20: Сейсморазведка 2D, пог. км | B20: x | C20: x | D20: x | E20: x | F20: x | G20: x | H20: x | I20: 481 | J20: – | K20: – | L20: – | M20: − | N20: – | O20: – | P20: – | Q20: –
A21: Сейсморазведка 3D, км2 | B21: x | C21: x | D21: x | E21: x | F21: x | G21: x | H21: x | I21: 1085 | J21: 858 | K21: 494 | L21: 459 | M21: 130 | N21: 200 | O21: 474 | P21: 350 | Q21: 652
A23: Эксплуатационное бурение Группы Газпром
A24: (без учета организаций, инвестиции в которые классифицированы как совместные операции)
B25: За год, закончившийся 31 декабря
B26: 2005 | C26: 2006 | D26: 2007 | E26: 2008 | F26: 2009 | G26: 2010 | H26: 2011 | I26: 2012 | J26: 2013 | K26: 2014 | L26: 2015 | M26: 2016 | N26: 2017 | O26: 2018 | P26: 2019 | Q26: 2020
A27: Эксплуатационные скважины, законченные строительством, ед.
A28: на газ | B28: 248 | C28: 156 | D28: 204 | E28: 143 | F28: 151 | G28: 118 | H28: 223 | I28: 212 | J28: 93 | K28: 38 | L28: 73 | M28: 64 | N28: 116 | O28: 114 | P28: 176 | Q28: 151
A29: на нефть | B29: 15 | C29: 441 | D29: 546 | E29: 629 | F29: 702 | G29: 775 | H29: 719 | I29: 724 | J29: 788 | K29: 832 | L29: 802 | M29: 725 | N29: 660 | O29: 545 | P29: 623 | Q29: 762
A30: на ПХГ | B30: 36 | C30: 41 | D30: 45 | E30: 8 | F30: 14 | G30: 16 | H30: 17 | I30: 17 | J30: 43 | K30: 22 | L30: 27 | M30: 13 | N30: 4 | O30: 9 | P30: 15 | Q30: 8
A31: Всего | B31: 299 | C31: 638 | D31: 795 | E31: 780 | F31: 867 | G31: 909 | H31: 959 | I31: 953 | J31: 924 | K31: 892 | L31: 902 | M31: 802 | N31: 780 | O31: 668 | P31: 814 | Q31: 921
A32: Объем проходки в эксплуатационном бурении, тыс. м
A33: на газ | B33: 327.4 | C33: 267.1 | D33: 314 | E33: 375.7 | F33: 358.2 | G33: 441.5 | H33: 476.8 | I33: 367.7 | J33: 239.7 | K33: 125.6 | L33: 153.2 | M33: 227.2 | N33: 240.8 | O33: 304.4 | P33: 400.8 | Q33: 514.2
A34: на нефть | B34: 38.2 | C34: 1468.9 | D34: 1740.7 | E34: 2080.6 | F34: 2286.7 | G34: 2602.2 | H34: 2288.1 | I34: 2566.6 | J34: 3002.1 | K34: 2948.5 | L34: 3163 | M34: 2735.8 | N34: 2 559,5 | O34: 2202.6 | P34: 2811.7 | Q34: 3275.5
A35: на ПХГ | B35: 31.6 | C35: 30.1 | D35: 37.8 | E35: 17.6 | F35: 11.9 | G35: 20.3 | H35: 22.9 | I35: 24.2 | J35: 36.7 | K35: 27.6 | L35: 47.5 | M35: 23.7 | N35: 13.6 | O35: 19.4 | P35: 14.2 | Q35: 3.7
A36: Всего | B36: 397.2 | C36: 1766.1 | D36: 2092.5 | E36: 2473.9 | F36: 2656.8 | G36: 3064 | H36: 2787.8 | I36: 2958.5 | J36: 3278.5 | K36: 3101.7 | L36: 3363.7 | M36: 2 986,7 | N36: 2 813,9 | O36: 2526.4 | P36: 3226.7 | Q36: 3793.4
A38: Эксплуатационное бурение организаций, инвестиции в которые классифицированы как совместные операции
B39: За год, закончившийся 31 декабря
B40: 2005 | C40: 2006 | D40: 2007 | E40: 2008 | F40: 2009 | G40: 2010 | H40: 2011 | I40: 2012 | J40: 2013 | K40: 2014 | L40: 2015 | M40: 2016 | N40: 2017 | O40: 2018 | P40: 2019 | Q40: 2020
A41: Эксплуатационные скважины на нефть, законченные строительством, ед. | B41: x | C41: x | D41: x | E41: x | F41: x | G41: x | H41: x | I41: 243 | J41: 211 | K41: 188 | L41: 206 | M41: 231 | N41: 236 | O41: 208 | P41: 206 | Q41: 115
A42: Объем проходки в эксплуатационном бурении на нефть, тыс. м | B42: x | C42: x | D42: x | E42: x | F42: x | G42: x | H42: x | I42: 827 | J42: 697 | K42: 694 | L42: 789 | M42: 785 | N42: 784 | O42: 749 | P42: 744 | Q42: 407
A44: Производственные мощности Группы Газпром в добыче углеводородов
A45: (без учета организаций, инвестиции в которые классифицированы как совместные операции)
B46: По состоянию на 31 декабря
B47: 2005 | C47: 2006 | D47: 2007 | E47: 2008 | F47: 2009 | G47: 2010 | H47: 2011 | I47: 2012 | J47: 2013 | K47: 2014 | L47: 2015 | M47: 2016 | N47: 2017 | O47: 2018 | P47: 2019 | Q47: 2020
A48: Месторождения в разработке*, ед. | B48: 114 | C48: 119 | D48: 122 | E48: 122 | F48: 121 | G48: 120 | H48: 124
A49: Месторождения в промышленной разработке*, ед. | I49: 118 | J49: 122 | K49: 126 | L49: 135 | M49: 136 | N49: 136 | O49: 138 | P49: 144 | Q49: 147
A50: Газовые эксплуатационные скважины, ед. | B50: 6941 | C50: 7010 | D50: 7154 | E50: 7214 | F50: 7310 | G50: 7403 | H50: 7504 | I50: 7717 | J50: 7744 | K50: 7816 | L50: 7881 | M50: 7916 | N50: 7945 | O50: 7976 | P50: 8061 | Q50: 8139
A51: в т.ч. действующие | B51: 6401 | C51: 6513 | D51: 6640 | E51: 6723 | F51: 6775 | G51: 6806 | H51: 6988 | I51: 7226 | J51: 7263 | K51: 7293 | L51: 7358 | M51: 7441 | N51: 7 438 | O51: 7418 | P51: 7438 | Q51: 7494
A52: Нефтяные эксплуатационные скважины, ед. | B52: 5018 | C52: 5486 | D52: 5881 | E52: 5932 | F52: 6158 | G52: 6464 | H52: 6647 | I52: 7296 | J52: 7868 | K52: 8218 | L52: 9058 | M52: 9316 | N52: 7944 | O52: 9106 | P52: 8 393 | Q52: 9189
A53: в т.ч. действующие | B53: 4372 | C53: 4948 | D53: 5342 | E53: 5444 | F53: 5663 | G53: 5941 | H53: 6151 | I53: 6738 | J53: 7246 | K53: 7604 | L53: 8461 | M53: 8681 | N53: 7 358 | O53: 8489 | P53: 7752 | Q53: 8519
A54: * За 2005–2011 гг. данные приведены с учетом месторождений, находящихся в опытно-промышленной эксплуатации (ОПЭ). С 2012 г. показано количество месторождений, находящихся в промышленной разработке (без ОПЭ).
A56: Производственные мощности в добыче углеводородов организаций, инвестиции в которые классифицированы как совместные операции
B57: По состоянию на 31 декабря
B58: 2005 | C58: 2006 | D58: 2007 | E58: 2008 | F58: 2009 | G58: 2010 | H58: 2011 | I58: 2012 | J58: 2013 | K58: 2014 | L58: 2015 | M58: 2016 | N58: 2017 | O58: 2018 | P58: 2019 | Q58: 2020
A59: Месторождения в промышленной разработке, ед. | B59: x | C59: x | D59: x | E59: x | F59: x | G59: x | H59: x | I59: 34 | J59: 35 | K59: 39 | L59: 41 | M59: 42 | N59: 41 | O59: 38 | P59: 39 | Q59: 39
A60: Газовые эксплуатационные скважины, ед. | B60: x | C60: x | D60: x | E60: x | F60: x | G60: x | H60: x | I60: 9 | J60: 9 | K60: 8 | L60: 7 | M60: 7 | N60: 7 | O60: 4 | P60: 4 | Q60: 4
A61: в т.ч. действующие | B61: x | C61: x | D61: x | E61: x | F61: x | G61: x | H61: x | I61: 2 | J61: – | K61: 1 | L61: 3 | M61: 3 | N61: 1 | O61: 4 | P61: 4 | Q61: 3
A62: Нефтяные эксплуатационные скважины, ед. | B62: x | C62: x | D62: x | E62: x | F62: x | G62: x | H62: x | I62: 3439 | J62: 3590 | K62: 3635 | L62: 3768 | M62: 3733 | N62: 3810 | O62: 3866 | P62: 3819 | Q62: 3781
A63: в т.ч. действующие | B63: x | C63: x | D63: x | E63: x | F63: x | G63: x | H63: x | I63: 2927 | J63: 3017 | K63: 3086 | L63: 3163 | M63: 3379 | N63: 3472 | O63: 3534 | P63: 3516 | Q63: 2610
A65: Вернуться к содержанию

Sheet Месторождения Группы
A1: Перспективные месторождения
A2: Разрабатываемые месторождения Группы Газпром
A3: Наименование месторождения | B3: Описание | C3: Годовая проектная мощность | D3: Год ввода в эксплуатацию | E3: Год выхода на проектную мощность
A4: Надым-Пур-Тазовский регион (Западная Сибирь)
A5: Ныдинский участок Медвежьего месторождения | B5: Расположен в Пуровском районе ЯНАО на площади Медвежьего месторождения. | C5: 2,2 млрд м3 газа | D5: 2011 г. | E5: 2022–2024 гг.
A6: Уренгойское (ачимовские залежи): | B6: Залежи расположены в Пуровском районе ЯНАО. Для поэтапного освоения залежи разделены на несколько участков.
A7: Участок 1 | C7: 9,6 млрд м3 газа и 2,95 млн т нестабильного конденсата | D7: 2008 г. | E7: 2020–2023 гг.
A8: Участок 2 | C8: 12,33 млрд м3 газа и 3,36 млн т нестабильного конденсата | D8: 2009 г. | E8: 2021–2024 гг.
A9: Участок 3* | C9: 5 млрд м3 газа и 0,98 млн т нестабильного конденсата | D9: 2023 г. | E9: 2024 г.
A10: Участки 4−5 | C10: 15,5 млрд м3 газа | D10: 2020 г. | E10: 2027–2030 гг.
A11: Нефтяные оторочки Ен-Яхинского и Песцового месторождений, нефтяные залежи Западно-Таркосалинского месторождения* | B11: Расположены в Пуровском районе ЯНАО. | C11: 2,5 млн т жидких углеводородов и 4 млрд м3 газа | D11: 2021 г. | E11: 2022–2023 гг.
A12: Ачимовские нефтяные залежи Ямбургского месторождения* | B12: Расположены в Тазовском и Надымском районах ЯНАО. | C12: 8 млн т нефти, 2,8 млрд м3 газа | D12: 2027 г. | E12: 2028 г.
A13: Полуостров Ямал и прилегающие акватории
A14: Бованенковское | B14: Самое крупное по разведанным запасам месторождение полуострова Ямал, расположенное в его центральной части и наиболее изученное.
A15: сеноман-аптские залежи | C15: 115 млрд м3 газа | D15: 2012 г. | E15: 2022 г. (завершение ввода скважин для обеспечения выхода на проектную производительность)
A16: неоком-юрские залежи* | C16: 20 млрд м3 газа и 2,3 млн т жидких углеводородов | D16: 2025 г. | E16: 2031 г.
A17: Новопортовское | B17: Расположено в юго-восточной части полуострова Ямал. | C17: 7,7 млн т жидких углеводородов | D17: 2016 г. | E17: 2020 г.
A18: ХМАО — Югра
A19: Месторождение им. Александра Жагрина | B19: Расположено в Кондинском районе ХМАО —Югры. | C19: 6,2 млн т нефти | D19: 2020 г. | E19: 2024 г.
A20: Поволжье
A21: Астраханское | B21: Расположено в дельте р. Волга. Способно обеспечить годовой уровень добычи в 50−60 млрд м3. Добыча сдерживается на уровне 12 млрд м3 в год в основном экологическими ограничениями, а также необходимостью использования дорогостоящих технологий. | D21: 1986 г.
A22: Волго-Уральский регион
A23: Восточный участок Оренбургского НГКМ | B23: Расположен в 10-20 км от г. Оренбурга в регионе с развитой инфраструктурой вблизи от рынков сбыта. | C23: 3,3 млн т нефти | D23: 1994 г. | E23: 2029 г.
A24: Континентальный шельф Арктической зоны Российской Федерации
A25: Приразломное | B25: Расположено на континентальном шельфе Российской Федерации в Печорском море в 55 км от поселка Варандей, в 240 км от речного порта Нарьян-Мар (р. Печора) и в 980 км от морского порта Мурманск. Глубина моря в пределах площади месторождения не превышает 17–20 м. | C25: 3,9 млн т нефти | D25: 2013 г. | E25: 2024 г.
A26: Восточная Сибирь и Дальний Восток
A27: Чаяндинское | B27: Расположено в Ленском районе Республики Саха (Якутия).
A29: газовые залежи | C29: 25 млрд м3 газа | D29: 2019 г. | E29: 2024 г.
A30: нефтяная оторочка ботуобинской залежи* | C30: 1,9 млн т нефти | D30: 2014 г. (ввод в опытно-промышленную эксплуатацию) | E30: 2022 г.
A31: Континентальный шельф Российской Федерации в Охотском море
A32: Киринское | B32: Расположено на континентальном шельфе Российской Федерации в Охотском море северо-восточнее о. Сахалин. Разработка месторождения является составной частью проекта «Сахалин-3». | C32: 5,5 млрд м3 газа | D32: 2014 г. | E32: 2023–2024 гг.
A33: * Оператором является ООО «Газпромнефть-Заполярье» в рамках долгосрочных рисковых операторских договоров с ПАО «Газпром» и его газодобывающими дочерними обществами.
A34: Примечание. Информация приведена по состоянию на 31 декабря 2020 г. Сроки по вводу объектов в эксплуатацию и выходу на проектную производительность могут меняться в зависимости от ситуации на рынке энергоносителей.
A36: Разведываемые месторождения и перспективные лицензионные участки Группы Газпром
A37: Наименование месторождения (лицензионного участка) | B37: Описание | C37: Годовая проектная мощность | D37: Год ввода в эксплуатацию | E37: Год выхода на проектную мощность
A38: Полуостров Ямал и прилегающие акватории
A39: Харасавэйское | B39: Вводится в разработку после выхода на проектную производительность Бованенковского месторождения.
A40: сеноман-аптские залежи | C40: 32 млрд м3 газа | D40: 2023–2024 гг. | E40: 2025–2026 гг.
A41: неоком-юрские залежи* | C41: 24,5 млрд м3 газа и 1,9 млн т жидких углеводородов | D41: 2026 г. | E41: 2029 г.
A42: Крузенштернское | B42: Входит в Бованенковскую группу месторождений. | C42: 33 млрд м3 газа | D42: 2028 г. | E42: 2032–2033 гг.
A43: Континентальный шельф Арктической зоны Российской Федерации
A44: Штокмановское | B44: Расположено в центральной части Баренцева моря к северо-западу от архипелага Новая Земля и в 650 км к северо-востоку от г. Мурманска. | C44: 71,7 млрд м3 газа c возможностью увеличения до 95 млрд м3 газа | D44: Завершена корректировка Обоснования инвестиций в комплексное освоение Штокмановского ГКМ. По результатам экспертизы принято решение о выполнении дальнейших исследований, направленных на оптимизацию затрат по проекту. В соответствии с Дополнением № 2 к лицензии на пользование недрами ввод месторождения в разработку должен быть осуществлен не позднее 31 декабря 2035 г.
A45: Обская и Тазовская губы
A46: Каменномысское-море | B46: Месторождения расположены в средней части акватории Обской губы в ЯНАО и определены первоочередными объектами освоения месторождений акватории Обской и Тазовской губ. | C46: 15,1 млрд м3 газа | D46: 2027 г. | E46: 2029 г.
A47: Северо-Каменномысское | C47: 14,5 млрд м3 газа | D47: 2029 г. | E47: 2031 г.
A48: Надым-Пур-Тазовский регион (Западная Сибирь)
A49: Тазовское | B49: Расположено в Тазовском районе ЯНАО. | C49: 2 млн т нефти и 8 млрд м3 газа | D49: 2021 г. | E49: 2023 г.
A50: Меретояхинское | B50: Расположено в Надымском районе ЯНАО, в 135 км на юго-восток от г. Надыма. | C50: 2,1 млн т нефти | D50: 2028 г. | E50: 2030 г.
A51: Западно-Юбилейное | B51: Расположено в Надымском районе ЯНАО, в 100 км северо-западнее г. Надыма. | C51: 21 млрд м3 газа и 5 млн т нефти | D51: 2026 г. | E51: 2027 г.
A52: Восточная Сибирь и Дальний Восток
A53: Ковыктинское | B53: Расположено в Жигаловском и Казачинско-Ленском районах Иркутской области. | C53: 27,2 млрд м3 газа | D53: 2022 г. | E53: 2026 г.
A54: Чонская группа месторождений (Игнялинское, Вакунайское, Северо-Вакунайское, Тымпучиканское и Верхнечонское) | B54: Месторождения расположены в Катангском районе Иркутской области и Ленском районе Республики Саха (Якутия), в 120–140 км восточнее районного центра с. Ербогачен. | C54: 6,2 млн т нефти | D54: 2028 г. | E54: 2034 г.
A55: Континентальный шельф Российской Федерации в Охотском море
A56: Южно-Киринское | B56: Расположено на континентальном шельфе Российской Федерации в Охотском море северо-восточнее о. Сахалин. Разработка месторождения является составной частью проекта «Сахалин-3». | C56: 21 млрд м3 газа | D56: 2023–2025 гг. | E56: 2029–2033 гг.
A57: *Оператором является ООО «Газпромнефть-Заполярье» в рамках долгосрочного рискового операторского договора с ООО «Газпром добыча Надым».
A58: Примечание. Информация приведена по состоянию на 31 декабря 2020 г. Сроки по вводу объектов в эксплуатацию и выходу на проектную производительность могут меняться в зависимости от ситуации на рынке энергоносителей.
A60: Вернуться к содержанию

Sheet Месторождения ассоц. и СП
A1: Месторождения и перспективные лицензионные участки совместных предприятий и ассоциированных организаций Группы Газпром
A2: Наименование месторождения (лицензионного участка) | B2: Описание | C2: Компания | D2: Доли участия партнеров в проекта | E2: Годовая проектная мощность | F2: Год ввода в эксплуатацию | G2: Год выхода на проектную мощность
A3: Обская и Тазовская губы
A4: Семаковское месторождение | B4: Расположено в акватории Тазовской губы и частично на суше Тазовского полуострова. | C4: ООО «РусГазАльянс» | D4: ООО «Газпром добыча Ямбург» — 50 %, АО «РусГазДобыча» — 50 %. | E4: 14,2 млрд м3 газа | F4: 2022 г. | G4: 2029 г.
A5: Гыданский полуостров
A6: Восточно-Мессояхское месторождение | B6: Находится в северной части Западно-Сибирской нефтегазоносной провинции на юго-западе Гыданского полуострова, относится к категории крупнейших по величине разведанных запасов. | C6: АО «Мессояханефтегаз» | D6: Группа Газпром нефть — 50 %, ПАО «НК «Роснефть» — 50 %. | E6: 6,0 млн т нефти | F6: 2016 г. | G6: 2022 г.
A7: Лескинский и Пухуцяяхский лицензионные участки (проект «Енисей») | B7: Лицензионные участки расположены на Гыданском полуострове, на левом берегу Енисея. Лескинский участок относится к Таймырскому Долгано-Ненецкому району Красноярского края. Пухуцяяхский участок расположен в Тазовском районе ЯНАО. | C7: ООО «Газпромнефть-Аэро Брянск» | D7: Группа Газпром нефть — 50 %, Royal Dutch Shell — 50 %. | E7: 19,9 млн т нефти | F7: 2028 г. | G7: 2038 г.
A8: ХМАО — Югра
A9: Месторождение им. Эрвье (Оурьинское) | B9: Расположено на границе ХМАО — Югры и Свердловской области. | C9: АО «Евротэк-Югра» | D9: Группа Газпром нефть — 31,7352 %, Repsol — 68,2648 %. | E9: 2,6 млн т нефти | F9: 2025 г. | G9: 2027 г.
A10: Восточная Сибирь и Дальний Восток
A11: Куюмбинский и Терско-Камовский лицензионные участки | B11: Расположены в Байкитском муниципальном образовании Эвенкийского муниципального района Красноярского края. Месторождения, открытые в пределах лицензионных участков, входят в состав Юрубчено-Тохомской зоны нефтегазонакопления. Район характеризуется труднодоступностью и отсутствием дорог круглогодичного действия. | C11: ООО «Славнефть-Красноярскнефтегаз» | D11: Группа Газпром нефть — 50 %, ПАО «НК «Роснефть» — 50 %. | E11: 5,0 млн т нефти | F11: 2018 г. | G11: 2028 г.
A12: Примечание. Информация приведена по состоянию на 31 декабря 2020 г. Сроки по вводу объектов в эксплуатацию и выходу на проектную производительность могут меняться в зависимости от ситуации на рынке энергоносителей.
A14: Вернуться к содержанию

Sheet ГРР и добыча за рубежом
A1: Разведка и добыча на территории зарубежных стран
A2: Основные показатели ГРР Группы Газпром на углеводороды на территории зарубежных стран
B3: За год, закончившийся 31 декабря
B4: 2007 | C4: 2008 | D4: 2009 | E4: 2010 | F4: 2011 | G4: 2012 | H4: 2013 | I4: 2014 | J4: 2015 | K4: 2016 | L4: 2017 | M4: 2018 | N4: 2019 | O4: 2020
A5: Разведочное бурение, тыс. м | B5: 14.2 | C5: 32.1 | D5: 30.7 | E5: 21.8 | F5: 21.8 | G5: 24 | H5: 18.1 | I5: 17.6 | J5: 28.3 | K5: 9.7 | L5: 18.4 | M5: 21.9 | N5: 18.6 | O5: 8.8
A6: Законченные строительством поисково-разведочные скважины, ед. | B6: – | C6: 4 | D6: 10 | E6: 10 | F6: 6 | G6: 7 | H6: 4 | I6: 5 | J6: 4 | K6: 8 | L6: 8 | M6: 10 | N6: 7 | O6: 4
A7: в т. ч. продуктивные | B7: – | C7: – | D7: 2 | E7: 4 | F7: 6 | G7: 1 | H7: 1 | I7: 4 | J7: 2 | K7: 7 | L7: 5 | M7: 9 | N7: 7 | O7: 4
A8: Сейсморазведка 2D, тыс. пог. км | B8: 2.4 | C8: 6.3 | D8: 12.5 | E8: 11.4 | F8: 1.3 | G8: 0.7 | H8: 0.4 | I8: – | J8: – | K8: 1.5 | L8: – | M8: – | N8: − | O8: –
A9: Сейсморазведка 3D, тыс. км2 | B9: 1.3 | C9: 7.4 | D9: 3.6 | E9: 2.6 | F9: 0.7 | G9: 0.4 | H9: 1.4 | I9: 1.7 | J9: 1.4 | K9: 0.8 | L9: 1.2 | M9: 1.1 | N9: 0.7 | O9: –
A10: Примечание. При формировании консолидированных показателей геолого-разведочных работ, проводимых Группой Газпром на территории зарубежных стран, учтены показатели по проектам, в которых организации Группы имеют операторские функции и контроль.
A12: Производственные мощности Группы Газпром в добыче углеводородов на территории зарубежных стран
B13: По состоянию на 31 декабря
F14: 2011 | G14: 2012 | H14: 2013 | I14: 2014 | J14: 2015 | K14: 2016 | L14: 2017 | M14: 2018 | N14: 2019 | O14: 2020
A15: Разрабатываемые месторождения, ед. | F15: 50 | G15: 50 | H15: 51 | I15: 47 | J15: 53 | K15: 47 | L15: 48 | M15: 47 | N15: 48 | O15: 46
A16: Газовые эксплуатационные скважины, ед. | F16: 225 | G16: 234 | H16: 289 | I16: 235 | J16: 168 | K16: 172 | L16: 163 | M16: 243 | N16: 249 | O16: 258
A17: в т.ч. действующие | F17: 104 | G17: 111 | H17: 94 | I17: 96 | J17: 74 | K17: 81 | L17: 81 | M17: 126 | N17: 129 | O17: 134
A18: Нефтяные эксплуатационные скважины, ед. | F18: 900 | G18: 903 | H18: 863 | I18: 904 | J18: 963 | K18: 931 | L18: 946 | M18: 887 | N18: 908 | O18: 931
A19: в т.ч. действующие | F19: 603 | G19: 623 | H19: 543 | I19: 623 | J19: 661 | K19: 681 | L19: 737 | M19: 734 | N19: 757 | O19: 743
A20: Примечание. Приведены производственные мощности в добыче углеводородов организаций Группы на территории зарубежных стран, представленные в рамках рассматриваемого периода компанией NIS (Сербия).
A22: Эксплуатационное бурение Группы Газпром на газ и нефть на территории зарубежных стран
B23: За год, закончившийся 31 декабря
G24: 2012 | H24: 2013 | I24: 2014 | J24: 2015 | K24: 2016 | L24: 2017 | M24: 2018 | N24: 2019 | O24: 2020
A25: Эксплуатационные скважины, законченные строительством, ед.
A26: на газ | G26: 2 | H26: 1 | I26: 3 | J26: – | K26: 2 | L26: – | M26: 4 | N26: 2 | O26: 3
A27: на нефть | G27: 12 | H27: 27 | I27: 46 | J27: 35 | K27: 38 | L27: 51 | M27: 46 | N27: 38 | O27: 35
A28: Всего | G28: 14 | H28: 28 | I28: 49 | J28: 35 | K28: 40 | L28: 51 | M28: 50 | N28: 40 | O28: 38
A29: Объем проходки в эксплуатационном бурении, тыс. м
A30: на газ | G30: 3 | H30: 1.9 | I30: 7.9 | J30: – | K30: 1.6 | L30: 2.1 | M30: 5 | N30: 2.8 | O30: 3.4
A31: на нефть | G31: 18.4 | H31: 63.6 | I31: 86 | J31: 75 | K31: 40.9 | L31: 67.5 | M31: 61.5 | N31: 68.1 | O31: 59.8
A32: Всего | G32: 21.4 | H32: 65.5 | I32: 93.9 | J32: 75 | K32: 42.5 | L32: 69.6 | M32: 66.5 | N32: 70.9 | O32: 63.2
A33: Примечание. Приведены показатели эксплуатационного бурения на газ и нефть организаций Группы на территории зарубежных стран, представленные в рамках рассматриваемого периода компанией NIS (Сербия).
A35: Добыча углеводородов дочерними организациями Группы Газпром на территории зарубежных стран
B36: За год, закончившийся 31 декабря
G37: 2012 | H37: 2013 | I37: 2014 | J37: 2015 | K37: 2016 | L37: 2017 | M37: 2018 | N37: 2019 | O37: 2020
A38: Природный газ*, млн м3 | G38: 556 | H38: 551 | I38: 558 | J38: 415 | K38: 428 | L38: 408 | M38: 393 | N38: 364 | O38: 341
A39: Попутный газ, млн м3 | J39: 158 | K39: 133 | L39: 115 | M39: 96 | N39: 101 | O39: 104
A40: Газовый конденсат, тыс. т | J40: 31 | K40: 33 | L40: 35 | M40: 6 | N40: 6 | O40: 7
A41: Нефть**, тыс. т | G41: 1223 | H41: 1255 | I41: 1205 | J41: 1 086 | K41: 986 | L41: 933 | M41: 910 | N41: 890 | O41: 866
A42: * За 2012–2014 гг. данные приведены с учетом объемов добычи попутного газа.
A43: ** За 2012–2014 гг. данные приведены с учетом объемов добычи газового конденсата.
A44: Примечание. Приведены объемы добычи углеводородов организаций Группы на территории зарубежных стран, представленные в рамках рассматриваемого периода компанией NIS (Сербия).
A46: Добыча углеводородов в рамках основных зарубежных проектов с участием Группы Газпром
A47: Наименование месторождения | B47: За год, закончившийся 31 декабря
G48: 2012 | H48: 2013 | I48: 2014 | J48: 2015 | K48: 2016 | L48: 2017 | M48: 2018 | N48: 2019 | O48: 2020
A49: Природный газ, млн м3
A50: Вингейт | G50: 742 | H50: 394 | I50: 622 | J50: 877 | K50: 686 | L50: 436 | M50: 300 | N50: 189 | O50: 96
A51: Мок Тинь и Хай Тхать | G51: – | H51: 331 | I51: 1786 | J51: 1884 | K51: 2142 | L51: 2099 | M51: 2350 | N51: 2193 | O51: 2028
A52: Шахпахты | G52: 301 | H52: 319 | I52: 334 | J52: 357 | K52: 363 | L52: 312 | M52: 272 | N52: 202 | O52: 231
A53: Инкауаси | G53: – | H53: – | I53: – | J53: – | K53: 740 | L53: 2519 | M53: 2579 | N53: 2608 | O53: 3120
A54: Силлиманит | G54: – | H54: – | I54: – | J54: – | K54: – | L54: – | M54: – | N54: – | O54: 484
A55: Попутный газ, млн м3
A56: Бадра | G56: – | H56: – | I56: – | J56: 7 | K56: 14 | L56: 208 | M56: 777 | N56: 724 | O56: 525
A57: Газовый конденсат, тыс. т
A58: Вингейт | G58: 5 | H58: 2 | I58: 4 | J58: 5 | K58: 3 | L58: 3 | M58: 2 | N58: 2 | O58: 1
A59: Мок Тинь и Хай Тхать | G59: – | H59: 59 | I59: 366 | J59: 436 | K59: 573 | L59: 469 | M59: 397 | N59: 349 | O59: 335
A60: Инкауаси | G60: – | H60: – | I60: – | J60: – | K60: 75 | L60: 270 | M60: 280 | N60: 290 | O60: 344
A61: Нефть, тыс. т
A62: Бадра | G62: – | H62: – | I62: 309 | J62: 1383 | K62: 2575 | L62: 3787 | M62: 3980 | N62: 2902 | O62: 2186
A63: Саркала | G63: – | H63: – | I63: – | J63: 219 | K63: 193 | L63: 370 | M63: 935 | N63: 1451 | O63: 1210
A64: Примечание. Объемы добычи приведены в целом по проектам без выделения доли Группы Газпром.
A66: Добыча углеводородов ассоциированными организациями и совместными предприятиями в области поиска, разведки и добычи углеводородов в зарубежных странах
B67: За год, закончившийся 31 декабря
G68: 2012 | H68: 2013 | I68: 2014 | J68: 2015 | K68: 2016 | L68: 2017 | M68: 2018 | N68: 2019 | O68: 2020
A69: Wintershall AG
A70: Нефть, тыс. т | G70: 4115 | H70: 2383 | I70: 405.6 | J70: 534 | K70: 504 | L70: 1528 | M70: 2 148 | N70: 2392 | O70: 448
A71: Попутный газ, млн м3 | G71: 611 | H71: 254 | I71: 69.5 | J71: 145 | K71: 137 | L71: 233 | M71: 311 | N71: 415 | O71: 29
A72: Wintershall Noordzee B.V.*
A73: Природный газ, млн м3 | G73: x | H73: x | I73: x | J73: 259 | K73: 1013 | L73: 776 | M73: 712 | N73: 535 | O73: 634
A74: Газовый конденсат, тыс. т | G74: x | H74: x | I74: x | J74: 2 | K74: 5 | L74: 8 | M74: 5 | N74: 4 | O74: 3
A75: Нефть, тыс. т | G75: x | H75: x | I75: x | J75: 7 | K75: 1 | L75: 17 | M75: 52 | N75: 58 | O75: 9
A76: * Данные приведены начиная с IV квартала 2015 г.
A77: Примечание. Объемы добычи приведены в целом по организациям без выделения доли Группы Газпром.
A79: Вернуться к содержанию

Sheet Проекты за рубежом
A1: Проекты Группы Газпром в области разведки и добычи углеводородов в зарубежных странах, находящиеся на стадии поиска и разведки
A2: Страна | B2: Наименование, цель и описание проекта | C2: Год начала проекта | D2: Наличие у Группы операторских функций | E2: Условия участия Группы в проекте
A3: Алжир | B3: Разведка и разработка углеводородов на участке Эль-Ассель, расположенном в геологическом бассейне Беркин на востоке Алжира в пустыне Сахара. | C3: 2009 г. | D3: ■ | E3: Реализуется на условиях Соглашения о совместных ГРР и добыче углеводородов, доля участия Группы Газпром — 49 %. Партнер — алжирская государственная нефтегазовая компания Sonatrach. Заказчик работ — Алжирское национальное агентство по развитию углеводородных ресурсов (ALNAFT).
A4: Боливия | B4: Разведка и разработка углеводородного сырья на блоке Асеро. | C4: 2013 г. | D4: – | E4: Реализуется на условиях Сервисного контракта по предоставлению нефтедобывающих услуг по разведке и добыче. Группа Газпром финансирует 50 % расходов по проекту на этапе ГРР. Доля Группы на этапе разработки составит 22,5 %. Партнеры: боливийская государственная нефтегазовая компания YPFB, Total EP Bolivie S.A. (оператор).
A5: Вьетнам | B5: Поиск и разведка углеводородов на блоке № 112 (с учетом расширения). | C5: 2000 г. | D5: ■ | E5: Реализуется на условиях Соглашения о разделе продукции (СРП). Группа Газпром финансирует 100 % расходов по проекту на этапе ГРР. На этапе разработки доля Группы составит 50 %. Партнеры: Petrovietnam, Petrovietnam Exploration & Production Corporation. Оператор — совместная операционная компания «Вьетгазпром».
B6: Поиск и разведка углеводородов на блоках № 129–132. | C6: 2008 г. | D6: ■ | E6: Реализуется на условиях СРП. Группа Газпром финансирует 100 % расходов по проекту на этапе ГРР. На этапе разработки доля Группы составит 50 %. Партнеры: Petrovietnam, Petrovietnam Exploration & Production Corporation. Оператор — совместная операционная компания «Вьетгазпром».
A7: Казахстан и Россия | B7: Освоение трансграничного месторождения Центральное на континентальном шельфе в Каспийском море (совместный проект Российской Федерации и Республики Казахстан). Месторождение открыто в 2008 г. в ходе реализации с участием Группы проекта поиска и разведки углеводородных ресурсов геологической структуры Центральная. | C7: 2013 г. | D7: – | E7: Реализуется в соответствии с Соглашением о разграничении дна северной части Каспийского моря в целях осуществления суверенных прав на недропользование. Участник проекта с российской стороны — ООО «ЦентрКаспнефтегаз» (создано на паритетных условиях ПАО «ЛУКОЙЛ» и ПАО «Газпром»), с казахстанской стороны — АО НК «КазМунайГаз».
A8: Ливия | B8: Разведка и разработка углеводородного сырья на лицензионных участках № 19 (на континентальном шельфе в Средиземном море) и № 64 (на суше, в северной части нефтегазоносного бассейна Гадамес). | C8: 2007 г. | D8: ■ | E8: Реализуется на условиях соглашений о разведке и разделе продукции (СРРП). Партнер — ливийская National Oil Corporation (Национальная нефтяная корпорация). Группа Газпром финансирует 100 % расходов по проекту на этапе ГРР.
A9: Примечание. Информация приведена по состоянию на 31 декабря 2020 г.
A11: Проекты Группы Газпром в области разведки и добычи углеводородов в зарубежных странах, находящиеся на стадиях освоения и добычи
A12: Страна | B12: Наименование, цель и описание проекта | C12: Год начала проекта | D12: Наличие у Группы операторских функций | E12: Результаты геолого-разведочной фазы проекта | F12: Доли участия партнеров в проекте | G12: Год ввода в эксплуатацию | H12: Годовая проектная мощность
A13: Боливия | B13: Разведка и разработка углеводородного сырья на блоках Ипати и Акио на условиях Операционного контракта. В соответствии с законодательством Боливии все добытые углеводороды принадлежат YPFB, участники проекта получают вознаграждение в соответствующем объеме. Оператор — Total EP Bolivie S.A. | C13: 2010 г. | D13: – | E13: В 2011 г. открыто месторождение Инкауаси, расположенное на блоках Ипати и Акио. | F13: Группа Газпром — 20 %, Total EP Bolivie S.A. — 50 %, TecPetrol — 20 %, YPFB Chako — 10 %. | G13: 2016 г. | H13: 4,0 млрд м3 газа
A14: Великобритания и Нидерланды | B14: Обустройство, добыча и доразведка на газовом месторождении Вингейт на континентальном шельфе Великобритании (лицензионные участки P1239, P1733) на условиях Соглашения о совместной деятельности. Оператор — Wintershall Noordzee B.V.* | C14: 2008 г. | D14: – | E14: Группа Газпром стала участником проекта на стадии подготовки открытого месторождения к разработке. | F14: Группа Газпром — 20 %, Wintershall Noordzee B.V. — 64,5 %, XTO UK — 15,5 %. | G14: 2011 г. | H14: 0,3 млрд м3 газа
B15: Разработка и добыча на лицензионном участке D12b континентального шельфа Нидерландов. Оператор проекта — Wintershall Noordzee B.V.* | C15: 2011 г. | D15: – | E15: В 2015 г. на трансграничной структуре Силлиманит пробурена поисковая скважина. Открыто трансграничное месторождение Силлиманит. | F15: Реализуется на условиях Соглашения о совместной деятельности. Группа Газпром финансирует 17,591 % расходов по проекту. Партнеры: Wintershall Noordzee B.V. — 30,129 %, EBN B.V. — 40,0 %, ONE — 7,037 %, GDF SUEZ E&P NEDERLAND B.V. — 5,243 %. | G15: 2020 г. | H15: 0,6 млрд м3 газа
B16: Разработка и добыча на лицензионном участке 44/19а континентального шельфа Великобритании. Оператор проекта — Wintershall Noordzee B.V.* | C16: 2014 г. | D16: – | F16: Реализуется на условиях Соглашения о совместной деятельности. Группа Газпром финансирует 29,319 % расходов по проекту. Партнеры: Wintershall Noordzee B.V. — 50,214 %, ONE U.K. — 11,728 %, GDF SUEZ E&P UK Ltd. — 8,739 %. Между участниками проектов разработки и добычи на лицензионных участках D12b и 44/19а подписано соглашение об унитизации месторождения, по которому доля Группы Газпром составляет 19,9 %.
A17: Вьетнам | B17: Добыча углеводородов на месторождениях Мок Тинь и Хай Тхать на условиях СРП. Оператор — операционная компания Bien Dong. | C17: 2012 г. | D17: – | E17: Группа Газпром стала участником проекта на стадии подготовки открытых месторождений к разработке. | F17: Группа Газпром — 49 %, Petrovietnam — 51 %. | G17: 2013 г. | H17: 2,0 млрд м3 газа
A18: Ирак | B18: Разработка месторождения Бадра на условиях Сервисного контракта. Оператор — Gazprom Neft Badra B.V. Проект рассчитан на 20 лет с возможной пролонгацией на 5 лет. | C18: 2010 г. | D18: ■ | E18: Группа Газпром стала участником проекта на стадии подготовки открытого месторождения к разработке. | F18: Группа Газпром — 30 %, KOGAS — 22,5 %, Petronas — 15 %, TPAO — 7,5 %, Правительство Ирака (представлено компанией Oil Exploration Company) — 25 %. | G18: 2014 г. | H18: 5,7 млн т нефти
B19: Добыча углеводородов на блоке Гармиан на условиях СРП. Оператор — Gazprom Neft Middle East B.V. | C19: 2012 г. | D19: ■ | E19: В пределах блока открыто месторождение Саркала. | F19: Группа Газпром — 40 %, WesternZagros — 40 %, Региональное правительство Курдистана — 20 %. | G19: 2015 г. | H19: 1,45 млн т нефти
A20: Узбекистан | B20: Восстановление инфраструктуры месторождения Шахпахты в Устюртском регионе Республики Узбекистан и доразработка остаточных запасов газа на условиях СРП. Расходы возмещаются поставкой природного газа. Оставшийся после возмещения затрат газ распределяется между участниками СРП согласно долям. Оператор — ООО «ОК Зарубежнефтегаз — ГПД Центральная Азия» (создано Gas Project Development Central Asia AG и АО «Газпром зарубежнефтегаз» на паритетной основе). | C20: 2004 г. | D20: ■ | E20: х | F20: Представляющий Группу Газпром консорциум в составе дочернего общества АО «Газпром зарубежнефтегаз» (5 %) и совместного предприятия Gas Project Development Central Asia AG (95 %) — 50 %, Республика Узбекистан, от имени которой выступает Министерство энергетики Республики Узбекистан, — 50 %. | G20: х | H20: 0,2 млрд м3 газа
B21: Добыча углеводородов на месторождении Джел Республики Узбекистан на условиях СРП. Оператор — ООО «ОК Зарубежнефтегаз —Центральная Азия». | C21: 2018 г. | D21: ■ | E21: По результатам ГРР, проведенных в рамках исполнения лицензионных обязательств, в пределах Шахпахтинского лицензионного участка в 2009 г. открыто месторождение Джел. | F21: Группа Газпром — 50 %, Республика Узбекистан, от имени которой выступает Министерство энергетики Республики Узбекистан, — 50 %. | G21: 2025 г. | H21: 0,3 млрд м3 газа на полное развитие
A22: * Доля Группы Газпром в организации по состоянию на 31 декабря 2020 г. составляла 50 %.
A23: Примечание. Информация приведена по состоянию на 31 декабря 2020 г.
A25: Деятельность ассоциированных организаций и совместных предприятий в области поиска, разведки и добычи углеводородов в зарубежных странах
A26: Компания | B26: Страны ведения деятельности | C26: Участие Группы Газпром | E26: Краткая характеристика
A27: Wintershall AG | B27: Ливия | C27: Доля в капитале компании в размере 49 % получена Группой в декабре 2007 г. в результате реализации соглашения об обмене активами с компанией BASF AG (c 2008 г. — BASF SE). | E27: Wintershall AG является стороной СРРП по участкам 91 и 107 (ранее — концессии С96 и С97 соответственно). В 2020 г. компания продолжала испытывать трудности от затянувшегося политического кризиса в Ливии, что привело к ограничению добычи и экспорта нефти. В октябре 2020 г. в соответствии с СРРП Wintershall AG передала операционные функции на обоих участках совместной операционной компании Sarir Oil Operations B.V. (доля Wintershall AG — 49 %, доля ливийской National Oil Corporation (Национальной нефтяной корпорации) — 51 %).
A28: Wintershall Noordzee B.V. | B28: Нидерланды, Великобритания, Дания | C28: Доля в капитале компании в размере 50 % получена Группой в сентябре 2015 г. в результате реализации соглашения об обмене активами с компанией BASF SE. | E28: Компании принадлежат различные доли участия в 45 лицензиях в британском, датском и нидерландском секторах Северного моря. В пределах лицензионных участков открыты многочисленные газовые и нефтяные месторождения. Основными добывающими активами являются газовые месторождения К18-Гольф, Вингейт, Q1 и Силлиманит.
A29: Примечание. Информация приведена по состоянию на 31 декабря 2020 г.
A31: Вернуться к содержанию

Sheet Транспортировка
A1: Транспортировка и подземное хранение
A2: Транспортировка
A3: Развитие и капитальный ремонт ГТС на территории России
B4: За год, закончившийся 31 декабря
B5: 2005 | C5: 2006 | D5: 2007 | E5: 2008 | F5: 2009 | G5: 2010 | H5: 2011 | I5: 2012 | J5: 2013 | K5: 2014 | L5: 2015 | M5: 2016 | N5: 2017 | O5: 2018 | P5: 2019 | Q5: 2020
A6: Ввод в эксплуатацию новых магистральных газопроводов и газопроводов-отводов, км | B6: 1402 | C6: 1526 | D6: 1157 | E6: 1381 | F6: 865 | G6: =ROUND(1338.6,0) -> 1339 | H6: 2470 | I6: 3213 | J6: 703 | K6: 1277 | L6: 933 | M6: 771 | N6: 640 | O6: 529 | P6: 2279 | Q6: 1118
A7: Реконструкция магистральных газопроводов, км | C7: 39 | D7: 185 | E7: 102 | F7: 551 | G7: 380 | H7: 131 | I7: 132 | J7: 214 | K7: 200 | L7: 169 | M7: 211 | N7: 100 | O7: 362 | P7: – | Q7: –
A8: Капитальный ремонт, км | B8: 2166.8 | C8: 2809 | D8: 2697 | E8: 2756.3 | F8: 2383.7 | G8: 2427.3 | H8: 2436.6 | I8: 2487 | J8: 1819 | K8: 1581 | L8: 1441 | M8: 823 | N8: 810 | O8: 771 | P8: 782 | Q8: 597
A9: Количество аварий на 1 000 км | B9: 0.14 | C9: 0.12 | D9: 0.11 | E9: 0.13 | F9: 0.09 | G9: 0.04 | H9: 0.07 | I9: 0.09 | J9: 0.05 | K9: 0.03 | L9: 0.05 | M9: 0.03 | N9: 0.02 | O9: 0.05 | P9: 0.02 | Q9: 0.03
A11: Диагностическое обследование ГТС на территории России, тыс. км
B12: За год, закончившийся 31 декабря
B13: 2005 | C13: 2006 | D13: 2007 | E13: 2008 | F13: 2009 | G13: 2010 | H13: 2011 | I13: 2012 | J13: 2013 | K13: 2014 | L13: 2015 | M13: 2016 | N13: 2017 | O13: 2018 | P13: 2019 | Q13: 2020
A14: Внутритрубная дефектоскопия | B14: 17.3 | C14: 16.9 | D14: 17.2 | E14: 19.8 | F14: 17.7 | G14: 21.9 | H14: 21.7 | I14: 22.2 | J14: 22.6 | K14: 23.5 | L14: 19.9 | M14: 23.9 | N14: 22.1 | O14: 25.1 | P14: 28.9 | Q14: 27.8
A15: Коррозионное обследование | B15: 23.2 | C15: 29.9 | D15: 20.5 | E15: 25.6 | F15: 17 | G15: 28.1 | H15: 26.1 | I15: 23 | J15: 21.5 | K15: 18.4 | L15: 17.9 | M15: 17.3 | N15: 18 | O15: 14.9 | P15: 21.6 | Q15: 22.7
A17: Основные технические характеристики газотранспортных активов, эксплуатируемых газотранспортными дочерними обществами Группы Газпром в России
B18: По состоянию на 31 декабря
B19: 2005 | C19: 2006 | D19: 2007 | E19: 2008 | F19: 2009 | G19: 2010 | H19: 2011 | I19: 2012 | J19: 2013 | K19: 2014 | L19: 2015 | M19: 2016 | N19: 2017 | O19: 2018 | P19: 2019 | Q19: 2020
A20: Протяженность магистральных газопроводов и газопроводов-отводов в однониточном исчислении*, тыс. км | B20: 155 | C20: 156.9 | D20: 158.2 | E20: 159.5 | F20: 160.4 | G20: 161.7 | H20: 164.7 | I20: 168.3 | J20: 168.9 | K20: 170.7 | L20: 171.2 | M20: 171.8 | N20: 172.1 | O20: 172.6 | P20: 175.2 | Q20: 176.8
A21: Линейные компрессорные станции, ед. | B21: 210 | C21: 217 | D21: 218 | E21: 214 | F21: 215 | G21: 215 | H21: 211 | I21: 222 | J21: 247 | K21: 250 | L21: 250 | M21: 253 | N21: 254 | O21: 254 | P21: 254 | Q21: 254
A22: Газоперекачивающие агрегаты (ГПА), ед. | B22: 3587 | C22: 3629 | D22: 3641 | E22: 3669 | F22: 3675 | G22: 3659 | H22: 3630 | I22: 3738 | J22: 3820 | K22: 3825 | L22: 3829 | M22: 3852 | N22: 3844 | O22: 3812 | P22: 3 788 | Q22: 3 781
A23: Установленная мощность ГПА, тыс. МВт | B23: 40.2 | C23: 41 | D23: 41.4 | E23: 41.6 | F23: 42 | G23: 42.1 | H23: 41.7 | I23: 43.9 | J23: 45.9 | K23: 46.1 | L23: 46.2 | M23: 46.7 | N23: 46.7 | O23: 47.1 | P23: 46.8 | Q23: 46.8
A24: * Начиная с данных по состоянию на 31 декабря 2013 г., протяженность приведена с учетом технологических перемычек.
A26: Структура эксплуатируемых газотранспортными дочерними обществами Группы Газпром магистральных газопроводов и газопроводов-отводов на территории России по сроку эксплуатации*, тыс. км
B27: По состоянию на 31 декабря
G28: 2010 | H28: 2011 | I28: 2012 | J28: 2013 | K28: 2014 | L28: 2015 | M28: 2016 | N28: 2017 | O28: 2018 | P28: 2019 | Q28: 2020
A29: 10 лет и менее | G29: 17.2 | H29: 19.6 | I29: 22.2 | J29: 21.1 | K29: 20.6 | L29: 19.9 | M29: 17.3 | N29: 17.3 | O29: 16.7 | P29: 17.5 | Q29: 18.6
A30: От 11 до 20 лет | G30: 25 | H30: 21.8 | I30: 20.4 | J30: 20 | K30: 20.7 | L30: 19.1 | M30: 15.8 | N30: 16.2 | O30: 15.7 | P30: 15.5 | Q30: 15.9
A31: От 21 года до 30 лет | G31: 70.9 | H31: 64.6 | I31: 61.7 | J31: 56.5 | K31: 50.6 | L31: 47.3 | M31: 40.9 | N31: 40.9 | O31: 34.8 | P31: 35.3 | Q31: 24.4
A32: От 31 года до 40 лет | G32: 23.8 | H32: 31.8 | I32: 36.8 | J32: 41.7 | K32: 46.6 | L32: 49.2 | M32: 55.2 | N32: 55.2 | O32: 59.1 | P32: 60 | Q32: 62.8
A33: От 41 года до 50 лет | G33: 19.3 | H33: 19.6 | I33: 18.8 | J33: 19.7 | K33: 20.6 | L33: 23.3 | M33: 24.9 | N33: 24.8 | O33: 26.3 | P33: 26.7 | Q33: 31.5
A34: Более 50 лет | G34: 5.5 | H34: 7.3 | I34: 8.4 | J34: 9.9 | K34: 11.6 | L34: 12.4 | M34: 17.7 | N34: 17.7 | O34: 20 | P34: 20.2 | Q34: 23.6
A35: Всего | G35: 161.7 | H35: 164.7 | I35: 168.3 | J35: 168.9 | K35: 170.7 | L35: 171.2 | M35: 171.8 | N35: 172.1 | O35: 172.6 | P35: 175.2 | Q35: 176.8
A36: * Начиная с данных по состоянию на 31 декабря 2013 г., структура магистральных газопроводов приведена с учетом технологических перемычек.
A38: Поступление газа в ГТС Газпрома на территории Российской Федерации, млрд м3
B39: За год, закончившийся 31 декабря
B40: 2005 | C40: 2006 | D40: 2007 | E40: 2008 | F40: 2009 | G40: 2010 | H40: 2011 | I40: 2012 | J40: 2013 | K40: 2014 | L40: 2015 | M40: 2016 | N40: 2017 | O40: 2018 | P40: 2019 | Q40: 2020
A41: Поступление газа в ГТС | B41: 699.7 | C41: 717.8 | D41: 706.7 | E41: 714.3 | F41: 589.7 | G41: 661.2 | H41: 683.2 | I41: 666.2 | J41: 659.4 | K41: 627.5 | L41: 602.57 | M41: 622.59 | N41: 672.09 | O41: 693.07 | P41: 678.96 | Q41: 625.02
A43: Объемы транспортировки газа по газопроводам «Сила Сибири», «Северный поток», «Голубой поток», «Турецкий поток», млрд м3
B44: За год, закончившийся 31 декабря
H45: 2011 | I45: 2012 | J45: 2013 | K45: 2014 | L45: 2015 | M45: 2016 | N45: 2017 | O45: 2018 | P45: 2019 | Q45: 2020
A46: Газопровод «Сила Сибири» | H46: x | I46: x | J46: x | K46: x | L46: x | M46: x | N46: x | O46: x | P46: 0.33 | Q46: 4.1
A47: Газопровод «Северный поток» (через КС Портовая) | H47: 0.86 | I47: 11.81 | J47: 23.78 | K47: 35.55 | L47: 39.11 | M47: 43.79 | N47: 50.98 | O47: 58.71 | P47: 58.5 | Q47: 59.28
A48: Газопровод «Голубой поток» (через КС Береговая) | H48: 13.97 | I48: 14.66 | J48: 13.66 | K48: 14.42 | L48: 15.68 | M48: 13.06 | N48: 15.89 | O48: 13.25 | P48: 11.1 | Q48: 8.76
A49: Газопровод «Турецкий поток» (через КС Русская)* | H49: x | I49: x | J49: x | K49: x | L49: x | M49: x | N49: x | O49: x | P49: x | Q49: 13.51
A50: * Коммерческие поставки газа по газопроводу начаты в январе 2020 г.
A52: Оказание для ПАО «Газпром» услуг по транспортировке газа по территории сопредельных государств, млрд м3
B53: За год, закончившийся 31 декабря
L54: 2015 | M54: 2016 | N54: 2017 | O54: 2018 | P54: 2019 | Q54: 2020
A55: Через газоизмерительную станцию «Иматра» (для поставки в Финляндию) | L55: 2.76 | M55: 2.53 | N55: 2.36 | O55: 2.62 | P55: 2.46 | Q55: 1.61
A56: Через Украину | L56: 67.08 | M56: 82.2 | N56: 93.46 | O56: 86.78 | P56: 89.59 | Q56: 55.9
A57: Через Литву | L57: 2.07 | M57: 2.21 | N57: 2.43 | O57: 2.63 | P57: 2.45 | Q57: 2.35
A58: Через Латвию | L58: 1.34 | M58: 0.42 | N58: 0.06 | O58: 0.16 | P58: 0.11 | Q58: –
A59: Через Эстонию | L59: 2.4 | M59: 1.72 | N59: 1.24 | O59: 1.44 | P59: 1.51 | Q59: –
A60: Через Молдову | L60: 16.72 | M60: 18.46 | N60: 20.22 | O60: 18.07 | P60: 10.23 | Q60: 0.89
A61: Через Казахстан | L61: 41.77 | M61: 27.67 | N61: 32.69 | O61: 33.23 | P61: 21.64 | Q61: 22.45
A63: Основные характеристики объектов транспорта газа дочерних обществ Группы Газпром на территории зарубежных стран
B64: За год и по состоянию на 31 декабря
H65: 2011 | I65: 2012 | J65: 2013 | K65: 2014 | L65: 2015 | M65: 2016 | N65: 2017 | O65: 2018 | P65: 2019 | Q65: 2020
A66: Беларусь (ГТС ОАО «Газпром трансгаз Беларусь» и участок магистрального газопровода Ямал — Европа на территории Беларуси)
A67: Протяженность*, тыс. км | H67: 7.9 | I67: 7.9 | J67: 7.9 | K67: 7.9 | L67: 7.9 | M67: 7.9 | N67: 7.9 | O67: 7.9 | P67: 7.9 | Q67: 7.9
A68: Количество КС, ед. | H68: 10 | I68: 10 | J68: 10 | K68: 10 | L68: 10 | M68: 10 | N68: 10 | O68: 10 | P68: 10 | Q68: 10
A69: в т. ч.:
A70: ГТС ОАО «Газпром трансгаз Беларусь» | H70: 5 | I70: 5 | J70: 5 | K70: 5 | L70: 5 | M70: 5 | N70: 5 | O70: 5 | P70: 5 | Q70: 5
A71: участок МГ Ямал — Европа на территории Беларуси | H71: 5 | I71: 5 | J71: 5 | K71: 5 | L71: 5 | M71: 5 | N71: 5 | O71: 5 | P71: 5 | Q71: 5
A72: Поступление газа в ГТС, млрд м3 | H72: 64.3 | I72: 64.5 | J72: 69.1 | K72: 65.2 | L72: 64.2 | M72: 60.33 | N72: 61.17 | O72: 62.59 | P72: 60.78 | Q72: 55.99
A73: в т. ч. транзит | H73: 44.3 | I73: 44.3 | J73: 48.8 | K73: 45.1 | L73: 45.41 | M73: 41.69 | N73: 42.16 | O73: 42.26 | P73: 40.51 | Q73: 37.22
A74: Армения (ЗАО «Газпром Армения»)
A75: Протяженность*, тыс. км | H75: 1.9 | I75: 1.9 | J75: 1.8 | K75: 1.7 | L75: 1.7 | M75: 1.7 | N75: 1.7 | O75: 1.7 | P75: 1.7 | Q75: 1.7
A76: Количество КС, ед. | H76: – | I76: – | J76: – | K76: – | L76: – | M76: – | N76: – | O76: – | P76: – | Q76: –
A77: Поступление газа в ГТС, млрд м3 | H77: 2.1 | I77: 2.5 | J77: 2.4 | K77: 2.5 | L77: 2.29 | M77: 2.24 | N77: 2.38 | O77: 2.46 | P77: 2.55 | Q77: 2.6
A78: в т. ч. транзит | H78: – | I78: – | J78: – | K78: – | L78: – | M78: – | N78: – | O78: – | P78: – | Q78: –
A79: Кыргызстан (ОсОО «Газпром Кыргызстан»**)
A80: Протяженность*, тыс. км | H80: x | I80: x | J80: x | K80: 0.7 | L80: 0.7 | M80: 0.7 | N80: 0.8 | O80: 0.8 | P80: 0.8 | Q80: 0.8
A81: Количество КС, ед. | H81: x | I81: x | J81: x | K81: 1 | L81: 1 | M81: 1 | N81: 1 | O81: 1 | P81: 1 | Q81: 1
A82: Поступление газа в ГТС, млрд м3 | H82: x | I82: x | J82: x | K82: 4.3 | L82: 4.66 | M82: 4.52 | N82: 6.64 | O82: 6.35 | P82: 6.79 | Q82: 7.08
A83: в т. ч. транзит | H83: x | I83: x | J83: x | K83: 4 | L83: 4.4 | M83: 4.25 | N83: 6.36 | O83: 6.03 | P83: 6.49 | Q83: 6.75
A84: * В однониточном исчислении.
A85: ** Показатели приведены начиная с года установления контроля со стороны Группы Газпром.
A87: Вернуться к содержанию

Sheet Собственные нужды ГТС и ПХГ
A1: Объем газа, использованный на собственные технологические нужды ГТС и ПХГ на территории Российской Федерации, млрд м3
B2: За год, закончившийся 31 декабря
B3: 2015 | C3: 2016 | D3: 2017 | E3: 2018 | F3: 2019 | G3: 2020
A4: Объем газа, использованный на собственные технологические нужды ГТС | B4: 31.95 | C4: 31.98 | D4: 37.48 | E4: 40.14 | F4: 37.99 | G4: 32.53
A5: Объем газа, использованный на собственные технологические нужды ПХГ | B5: 0.32 | C5: 0.308 | D5: 0.503 | E5: 0.555 | F5: 0.534 | G5: 0.416
A7: Вернуться к содержанию

Sheet Газотранспортные проекты
A1: Основные действующие маршруты транспортировки газа ПАО «Газпром» на экспорт
A2: Наименование | B2: Годовая проектная производительность, млрд м3 | C2: Протяженность, км | D2: Диаметр труб, мм | E2: Страны, через территорию и/или территориальные воды которых проходит маршрут газопровода
A3: Ямал — Европа | B3: 32.9 | C3: Более 2 000 | D3: 1420 | E3: Россия, Беларусь, Польша, Германия
A4: «Северный поток» | B4: 55 | C4: 1224 | D4: 1220 | E4: Территориальные воды России, Дании, Германии. Исключительные экономические зоны России, Финляндии, Швеции, Дании, Германии
A5: Уренгой — Помары — Ужгород* | B5: 32 | C5: 4451 | D5: 1420 | E5: Россия, Украина
A6: «Союз»* | B6: 26 | C6: 2750 | D6: 1420 | E6: Россия, Казахстан, Украина
A7: «Прогресс»* | B7: 28.5 | C7: 3473 | D7: 1420 | E7: Россия, Украина
A8: «Голубой поток» (морская часть) | B8: 16 | C8: Две нитки протяженностью 382 км и 389 км | D8: 600 | E8: Россия, Турция
A9: «Турецкий поток» (морская часть) | B9: 31.5 | C9: Две нитки протяженностью 937 км и 939 км | D9: 813 | E9: Россия, Турция
A10: «Сила Сибири» | B10: До 48 | C10: 2 250,9 (участок Чаяндинское НГКМ — граница КНР) | D10: 1420 | E10: Россия
A11: * Газопроводы украинского коридора.
A12: Примечание. Информация приведена по состоянию на 31 декабря 2020 г.
A14: Основные газотранспортные проекты Группы Газпром
A15: Наименование | B15: Назначение | C15: Проектные характеристики
C16: Протяженность | D16: Количество КС / общая мощность КС | E16: Годовая производительность | F16: Год ввода в эксплуатацию
A17: Лупинги газопровода Грязовец — Выборг с целью замыкания второй нитки на участке Грязовец — Волхов (расширение) | B17: Поставка дополнительных объемов газа потребителям г. Санкт-Петербурга и Ленинградской области | C17: 217,15 км | D17: – | E17: 7,0 млрд м3 | F17: 2017–2021 гг.
A18: «Северный поток — 2» | B18: Поставка газа потребителям в страны Западной и Центральной Европы | C18: Две нитки протяженностью около 1 230 км | D18: – | E18: 55 млрд м3 | F18: В середине декабря 2020 г. возобновлены работы по трубоукладке. По состоянию на 31 декабря 2020 г. суммарно по двум ниткам газопровода уложено более 2 300 км труб в Балтийском море.
A19: Мурманск — Волхов | B19: Транспортировка газа Штокмановского месторождения в ЕСГ России | C19: Около 1 365 км (будет уточнена по результатам проектирования) | D19: До 10 КС / 1 225 МВт (будет уточнено по результатам проектирования) | E19: До 46 млрд м3 (в зависимости от варианта обустройства Штокмановского месторождения) | F19: Срок строительства и ввода газопровода в эксплуатацию будет определен после принятия инвестиционного решения по Штокмановскому месторождению.
A20: «Бованенково — Ухта — 2» | B20: Транспортировка газа с месторождений полуострова Ямал | C20: 1 108 км | D20: 9 КС / 830 МВт | E20: 57,5 млрд м3 | F20: 2014–2023 гг.
A21: «Ухта — Торжок — 2» | B21: Поставка дополнительных объемов газа на Северо-Запад России для газоснабжения российских потребителей, а также поставок на экспорт по газопроводу «Северный поток — 2» | C21: 970 км | D21: 7 КС / 625 МВт | E21: 45 млрд м3 | F21: 2014–2021 гг.
A22: «Сила Сибири» | B22: Транспортировка газа с Чаяндинского НГКМ и Ковыктинского ГКМ для газоснабжения регионов Дальневосточного ФО и поставок газа на рынок КНР | C22: 3 053,9 км | D22: 9 КС / 1 250 МВт | E22: До 48 млрд м3 | F22: Поэтапный ввод начиная с 2019 г. в соответствии с обязательствами по договору купли-продажи природного газа.
A23: участок Чаяндинское НГКМ — граница КНР | C23: 2 250,9 км, кроме того лупинги 1 483,6 км | D23: 8 КС / 1 186 МВт | E23: До 48 млрд м3
A24: участок Ковыктинское ГКМ — Чаяндинское НГКМ | C24: 803 км | D24: 1 КС / 64 МВт | E24: 26,6 млрд м3
A25: Развитие газотранспортных мощностей ЕСГ Северо-Западного региона, участок Грязовец — КС Славянская | B25: Поставка дополнительных объемов газа потребителям Северо-Запада России и на экспорт по газопроводу «Северный поток — 2» | C25: 1 192 км | D25: 7 компрессорных цехов / 967 МВт | E25: 58,4 млрд м3 (этапы 1–3), в том числе для подачи газа в газопровод «Северный поток — 2» в объеме до 55 млрд м3 | F25: Поэтапный ввод начиная с 2020 г.
A26: Сахалин — Хабаровск — Владивосток (второй пусковой комплекс) | B26: Поставка дополнительных объемов газа потребителям Хабаровского и Приморского краев, а также на экспорт | C26: 352,9 км | D26: 8 КС / 464 МВт | E26: Около 22 млрд м3 на полное развитие (будет уточнена по результатам проектирования) | F26: Поэтапный ввод начиная с 2021 г.
A27: «Бованенково — Ухта — 3» | B27: Транспортировка газа с месторождений полуострова Ямал | C27: Около 1 260 км (будет уточнена по результатам проектирования) | D27: 10 КС / 1 486 МВт (будет уточнено по результатам проектирования) | E27: Около 66 млрд м3 | F27: Поэтапный ввод начиная с 2023–2024 гг.
A28: «Ухта — Торжок — 3» | B28: Поставка дополнительных объемов газа на Северо-Запад России для газоснабжения российских потребителей, а также поставок на экспорт | C28: Около 972 км (будет уточнена по результатам проектирования) | D28: 6 компрессорных цехов / 740 МВт (будет уточнено по результатам проектирования) | E28: Около 45 млрд м3 | F28: Поэтапный ввод начиная с 2023–2024 гг.
A29: «Сила Сибири — 2» | B29: Поставка газа потребителям в России и на экспорт в КНР через территорию Монголии | C29: Протяженность и прочие характеристики будут уточнены по результатам проектирования | E29: До 50 млрд м3 | F29: Проводится исследование возможности организации поставок газа из России в Китай через территорию Монголии в соответствии с Меморандумом о взаимопонимании, подписанным ПАО «Газпром» и Правительством Монголии 5 декабря 2019 г. В августе 2020 г. ПАО «Газпром» и Правительство Монголии подписали Меморандум о намерениях в отношении создания компании специального назначения для разработки технико-экономического обоснования проекта строительства и эксплуатации газопровода на территории Монголии. Переговоры по проекту продолжаются.
A30: Примечание. Информация приведена по состоянию на 31 декабря 2020 г. Сроки по вводу объектов в эксплуатацию и выходу на проектную производительность могут изменяться в зависимости от ситуации на рынке энергоносителей.
A32: Вернуться к содержанию

Sheet Подземное хранение
A1: Подземное хранение газа
A2: Характеристика российских ПХГ Газпрома
B3: По состоянию на 31 декабря
B4: 2005 | C4: 2006 | D4: 2007 | E4: 2008 | F4: 2009 | G4: 2010 | H4: 2011 | I4: 2012 | J4: 2013 | K4: 2014 | L4: 2015 | M4: 2016 | N4: 2017 | O4: 2018 | P4: 2019 | Q4: 2020
A5: Количество объектов подземного хранения газа в России, ед. | B5: 24 | C5: 25 | D5: 25 | E5: 25 | F5: 25 | G5: 25 | H5: 25 | I5: 25 | J5: 26 | K5: 26 | L5: 26 | M5: 26 | N5: 26 | O5: 27 | P5: 27 | Q5: 27
A6: Объем активной емкости по обустройству, млрд м3 | B6: 64.25 | C6: 64.65 | D6: 64.94 | E6: 65.2 | F6: 65.2 | G6: 65.41 | H6: 66.7 | I6: 68.16 | J6: 70.41 | K6: 71.1 | L6: 73.56 | M6: 73.62 | N6: 74.93 | O6: 75.01 | P6: 75.01 | Q6: 75.07
A7: КС ПХГ, ед. | B7: 19 | C7: 17 | D7: 17 | E7: 17 | F7: 17 | G7: 17 | H7: 17 | I7: 18 | J7: 18 | K7: 18 | L7: 18 | M7: 18 | N7: 19 | O7: 20 | P7: 20 | Q7: 20
A8: ГПА, ед. | B8: 247 | C8: 220 | D8: 230 | E8: 232 | F8: 232 | G8: 233 | H8: 235 | I8: 242 | J8: 226 | K8: 233 | L8: 226 | M8: 219 | N8: 221 | O8: 217 | P8: 203 | Q8: 203
A9: Установленная мощность ГПА, МВт | B9: 1010 | C9: 694 | D9: 759 | E9: 779 | F9: 779 | G9: 783 | H9: 792 | I9: 838 | J9: 856 | K9: 914 | L9: 899 | M9: 917 | N9: 949 | O9: 942 | P9: 927 | Q9: 927
A10: Количество эксплуатационных скважин на ПХГ, ед. | B10: 2509 | C10: 2588 | D10: 2618 | E10: 2615 | F10: 2601 | G10: 2564 | H10: 2602 | I10: 2621 | J10: 2689 | K10: 2685 | L10: 2686 | M10: 2681 | N10: 2694 | O10: 2705 | P10: 2711 | Q10: 2711
A12: Хранение газа на территории России
B13: 2005 | C13: 2006 | D13: 2007 | E13: 2008 | F13: 2009 | G13: 2010 | H13: 2011 | I13: 2012 | J13: 2013 | K13: 2014 | L13: 2015 | M13: 2016 | N13: 2017 | O13: 2018 | P13: 2019 | Q13: 2020
A14: Закачка газа в ПХГ, млн м3
A15: I кв. | B15: – | C15: – | D15: 1074.8 | E15: 107.1 | F15: 161.4 | G15: =ROUND(866.627,1) -> 866.6 | H15: – | I15: 357.6 | J15: 55.7 | K15: 189.4 | L15: – | M15: – | N15: 23.2 | O15: 99.8 | P15: 635.7 | Q15: 243.2
A16: II кв. | B16: 19513.3 | C16: 21189.2 | D16: 21295.6 | E16: 24370.5 | F16: 3075 | G16: =ROUND(24097.694,1) -> 24097.7 | H16: 21291.8 | I16: 23793.6 | J16: 21407.9 | K16: 14963.8 | L16: 10158.4 | M16: 8468.8 | N16: 17443.9 | O16: 23418.6 | P16: 21177.3 | Q16: 12744.6
A17: III кв. | B17: 22416.6 | C17: 25659.5 | D17: 19766.1 | E17: 24020.4 | F17: 10116.9 | G17: =ROUND(20680.963,1) -> 20681 | H17: 24248.5 | I17: 18006.8 | J17: 13784.8 | K17: 16790.1 | L17: 14498.1 | M17: 14209.2 | N17: 24434.7 | O17: 23616.1 | P17: 21411.4 | Q17: 17735.4
A18: IV кв. | B18: 4385.1 | C18: 3500.8 | D18: 859.5 | E18: 3150.4 | F18: 2319.1 | G18: =ROUND(2085.394,1) -> 2085.4 | H18: 2657.2 | I18: 1938.7 | J18: 3120.1 | K18: 3191.2 | L18: 2425.3 | M18: 1973.1 | O18: 2349.9 | P18: 1816.4 | Q18: 2076.7
A19: Всего | B19: 46315 | C19: =SUM(C15:C18) -> 50349.5 | D19: =SUM(D15:D18) -> 42996 | E19: =SUM(E15:E18) -> 51648.4 | F19: =SUM(F15:F18) -> 15672.4 | G19: =SUM(G15:G18) -> 47730.7 | H19: 48197.5 | I19: 44096.7 | J19: 38368.5 | K19: 35134.5 | L19: 27081.8 | M19: 24651.1 | N19: 44177.2 | O19: 49484.4 | P19: 45040.8 | Q19: 32799.9
B20: III–IV кв., а также I–II кв. следующего года
B21: 2005/2006 | C21: 2006/2007 | D21: 2007/2008 | E21: 2008/2009 | F21: 2009/2010 | G21: 2010/2011 | H21: 2011/2012 | I21: 2012/2013 | J21: 2013/2014 | K21: 2014/2015 | L21: 2015/2016 | M21: 2016/2017 | N21: 2017/2018 | O21: 2018/2019 | P21: 2019/2020 | Q21: 2020/2021
A22: Отбор газа из ПХГ, млн м3
A23: III кв. | B23: 185.7 | C23: 4.1 | D23: 89.7 | E23: 107.1 | F23: 155.8 | G23: 135.1 | H23: 300 | I23: 143.9 | J23: 63.2 | K23: 41.9 | L23: 92.8 | M23: 114.2 | N23: 164.4 | O23: 99.8 | P23: 450.5 | Q23: 343.9
A24: IV кв. | B24: 12873.2 | C24: 12743.4 | D24: 21688.7 | E24: 7634.2 | F24: 18980.5 | G24: 14428.8 | H24: 13664.6 | I24: 14418.3 | J24: 9777 | K24: 8262.5 | L24: 5172.1 | M24: 18834.6 | N24: 17117.2 | O24: 20415.6 | P24: 15874.4 | Q24: 23619.5
A25: I кв. следующего года | B25: 34936 | C25: 19763.6 | D25: 28347.1 | E25: 8653.9 | F25: 26176.9 | G25: 31740.7 | H25: 29258.1 | I25: 21815.7 | J25: 21662.3 | K25: 16353.2 | L25: 24653.1 | M25: 26175.1 | N25: 31036.3 | O25: 23702.9 | P25: 15175.8 | Q25: 36521
A26: II кв. следующего года | B26: 518.1 | C26: 116.5 | D26: 18.5 | E26: 2234 | F26: 48.5 | G26: 1366.2 | H26: 481.9 | I26: 1091.9 | J26: 2714.6 | K26: 2653.2 | L26: 1234.2 | M26: 2022.8 | N26: 430.6 | O26: 513.4 | P26: 1107.5 | Q26: 472.9
A27: Всего | B27: 48513 | C27: =SUM(C23:C26) -> 32627.6 | D27: =SUM(D23:D26) -> 50144 | E27: =SUM(E23:E26) -> 18629.2 | F27: =SUM(F23:F26) -> 45361.7 | G27: =SUM(G23:G26) -> 47670.8 | H27: 43704.5 | I27: 37469.8 | J27: 34217.1 | K27: 27310.8 | L27: 31152.2 | M27: 47146.7 | N27: 48748.5 | O27: 44731.7 | P27: 32608.2 | Q27: 60957.3
A28: Максимальная возможная суточная производительность на начало сезона отбора, млн м3 / сут. | B28: 568 | C28: 600 | D28: 608 | E28: 620 | F28: 620 | G28: 620 | H28: 647.7 | I28: 671.1 | J28: 727.8 | K28: 770.4 | L28: 789.9 | M28: 801.3 | N28: 805.3 | O28: 812.5 | P28: 843.3 | Q28: 843.3
A30: Закачка и отбор газа Группы Газпром из ПХГ зарубежных стран, млн м3
B31: 2005 | C31: 2006 | D31: 2007 | E31: 2008 | F31: 2009 | G31: 2010 | H31: 2011 | I31: 2012 | J31: 2013 | K31: 2014 | L31: 2015 | M31: 2016 | N31: 2017 | O31: 2018 | P31: 2019 | Q31: 2020
A32: Закачка газа в ПХГ за рубежом
A33: Страны БСС
A34: Всего в ПХГ в странах БСС | B34: 1550.9 | C34: 1689.9 | D34: 222.3 | E34: 1389.1 | F34: 658.1 | G34: 1685.6 | H34: 2338.6 | I34: 2667.7 | J34: 2494.7 | K34: 2938.3 | L34: 2507.3 | M34: 2144.3 | N34: 1 274,9 | O34: 1227.8 | P34: 956.5 | Q34: 994.6
A35: Дальнее зарубежье*
A36: Австрия | B36: 440.4 | C36: 449 | D36: 944.8 | E36: 858.6 | F36: 474.1 | G36: =ROUND(580.758,1) -> 580.8 | H36: 1093.7 | I36: 1407.1 | J36: 1472 | K36: 1303.5 | L36: 709.8 | M36: 683.9 | N36: 2222.5 | O36: 1527.5 | P36: 2124.5 | Q36: 1090.7
A37: Великобритания | B37: 76.8 | C37: 294.4 | D37: 414.5 | E37: 528.9 | F37: 225.8 | G37: =ROUND(233.672,1) -> 233.7 | H37: 225.2 | I37: 224.3 | J37: 226.5 | K37: 224 | L37: 224.4 | M37: – | N37: – | O37: – | P37: – | Q37: –
A38: Венгрия | B38: – | C38: – | D38: – | E38: – | F38: – | G38: – | H38: – | I38: – | J38: – | K38: 699.9 | L38: – | M38: – | N38: 898.4 | O38: 290.2 | P38: 1003 | Q38: –
A39: Германия | B39: 374.9 | C39: 1142.7 | D39: 1111 | E39: 1384.8 | F39: 583.6 | G39: =ROUND(705.293,1) -> 705.3 | H39: 155.2 | I39: 2149.5 | J39: 1464.2 | K39: 886.1 | L39: 797.2 | M39: 654.1 | N39: 1840 | O39: 2072.5 | P39: 3639.9 | Q39: 505.4
A40: Нидерланды | B40: – | C40: – | D40: – | E40: – | F40: 328 | G40: =ROUND(853.78,1) -> 853.8 | H40: 1582.6 | I40: 1276.7 | J40: 617.3 | K40: 1313.1 | L40: 1176.9 | M40: 1195 | N40: 1782 | O40: 1558.1 | P40: 283.8 | Q40: 521.5
A41: Сербия | B41: – | C41: – | D41: – | E41: – | F41: – | G41: – | H41: 279.4 | I41: 336.2 | J41: 93.5 | K41: 118.4 | L41: – | M41: – | N41: 12.6 | O41: 51.1 | P41: 58.6 | Q41: 21
A42: Словакия | B42: – | C42: – | D42: – | E42: – | F42: – | G42: – | H42: – | I42: – | J42: – | K42: – | L42: – | M42: – | N42: 738 | O42: 283.6 | P42: 1112.6 | Q42: 223.7
A43: Франция | B43: – | C43: – | D43: – | E43: 273.9 | F43: 250 | G43: =ROUND(298.162,1) -> 298.2 | H43: – | I43: – | J43: – | K43: – | L43: – | M43: – | N43: – | O43: – | P43: – | Q43: –
A44: Чехия | B44: – | C44: – | D44: – | E44: – | F44: – | G44: – | H44: – | I44: – | J44: – | K44: – | L44: – | M44: 105.3 | N44: 190.8 | O44: 393.8 | P44: 26.8 | Q44: 47.4
A45: Краткосрочные контракты на хранение в ПХГ Европы | B45: – | C45: – | D45: – | E45: – | F45: – | G45: – | H45: – | I45: – | J45: – | K45: – | L45: – | M45: – | N45: 909.9 | O45: 412.9 | P45: – | Q45: –
A46: Всего в ПХГ в странах дальнего зарубежья | B46: =SUM(B36:B44) -> 892.1 | C46: 1886.1 | D46: 2470.3 | E46: 3046.2 | F46: 1861.5 | G46: 2671.8 | H46: 3336.1 | I46: 5393.8 | J46: 3873.5 | K46: 4545 | L46: 2908.3 | M46: =SUM(M36:M45) -> 2638.3 | N46: 8 594,2 | O46: 6589.7 | P46: 8249.2 | Q46: 2409.7
A47: Всего | B47: 2443 | C47: 3576 | D47: 2692.6 | E47: 4435.3 | F47: 2519.6 | G47: 4357.4 | H47: 5674.7 | I47: 8061.5 | J47: 6368.2 | K47: 7483.3 | L47: 5415.6 | M47: =M46+M34 -> 4782.6 | N47: 9869.1 | O47: 7817.5 | P47: 9205.7 | Q47: 3404.3
A48: * Приведены объемы закачки газа ПАО «Газпром» по контрактам ООО «Газпром экспорт».
B49: III−IV кв., а также I−II кв. следующего года
B50: 2005/2006 | C50: 2006/2007 | D50: 2007/2008 | E50: 2008/2009 | F50: 2009/2010 | G50: 2010/2011 | H50: 2011/2012 | I50: 2012/2013 | J50: 2013/2014 | K50: 2014/2015 | L50: 2015/2016 | M50: 2016/2017 | N50: 2017/2018 | O50: 2018/2019 | P50: 2019/2020 | Q50: 2020/2021
A51: Отбор газа из ПХГ за рубежом*
A52: Страны БСС
A53: Всего из ПХГ в странах БСС | B53: 984.1 | C53: 291.1 | D53: 352.3 | E53: 762.8 | F53: 1033.2 | G53: 1679.7 | H53: 2440.4 | I53: 2269.9 | J53: 2198.2 | K53: 2414.7 | L53: 2083.1 | M53: 1997.1 | N53: 1298.7 | O53: 1067.5 | P53: 875.3 | Q53: 1074.9
A54: Дальнее зарубежье**
A55: Австрия | B55: 200 | C55: 200 | D55: 652.8 | E55: 381.9 | F55: =ROUNDDOWN(480.151,1) -> 480.1 | G55: 543.7 | H55: 982.6 | I55: 1534.1 | J55: 1171.6 | K55: 835.8 | L55: 820 | M55: 1480.5 | N55: 2054 | O55: 546.5 | P55: 1167.6 | Q55: 3342.5
A56: Великобритания | B56: – | C56: 371.2 | D56: 422.4 | E56: 227.5 | F56: =ROUND(317.951,1) -> 318 | G56: 435 | H56: 225.2 | I56: 224.3 | J56: 226.5 | K56: 224 | L56: 224.4 | M56: – | N56: – | O56: – | P56: – | Q56: –
A57: Венгрия | B57: – | C57: – | D57: – | E57: – | F57: – | G57: – | H57: – | I57: – | J57: – | K57: 699.9 | L57: – | M57: – | N57: 898.4 | O57: 267.7 | P57: 8.8 | Q57: 292.7
A58: Германия | B58: 661.4 | C58: 887.4 | D58: 952.2 | E58: 790.1 | F58: =ROUND(731.396,1) -> 731.4 | G58: 481.8 | H58: 716.9 | I58: 2342.2 | J58: 1123.7 | K58: 753.4 | L58: 978.1 | M58: 936.9 | N58: 2117.5 | O58: 1008 | P58: 774.2 | Q58: 4005.4
A59: Нидерланды | B59: – | C59: – | D59: – | E59: – | F59: – | G59: – | H59: – | I59: – | J59: – | K59: 405.4 | L59: 1129.8 | M59: 1981.3 | N59: 1532.8 | O59: 368.7 | P59: 500.6 | Q59: 1650.4
A60: Сербия | B60: – | C60: – | D60: – | E60: – | F60: – | G60: – | H60: 34.3 | I60: 145.7 | J60: 67.5 | K60: 0.5 | L60: 12 | M60: 0.5 | N60: 44.5 | O60: 13.7 | P60: 3.2 | Q60: 27.2
A61: Словакия | B61: – | C61: – | D61: – | E61: – | F61: – | G61: – | H61: – | I61: – | J61: – | K61: – | L61: – | M61: – | N61: 673 | O61: 201.7 | P61: 75.7 | Q61: 1005.6
A62: Франция | B62: – | C62: – | D62: – | E62: 273.9 | F62: =ROUND(248.515,1) -> 248.5 | G62: 299.7 | H62: – | I62: – | J62: – | K62: – | L62: – | M62: – | N62: – | O62: – | P62: – | Q62: –
A63: Чехия | B63: – | C63: – | D63: – | E63: – | F63: – | G63: – | H63: – | I63: – | J63: – | K63: – | L63: – | M63: 104.5 | N63: 183.2 | O63: 147 | P63: 26.6 | Q63: 299.8
A64: Краткосрочные контракты на хранение в ПХГ Европы | B64: – | C64: – | D64: – | E64: – | F64: – | G64: – | H64: – | I64: – | J64: – | K64: – | L64: – | M64: – | N64: 974.9 | O64: – | P64: – | Q64: –
A65: Всего из ПХГ в странах дальнего зарубежья | B65: =SUM(B55:B63) -> 861.4 | C65: 1458.6 | D65: 2027.4 | E65: 1673.4 | F65: 1778 | G65: 1760.2 | H65: 1959 | I65: 4246.3 | J65: 2589.3 | K65: 2919 | L65: 3164.3 | M65: 4503.7 | N65: 8478.3 | O65: 2553.3 | P65: 2556.7 | Q65: 10623.6
A66: Всего | B66: 1845.5 | C66: 1749.7 | D66: 2379.7 | E66: 2436.2 | F66: 2811.2 | G66: 3439.9 | H66: 4399.4 | I66: 6516.2 | J66: 4787.5 | K66: 5333.7 | L66: 5247.4 | M66: 6500.8 | N66: 9777 | O66: 3620.8 | P66: 3432 | Q66: 11 698,5
A67: * Отбор не отражает объемы газа, проданные в ПХГ.
A68: ** Приведены объемы отбора газа ПАО «Газпром» по контрактам ООО «Газпром экспорт».
A70: Вернуться к содержанию

Sheet Объекты подземного хранения
A1: Основные проекты по развитию подземного хранения газа на территории России
A2: Субъект Российской Федерации | C2: ПХГ | E2: Тип ПХГ | H2: Проектные характеристики
H3: Объем оперативного резерва газа, млрд м3 | J3: Максимальная суточная производительность, млн м3
A4: Волгоградская область | C4: Волгоградское | E4: В отложениях каменной соли | H4: 0.8 | J4: 70
A5: Калининградская область | C5: Калининградское | E5: В отложениях каменной соли | H5: 0.8 | J5: 12
A6: Республика Татарстан | C6: Арбузовское | E6: Водоносные структуры | H6: 0.7 | J6: 7.6
A7: Республика Удмуртия | C7: Удмуртский резервирующий комплекс | E7: Водоносные структуры | H7: 2.8 | J7: 44.9
A8: Тюменская область | C8: Пунгинское | E8: Истощенное месторождение | H8: 5.5 | J8: 50
A9: Курганская область | C9: Шатровское | E9: Водоносные структуры | H9: 1 | J9: 14
A10: Краснодарский край | C10: Кущевское | E10: Истощенное месторождение | H10: 6.5 | J10: 70
A11: Тульская область | C11: Новомосковское | E11: В отложениях каменной соли | H11: 0.3 | J11: 40
A12: Примечание. Информация приведена по состоянию на 31 декабря 2020 г.
A14: Характеристика зарубежных объектов ПХГ с участием Группы Газпром
A15: Страна | B15: ПХГ | C15: Условия участия Группы Газпром | E15: Мощности ПХГ по состоянию на 31.12.2020 г.
E16: Суммарная активная емкость, млрд м3 | G16: Суточная производи-тельность на отбор, используемая Группой Газпром, млн м3 | H16: КС | I16: ГПА | J16: Установ-ленная мощность ГПА, МВт | K16: Эксплуата-ционные скважины / каверны
E17: Всего | F17: В т.ч. используемая Группой Газпром
A18: Австрия | B18: Хайдах | C18: Соинвестор (55,5 %) | E18: 3.1 | F18: 2,4 (из них ООО «Газпром экспорт» — 2,4) | G18: 24,5 (из них ООО «Газпром экспорт» — 24,5) | H18: 1 | I18: 4 | J18: 62 | K18: 17
A19: Сербия | B19: Банатский Двор | C19: Соинвестор (51 %) | E19: 0,55* | F19: 0,28 (из них ООО «Газпром экспорт» — 0,28) | G19: 2,5 (из них ООО «Газпром экспорт» — 2,5) | H19: 1 | I19: 2 | J19: 5 | K19: 18
A20: Германия | B20: Йемгум | C20: Соинвестор (83,3 %) | E20: 0.9 | F20: 0,8 (ООО «Газпром экспорт» не используется) | G20: 19,9 (ООО «Газпром экспорт» не используется) | H20: 1 | I20: 3 | J20: 38 | K20: 9
B21: Катарина | C21: Соинвестор (50 %) | E21: 0.52 | F21: 0,52 (из них ООО «Газпром экспорт» — 0,52) | G21: 25,8 (из них ООО «Газпром экспорт» — 25,8) | H21: 1 | I21: 3 | J21: 37 | K21: 8
B22: Реден | C22: В собственности | E22: 4.24 | F22: 4,24 (из них ООО «Газпром экспорт» — 3,3) | G22: 50,5 (из них ООО «Газпром экспорт» — 50,4) | H22: 1 | I22: 7 | J22: 90 | K22: 16
B23: Этцель | C23: Соинвестор (доля в кавернах — 33 %, доля в трубопроводе — 16 %) | E23: 1 | F23: 0,3 (ООО «Газпром экспорт» не используется) | G23: 6,9 (ООО «Газпром экспорт» не используется) | H23: 1 | I23: 3 | J23: 24 | K23: 9
A24: Нидерланды | B24: Бергермеер | C24: Соинвестор** | E24: 4.6 | F24: 1.85 | G24: 26,1 (из них ООО «Газпром экспорт» — 26,1) | H24: 1 | I24: 6 | J24: 72 | K24: 13
A25: Чехия | B25: Дамборжице | C25: Соинвестор (50 %) | E25: 0.37 | F25: 0,3 (из них ООО «Газпром экспорт» — 0,3) | G25: 6,9 (из них ООО «Газпром экспорт» — 6,9) | H25: 1 | I25: 3 | J25: 10.5 | K25: 14
A26: Беларусь | B26: Прибугское | C26: В собственности | E26: 0.5 | F26: 0.5 | G26: 8 | H26: 1 | I26: 5 | J26: 7.1 | K26: 41
B27: Осиповичское | E27: 0.4 | F27: 0.4 | G27: 6 | H27: 1 | I27: 6 | J27: 4.4 | K27: 42
B28: Мозырское | E28: 0.3 | F28: 0.3 | G28: 20 | H28: 1 | I28: 2 | J28: 4.6 | K28: 16
A29: Армения | B29: Абовянская станция подземного хранения газа | C29: В собственности | E29: 0.1 | F29: 0.1 | G29: 6 | H29: 1 | I29: 9 | J29: 9.9 | K29: 21
A30: * В т. ч. газ для технологических нужд в объеме 0,10 млрд м3.
A31: ** При создании ПХГ ПАО «Газпром» был предоставлен необходимый объем буферного газа взамен на право доступа к его мощностям.
A33: Перспективные объекты ПХГ с участием Группы Газпром за рубежом
A34: Страна | B34: ПХГ | C34: Характер строительства | D34: Тип ПХГ | F34: Год начала проекта | G34: Условия участия Группы Газпром | H34: Проектные характеристики | J34: Год ввода в эксплуатацию | K34: Год выхода на проектную мощность
H35: Суммарная активная емкость, млрд м3 | I35: Суточная производи-тельность, млн м3
A36: Германия | B36: Катарина | C36: Новое строительство | D36: В отложениях каменной соли | F36: 2011 г. | G36: Соинвестор (50 %) | H36: 0.7 | I36: 25.8 | J36: 2011 г. | K36: 2025 г.
A37: Сербия | B37: Банатский Двор | C37: Расширение действующего ПХГ | D37: Истощенное месторождение | F37: 2009 г. | G37: Соинвестор (51 %) | H37: До 0,75 | I37: До 10 | J37: 2011 г. | K37: 2022 г.*
A38: Чехия | B38: Дамборжице | C38: Новое строительство | D38: Истощенное месторождение | F38: 2014 г. | G38: Соинвестор (50 %) | H38: 0.5 | I38: 7.6 | J38: 2016 г. | K38: 2021 г.
A39: * По предварительной оценке, срок будет уточнен по результатам проектирования.
A40: Примечание. Информация приведена по состоянию на 31 декабря 2020 г. Сроки по вводу объектов в эксплуатацию и выходу на проектную производительность могут изменяться в зависимости от ситуации на рынке энергоносителей.
A42: Вернуться к содержанию

Sheet Контракты на хранение
A1: Среднесрочные коммерческие контракты на использование ООО «Газпром экспорт» мощностей ПХГ в европейских странах дальнего зарубежья, действовавшие к началу сезона отбора 2020/2021 г.
A2: Страна | B2: Суммарная активная емкость, используемая Группой Газпром, млрд м3 | C2: Суточная производительность на отбор, используемая Группой Газпром, млн м3
A3: Австрия | B3: 1.2 | C3: 8.6
A4: Словакия | B4: 0.86 | C4: 5
A5: Венгрия | B5: 0.39 | C5: 4
A7: Вернуться к содержанию

Sheet Переработка
A1: Переработка углеводородного сырья, газо- и нефтехимия, проекты производства СПГ
A2: Объемы переработки углеводородов Группой Газпром
A3: (без учета давальческого сырья)
B4: За год, закончившийся 31 декабря
B5: 2005 | C5: 2006 | D5: 2007 | E5: 2008 | F5: 2009 | G5: 2010 | H5: 2011 | I5: 2012 | J5: 2013 | K5: 2014 | L5: 2015 | M5: 2016 | N5: 2017 | O5: 2018 | P5: 2019 | Q5: 2020
A6: Переработка природного и попутного газа, млрд м3
A7: ПАО «Газпром» и его основные дочерние общества* | B7: 33.88 | C7: 33.47 | D7: 33.32 | E7: 33.28 | F7: 30.39 | G7: 33.62 | H7: 33.16 | I7: 32.23 | J7: 31.11 | K7: 30 | L7: 30.64 | M7: 30.06 | N7: 29.94 | O7: 30.14 | P7: 30.6 | Q7: 29.76
A8: Газпром нефтехим Салават** | B8: – | C8: – | D8: – | E8: – | F8: – | G8: – | H8: – | I8: 0.22 | J8: 0.41 | K8: 0.45 | L8: 0.44 | M8: 0.49 | N8: 0.43 | O8: 0.47 | P8: 0.44 | Q8: 0.45
A9: Сибур Холдинг*** | B9: 12.4 | C9: 13.8 | D9: 10.71 | E9: 5.05 | F9: x | G9: x | H9: x | I9: x | J9: x | K9: x | L9: x | M9: x | N9: x | O9: x | P9: x | Q9: x
A10: Газпром нефть | B10: – | C10: – | D10: – | E10: – | F10: – | G10: – | H10: – | I10: – | J10: – | K10: – | L10: 0.1 | M10: 0.44 | N10: 0.45 | O10: 0.45 | P10: 0.43 | Q10: 0.4
A11: Всего | B11: 46.28 | C11: 47.27 | D11: 44.03 | E11: 38.33 | F11: =F7 -> 30.39 | G11: 33.62 | H11: 33.16 | I11: 32.45 | J11: 31.52 | K11: 30.45 | L11: 31.18 | M11: 30.99 | N11: 30.82 | O11: 31.06 | P11: 31.47 | Q11: 30.61
A12: Первичная переработка нефти и стабильного газового конденсата, млн т
A13: ПАО «Газпром» и его основные дочерние общества | B13: 5.99 | C13: 5.82 | D13: 5.91 | E13: 5.81 | F13: 5.56 | G13: 5.88 | H13: 5.91 | I13: 6.61 | J13: 6.74 | K13: 6.71 | L13: 6.44 | M13: 6.58 | N13: 6.49 | O13: 6.21 | P13: 6.65 | Q13: 6.64
A14: Газпром нефть | B14: 4.09 | C14: 24.36 | D14: 26.23 | E14: 28.39 | F14: 33.43 | G14: 37.9 | H14: 40.49 | I14: 43.34 | J14: 42.63 | K14: 43.48 | L14: 43.07 | M14: 41.89 | N14: 40.11 | O14: 42.91 | P14: 41.48 | Q14: 40.39
A15: в т. ч. за рубежом | B15: – | C15: – | D15: – | E15: – | F15: 2.39 | G15: 2.85 | H15: 2.36 | I15: 4.08 | J15: 3.8 | K15: 3.78 | L15: 3.54 | M15: 3.23 | N15: 3.42 | O15: 3.56 | P15: 3.14 | Q15: 3.32
A16: Газпром нефтехим Салават** | B16: – | C16: – | D16: – | E16: – | F16: – | G16: – | H16: – | I16: 4.23 | J16: 7.42 | K16: 8.13 | L16: 6.44 | M16: 6.47 | N16: 6.48 | O16: 6.74 | P16: 6.83 | Q16: 6.66
A17: Всего | B17: =B13+B14 -> 10.08 | C17: =C13+C14 -> 30.18 | D17: 32.14 | E17: =E13+E14 -> 34.2 | F17: =F13+F14 -> 38.99 | G17: 43.78 | H17: 46.4 | I17: =I13+I14+I16 -> 54.18 | J17: =J13+J14+J16 -> 56.79 | K17: =K13+K14+K16 -> 58.32 | L17: =L13+L14+L16 -> 55.95 | M17: 54.94 | N17: 53.08 | O17: 55.86 | P17: 54.96 | Q17: 53.69
A18: * С учетом объемов переработки ООО «Газпром метанол» и АО «Газпром добыча Томск».
A19: ** Показатели приведены начиная с 1 июня 2012 г.
A20: *** Показатели приведены до момента деконсолидации с III кв. 2008 г.
A22: Переработка (очистка и стабилизация) нестабильного газового конденсата основными дочерними обществами ПАО «Газпром»*, млн т
A23: (без учета давальческого сырья)
B24: За год, закончившийся 31 декабря
B25: 2005 | C25: 2006 | D25: 2007 | E25: 2008 | F25: 2009 | G25: 2010 | H25: 2011 | I25: 2012 | J25: 2013 | K25: 2014 | L25: 2015 | M25: 2016 | N25: 2017 | O25: 2018 | P25: 2019 | Q25: 2020
A26: Нестабильный газовый конденсат (нефть) | B26: 12.03 | C26: 12.01 | D26: 12.01 | E26: 11.65 | F26: 10.87 | G26: 12.32 | H26: 13.04 | I26: 13.97 | J26: 16.09 | K26: 16.38 | L26: 17.26 | M26: 17.55 | N26: 17.47 | O26: 17.75 | P26: 18.82 | Q26: 18.47
A27: * С учетом объемов переработки ООО «Газпром добыча шельф Южно-Сахалинск» и АО «Газпром добыча Томск». Также учтены объемы переработки ООО «Газпром добыча Иркутск» и ООО «Сервиснефтегаз», финансовые показатели которых в связи с их несущественностью не включаются в консолидированную финансовую отчетность Группы Газпром по МСФО.
A29: Переработка на мощностях основных дочерних обществ ПАО «Газпром» природного и попутного газа компаний, не входящих в Группу Газпром, млрд м3
A30: (давальческое сырье)
B31: За год, закончившийся 31 декабря
B32: 2005 | C32: 2006 | D32: 2007 | E32: 2008 | F32: 2009 | G32: 2010 | H32: 2011 | I32: 2012 | J32: 2013 | K32: 2014 | L32: 2015 | M32: 2016 | N32: 2017 | O32: 2018 | P32: 2019 | Q32: 2020
A33: Природный и попутный газ | B33: 7.36 | C33: 8.3 | D33: 8.19 | E33: 8.37 | F33: 8.67 | G33: 8.34 | H33: 8.38 | I33: 8.46 | J33: 8.61 | K33: 8.97 | L33: 8.91 | M33: 9.28 | N33: 9.15 | O33: 9.55 | P33: 9.11 | Q33: 8.99
A35: Производство основных видов продукции переработки, газо- и нефтехимии Группой Газпром
A36: (без учета давальческого сырья)
B37: За год, закончившийся 31 декабря
B38: 2005 | C38: 2006 | D38: 2007 | E38: 2008 | F38: 2009 | G38: 2010 | H38: 2011 | I38: 2012 | J38: 2013 | K38: 2014 | L38: 2015 | M38: 2016 | N38: 2017 | O38: 2018 | P38: 2019 | Q38: 2020
A39: Стабильный газовый конденсат и нефть, тыс. т | B39: 3728.7 | C39: 3792.8 | D39: 3653.2 | E39: 3413.8 | F39: 3408.2 | G39: 3828.3 | H39: 4595.1 | I39: 4675.3 | J39: 6035.3 | K39: 6410.8 | L39: 7448.1 | M39: 8216.4 | N39: 8688.7 | O39: 8234.3 | P39: 8362 | Q39: 9977.6
A40: Сухой газ, млн м3 | B40: 37418 | C40: 38013.7 | D40: 35824.6 | E40: 30913.2 | F40: 24204.9 | G40: 26198.3 | H40: 25712.8 | I40: 24967.7 | J40: 24194.8 | K40: 23329.5 | L40: 24205.2 | M40: 23996.9 | N40: 23607 | O40: 23590.9 | P40: 23928.9 | Q40: 23862.9
A41: Сжиженные углеводородные газы (СУГ), тыс. т | B41: 4880.7 | C41: 5325.1 | D41: 5537.6 | E41: 4104.1 | F41: 2806.6 | G41: 3119.3 | H41: 2972.7 | I41: 3097.3 | J41: 3276.4 | K41: 3371.1 | L41: 3463.3 | M41: 3525.4 | N41: 3522.5 | O41: 3614.3 | P41: 3663.8 | Q41: 3567.6
A42: в т. ч. за рубежом | B42: – | C42: – | D42: – | E42: – | F42: 105.4 | G42: 110.5 | H42: 83 | I42: 127.2 | J42: 118 | K42: 130.4 | L42: 137.9 | M42: 115 | N42: 103 | O42: 97 | P42: 77.8 | Q42: 95.9
A43: Автомобильный бензин, тыс. т | B43: 3125.7 | C43: 7218.8 | D43: 7518.7 | E43: 7606.2 | F43: 8648.8 | G43: 9368.8 | H43: 10253.3 | I43: 11706.9 | J43: 12125.2 | K43: 12067.9 | L43: 12395.2 | M43: 12270 | N43: 11705.6 | O43: 12044.9 | P43: 11703.1 | Q43: 11823.2
A44: в т. ч. за рубежом | B44: – | C44: – | D44: – | E44: – | F44: 502.8 | G44: 554.4 | H44: 459 | I44: 827.8 | J44: 669.9 | K44: 762.7 | L44: 646.8 | M44: 516 | N44: 469 | O44: 515.7 | P44: 445.2 | Q44: 451.4
A45: Дизельное топливо, тыс. т | B45: 2954.8 | C45: 9056.9 | D45: 9510.7 | E45: 10406.6 | F45: 11214.2 | G45: 12830.9 | H45: 12771.6 | I45: 14459.5 | J45: 16215.2 | K45: 16281.4 | L45: 14837 | M45: 14971.4 | N45: 14322.1 | O45: 15662.5 | P45: 15514.6 | Q45: 16262.6
A46: в т. ч. за рубежом | B46: – | C46: – | D46: – | E46: – | F46: 836 | G46: 898.1 | H46: 675 | I46: 1251.9 | J46: 1423.5 | K46: 1493.8 | L46: 1470.1 | M46: 1363 | N46: 1299 | O46: 1571.2 | P46: 1432.7 | Q46: 1593.3
A47: Авиационное топливо, тыс. т | B47: 327.9 | C47: 1790.2 | D47: 1944.2 | E47: 1967.3 | F47: 2276 | G47: 2598.1 | H47: 2735.5 | I47: 2813.7 | J47: 2852 | K47: 3161.9 | L47: 3171 | M47: 3213.2 | N47: 3148.8 | O47: 3553.3 | P47: 3433.8 | Q47: 2758.3
A48: в т. ч. за рубежом | B48: – | C48: – | D48: – | E48: – | F48: 48.3 | G48: 68.2 | H48: 75 | I48: 73.3 | J48: 73.2 | K48: 108.5 | L48: 107.9 | M48: 122 | N48: 155 | O48: 190.4 | P48: 154.4 | Q48: 88
A49: Мазут топочный, тыс. т | B49: 1077.8 | C49: 4886.5 | D49: 5653.9 | E49: 6138.5 | F49: 6355.6 | G49: 8176.4 | H49: 8642.5 | I49: 10123.8 | J49: 9132 | K49: 9318 | L49: 8371.4 | M49: 7787.2 | N49: 6585.9 | O49: 6880.6 | P49: 7167.8 | Q49: 5386.1
A50: в т. ч. за рубежом | B50: – | C50: – | D50: – | E50: – | F50: 460.3 | G50: 528.5 | H50: 403 | I50: 1081.7 | J50: 739.4 | K50: 717.8 | L50: 450.6 | M50: 334 | N50: 318 | O50: 253.7 | P50: 186.4 | Q50: 169.8
A51: Судовое топливо, тыс. т | I51: 3378.115 | J51: 3311.1 | K51: 4139 | L51: 4172.2 | M51: 3177.2 | N51: 3367.3 | O51: 2952 | P51: 2795.3 | Q51: 2519
A52: Битумы, тыс. т | I52: 1474.912 | J52: 2056.5 | K52: 1949.2 | L52: 1883.8 | M52: 2112 | N52: 2662.1 | O52: 3122.3 | P52: 2959 | Q52: 3254.2
A53: в т. ч. за рубежом | I53: 173 | J53: 245.3 | K53: 262.2 | L53: 333 | M53: 335 | N53: 553.3 | O53: 600.3 | P53: 572.3 | Q53: 631.4
A54: Масла, тыс. т | B54: 53 | C54: 327 | D54: 346.4 | E54: 328.3 | F54: 371.4 | G54: 367.1 | H54: 391 | I54: 380.3 | J54: 396.2 | K54: 374.3 | L54: 404.1 | M54: 421 | N54: 480 | O54: 487.2 | P54: 539.3 | Q54: 433.5
A55: Cера, тыс. т | B55: 5370.3 | C55: 5353.5 | D55: 5432.3 | E55: 5385.9 | F55: 4404.6 | G55: 5252.4 | H55: 5391.5 | I55: 5327.6 | J55: 4936.9 | K55: 4747.8 | L55: 4793.8 | M55: 4905.6 | N55: 5013.6 | O55: 5179.7 | P55: 5377.8 | Q55: 5021.6
A56: в т. ч. за рубежом | B56: – | C56: – | D56: – | E56: – | F56: – | G56: 2 | H56: 3.3 | I56: 2.9 | J56: 12 | K56: 15.6 | L56: 17.8 | M56: 22 | N56: 24 | O56: 23 | P56: 13.8 | Q56: 24.4
A57: Гелий, тыс. м3 | B57: 1636.4 | C57: 3838.1 | D57: 4874 | E57: 5037.9 | F57: 4892.6 | G57: 4856.1 | H57: 3526.4 | I57: 4923.9 | J57: 3570.7 | K57: 3997.5 | L57: 4969.7 | M57: 5054.1 | N57: 5102.2 | O57: 5088.9 | P57: 4731.5 | Q57: 4470.7
A58: ШФЛУ, тыс. т | B58: 3006.6 | C58: 3896.7 | D58: 2648.9 | E58: 1488.5 | F58: 454 | G58: 491.7 | H58: 697.4 | I58: 998.4 | J58: 1587.6 | K58: 1553.4 | L58: 1728.2 | M58: 1807 | N58: 1349.7 | O58: 1465.5 | P58: 1383.8 | Q58: 1353.1
A59: Этановая фракция, тыс. т | B59: 108.1 | C59: 223.2 | D59: 238.4 | E59: 327.2 | F59: 362.1 | G59: 384.1 | H59: 391.8 | I59: 397.1 | J59: 389 | K59: 373.8 | L59: 377.4 | M59: 377.9 | N59: 363 | O59: 347.3 | P59: 337.3 | Q59: 337.4
A60: Мономеры, тыс. т | B60: 1848 | C60: 2122.5 | D60: 1997.9 | E60: 1096.3 | F60: – | G60: – | H60: – | I60: 97.8 | J60: 242.6 | K60: 262.2 | L60: 243.4 | M60: 294 | N60: 264.9 | O60: 335.8 | P60: 293.3 | Q60: 320.2
A61: Полимеры, тыс. т | B61: 469 | C61: 490 | D61: 506 | E61: 290 | F61: – | G61: – | H61: – | I61: 61.3 | J61: 133.2 | K61: 161.8 | L61: 157.9 | M61: 179.1 | N61: 154.3 | O61: 185.6 | P61: 171.6 | Q61: 191.4
A62: Продукция органического синтеза, тыс. т | B62: 990 | C62: 1109 | D62: 1134.6 | E62: 544.5 | F62: – | G62: – | H62: – | I62: 87.4 | J62: 86.8 | K62: 83.5 | L62: 90.4 | M62: 89.6 | N62: 44.7 | O62: 71.3 | P62: 49.7 | Q62: 48.8
A63: Минеральные удобрения и сырье для них, тыс. т | B63: 1482 | C63: 1360.4 | D63: 1598.1 | E63: 1103.4 | F63: – | G63: – | H63: – | I63: 326.1 | J63: 752.1 | K63: 778.2 | L63: 775.9 | M63: 953 | N63: 913.2 | O63: 836.4 | P63: 799.7 | Q63: 800.6
A65: Области применения отдельных видов продукции переработки, газо- и нефтехимии, производимой Группой Газпром
A66: Наименование продукции | B66: Применение
A67: Акриловая кислота, акрилаты | B67: Производство впитывающих продуктов, водоэмульсионных красок и других адгезивных покрытий
A68: Битумы нефтяные | B68: Дорожное строительство, гидроизоляционные материалы
A69: Битумопроизводные материалы | B69: Строительство и ремонт автодорог, аэродромов, искусственных сооружений, гидрозащита и коррозийная защита, промышленное и гражданское строительство
A70: Гелий | B70: Энергетика, металлургия, авиакосмическая промышленность, судостроение, машиностроение, медицина
A71: Минеральные удобрения (карбамид, аммиак жидкий технический, углекислота, аммиачная селитра) | B71: Сельское хозяйство
A72: Мономеры (этилен, пропилен, стирол) | B72: Сырье для нефтехимической промышленности
A73: Продукция органического синтеза (бутанол, пластификатор ДОФ) | B73: Сырье для нефтехимической промышленности
A74: Полимерно-битумное вяжущее (ПВМ) | B74: Дорожное строительство
A75: Полимеры (полиэтилен, полистирол) | B75: Производство медицинских и бытовых изделий, пленок, упаковочных и изоляционных материалов
A76: Этановая фракция | B76: Сырье для нефтегазохимической промышленности
A77: Коксы | B77: Производство электродов, анодов. Цветная и черная металлургия
A78: Широкая фракция легких углеводородов (ШФЛУ) | B78: Сырье для нефтегазохимической промышленности
A80: Производство основных видов продукции переработки дочерними обществами Группы Газпром
A81: (без учета давальческого сырья)
B82: За год, закончившийся 31 декабря
B83: 2005 | C83: 2006 | D83: 2007 | E83: 2008 | F83: 2009 | G83: 2010 | H83: 2011 | I83: 2012 | J83: 2013 | K83: 2014 | L83: 2015 | M83: 2016 | N83: 2017 | O83: 2018 | P83: 2019 | Q83: 2020
A84: ПАО «Газпром» и его основные дочерние общества*
A85: Стабильный газовый конденсат и нефть, тыс. т | B85: 3728.7 | C85: 3792.8 | D85: 3711.7 | E85: 3413.8 | F85: 3408.2 | G85: 3828.3 | H85: 4595.1 | I85: 4675.3 | J85: 6035.3 | K85: 6410.8 | L85: 7448.1 | M85: 8216.4 | N85: 8688.7 | O85: 8234.3 | P85: 8362 | Q85: 9977.6
A86: Сухой газ, млн м3 | B86: 26467 | C86: 25938.1 | D86: 26534.4 | E86: 26480.2 | F86: 24204.9 | G86: 26198.3 | H86: 25712.8 | I86: 24967.7 | J86: 24194.8 | K86: 23329.5 | L86: 24119.2 | M86: 23620.1 | N86: 23223.1 | O86: 23211.3 | P86: 23568.3 | Q86: 23525
A87: СУГ, тыс. т | B87: 1881.9 | C87: 1837.7 | D87: 2109.8 | E87: 2037.2 | F87: 2025.2 | G87: 2311.6 | H87: 2281.7 | I87: 2286.4 | J87: 2287.4 | K87: 2441.7 | L87: 2487.4 | M87: 2578.4 | N87: 2828.5 | O87: 2814.3 | P87: 2944.4 | Q87: 2787.7
A88: Автомобильный бензин, тыс. т | B88: 2242.7 | C88: 2158.8 | D88: 2141.8 | E88: 2132.3 | F88: 2018.1 | G88: 2114.3 | H88: 2153.3 | I88: 2243.8 | J88: 2428.8 | K88: 2519.7 | L88: 2532.7 | M88: 2497.9 | N88: 2234.5 | O88: 2150.7 | P88: 2319.8 | Q88: 2214.2
A89: Дизельное топливо, тыс. т | B89: 1640.8 | C89: 1442.9 | D89: 1429.3 | E89: 1394.1 | F89: 1276.5 | G89: 1366.2 | H89: 1280.6 | I89: 1554.5 | J89: 1569 | K89: 1585.7 | L89: 1362.1 | M89: 1435.6 | N89: 1496.8 | O89: 1373.4 | P89: 1618.6 | Q89: 1546.2
A90: Авиационное топливо, тыс. т | B90: 50.9 | C90: 150.2 | D90: 133.9 | E90: 161.4 | F90: 165.8 | G90: 165.7 | H90: 166.5 | I90: 146 | J90: 158.8 | K90: 172.1 | L90: 167.7 | M90: 174.2 | N90: 111.8 | O90: 88.3 | P90: 95 | Q90: 87.1
A91: Мазут топочный, тыс. т | B91: 380.8 | C91: 380.5 | D91: 394.2 | E91: 389.7 | F91: 347.9 | G91: 377.9 | H91: 299.5 | I91: 347.3 | J91: 351.4 | K91: 329.6 | L91: 332.2 | M91: 346.1 | N91: 328.4 | O91: 323.4 | P91: 395.4 | Q91: 97.1
A92: Cера, тыс. т | B92: 5361.8 | C92: 5296.3 | D92: 5370.1 | E92: 5319.8 | F92: 4322.1 | G92: 5154.9 | H92: 5283.5 | I92: 5203.4 | J92: 4790.4 | K92: 4589.4 | L92: 4623.9 | M92: 4696.5 | N92: 4847.9 | O92: 4983.9 | P92: 5154.4 | Q92: 4765.7
A93: Гелий, тыс. м3 | B93: 1636.4 | C93: 3838.1 | D93: 4874 | E93: 5037.9 | F93: 4892.6 | G93: 4856.1 | H93: 3526.4 | I93: 4923.9 | J93: 3570.7 | K93: 3997.5 | L93: 4969.7 | M93: 5054.1 | N93: 5102.2 | O93: 5088.9 | P93: 4731.5 | Q93: 4470.7
A94: ШФЛУ, тыс. т | B94: 541.6 | C94: 881.4 | D94: 587.5 | E94: 554.6 | F94: 454 | G94: 491.7 | H94: 697.4 | I94: 998.4 | J94: 1587.6 | K94: 1534.7 | L94: 1661.9 | M94: 1666.7 | N94: 1149.4 | O94: 1270.5 | P94: 1212.4 | Q94: 1192.9
A95: Этановая фракция, тыс. т | B95: 108.1 | C95: 223.2 | D95: 238.4 | E95: 327.2 | F95: 362.1 | G95: 384.1 | H95: 391.8 | I95: 397.1 | J95: 389 | K95: 373.8 | L95: 377.4 | M95: 377.9 | N95: 363 | O95: 347.3 | P95: 337.3 | Q95: 337.4
A96: Газпром нефть
A97: Сухой газ, млн м3 | B97: – | C97: – | D97: – | E97: – | F97: – | G97: – | H97: – | I97: – | J97: – | K97: – | L97: 86 | M97: 376.8 | N97: 383.9 | O97: 379.6 | P97: 360.6 | Q97: 337.9
A98: СУГ, тыс. т | B98: 107.8 | C98: 544.6 | D98: 566.1 | E98: 563.8 | F98: 781.4 | G98: 807.7 | H98: 691 | I98: 810.9 | J98: 989 | K98: 929.4 | L98: 975.9 | M98: 947 | N98: 694 | O98: 800 | P98: 719.4 | Q98: 779.9
A99: в т.ч. за рубежом | B99: – | C99: – | D99: – | E99: – | F99: 105.4 | G99: 110.5 | H99: 83 | I99: 127.2 | J99: 118 | K99: 130.4 | L99: 137.9 | M99: 115 | N99: 103 | O99: 97 | P99: 77.8 | Q99: 95.9
A100: Автомобильный бензин, тыс. т | B100: 883 | C100: 5060 | D100: 5376.9 | E100: 5473.9 | F100: 6630.7 | G100: 7254.5 | H100: 8100 | I100: 8961.6 | J100: 8923 | K100: 8844.8 | L100: 9081.2 | M100: 9176 | N100: 8555 | O100: 8863.8 | P100: 8015.2 | Q100: 8429.9
A101: в т.ч. за рубежом | B101: – | C101: – | D101: – | E101: – | F101: 502.8 | G101: 554.4 | H101: 459 | I101: 827.8 | J101: 669.9 | K101: 762.7 | L101: 646.8 | M101: 516 | N101: 469 | O101: 515.7 | P101: 445.2 | Q101: 451.4
A102: Дизельное топливо, тыс. т | B102: 1314 | C102: 7614 | D102: 8081.4 | E102: 9012.5 | F102: 9937.7 | G102: 11464.7 | H102: 11491.1 | I102: 11508.1 | J102: 12087.8 | K102: 12147.7 | L102: 11874.5 | M102: 12023 | N102: 11325 | O102: 12323.6 | P102: 11870.4 | Q102: 12548.9
A103: в т.ч. за рубежом | B103: – | C103: – | D103: – | E103: – | F103: 836 | G103: 898.1 | H103: 675 | I103: 1251.9 | J103: 1423.5 | K103: 1493.8 | L103: 1470.1 | M103: 1363 | N103: 1299 | O103: 1571.2 | P103: 1432.7 | Q103: 1593.3
A104: Авиационное топливо, тыс. т | B104: 277 | C104: 1640 | D104: 1810.3 | E104: 1805.9 | F104: 2110.2 | G104: 2432.5 | H104: 2569 | I104: 2667.7 | J104: 2693.2 | K104: 2989.8 | L104: 3003.3 | M104: 3039 | N104: 3037 | O104: 3465 | P104: 3338.8 | Q104: 2671.2
A105: в т.ч. за рубежом | B105: – | C105: – | D105: – | E105: – | F105: 48.3 | G105: 68.2 | H105: 75 | I105: 73.3 | J105: 73.2 | K105: 108.5 | L105: 107.9 | M105: 122 | N105: 155 | O105: 190.4 | P105: 154.4 | Q105: 88
A106: Мазут топочный, тыс. т | B106: 697 | C106: 4506 | D106: 5259.7 | E106: 5748.8 | F106: 6007.7 | G106: 7798.5 | H106: 8343 | I106: 8775.2 | J106: 7476.9 | K106: 7391.7 | L106: 7198.6 | M106: 6720 | N106: 5696 | O106: 6204.8 | P106: 6447.2 | Q106: 5117.5
A107: в т.ч. за рубежом | B107: – | C107: – | D107: – | E107: – | F107: 460.3 | G107: 528.5 | H107: 403 | I107: 1081.7 | J107: 739.4 | K107: 717.8 | L107: 450.6 | M107: 334 | N107: 318 | O107: 253.7 | P107: 186.4 | Q107: 169.8
A108: Судовое топливо, тыс. т | I108: 3378.115 | J108: 3311.1 | K108: 4076.3 | L108: 3666.9 | M108: 2410 | N108: 2671 | O108: 2576.4 | P108: 2490.8 | Q108: 2398.1
A109: Битумы, тыс. т | I109: 1378 | J109: 1935.5 | K109: 1875.1 | L109: 1857.6 | M109: 2021 | N109: 2569.2 | O109: 2928.5 | P109: 2780.9 | Q109: 3081.2
A110: в т.ч. за рубежом | I110: 173 | J110: 245.3 | K110: 262.2 | L110: 333 | M110: 335 | N110: 553.3 | O110: 600.3 | P110: 572.3 | Q110: 631.4
A111: Масла, тыс. т | B111: 53 | C111: 327 | D111: 346.4 | E111: 328.3 | F111: 371.4 | G111: 367.1 | H111: 391 | I111: 380.3 | J111: 396.2 | K111: 374.3 | L111: 404.1 | M111: 421 | N111: 480 | O111: 487.2 | P111: 539.3 | Q111: 433.5
A112: Cера, тыс. т | B112: 8.5 | C112: 57.2 | D112: 62.2 | E112: 66.1 | F112: 82.5 | G112: 97.5 | H112: 108 | I112: 107.7 | J112: 117 | K112: 124 | L112: 136.8 | M112: 180 | N112: 136 | O112: 160 | P112: 186.4 | Q112: 224.9
A113: в т.ч. за рубежом | B113: – | C113: – | D113: – | E113: – | F113: – | G113: 2 | H113: 3.3 | I113: 2.9 | J113: 12 | K113: 15.6 | L113: 17.8 | M113: 22 | N113: 24 | O113: 23 | P113: 13.8 | Q113: 24.4
A114: ШФЛУ, тыс. т | B114: – | C114: – | D114: – | E114: – | F114: – | G114: – | H114: – | I114: – | J114: – | K114: – | L114: 28 | M114: 131.5 | N114: 145.4 | O114: 144.3 | P114: 136.2 | Q114: 124.5
A115: Газпром нефтехим Салават**
A116: Автомобильный бензин, тыс. т | B116: x | C116: x | D116: x | E116: x | F116: x | G116: x | H116: x | I116: 501.5 | J116: 773.3 | K116: 703.4 | L116: 781.3 | M116: 596.1 | N116: 916.1 | O116: 1030.4 | P116: 1368.1 | Q116: 1179.1
A117: Дизельное топливо, тыс. т | B117: x | C117: x | D117: x | E117: x | F117: x | G117: x | H117: x | I117: 1396.9 | J117: 2558.4 | K117: 2548.1 | L117: 1600.5 | M117: 1512.9 | N117: 1500.3 | O117: 1965.5 | P117: 2025.6 | Q117: 2167.5
A118: Мазут топочный, тыс. т | B118: x | C118: x | D118: x | E118: x | F118: x | G118: x | H118: x | I118: 970.2 | J118: 1303.8 | K118: 1596.7 | L118: 840.6 | M118: 721.1 | N118: 561.5 | O118: 352.4 | P118: 325.2 | Q118: 171.5
A119: Судовое топливо, тыс. т | B119: x | C119: x | D119: x | E119: x | F119: x | G119: x | H119: x | I119: – | J119: – | K119: 62.7 | L119: 505.3 | M119: 767.2 | N119: 696.3 | O119: 375.6 | P119: 304.5 | Q119: 120.9
A120: Битумы, тыс. т | B120: x | C120: x | D120: x | E120: x | F120: x | G120: x | H120: x | I120: 96.9 | J120: 120.9 | K120: 74.1 | L120: 26.2 | M120: 91 | N120: 92.9 | O120: 193.8 | P120: 178.1 | Q120: 173
A121: Сера, тыс. т | B121: x | C121: x | D121: x | E121: x | F121: x | G121: x | H121: x | I121: 16.6 | J121: 29.5 | K121: 34.4 | L121: 33.1 | M121: 29.1 | N121: 29.7 | O121: 35.8 | P121: 37 | Q121: 31
A122: ШФЛУ, тыс. т | B122: x | C122: x | D122: x | E122: x | F122: x | G122: x | H122: x | I122: – | J122: – | K122: 18.7 | L122: 38.3 | M122: 8.8 | N122: 54.9 | O122: 50.7 | P122: 35.2 | Q122: 35.7
A123: Мономеры, тыс. т | B123: x | C123: x | D123: x | E123: x | F123: x | G123: x | H123: x | I123: 97.8 | J123: 242.6 | K123: 262.2 | L123: 243.4 | M123: 294 | N123: 264.9 | O123: 335.8 | P123: 293.3 | Q123: 320.2
A124: Полимеры, тыс. т | B124: x | C124: x | D124: x | E124: x | F124: x | G124: x | H124: x | I124: 61.3 | J124: 133.2 | K124: 161.8 | L124: 157.9 | M124: 179.1 | N124: 154.3 | O124: 185.6 | P124: 171.6 | Q124: 191.4
A125: Продукция органического синтеза, тыс. т | B125: x | C125: x | D125: x | E125: x | F125: x | G125: x | H125: x | I125: 87.4 | J125: 86.8 | K125: 83.5 | L125: 90.4 | M125: 89.6 | N125: 44.7 | O125: 71.3 | P125: 49.7 | Q125: 48.8
A126: Минеральные удобрения и сырье для них, тыс. т | B126: x | C126: x | D126: x | E126: x | F126: x | G126: x | H126: x | I126: 326.1 | J126: 752.1 | K126: 778.2 | L126: 775.9 | M126: 953 | N126: 913.2 | O126: 836.4 | P126: 799.7 | Q126: 800.6
A127: Сибур Холдинг***
A128: Сухой газ, млн м3 | B128: 10951 | C128: 12075.6 | D128: 9290.2 | E128: 4433 | F128: x | G128: x | H128: x | I128: x | J128: x | K128: x | L128: x | M128: x | N128: x | O128: x | P128: x | Q128: x
A129: Сжиженные углеводородные газы, тыс. т | B129: 2891 | C129: 2942.8 | D129: 2861.7 | E129: 1503.1 | F129: x | G129: x | H129: x | I129: x | J129: x | K129: x | L129: x | M129: x | N129: x | O129: x | P129: x | Q129: x
A130: ШФЛУ, тыс. т | B130: 2465 | C130: 3015.3 | D130: 2061.4 | E130: 933.9 | F130: x | G130: x | H130: x | I130: x | J130: x | K130: x | L130: x | M130: x | N130: x | O130: x | P130: x | Q130: x
A131: Бензин газовый стабильный тыс. т | B131: 562 | C131: 613 | D131: 677 | E131: 284 | F131: x | G131: x | H131: x | I131: x | J131: x | K131: x | L131: x | M131: x | N131: x | O131: x | P131: x | Q131: x
A132: Мономеры, тыс. т | B132: 1848 | C132: 2122.5 | D132: 1997.9 | E132: 1096.3 | F132: x | G132: x | H132: x | I132: x | J132: x | K132: x | L132: x | M132: x | N132: x | O132: x | P132: x | Q132: x
A133: Полимеры и изделия, тыс. т | B133: 469 | C133: 490 | D133: 506 | E133: 290 | F133: x | G133: x | H133: x | I133: x | J133: x | K133: x | L133: x | M133: x | N133: x | O133: x | P133: x | Q133: x
A134: Синтетические каучуки, тыс. т | B134: 584 | C134: 624 | D134: 553.4 | E134: 267.9 | F134: x | G134: x | H134: x | I134: x | J134: x | K134: x | L134: x | M134: x | N134: x | O134: x | P134: x | Q134: x
A135: Продукция органического синтеза, тыс. т | B135: 990 | C135: 1109 | D135: 1134.6 | E135: 544.5 | F135: x | G135: x | H135: x | I135: x | J135: x | K135: x | L135: x | M135: x | N135: x | O135: x | P135: x | Q135: x
A136: Метил третбутиловый эфир (МТБЭ), тыс. т | B136: 379 | C136: 371.5 | D136: 458.4 | E136: 243.5 | F136: x | G136: x | H136: x | I136: x | J136: x | K136: x | L136: x | M136: x | N136: x | O136: x | P136: x | Q136: x
A137: Минеральные удобрения и сырье для них, тыс. т | B137: 1482 | C137: 1360.4 | D137: 1598.1 | E137: 1103.4 | F137: x | G137: x | H137: x | I137: x | J137: x | K137: x | L137: x | M137: x | N137: x | O137: x | P137: x | Q137: x
A138: Шины, млн шт. | B138: 13.4 | C138: 12.8 | D138: 13.6 | E138: 6.5 | F138: x | G138: x | H138: x | I138: x | J138: x | K138: x | L138: x | M138: x | N138: x | O138: x | P138: x | Q138: x
A139: * С учетом объемов производства продукции переработки ООО «Газпром добыча шельф Южно-Сахалинск», ООО «Газпром метанол», АО «Газпром добыча Томск». Также учтены объемы производства продукции переработки ООО «Газпром добыча Иркутск» и ООО «Сервиснефтегаз», финансовые показатели которых в связи с их несущественностью не включаются в консолидированную финансовую отчетность Группы Газпром по МСФО.
A140: ** Показатели приведены начиная с 1 июня 2012 г.
A141: *** Показатели приведены до момента деконсолидации с III кв. 2008 г.
A143: Вернуться к содержанию

Sheet ГПЗ и НПЗ
A1: Предприятия по переработке углеводородного сырья и производству газо- и нефтехимической продукции
A2: Наименование | B2: Компания | C2: Местоположение | D2: Год ввода в эксплуатацию / год создания | E2: Годовая мощность по переработке сырья / производству продукции (по состоянию на 31.12.2020 г.) | F2: Основная продукция
A3: Астраханский ГПЗ | B3: ООО «Газпром переработка» | C3: Астрахань | D3: 1986 г. | E3: 12,0 млрд м3 природного газа, 7,3 млн т нестабильного газового конденсата, 2,5 млн т стабильного газового конденсата и нефти | F3: Сухой товарный газ, стабильный газовый конденсат, СУГ, широкая фракция легких углеводородов (ШФЛУ), автомобильный бензин, дистиллят газового конденсата легкий, дизельное топливо, мазут, дистиллят газового конденсата тяжелый, дистиллят газового конденсата средний, газовая сера
A4: Оренбургский ГПЗ | C4: Оренбург | D4: 1974 г. | E4: 37,5 млрд м3 природного газа, 6,26 млн т нестабильного газового конденсата и нефти | F4: Сухой товарный газ, стабильный газовый конденсат, СУГ, ШФЛУ, сера газовая, одорант
A5: Оренбургский гелиевый завод | C5: Оренбург | D5: 1978 г. | E5: 15,0 млрд м3 природного газа | F5: Гелий газообразный и сжиженный, сухой товарный газ, этановая фракция, СУГ, ШФЛУ, пентан-гексановая фракция (ПГФ), углеводородная фракция
A6: Сосногорский ГПЗ | C6: Сосногорск, Республика Коми | D6: 1946 г. | E6: 3,0 млрд м3 природного газа, 2,5 млн т нестабильного конденсата (стабилизация) | F6: Сухой товарный газ, СУГ, стабильный газовый конденсат, техуглерод
A7: Уренгойский завод по подготовке конденсата к транспорту | C7: Новый Уренгой | D7: 1985 г. | E7: 13,67 млн т нестабильного (невыветренного) конденсата (деэтанизация и стабилизация) или 12,2 млн т выветренного конденсата | F7: Деэтанизированный газовый конденсат, стабильный газовый конденсат, СУГ, ШФЛУ, дизельное топливо, дистиллят газового конденсата легкий, топливо для реактивных двигателей ТС-1, газ деэтанизации
A8: Сургутский завод по стабилизации конденсата | C8: Сургут | D8: 1985 г. | E8: 12,05 млн т нефтегазоконденсатной смеси (стабилизация), 4,0 млн т стабильного газового конденсата и нефти | F8: Стабильный газовый конденсат (нефть), автомобильный бензин, дизельное топливо, топливо для реактивных двигателей ТС-1, СУГ, ШФЛУ, ПГФ, дистиллят газового конденсата легкий
A9: Завод по производству метанола, метанольного формалина и карбамидоформальдегидного концентрата | B9: ООО «Газпром метанол» | C9: Томск | D9: 1983 г. | E9: Сырье: 926,01 млн м3 газа Выработка: 871,13 тыс. т метанола | F9: Метанол
D10: 2016 г. | E10: Сырье: 45,77 тыс. т метанола, 14,52 тыс. т карбамида Выработка: 57,82 тыс. т карбамидоформальдегидного концентрата КФК-85, 11,92 тыс. т формалина | F10: Формалин метанольный, карбамидоформальдегидный концентрат
A11: Омский НПЗ | B11: АО «Газпромнефть-ОНПЗ» | C11: Омск | D11: 1955 г. | E11: 22,23 млн т нефти и конденсата | F11: Бензин автомобильный, бензин газовый стабильный, дизельное топливо, авиакеросин, мазут, ароматические углеводороды, СУГ, кокс, нефтяные битумы, сера, катализаторы каталитического крекинга
A12: Московский НПЗ | B12: АО «Газпромнефть-МНПЗ» | C12: Москва | D12: 1938 г. | E12: 12,76 млн т нефти | F12: Бензин автомобильный, дизельное топливо, авиакеросин, мазут, нефтяные битумы, СУГ, сера
A13: НПЗ (г. Панчево) | B13: NIS | C13: Панчево (Сербия) | D13: 1968 г. | E13: 4,6 млн т нефти | F13: Бензин автомобильный, бензин газовый стабильный, дизельное топливо, авиакеросин, мазут, бензол, толуол, СУГ, битум нефтяной, полимер-битум, сера и пропилен
A14: НПЗ (г. Нови-Сад) | B14: NIS | C14: Нови-Сад (Сербия) | D14: 1968 г. | E14: Находится на консервации | F14: Бензин автомобильный, дизельное топливо, мазут и битумы
A15: Завод по смешению масел и смазок (г. Бари) | B15: Gazpromneft Lubricants Italia S.p.A. | C15: Бари (Италия) | D15: 1976 г. | E15: 30 тыс. т масел и 6 тыс. т пластичных смазок | F15: Масла индустриальные, масла автомобильные, смазки
A16: Московский завод смазочных материалов (МЗСМ) | B16: АО «Газпромнефть МЗСМ» | C16: Фрязино, Московская область | D16: 2007 г. | E16: 108 тыс. т масел | F16: Моторные, трансмиссионные, индустриальные масла
A17: Омский завод смазочных материалов (ОЗСМ) | B17: ООО «Газпромнефть — смазочные материалы» | C17: Омск | D17: 2009 г. (создан филиал ООО «Газпромнефть — смазочные материалы» в г. Омске) | E17: 260 тыс. т масел | F17: Моторные и индустриальные масла
A18: Рязанский опытный завод битумных материалов (РЗБМ) | B18: ООО «Газпромнефть — Рязанский завод битумных материалов» | C18: Рязань | D18: 2011 г. (установка по производству ПБВ) | E18: 130 тыс. т ПБВ | F18: Полимерно-битумное вяжущее (ПБВ)
A19: Битумный завод | B19: ТОО «Газпромнефть — Битум Казахстан» | C19: Южно-Казахстанская область (Казахстан) | D19: 2011 г. | E19: 280 тыс. т | F19: Дорожный и строительный битум
A20: ООО «НОВА-Брит» | B20: ООО «НОВА-Брит» | C20: Вязьма, Смоленская область | D20: 2005 г. | E20: 80 тыс. т | F20: Битумопроизводные продукты для дорожного, аэродромного строительства, жилищно-коммунального хозяйства, мосто- и метростроения: битумные мастики и герметики, битумно-полимерные стыковочные ленты, битумные эмульсии, ПБВ, полимерно-битумные эмульсионные мастики, защитно-восстановительные составы, «жидкая» резина
A21: Сальский битумный терминал | B21: ООО «Газпромнефть — Битумный Терминал Юг» | C21: Сальск, Ростовская область | D21: 2018 г. | E21: Производство: 60 тыс. т ПБВ Перевалка: 120 тыс. т битумов нефтяных дорожных | F21: ПБВ
A22: АО «СОВХИМТЕХ», ООО «Полиэфир», ООО «БСВ-ХИМ» | B22: Группа компаний «Росполихим» | C22: Нижний Новгород | D22: 2001 г. | E22: 30 тыс. т продукции, в т. ч. 5 тыс. т масел | F22: Авиационные, гидравлические, закалочные, компрессорные, вакуумные, трансмиссионные, холодильные, индустриальные масла, масла для прокатных станов, смазочно-охлаждающие жидкости, пластификаторы, консервационные смазочные материалы, противообледенительная жидкость, винилин, присадки, базовые основы для смазочных материалов
A23: НПЗ | B23: ООО «Газпром нефтехим Салават» | C23: Салават, Республика Башкортостан | D23: 1955 г. | E23: 10,0 млн т нефти и стабильного газового конденсата | F23: Бензин автомобильный, фракция пентан-изопентановая, изомеризат, фракция изопентановая, бензол нефтяной, толуол нефтяной, дизельное топливо, мазут, топливо нефтяное АВТ, сырье для производства вязких нефтяных дорожных битумов, сера техническая, битумы нефтяные
A24: Завод «Мономер» | B24: ООО «Газпром нефтехим Салават» | C24: Салават, Республика Башкортостан | D24: 1991 г. | E24: 165,7 тыс. т полиэтилена, 45,9 тыс. т полистирола, 202,0 тыс. т стирола, 230,0 тыс. т этилбензола, 369,0 тыс. т этилена, 163,0 тыс. т пропилена, 152,3 тыс. т бензола, 183,8 тыс. т спиртов, 37,6 тыс. т 2-этилгексанола, 21,9 тыс. т водорода, 38,4 тыс. т пластификатора ДОФ, 16,3 тыс. т фталевого ангидрида | F24: Этилен, пропилен, бензол, фракция пентан-изопренциклопентадиеновая, фракция бутилен-бутадиеновая, смола пиролизная тяжелая, стирол, этилбензол, полистиролы, полиэтилен высокой плотности, полиэтилен высокого давления, спирт нормальный бутиловый технический, спирт изобутиловый технический, 2-этилгексанол, пластификатор ДОФ
A25: Газохимический завод | B25: ООО «Газпром нефтехим Салават» | C25: Салават, Республика Башкортостан | D25: 1964 г. | E25: 604,8 тыс. т аммиака, 701,7 тыс. т карбамида | F25: Аммиак, карбамид, аммиачная вода
A26: Завод по производству акриловой кислоты и бутилакрилата | B26: ООО «Акрил Салават» | C26: Салават, Республика Башкортостан | D26: 2016 г. | E26: 80 тыс. т бутилакрилата, 35 тыс. т ледяной акриловой кислоты (полимерного качества) | F26: Бутилакрилат, ледяная акриловая кислота
A28: Кроме того, Группа Газпром имеет доступ к мощностям:
A29: Наименование | B29: Компания | C29: Местоположение | D29: Год ввода в эксплуатацию / год создания | E29: Годовая мощность по переработке сырья / производству продукции (по состоянию на 31.12.2020 г.) | F29: Основная продукция
A30: Ярославнефтеоргсинтез | B30: ПАО «Славнефть-ЯНОС» | C30: Ярославль | D30: 1958−1961 гг. | E30: 15,0 млн т нефти | F30: Бензин автомобильный, бензин газовый стабильный, дизельное топливо, авиакеросин, мазут, масла, ароматические углеводороды, сера, серная кислота, парафино-восковая продукция
A31: Мозырский НПЗ | B31: ОАО «Мозырский НПЗ» | C31: Мозырь (Республика Беларусь) | D31: 1975 г. | E31: 14,0 млн т нефти | F31: Бензины автомобильные, керосин осветительный, дизельное топливо, топливо печное бытовое, топочный мазут, битумы нефтяные, СУГ, вакуумный газойль, бензол нефтяной
A32: НПП Нефтехимия | B32: ООО «НПП «Нефтехимия» (СП с ПАО «СИБУР Холдинг») | C32: Москва | D32: 2003 г. | E32: 150,0 тыс. т | F32: Полипропилен
A33: Полиом | B33: ООО «Полиом» (СП с ПАО «СИБУР Холдинг») | C33: Омск | D33: 2013 г. | E33: 218,4 тыс. т | F33: Полипропилен
A34: Тоталь – ПМБ | B34: ООО «Газпромнефть — Тоталь ПМБ» (СП с концерном Total) | C34: Москва | D34: 2014 г. | E34: 40,0 тыс. т | F34: Полимерно-модифицированные битумы и полимер-битумное вяжущее, битумная эмульсия
A35: Южно-Приобский ГПЗ | B35: ООО «Южно-Приобский ГПЗ» (СП с ПАО «СИБУР Холдинг») | C35: Ханты-Мансийск | D35: 2015 г. | E35: 900,0 млн м3 ПНГ | F35: Сухой отбензиненный газ, ШФЛУ
A37: Вернуться к содержанию

Sheet Проекты на действующ. ГПЗ и НПЗ
A1: Основные инвестиционные проекты на действующих предприятиях по переработке углеводородного сырья, производству газо- и нефтехимической продукции Группы Газпром
A2: Предприятие | B2: Компания | C2: Наименование проекта | D2: Цель проекта | E2: Проектная мощность по переработке сырья / производству продукции, иные характеристики проекта | F2: Год ввода в эксплуатацию / эксплуатационной готовности
A3: Астраханский ГПЗ | B3: ООО «Газпром переработка» | C3: Стройка «Реконструкция I и II очередей Астраханского газового комплекса (АГК) как единого промышленного объекта» | D3: Увеличение глубины переработки сырья, повышение качества и экологических характеристик товарной продукции (дизельное топливо, бензин). | E3: В результате реализации проекта планируется обеспечить гарантированную переработку конденсата и ШФЛУ в объеме, соответствующем приему на переработку 12,0 млрд м3 газа в год. | F3: 2023 г.
C4: Реконструкция Астраханского ГПЗ для получения этановой фракции | D4: Увеличение глубины переработки сырья, производство нового вида товарной продукции — этановой фракции. | E4: До 320 тыс. т в год этановой фракции для последующего производства полиэтилена | F4: 2027 г.
A5: Завод по производству метанола, метанольного формалина и карбамидоформальдегидного концентрата | B5: ООО «Газпром метанол» | C5: Проект по увеличению мощности производства метанола (2-я очередь) | D5: Увеличение производительности агрегата до 3 100 т в сутки. | E5: Сырье: 1 020 млн м3 газа Выработка: 1 000 тыс. т метанола | F5: 2023 г.
C6: Техническое перевооружение | D6: Модернизация существующего технологического оборудования производств метанола, метанольного формалина и карбамидоформальдегидного концентрата. | E6: Без изменения | F6: Ежегодно
A7: Омский НПЗ | B7: АО «Газпромнефть-ОНПЗ» | C7: Строительство комплекса глубокой переработки нефти в составе установки гидрокрекинга вакуумного газойля, установок по производству водорода и серы* | D7: Увеличение производства высокооктановых бензинов, авиакеросина и дизельного топлива. | E7: 2,0 млн т вакуумного газойля в год | F7: 2021 г.
C8: Строительство комбинированной установки первичной переработки нефти (ЭЛОУ-АВТ)* | D8: Замена устаревших установок, обеспечение раздельной переработки нефти и газового конденсата для улучшения низкотемпературных свойств авиакеросинов. | E8: 8,4 млн т в год по нефти и 1,2 млн т в год по стабильному газовому конденсату | F8: 2021 г.
C9: Строительство установки замедленного коксования* | D9: Прекращение выпуска мазута и увеличение производства светлых нефтепродуктов и кокса анодного качества. | E9: 2,0 млн т гудрона в год | F9: 2021 г.
C10: Строительство установки гидроочистки и депарафинизации дизельного топлива | D10: Замена двух установок гидроочистки, увеличение объема производства зимнего дизельного топлива. | E10: 2,5 млн т в год | F10: 2021 г.
C11: Реконструкция установки замедленного коксования 21-10/3М | D11: Замена морально и физического устаревшего оборудования с увеличением межремонтного периода установки с 2 до 4 лет и возможностью производства игольчатого кокса. | E11: 767 тыс. т в год | F11: 2022 г.
C12: Реконструкция установки каталитического риформинга | D12: Переработка вторичных бензинов и исключение высокосернистых низкооктановых компонентов. | E12: Увеличение мощности с 600 тыс. т в год до 900 тыс. т в год | F12: 2021 г.
C13: Строительство очистных сооружений | D13: Снижение концентрации вредных веществ в промышленных стоках, сокращение открытых площадных источников, снижение потребления свежей воды за счет возврата очищенных стоков на повторное использование. | E13: 3 450 м3 в час | F13: 2022 г.
A14: Московский НПЗ | B14: АО «Газпромнефть-МНПЗ» | C14: Строительство комплекса глубокой переработки нефти в составе установок гидрокрекинга и замедленного коксования, по производству серы и производству водорода* | D14: Снижение выпуска мазута, увеличение производства светлых нефтепродуктов. | E14: 2,0 млн т вакуумного газойля и 2,4 млн т гудрона в год | F14: 2023–2025 гг. (поэтапный ввод)
C15: Строительство автоматизированной установки тактового налива светлых нефтепродуктов в железнодорожный транспорт | D15: Увеличение мощности системы отгрузки топлив, минимизация негативного воздействия на окружающую среду. | E15: 5,8 тыс. т нефтепродуктов в сутки, или 2,1 млн т нефтепродуктов в год | F15: 2023 г.
A16: НПЗ (г. Панчево) | B16: NIS | C16: Реконструкция установки каталитического крекинга | D16: Увеличение производительности установки. | E16: Увеличение производительности с 600 до 660 тыс. т в год | F16: 2024 г.
C17: Строительство установки производства этил-трет-бутилового эфира | D17: Производство биокомпонентов моторного топлива. | E17: 55 тыс. т в год | F17: 2024 г.
A18: Омский завод смазочных материалов (ОЗСМ) | B18: ООО «Газпромнефть — смазочные материалы» | C18: Строительство комплекса гидроизодепарафинизации остатка гидрокрекинга | D18: Получение базовых масел групп II и III, которое позволит отказаться от использования импортных базовых масел в производстве синтетических смазочных материалов, снизить их себестоимость и расширить ассортимент. | E18: 220 тыс. т в год | F18: 2022–2023 гг.
A19: НПЗ | B19: ООО «Газпром нефтехим Салават» | C19: Строительство комплекса каталитического крекинга | D19: Углубление переработки вакуумного газойля и гидроочищенного вакуумного газойля с получением высокооктанового компонента товарных бензинов. | E19: 1,095 млн т вакуумного газойля в год | F19: 2021 г.
C20: Строительство производства элементарной серы (первая нитка) | D20: Переработка дополнительных объемов сероводорода, образующегося на установках гидроочистки НПЗ после увеличения переработки высокосернистого сырья. | E20: 60 тыс. т в год | F20: 2021 г.
C21: Реконструкция: | D21: Увеличение производства товарных бензинов высокого экологического класса Евро-5. | F21: 2021–2022 гг. (поэтапный ввод)
C22: установки гидроочистки вакуумного газойля | E22: 1,2 млн т в год по сырью
C23: блока предгидроочистки установки каталитического риформинга | E23: 1,0 млн т по сырью
C24: Реконструкция очистных сооружений | D24: Повышение качества очистки сточных вод до соответствия требованиям, предъявляемым к воде водных объектов рыбохозяйственного назначения высшей категории, хозяйственно-бытового, рекреационного водопользования; существенное увеличение доли повторного водоснабжения; двукратное уменьшение территории очистных сооружений; снижение выбросов вредных веществ в атмосферу. | E24: x | F24: 2021–2023 гг. (поэтапный ввод)
A25: * Проекты увеличения глубины переработки.
A26: Примечание. Информация приведена по состоянию на 31 декабря 2020 г. Сроки по вводу объектов в эксплуатацию и выходу на проектную производительность могут изменяться в зависимости от ситуации на рынке энергоносителей.
A28: Вернуться к содержанию

Sheet Проекты Группы в переработке
A1: Основные проекты Группы Газпром по созданию новых предприятий по переработке углеводородного сырья, производству продукции газо- и нефтехимии
A2: Наименование и цель проекта | B2: Компания | C2: Местоположение | D2: Годовая проектная мощность по переработке сырья / производству продукции | F2: Год ввода в эксплуатацию
A3: Новоуренгойский газохимический комплекс (ГХК). Цель — переработка газов деэтанизации конденсата, месторождений Надым-Пур-Тазовского региона. Потенциальными рынками сбыта товарной продукции являются российские потребители, европейский и азиатский рынки. | B3: ООО «Газпром Новоуренгойский газохимический комплекс» | C3: Новый Уренгой | D3: 1 456 тыс. т этансодержащего газа, 400 тыс. т полиэтилена низкой плотности | F3: Будет определен по результатам диагностического обследования объекта
A4: Амурский ГПЗ. Цель — комплексная переработка газа Якутского и Иркутского центров газодобычи. | B4: ООО «Газпром переработка Благовещенск» | C4: Свободненский район, Амурская область | D4: Переработка 42,0 млрд м3 природного газа. Производство 38,0 млрд м3 товарного газа, до 2,4 млн т этана, до 1,56 млн т СУГ, до 0,2 млн т ПГФ, до 60,0 млн м3 гелия* | F4: Пуск первого пускового комплекса — 2021 г., остальных пусковых комплексов — 2022–2024 гг. Выход на проектную мощность — 2025 г.
A5: Установка стабилизации конденсата ачимовских залежей Надым-Пур-Тазовского региона. Цель — создание на севере Тюменской области схемы подготовки и транспорта тяжелого парафинистого сырья (нефти и конденсата ачимовских залежей). | B5: ООО «Газпром переработка» | C5: Пуровский район, ЯНАО | D5: По нестабильному конденсату — 4,0 млн т, по деэтанизированному конденсату — 2,4 млн т, по стабильному конденсату — 1,2 млн т, по газам деэтанизации — 0,4 млрд м3 | F5: 2021 г.
A6: Комплекс по переработке природного газа в этилен и пропилен с последующей переработкой олефинов в нефтехимические производные на базе ООО «Газпром нефтехим Салават». Цель — монетизация природного газа за счет производства продукции с высокой добавленной стоимостью. | B6: ООО «Газпром нефтехим Салават» | C6: Салават, Республика Башкортостан | D6: Перспективные объемы доступного сырья — от 1,5 до 3,0 млрд м3 природного газа* | F6: 2026 г.
A7: Производство катализаторов Цели: ■ Создание нового наукоемкого бизнес направления в ПАО «Газпром нефть» по производству и сервисному сопровождению катализаторов каталитического крекинга, гидроочистки и гидрокрекинга. ■ Решение вопросов импортозамещения и коммерциализации собственных инноваций. ■ Организация масштабного высокотехнологичного производства современных эффективных катализаторов нефтепереработки для обеспечения потребностей НПЗ Газпром нефти и других НПЗ России, стран СНГ и развивающихся стран дальнего зарубежья. | B7: ООО «Газпромнефть — КС» | C7: Омск | D7: 21 тыс. т катализаторов | F7: 2022 г.
A8: * Приведено в нормальных кубических метрах газа, которые соответствуют кубическим метрам газа, измеренным под давлением в одну атмосферу при 0° С.
A9: Примечание. Информация приведена по состоянию на 31 декабря 2020 г.
A11: Проекты Группы Газпром по транспортировке жидких углеводородов из Надым-Пур-Тазовского региона
A12: Наименование проекта | B12: Компания | C12: Местоположение | D12: Годовая проектная производительность | F12: Год ввода в эксплуатацию
A13: Нефтеперекачивающая станция Уренгойская | B13: ООО «Газпром инвест» | C13: Пуровский район, ЯНАО | D13: Транспортировка 5,0 млн т углеводородов | F13: 2021 г.
A14: Нефтеконденсатопровод Уренгой — Пурпе | B14: ООО «Газпром инвест» | C14: Пуровский район, ЯНАО | D14: Транспортировка 5,0 млн т углеводородов | F14: 2021 г.
A15: Примечание. Информация приведена по состоянию на 31 декабря 2020 г. Сроки по вводу объектов в эксплуатацию и выходу на проектную производительность могут изменяться в зависимости от ситуации на рынке энергоносителей.
A17: Мощности Группы Газпром по транспортировке жидких углеводородов из Надым-Пур-Тазовского региона
A18: Наименование проекта | B18: Компания | C18: Местоположение | D18: Годовая проектная производительность | F18: Год ввода в эксплуатацию
A19: Конденсатопровод Уренгой — Сургут (II нитка). Участок км 107 — км 288 | B19: ООО «Газпром переработка» | C19: Пуровский район, ЯНАО | D19: Транспортировка 12,0 млн т углеводородов | F19: 2018 г.
A21: Вернуться к содержанию

Sheet СПГ проекты Группы
A1: Мощности Группы Газпром по приему, хранению и регазификации СПГ
A2: Наименование | C2: Назначение | E2: Годовая проектная производительность | F2: Год ввода в эксплуатацию
A3: Терминал по приему, хранению и регазификации СПГ на базе плавучей регазификационной установки в Калининградской области | C3: Обеспечение энергобезопасности Калининградской области | E3: 3,7 млрд м3 газа | F3: 2018 г.
A5: Перспективные проекты Группы Газпром по производству мало- и среднетоннажного СПГ
A6: Наименование | B6: Целевые рынки сбыта | E6: Годовая проектная производительность | F6: Год ввода в эксплуатацию
A7: Комплекс по производству, хранению и отгрузке СПГ (КСПГ) вблизи КС Портовая | B7: Рынки стран региона Балтийского и Северного морей, бункеровка судов СПГ в Балтийском море, при необходимости — поставки СПГ на регазификационный терминал в Калининградской области | E7: 1,5 млн т СПГ | F7: 2021 г.
A8: Завод по производству СПГ в районе г. Владивостока | B8: Страны Азиатско-Тихоокеанского региона, включая Китай и Японию, а также бункеровка судов СПГ, в том числе на Дальнем Востоке России | E8: Будет определена по итогам разработки Обоснования инвестиций | F8: Будет определен по итогам разработки Обоснования инвестиций
A9: Примечание. Информация приведена по состоянию на 31 декабря 2020 г. Сроки по вводу объектов в эксплуатацию и выходу на проектную производительность могут изменяться в зависимости от ситуации на рынке энергоносителей.
A11: Вернуться к содержанию

Sheet Проекты с участием Группы
A1: Перспективные проекты по переработке углеводородного сырья, производству крупнотоннажного СПГ с участием Группы Газпром
A2: Наименование и цель проекта | B2: Компания | C2: Местоположение | D2: Условия участия Группы Газпром | E2: Годовая проектная мощность по переработке сырья / производству продукции | F2: Год ввода в эксплуатацию
A3: Интегрированный комплекс по переработке и сжижению природного газа в Усть-Луге. Цель — комплексная переработка этансодержащего газа Надым-Пур-Тазовского региона ЯНАО. Целевыми рынками сбыта СПГ являются страны Атлантического региона, Ближнего Востока, Южной Азии, предполагается проведение маркетинговых исследований. | B3: ООО «РусХимАльянс» (создано на паритетной основе ООО «Газпром инвест РГК» (дочернее общество ООО «Газпром межрегионгаз») и АО «РусГазДобыча») | C3: Ленинградская область, Кингисеппский район | D3: Финансирование проекта со стороны ПАО «Газпром» в доле: 50 % — до привлечения проектного финансирования; 15 % — после привлечения проектного финансирования. | E3: Переработка 45 млрд м3 природного газа с производством сухого отбензиненного газа, СУГ, этановой и пентан-гексановой фракции, производство 13 млн т СПГ | F3: Первая очередь — 2024 г., вторая очередь — 2025 г.
A4: Третья технологическая линия завода СПГ проекта «Сахалин-2». Целевыми рынками сбыта СПГ являются страны Азиатско-Тихоокеанского региона. | B4: Sakhalin Energy Investment Company Ltd. (ассоциированная организация Группы Газпром) | C4: о. Сахалин | D4: Будут определены по результатам совместного решения акционеров Sakhalin Energy Investment Company Ltd. | E4: До 5,4 млн т СПГ | F4: Будет определен по результатам совместного решения акционеров Sakhalin Energy Investment Company Ltd.
A5: Примечание. Информация приведена по состоянию на 31 декабря 2020 г. Сроки по вводу объектов в эксплуатацию и выходу на проектную производительность могут изменяться в зависимости от ситуации на рынке энергоносителей.
A7: Вернуться к содержанию

Sheet Электроэнергетика
A1: Электроэнергетика
A2: Электрические мощности Группы Газпром, МВт
A3: Генерирующая компания | B3: По состоянию на 31 декабря
B4: 2007 | C4: 2008 | D4: 2009 | E4: 2010 | F4: 2011 | G4: 2012 | H4: 2013 | I4: 2014 | J4: 2015 | K4: 2016 | L4: 2017 | M4: 2018 | N4: 2019 | O4: 2020
A5: На территории России
A6: Газпром энергохолдинг
A7: ПАО «Мосэнерго» | B7: 11117 | C7: 11904 | D7: 11918 | E7: 11900 | F7: 12305 | G7: 12299 | H7: 12262 | I7: 12737 | J7: 12915 | K7: 12963 | L7: 12873 | M7: 12798 | N7: 12825 | O7: 12825
A8: ПАО «МОЭК» и его дочерние общества* | B8: х | C8: х | D8: х | E8: х | F8: х | G8: х | H8: 193 | I8: 166 | J8: 129 | K8: – | L8: – | M8: – | N8: – | O8: –
A9: ПАО «ОГК-2» | B9: х | C9: 8695 | D9: 8695 | E9: 8707 | F9: 17869 | G9: 18448 | H9: 17995 | I9: 18422 | J9: 18024 | K9: 18955 | L9: 18997 | M9: 18828 | N9: 19012 | O9: 17608
A10: ОАО «ОГК-6»** | B10: х | C10: 9052 | D10: 9052 | E10: 9162 | F10: х | G10: х | H10: х | I10: х | J10: х | K10: х | L10: х | M10: х | N10: х | O10: x
A11: ПАО «ТГК-1» и его дочерние общества | B11: х | C11: х | D11: 6313 | E11: 6266 | F11: 6837 | G11: 6870 | H11: 7238 | I11: 7164 | J11: 7057 | K11: 6951 | L11: 6950 | M11: 6950 | N11: 6918 | O11: 6924
A12: Всего | B12: =B7 -> 11117 | C12: =C7+C9+C10 -> 29651 | D12: =D7+D9+D10+D11 -> 35978 | E12: =E7+E9+E10+E11 -> 36035 | F12: =F7+F9+F11 -> 37011 | G12: 37617 | H12: 37688 | I12: 38489 | J12: 38125 | K12: 38869 | L12: 38820 | M12: 38576 | N12: 38755 | O12: 37357
A13: Прочие активы
A14: Газпром нефтехим Салават*** | B14: х | C14: х | D14: х | E14: х | F14: х | G14: х | H14: 541 | I14: 541 | J14: 541 | K14: 893 | L14: 893 | M14: 893 | N14: 893 | O14: 893
A15: Другие | B15: – | C15: – | D15: – | E15: – | F15: – | G15: – | H15: – | I15: – | J15: – | K15: 3 | L15: 3 | M15: 3 | N15: 3 | O15: 3
A16: Всего | B16: х | C16: х | D16: х | E16: х | F16: х | G16: х | H16: 541 | I16: 541 | J16: 541 | K16: =K14+K15 -> 896 | L16: 896 | M16: 896 | N16: 896 | O16: 896
A17: Итого на территории России | B17: 11117 | C17: 29651 | D17: 35978 | E17: 36035 | F17: 37011 | G17: 37617 | H17: 38229 | I17: 39030 | J17: 38666 | K17: 39765 | L17: 39716 | M17: 38472 | N17: 39651 | O17: 38253
A18: На территории зарубежных стран
A19: ЗАО «Каунасская теплофикационная электростанция» (Литва) | B19: 170 | C19: 170 | D19: 170 | E19: 170 | F19: 170 | G19: 170 | H19: х | I19: х | J19: х | K19: х | L19: х | M19: х | N19: х | O19: x
A20: ЗАО «Газпром Армения» | B20: х | C20: х | D20: х | E20: х | F20: 467 | G20: 467 | H20: 467 | I20: 467 | J20: 467 | K20: 467 | L20: 467 | M20: 467 | N20: 467 | O20: 467
A21: Другие | B21: – | C21: – | D21: – | E21: – | F21: – | G21: – | H21: – | I21: – | J21: – | K21: 13 | L21: 13 | M21: 12 | N21: 12 | O21: 13
A22: Итого на территории зарубежных стран | B22: 170 | C22: 170 | D22: 170 | E22: 170 | F22: 637 | G22: 637 | H22: 467 | I22: 467 | J22: 467 | K22: 480 | L22: 480 | M22: 479 | N22: 479 | O22: 480
A23: Итого | B23: =B17+B22 -> 11287 | C23: 29821 | D23: 36148 | E23: 36205 | F23: 37648 | G23: 38254 | H23: 38696 | I23: 39497 | J23: 39133 | K23: 40245 | L23: 40196 | M23: 39951 | N23: 40130 | O23: 38733
A24: * Показатели приведены с момента установления контроля.
A25: ** В ноябре 2011 г. ОАО «ОГК-6» реорганизовано путем присоединения к ОАО «ОГК-2».
A26: *** Показатели приведены начиная с 2013 г.
A28: Тепловые мощности Группы Газпром, Гкал/ч
A29: Генерирующая компания | B29: По состоянию на 31 декабря
B30: 2007 | C30: 2008 | D30: 2009 | E30: 2010 | F30: 2011 | G30: 2012 | H30: 2013 | I30: 2014 | J30: 2015 | K30: 2016 | L30: 2017 | M30: 2018 | N30: 2019 | O30: 2020
A31: На территории России
A32: Газпром энергохолдинг
A33: ПАО «Мосэнерго» | B33: 34297 | C33: 34167 | D33: 34900 | E33: 34852 | F33: 35083 | G33: 35011 | H33: 34809 | I33: 40371 | J33: 43 315 | K33: 42894 | L33: 42761 | M33: 43136 | N33: 43211 | O33: 43777
A34: ПАО «МОЭК» и его дочерние общества* | B34: х | C34: х | D34: х | E34: х | F34: х | G34: х | H34: 17529 | I34: 10546 | J34: 6845 | K34: 7036 | L34: 7236 | M34: 7091 | N34: 6661 | O34: 5519
A35: ПАО «ОГК-2» | B35: х | C35: 1700 | D35: 1700 | E35: 1649 | F35: 4316 | G35: 4473 | H35: 4474 | I35: 4336 | J35: 4336 | K35: 4169 | L35: 4162 | M35: 3934 | N35: 3959 | O35: 2827
A36: ОАО «ОГК-6»** | B36: х | C36: 2700 | D36: 2700 | E36: 2704 | F36: х | G36: х | H36: х | I36: х | J36: х | K36: х | L36: х | M36: х | N36: х | O36: x
A37: ПАО «ТГК-1» и его дочерние общества | B37: х | C37: х | D37: 14362 | E37: 14426 | F37: 14616 | G37: 14497 | H37: 14234 | I37: 14152 | J37: 14142 | K37: 14532 | L37: 13646 | M37: 13745 | N37: 13485 | O37: 13480
A38: Всего | B38: =B33 -> 34297 | C38: =C33+C35+C36 -> 38567 | D38: =D33+D35+D36+D37 -> 53662 | E38: =E33+E35+E36+E37 -> 53631 | F38: =F33+F35+F37 -> 54015 | G38: =G33+G35+G37 -> 53981 | H38: =H33+H35+H37+H34 -> 71046 | I38: =I33+I35+I37+I34 -> 69405 | J38: 68638 | K38: 68631 | L38: 67805 | M38: 67906 | N38: 67316 | O38: 65603
A39: Прочие активы
A40: Газпром нефтехим Салават*** | B40: х | C40: х | D40: х | E40: х | F40: х | G40: х | H40: 1619 | I40: 1619 | J40: 1619 | K40: 2352 | L40: 2352 | M40: 2352 | N40: 2429 | O40: 2429
A41: Другие | B41: – | C41: – | D41: – | E41: – | F41: – | G41: – | H41: – | I41: – | J41: – | K41: 759 | L41: 801 | M41: 518 | N41: 489 | O41: 499
A42: Всего | B42: – | C42: – | D42: – | E42: – | F42: – | G42: – | H42: 1619 | I42: 1619 | J42: 1619 | K42: 3111 | L42: 3153 | M42: 2870 | N42: 2918 | O42: 2928
A43: Итого на территории России | B43: =B38 -> 34297 | C43: 38567 | D43: 53662 | E43: 53631 | F43: 54015 | G43: 53981 | H43: =H38+H42 -> 72665 | I43: =I38+I42 -> 71024 | J43: 70257 | K43: 70742 | L43: 70958 | M43: 70776 | N43: 70234 | O43: 68531
A44: На территории зарубежных стран
A45: ЗАО «Каунасская теплофикационная электростанция» (Литва) | B45: 894 | C45: 894 | D45: 894 | E45: 894 | F45: 894 | G45: 894 | H45: х | I45: x | J45: x | K45: x | L45: x | M45: x | N45: x | O45: x
A46: Другие | B46: – | C46: – | D46: – | E46: – | F46: – | G46: – | H46: – | I46: – | J46: – | K46: 9 | L46: 9 | M46: 9 | N46: 28 | O46: 28
A47: Итого на территории зарубежных стран | B47: =B45 -> 894 | C47: 894 | D47: 894 | E47: 894 | F47: 894 | G47: 894 | H47: – | I47: – | J47: – | K47: 9 | L47: 9 | M47: 9 | N47: 28 | O47: 28
A48: Итого | B48: =B43+B47 -> 35191 | C48: 39461 | D48: 54556 | E48: 54525 | F48: 54909 | G48: 54875 | H48: =H43 -> 72665 | I48: =I43 -> 71024 | J48: =J43 -> 70257 | K48: =K43+K47 -> 70751 | L48: =L43+L47 -> 70967 | M48: 70785 | N48: 70262 | O48: 68559
A49: * Показатели приведены с момента установления контроля. Начиная с 2015 г. показатели приводятся с учетом дочерних обществ ПАО «МОЭК» — ООО «ТСК Новая Москва» и ООО «ТСК Мосэнерго».
A50: ** В ноябре 2011 г. ОАО «ОГК-6» реорганизовано путем присоединения к ОАО «ОГК-2».
A51: *** Показатели приведены начиная с 2013 г. Начиная с 2018 г. установленные тепловые мощности Ново-Салаватская ТЭЦ в составе Газпром нефтехим Салавата приводятся с учетом установленной тепловой мощности паровых котлов.
A53: Производство электроэнергии Группой Газпром, млрд кВт●ч
A54: Генерирующая компания | B54: За год, закончившийся 31 декабря
B55: 2007 | C55: 2008 | D55: 2009 | E55: 2010 | F55: 2011 | G55: 2012 | H55: 2013 | I55: 2014 | J55: 2015 | K55: 2016 | L55: 2017 | M55: 2018 | N55: 2019 | O55: 2020
A56: На территории России
A57: Газпром энергохолдинг
A58: ПАО «Мосэнерго» | B58: 31.9 | C58: 64.27 | D58: 61.75 | E58: 64.97 | F58: 64.65 | G58: 61.33 | H58: 58.64 | I58: 56.67 | J58: 54.71 | K58: 59.07 | L58: 57.87 | M58: 58.31 | N58: 60.11 | O58: 54.43
A59: ПАО «МОЭК» и его дочерние общества* | B59: х | C59: х | D59: х | E59: х | F59: х | G59: х | H59: 0.39 | I59: 0.41 | J59: 0.13 | K59: – | L59: – | M59: – | N59: – | O59: –
A60: ПАО «ОГК-2» | B60: х | C60: 24.9 | D60: 47.17 | E60: 47.59 | F60: 79.8 | G60: 75.2 | H60: 70.66 | I60: 68.69 | J60: 64.36 | K60: 67.09 | L60: 63.43 | M60: 58.92 | N60: 54.69 | O60: 44.25
A61: ОАО «ОГК-6»** | B61: х | C61: 19.5 | D61: 28.95302856 | E61: 34.89 | F61: х | G61: х | H61: х | I61: x | J61: x | K61: x | L61: x | M61: x | N61: x | O61: x
A62: ПАО «ТГК-1» и его дочерние общества | B62: х | C62: х | D62: х | E62: 27.16 | F62: 28.36 | G62: 30.39 | H62: 29.3 | I62: 26.43 | J62: 25.81 | K62: 27.67 | L62: 29.51 | M62: 29.33 | N62: 28.27 | O62: 27.91
A63: Всего | B63: =B58 -> 31.9 | C63: =C58+C60+C61 -> 108.67 | D63: =D58+D60+D61 -> 137.8730286 | E63: =E58+E60+E61+E62 -> 174.61 | F63: =F58+F60+F62 -> 172.81 | G63: =G58+G60+G62 -> 166.92 | H63: 158.99 | I63: 152.2 | J63: 145.01 | K63: 153.83 | L63: 150.81 | M63: 146.56 | N63: 143.07 | O63: 126.59
A64: Прочие активы
A65: Газпром нефтехим Салават*** | B65: х | C65: х | D65: х | E65: х | F65: х | G65: х | H65: 2.47 | I65: 2.37 | J65: 2.35 | K65: 2.9 | L65: 4.65 | M65: 4.94 | N65: 4.92 | O65: 4.38
A66: Другие | B66: – | C66: – | D66: – | E66: – | F66: – | G66: – | H66: – | I66: – | J66: – | K66: 0 | L66: 0 | M66: 0 | N66: 0.01 | O66: 0.01
A67: Всего | B67: – | C67: – | D67: – | E67: – | F67: – | G67: – | H67: 2.47 | I67: 2.37 | J67: 2.35 | K67: 2.9 | L67: 4.65 | M67: 4.94 | N67: 4.93 | O67: 4.39
A68: Итого на территории России | B68: =B63 -> 31.9 | C68: 108.67 | D68: 137.8730286 | E68: =E63 -> 174.61 | F68: 172.81 | G68: 166.92 | H68: 161.46 | I68: 154.57 | J68: 147.36 | K68: 156.73 | L68: 155.46 | M68: 151.5 | N68: 148 | O68: 130.98
A69: На территории зарубежных стран
A70: ЗАО «Каунасская теплофикационная электростанция» (Литва) | B70: 0.6 | C70: 0.71 | D70: 0.6 | E70: 0.4 | F70: 0.4 | G70: 0.3 | H70: х | I70: х | J70: х | K70: х | L70: х | M70: х | N70: х | O70: х
A71: ЗАО «Газпром Армения» | B71: х | C71: х | D71: х | E71: х | F71: х | G71: 0.9 | H71: 1.08 | I71: 0.86 | J71: 0.64 | K71: 0.69 | L71: 0.99 | M71: 1.62 | N71: 0.94 | O71: 1.08
A72: Другие | B72: – | C72: – | D72: – | E72: – | F72: – | G72: – | H72: – | I72: – | J72: – | K72: 0.09 | L72: 0.1 | M72: 0.07 | N72: 0.08 | O72: 0.07
A73: Итого на территории зарубежных стран | B73: =B70 -> 0.6 | C73: =C70 -> 0.71 | D73: =D70 -> 0.6 | E73: =E70 -> 0.4 | F73: =F70 -> 0.4 | G73: =G70+G71 -> 1.2 | H73: 1.08 | I73: 0.86 | J73: 0.64 | K73: 0.78 | L73: 1.09 | M73: 1.69 | N73: 1.02 | O73: 1.15
A74: Итого | B74: =B68+B73 -> 32.5 | C74: 109.38 | D74: 138.4730286 | E74: 175.01 | F74: 173.21 | G74: 168.12 | H74: 162.54 | I74: 155.43 | J74: 148 | K74: 157.51 | L74: 156.55 | M74: 153.19 | N74: 149.02 | O74: 132.13
A75: * Показатели приведены с момента установления контроля.
A76: ** В ноябре 2011 г. ОАО «ОГК-6» реорганизовано путем присоединения к ОАО «ОГК-2».
A77: *** Показатели приведены начиная с 1 января 2013 г.
A79: Производство тепла Группой Газпром, млн Гкал
A80: Генерирующая компания | B80: За год, закончившийся 31 декабря
B81: 2007 | C81: 2008 | D81: 2009 | E81: 2010 | F81: 2011 | G81: 2012 | H81: 2013 | I81: 2014 | J81: 2015 | K81: 2016 | L81: 2017 | M81: 2018 | N81: 2019 | O81: 2020
A82: На территории России
A83: Газпром энергохолдинг
A84: ПАО «Мосэнерго» | B84: 28 | C84: 62.44 | D84: 65.41 | E84: 69.87 | F84: 66.41 | G84: 68.35 | H84: 67.6 | I84: 70.32 | J84: 71.68 | K84: 81.83 | L84: 79.45 | M84: 82.29 | N84: 75.37 | O84: 74.25
A85: ПАО «МОЭК» и его дочерние общества* | B85: x | C85: x | D85: x | E85: x | F85: x | G85: x | H85: 7.7 | I85: 18.43 | J85: 10.74 | K85: 6.09 | L85: 5.79 | M85: 10.17 | N85: 9.07 | O85: 8
A86: ПАО «ОГК-2» | B86: x | C86: 1.2 | D86: 2.4 | E86: 2.38 | F86: 6.33 | G86: 6.32 | H86: 6.81 | I86: 7.09 | J86: 6.52 | K86: 6.9 | L86: 6.76 | M86: 7.01 | N86: 6.65 | O86: 5.84
A87: ОАО «ОГК-6»** | B87: x | C87: 2.2 | D87: 4.38 | E87: 4.35 | F87: x | G87: x | H87: x | I87: x | J87: x | K87: x | L87: x | M87: x | N87: x | O87: x
A88: ПАО «ТГК-1» и его дочерние общества | B88: x | C88: x | D88: x | E88: 28.82 | F88: 26.05 | G88: 26.44 | H88: 25.32 | I88: 24.34 | J88: 23.02 | K88: 24.44 | L88: 24.71 | M88: 24.89 | N88: 24.17 | O88: 23.05
A89: Всего | B89: =B84 -> 28 | C89: =C84+C86+C87 -> 65.84 | D89: =D84+D86+D87 -> 72.19 | E89: =E84+E86+E87+E88 -> 105.42 | F89: =F84+F86+F88 -> 98.79 | G89: =G84+G86+G88 -> 101.11 | H89: 107.43 | I89: 120.18 | J89: 113.51 | K89: 123.36 | L89: 120.77 | M89: 124.36 | N89: 115.26 | O89: 111.14
A90: Прочие активы
A91: Газпром нефтехим Салават*** | B91: x | C91: x | D91: x | E91: x | F91: x | G91: x | H91: 5.1 | I91: 5.04 | J91: 5.11 | K91: 5.44 | L91: 5.78 | M91: 6.07 | N91: 6.31 | O91: 6.44
A92: Другие | B92: – | C92: – | D92: – | E92: – | F92: – | G92: – | H92: – | I92: – | J92: – | K92: 0.69 | L92: 0.79 | M92: 0.82 | N92: 0.81 | O92: 0.89
A93: Всего | B93: – | C93: – | D93: – | E93: – | F93: – | G93: – | H93: 5.1 | I93: 5.04 | J93: 5.11 | K93: 6.13 | L93: 6.57 | M93: 6.89 | N93: 7.12 | O93: 7.33
A94: Итого на территории России | B94: =B89 -> 28 | C94: 65.84 | D94: 72.19 | E94: 105.42 | F94: 98.79 | G94: 101.11 | H94: 112.53 | I94: 125.22 | J94: 118.62 | K94: 129.49 | L94: 127.34 | M94: 131.25 | N94: 122.38 | O94: 118.47
A95: На территории зарубежных стран
A96: ЗАО «Каунасская теплофикационная электростанция» (Литва) | B96: 1.3 | C96: 1.26 | D96: 1.3 | E96: 1.4 | F96: 1.4 | G96: 1.4 | H96: x | I96: x | J96: x | K96: x | L96: x | M96: x | N96: x | O96: x
A97: Другие | B97: – | C97: – | D97: – | E97: – | F97: – | G97: – | H97: – | I97: – | J97: – | K97: 0 | L97: – | M97: – | N97: – | O97: –
A98: Итого на территории зарубежных стран | B98: =B96 -> 1.3 | C98: 1.26 | D98: 1.3 | E98: 1.4 | F98: 1.4 | G98: 1.4 | H98: – | I98: – | J98: – | K98: 0 | L98: – | M98: – | N98: – | O98: –
A99: Итого | B99: =B94+B98 -> 29.3 | C99: 67.1 | D99: 73.49 | E99: 106.82 | F99: 100.19 | G99: 102.51 | H99: 112.53 | I99: 125.22 | J99: 118.62 | K99: 129.49 | L99: 127.34 | M99: 131.25 | N99: 122.38 | O99: 118.47
A100: * Показатели приведены с момента установления контроля. Начиная с 2015 г. показатели приводятся с учетом дочерних обществ ПАО «МОЭК» — ООО «ТСК Новая Москва» и ООО «ТСК Мосэнерго».
A101: ** В ноябре 2011 г. ОАО «ОГК-6» реорганизовано путем присоединения к ОАО «ОГК-2».
A102: *** Показатели приведены начиная с 1 января 2013 г.
A104: Вернуться к содержанию

Sheet Проекты в электроэнергетике
A1: Инвестиционные проекты в электроэнергетике
A2: Основные проекты по созданию новых мощностей
A3: Объект | B3: Компания | C3: Назначение | D3: Проектные характеристики
D4: Количество и тип блоков | E4: Установленная электрическая мощность | F4: Год ввода в эксплуатацию
A5: Свободненская ТЭС | B5: ООО «Свободненская ТЭС» | C5: Обеспечение энергоснабжения Амурского ГПЗ | D5: 2 ПСУ | E5: 160,0 МВт | F5: 2021 г.
A6: ТЭЦ в г. Панчево (Сербия) | B6: Газпром энергохолдинг Сербия TE-TO Панчево о.о.о. | C6: Обеспечение тепловой энергией НПЗ в г. Панчево, а также продажи электроэнергии на открытом рынке электроэнергии | D6: ПГУ (2 ГТУ и ПСУ) | E6: 200,0 МВт | F6: 2021 г.
A7: Малая ГЭС на р. Паз в Мурманской области* | B7: ПАО «ТГК-1» | C7: Увеличение выработки электроэнергии | D7: ГА | E7: 16,5 МВт | F7: 2024 г.
A8: Парогазовый дубль-блок Новочеркасской ГРЭС** | B8: ПАО «ОГК-2» | C8: Замещение угольных блоков новыми парогазовыми установками в целях повышения энергоэффективности и снижения негативного воздействия на окружающую среду | D8: ПГУ (2 ГТУ и ПСУ) | E8: 324,0 МВт | F8: 2027 г.
A9: Парогазовый моноблок Новочеркасской ГРЭС** | D9: ПГУ (ГТУ и ПСУ) | E9: 165,0 МВт | F9: 2027 г.
A10: * Проект, отобранный по итогу конкурсного отбора инвестиционных проектов по строительству генерирующих объектов, функционирующих на основе возобновляемых источников энергии (ВИЭ), по которым планируется к осуществлению торговля мощностью по договору купли-продажи (поставки) мощности квалифицированных объектов ВИЭ (ДПМ ВИЭ).
A11: ** Проекты, отобранные в рамках процедуры отбора проектов модернизации, предусматривающих установку газовых турбин, относимых к образцам инновационного энергетического оборудования (инновационные проекты ПГУ).
A12: Примечание. Сроки по вводу объектов в эксплуатацию могут изменяться в зависимости от ситуации на рынке энергоносителей.
A14: Основные проекты по реконструкции и модернизации
A15: Компания | B15: Электростанция | C15: Объект | D15: Год начала поставки мощности / ввода в эксплуатацию | F15: Мощность после реализации проекта, МВт
A16: ПАО «ТГК-1» | B16: Верхне-Туломская ГЭС-12 | C16: Гидроагрегаты № 1–4 | D16: 2020–2023 гг. | F16: 300
B17: Автовская ТЭЦ | C17: Турбоагрегат ТГ-7* | D17: 2022 г. | F17: 116.4
C18: Турбоагрегат ТГ-6* | D18: 2024 г. | F18: 120
B19: Центральная ТЭЦ | C19: Водогрейная котельная Электростанции № 2 | D19: 2023 г. | F19: 849,0**
B20: Северная ТЭЦ | C20: Котельное оборудование энергоблока № 4 (ТГ-4)* | D20: 2025 г. | F20: 100
C21: Оборудование энергоблока № 2 (ТГ-2)* | D21: 2027 г. | F21: 100
B22: Василеостровская ТЭЦ | C22: Турбоагрегат ТГ-4* | D22: 2027 г. | F22: 25
A23: ПАО «ОГК-2» | B23: Киришская ГРЭС | C23: Паровая турбина ТГ-2 ПТ-60* | D23: 2022 г. | F23: 65
C24: Паровая турбина ТГ-1* | D24: 2024 г. | F24: 60
C25: Оборудование ТЭЦ-части с заменой паровой турбины ТГ-4 ПТ-60* | D25: 2025 г. | F25: 65
B26: Сургутская ГРЭС-1 | C26: Энергоблок № 13* | D26: 2025 г. | F26: 190
C27: Энергоблок № 16* | D27: 2025 г. | F27: 215
C28: Энергоблок № 2* | D28: 2027 г. | F28: 215
C29: Энергоблок № 12* | D29: 2027 г. | F29: 190
A30: ПАО «Мосэнерго» | B30: ТЭЦ-22 | C30: Оборудование энергоблока № 9 | D30: 2021 г. | F30: 295
C31: Оборудование энергоблока № 10 (ТГ-10)* | D31: 2024 г. | F31: 250
B32: ТЭЦ-23 | C32: Турбоагрегат ТГ-4* | D32: 2024 г. | F32: 110
C33: Оборудование энергоблока № 7 (ТГ-7)* | D33: 2027 г. | F33: 259
C34: Турбоагрегат ТГ-3* | D34: 2027 г. | F34: 110
B35: ТЭЦ-21 | C35: Турбоагрегат ПТ-80 ст. № 7 (ТГ-7)* | D35: 2025 г. | F35: 80
C36: Турбоагрегат ТГ-6* | D36: 2027 г. | F36: 110
B37: ТЭЦ-25 | C37: Оборудование энергоблока № 4 (ТГ-4)* | D37: 2025 г. | F37: 257
C38: Оборудование энергоблока № 3 (ТГ-3)* | D38: 2027 г. | F38: 259
A39: ООО «Ново-Салаватская ТЭЦ» | B39: Ново-Салаватская ТЭЦ | C39: Турбоагрегат ТГ-5* | D39: 2022 г. | F39: 105
C40: Турбоагрегат ТГ-1* | D40: 2023 г. | F40: 50
C41: Турбоагрегат ТГ-7* | D41: 2024 г. | F41: 135
A42: * Проекты, отобранные в рамках процедуры конкурентного отбора проектов модернизации генерирующих объектов тепловых электростанций, по которым планируется к осуществлению торговля мощностью по договорам купли-продажи (поставки) мощности модернизированных генерирующих объектов.
A43: ** Данный показатель является результатом пересчета в мегаватты (МВт) тепловой мощности объекта равной 730,0 Гкал/ч.
A44: Примечание. Сроки по вводу объектов в эксплуатацию могут изменяться в зависимости от ситуации на рынке энергоносителей.
A46: Вернуться к содержанию

Sheet Реализация газа
A1: Маркетинг
A2: Реализация газа
A3: Выручка от продажи газа
A4: (за вычетом НДС, акциза и таможенных пошлин)
B5: За год, закончившийся 31 декабря
B6: 2010* | C6: 2011* | D6: 2012 | E6: 2013 | F6: 2014 | G6: 2015 | H6: 2016 | I6: 2017 | J6: 2018 | K6: 2019 | L6: 2020
A7: млн руб.
A8: Россия | B8: 636843 | C8: 738601 | D8: 760885 | E8: 794349 | F8: 820567 | G8: 805615 | H8: 819924 | I8: 875685 | J8: 954493 | K8: 970913 | L8: 940155
A9: Дальнее зарубежье | B9: 1099225 | C9: 1439069 | D9: 1469455 | E9: 1682761 | F9: 1752147 | G9: 2165500 | H9: 2140027 | I9: 2221217 | J9: 2951215 | K9: 2490372 | L9: 1811636
A10: Страны БСС | B10: 450137 | C10: 637178 | D10: 529516 | E10: 420320 | F10: 411722 | G10: 429660 | H10: 309644 | I10: 292777 | J10: 348625 | K10: 356102 | L10: 295254
A11: Ретроактивные корректировки цены на газ | B11: – | C11: – | D11: -102749 | E11: 74393 | F11: 949 | G11: 26482 | H11: 33175 | I11: -49092 | J11: 49338 | K11: -16657 | L11: 2294
A12: Всего | B12: 2186205 | C12: 2814848 | D12: 2657107 | E12: 2971823 | F12: 2985385 | G12: 3427257 | H12: 3302770 | I12: 3340587 | J12: 4303671 | K12: 3800730 | L12: 3049339
A13: млн долл.**
A14: Россия | B14: 20962.57406 | C14: 25131 | D14: 24481 | E14: 24901 | F14: 21258 | G14: 13138 | H14: 12269 | I14: 15018 | J14: 15175 | K14: 15020 | L14: 12980
A15: Дальнее зарубежье | B15: 36182.5214 | C15: 48965 | D15: 47280 | E15: 52751 | F15: 45392 | G15: 35315 | H15: 32022 | I15: 38093 | J15: 46919 | K15: 38527 | L15: 25012
A16: Страны БСС | B16: 14816.88611 | C16: 21680 | D16: 17037 | E16: 13176 | F16: 10666 | G16: 7007 | H16: 4633 | I16: 5021 | J16: 5543 | K16: 5509 | L16: 4076
A17: Ретроактивные корректировки цены на газ | B17: – | C17: – | D17: -3306 | E17: 2332 | F17: 25 | G17: 432 | H17: 496 | I17: -842 | J17: 784 | K17: -258 | L17: 32
A18: Всего | B18: 71961.98157 | C18: 95776 | D18: 85492 | E18: 93160 | F18: 77341 | G18: 55892 | H18: 49420 | I18: 57290 | J18: 68421 | K18: 58798 | L18: 42100
A19: млн евро**
A20: Россия | B20: 15838 | C20: 18059 | D20: 19060 | E20: 18739 | F20: 16093 | G20: 11849 | H20: 11082 | I20: 13264 | J20: 12879 | K20: 13420 | L20: 11341.59847
A21: Дальнее зарубежье | B21: 27337 | C21: 35185 | D21: 36810 | E21: 39697 | F21: 34363 | G21: 31850 | H21: 28923 | I21: 33645 | J21: 39822 | K21: 34421 | L21: 21854.74531
A22: Страны БСС | B22: 11195 | C22: 15579 | D22: 13264 | E22: 9916 | F22: 8075 | G22: 6319 | H22: 4185 | I22: 4435 | J22: 4704 | K22: 4922 | L22: 3561.808759
A23: Ретроактивные корректировки цены на газ | B23: – | C23: – | D23: -2574 | E23: 1755 | F23: 19 | G23: 389 | H23: 448 | I23: -744 | J23: 666 | K23: -230 | L23: 27.67376325
A24: Всего | B24: 54370 | C24: 68823 | D24: 66560 | E24: 70107 | F24: 58550 | G24: 50407 | H24: 44638 | I24: 50600 | J24: 58071 | K24: 52533 | L24: 36787
A25: * Показатели за 2010–2011 гг. не корректировались в соответствии с МСФО 11 «Совместное предпринимательство».
A26: **Данные не являются частью финансовой отчетности и рассчитаны по среднему обменному курсу за соответствующий период.
A28: Средняя цена реализации газа
A29: (за вычетом НДС, включая акциз и таможенные пошлины)
B30: За год, закончившийся 31 декабря
B31: 2010* | C31: 2011* | D31: 2012 | E31: 2013 | F31: 2014 | G31: 2015 | H31: 2016 | I31: 2017 | J31: 2018 | K31: 2019 | L31: 2020
A32: Россия
A33: руб. / 1 000 м3 | B33: 2296.8 | C33: 2631.7 | D33: 2867.9 | E33: 3264.6 | F33: 3506.5 | G33: 3641.3 | H33: 3815.5 | I33: 3808.3 | J33: 3981.3 | K33: 4118.2 | L33: 4 176,9
A34: долл.** / 1 000 м3 | B34: 75.7 | C34: 89.5 | D34: 92.3 | E34: 102.3 | F34: 90.8 | G34: 59.4 | H34: 57.1 | I34: 65.3 | J34: 63.3 | K34: 63.7 | L34: 57.7
A35: евро** / 1 000 м3 | B35: 57 | C35: 64.3 | D35: 71.8 | E35: 77 | F35: 68.8 | G35: 53.6 | H35: 51.6 | I35: 57.7 | J35: 53.7 | K35: 56.9 | L35: 50.4
A36: Дальнее зарубежье
A37: руб. / 1 000 м3 | B37: 9166.6 | C37: 11259.1 | D37: 11969.8 | E37: 12137.9 | F37: 13487.2 | G37: 15057.3 | H37: 11763.3 | I37: 11670.5 | J37: 15499.5 | K37: 13613 | L37: 10355.9
A38: долл. / 1 000 м3 | B38: 301.8 | C38: 383 | D38: 385.1 | E38: 380.5 | F38: 349.4 | G38: 245.6 | H38: 176 | I38: 200.2 | J38: 246.4 | K38: 210.6 | L38: 143
A39: евро** / 1 000 м3 | B39: 227.6 | C39: 275.3 | D39: 299.8 | E39: 286.3 | F39: 264.5 | G39: 221.5 | H39: 159 | I39: 176.8 | J39: 209.1 | K39: 188.2 | L39: 124.9
A40: Страны БСС
A41: руб. / 1 000 м3 | B41: 7039 | C41: 8509.3 | D41: 9489.5 | E41: 8499.9 | F41: 10115.9 | G41: 11911 | H41: 10263.1 | I41: 9237 | J41: 10225.9 | K41: 10175.9 | L41: 9 899,8
A42: долл. / 1 000 м3 | B42: 231.7 | C42: 289.5 | D42: 305.3 | E42: 266.5 | F42: 262.1 | G42: 194.2 | H42: 153.6 | I42: 158.4 | J42: 162.6 | K42: 157.4 | L42: 136.7
A43: евро** / 1 000 м3 | B43: 174.8 | C43: 208.1 | D43: 237.7 | E43: 200.5 | F43: 198.4 | G43: 175.2 | H43: 138.7 | I43: 139.9 | J43: 138 | K43: 140.6 | L43: 119.4
A44: * Показатели за 2010–2011 гг. не корректировались в соответствии с МСФО 11 «Совместное предпринимательство».
A45: **Данные не являются частью финансовой отчетности и рассчитаны по среднему обменному курсу за соответствующий период.
A47: Реализация газа Группой Газпром, млрд м3
B48: За год, закончившийся 31 декабря
B49: 2010* | C49: 2011* | D49: 2012 | E49: 2013 | F49: 2014 | G49: 2015 | H49: 2016 | I49: 2017 | J49: 2018 | K49: 2019 | L49: 2020
A50: Объем продаж газа в России | B50: 277.3 | C50: 280.7 | D50: 265.3 | E50: 243.3 | F50: 234 | G50: 221.2 | H50: 214.9 | I50: 229.9 | J50: 239.7 | K50: 235.8 | L50: 225.1
A51: Объем продаж газа в дальнее зарубежье | B51: 148.1 | C51: 156.6 | D51: 151 | E51: 174.3 | F51: 159.4 | G51: 184.4 | H51: 228.3 | I51: 242 | J51: 243.3 | K51: 232.4 | L51: 219
A52: Объем продаж газа в страны БСС | B52: 70.2 | C52: 81.7 | D52: 66.1 | E52: 59.4 | F52: 48.1 | G52: 40.3 | H52: 33.2 | I52: 35 | J52: 38.1 | K52: 38.7 | L52: 31.2
A53: Всего | B53: 495.6 | C53: 519 | D53: 482.4 | E53: 477 | F53: 441.5 | G53: 445.9 | H53: 476.4 | I53: 506.9 | J53: 521.1 | K53: 506.9 | L53: 475.3
A54: * Показатели за 2010–2011 гг. не корректировались в соответствии с МСФО 11 «Совместное предпринимательство».
A56: Реализация газа Группой Газпром в зарубежные страны, млрд м3
B57: За год, закончившийся 31 декабря
B58: 2010 | C58: 2011 | D58: 2012 | E58: 2013 | F58: 2014 | G58: 2015 | H58: 2016 | I58: 2017 | J58: 2018 | K58: 2019 | L58: 2020
A59: Объем продаж газа в дальнее зарубежье
A60: Европейские страны дальнего зарубежья
A61: Австрия | B61: 5.6 | C61: 5.4 | D61: 5.4 | E61: 5.2 | F61: 4.2 | G61: 5 | H61: 7.5 | I61: 9.8 | J61: 9 | K61: 9.1 | L61: 10.6
A62: Бельгия | B62: 0.5 | C62: – | D62: – | E62: – | F62: – | G62: 1.5 | H62: 2.5 | I62: 2.7 | J62: 2.8 | K62: 1.3 | L62: 1.3
A63: Болгария | B63: 2.3 | C63: 2.5 | D63: 2.5 | E63: 2.9 | F63: 2.8 | G63: 3.1 | H63: 3.2 | I63: 3.3 | J63: 3.2 | K63: 2.4 | L63: 2.3
A64: Босния и Герцеговина | B64: 0.2 | C64: 0.3 | D64: 0.3 | E64: 0.2 | F64: 0.2 | G64: 0.2 | H64: 0.2 | I64: 0.2 | J64: 0.2 | K64: 0.2 | L64: 0.2
A65: Великобритания | B65: 10.7 | C65: 12.9 | D65: 11.7 | E65: 16.6 | F65: 15.5 | G65: 22.5 | H65: 25.7 | I65: 29.1 | J65: 34.2 | K65: 59 | L65: 8.9
A66: Венгрия | B66: 6.9 | C66: 6.3 | D66: 5.3 | E66: 6 | F66: 5.4 | G66: 6 | H66: 5.7 | I66: 7 | J66: 7.3 | K66: 10.5 | L66: 8.6
A67: Германия | B67: 35.3 | C67: 34.1 | D67: 34 | E67: 41 | F67: 40.3 | G67: 47.4 | H67: 57.9 | I67: 67.1 | J67: 65.7 | K67: 44.9 | L67: 41.6
A68: Греция | B68: 2.1 | C68: 2.9 | D68: 2.5 | E68: 2.6 | F68: 1.7 | G68: 2 | H68: 2.7 | I68: 2.9 | J68: 3.3 | K68: 2.5 | L68: 3.1
A69: Дания | B69: – | C69: – | D69: 0.3 | E69: 0.3 | F69: 0.4 | G69: 0.7 | H69: 1.7 | I69: 1.8 | J69: 1.7 | K69: 1.7 | L69: 1.8
A70: Ирландия | B70: – | C70: – | D70: 0.3 | E70: 0.5 | F70: 0.2 | G70: 0.2 | H70: 0.1 | I70: 0.1 | J70: 0.3 | K70: 0.1 | L70: –
A71: Испания | B71: – | C71: – | D71: – | E71: – | F71: – | G71: – | H71: – | I71: 0.2 | J71: 0.1 | K71: 0.5 | L71: 0.8
A72: Италия | B72: 13.1 | C72: 17.1 | D72: 15.1 | E72: 25.3 | F72: 21.7 | G72: 24.4 | H72: 24.7 | I72: 23.7 | J72: 22.6 | K72: 22 | L72: 20.9
A73: Нидерланды | B73: 4.3 | C73: 4.5 | D73: 2.9 | E73: 2.9 | F73: 4.7 | G73: 8.4 | H73: 27.5 | I73: 17.4 | J73: 21.4 | K73: 16.3 | L73: 48.1
A74: Польша | B74: 11.8 | C74: 10.3 | D74: 13.1 | E74: 12.9 | F74: 9.1 | G74: 8.9 | H74: 11.1 | I74: 10.5 | J74: 9.9 | K74: 9.7 | L74: 9.7
A75: Румыния | B75: 2.6 | C75: 3.2 | D75: 2.5 | E75: 1.4 | F75: 0.5 | G75: 0.3 | H75: 1.7 | I75: 1.4 | J75: 1.5 | K75: 1.1 | L75: 1
A76: Северная Македония | B76: 0.1 | C76: 0.1 | D76: 0.1 | E76: 0 | F76: 0.1 | G76: 0.1 | H76: 0.2 | I76: 0.3 | J76: 0.2 | K76: 0.2 | L76: 0.3
A77: Сербия | B77: 2.1 | C77: 2.1 | D77: 1.9 | E77: 2 | F77: 1.5 | G77: 1.9 | H77: 1.9 | I77: 2.2 | J77: 2.2 | K77: 2.2 | L77: 1.4
A78: Словакия | B78: 5.8 | C78: 5.9 | D78: 4.3 | E78: 5.5 | F78: 4.4 | G78: 3.8 | H78: 3.7 | I78: 4.5 | J78: 5 | K78: 6.5 | L78: 7.6
A79: Словения | B79: 0.5 | C79: 0.5 | D79: 0.5 | E79: 0.5 | F79: 0.4 | G79: 0.5 | H79: 0.5 | I79: 0.6 | J79: 0.5 | K79: 0.3 | L79: 0.4
A80: Турция | B80: 18 | C80: 26 | D80: 27 | E80: 26.7 | F80: 27.3 | G80: 27 | H80: 24.8 | I80: 29 | J80: 24 | K80: 15.4 | L80: 16.4
A81: Финляндия | B81: 4.8 | C81: 4.2 | D81: 3.7 | E81: 3.5 | F81: 3.1 | G81: 2.8 | H81: 2.5 | I81: 2.4 | J81: 2.6 | K81: 2.5 | L81: 1.6
A82: Франция | B82: 8.9 | C82: 8.5 | D82: 8.2 | E82: 8.6 | F82: 7.6 | G82: 10.5 | H82: 12.5 | I82: 13.3 | J82: 13.3 | K82: 13 | L82: 14
A83: Хорватия | B83: 1.1 | C83: – | D83: 0 | E83: 0.2 | F83: 0.6 | G83: 0.6 | H83: 0.8 | I83: 2.8 | J83: 2.8 | K83: 2.8 | L83: 1.8
A84: Чехия | B84: 9 | C84: 8.2 | D84: 8.3 | E84: 7.9 | F84: 0.8 | G84: 0.9 | H84: 3.1 | I84: 3.8 | J84: 2.6 | K84: 2.2 | L84: 4
A85: Швейцария | B85: 0.3 | C85: 0.3 | D85: 0.3 | E85: 0.4 | F85: 0.3 | G85: 0.3 | H85: 0.3 | I85: 0.4 | J85: 0.6 | K85: 0.3 | L85: 0.4
A86: Китай* | G86: 0.2 | H86: 0.1 | I86: 0.8 | J86: 0.8 | K86: 1.5 | L86: 5
A87: в т. ч. по магистральному газопроводу «Сила Сибири» | G87: x | H87: x | I87: x | J87: x | K87: 0.3 | L87: 4.1
A88: Другие страны дальнего зарубежья | B88: 2.1 | C88: 1.3 | D88: 0.8 | E88: 1.2 | F88: 6.6 | G88: 5.2 | H88: 5.7 | I88: 4.7 | J88: 5.5 | K88: 4.2 | L88: 7.2
A89: Всего | B89: 148.1 | C89: 156.6 | D89: 151 | E89: 174.3 | F89: 159.4 | G89: 184.4 | H89: 228.3 | I89: 242 | J89: 243.3 | K89: 232.4 | L89: 219
A90: Объем продаж газа в страны БСС
A91: Азербайджан | B91: – | C91: – | D91: – | E91: – | F91: – | G91: 0.1 | H91: – | I91: 0.4 | J91: 1 | K91: – | L91: –
A92: Армения | B92: 1.4 | C92: 1.6 | D92: 1.7 | E92: 1.7 | F92: 1.8 | G92: 1.8 | H92: 1.8 | I92: 1.8 | J92: 1.8 | K92: 2 | L92: 2.1
A93: Беларусь | B93: 21.6 | C93: 23.3 | D93: 19.7 | E93: 19.8 | F93: 19.6 | G93: 18.4 | H93: 18.3 | I93: 18.8 | J93: 20 | K93: 19.9 | L93: 18.4
A94: Грузия | B94: 0.2 | C94: 0.2 | D94: 0.2 | E94: 0.2 | F94: 0.3 | G94: 0.3 | H94: 0.1 | I94: 0.1 | J94: 0 | K94: 0.2 | L94: 0.2
A95: Казахстан | B95: 3.4 | C95: 3.3 | D95: 3.7 | E95: 4.7 | F95: 5.1 | G95: 4.7 | H95: 4.7 | I95: 4.8 | J95: 6.2 | K95: 7.7 | L95: 3.4
A96: Кыргызстан | B96: – | C96: – | D96: – | E96: – | F96: 0.1 | G96: 0.3 | H96: 0.3 | I96: 0.3 | J96: 0.3 | K96: 0.3 | L96: 0.3
A97: Латвия | B97: 0.7 | C97: 1.2 | D97: 1.1 | E97: 1.1 | F97: 1 | G97: 1.3 | H97: 1.3 | I97: 1.8 | J97: 1.3 | K97: 1.7 | L97: 1.6
A98: Литва | B98: 2.8 | C98: 3.2 | D98: 3.1 | E98: 2.7 | F98: 2.5 | G98: 2.2 | H98: 0.9 | I98: 1.4 | J98: 1.4 | K98: 0.9 | L98: 0.9
A99: Молдова | B99: 3.2 | C99: 3.1 | D99: 3.1 | E99: 2.4 | F99: 2.8 | G99: 2.9 | H99: 3 | I99: 2.7 | J99: 3 | K99: 2.9 | L99: 3.1
A100: Узбекистан | B100: – | C100: 0.3 | D100: – | E100: 0.3 | F100: – | G100: – | H100: – | I100: – | J100: – | K100: – | L100: 0.9
A101: Украина | B101: 36.5 | C101: 44.8 | D101: 32.9 | E101: 25.8 | F101: 14.5 | G101: 7.8 | H101: 2.4 | I101: 2.4 | J101: 2.7 | K101: 2.8 | L101: –
A102: Эстония | B102: 0.4 | C102: 0.7 | D102: 0.6 | E102: 0.7 | F102: 0.4 | G102: 0.5 | H102: 0.4 | I102: 0.5 | J102: 0.4 | K102: 0.3 | L102: 0.3
A103: Южная Осетия | B103: 0 | C103: 0 | D103: 0 | E103: 0 | F103: 0 | G103: 0 | H103: 0 | I103: 0 | J103: 0 | K103: 0 | L103: 0
A104: Всего | B104: 70.2 | C104: 81.7 | D104: 66.1 | E104: 59.4 | F104: 48.1 | G104: 40.3 | H104: 33.2 | I104: 35 | J104: 38.1 | K104: 38.7 | L104: 31.2
A105: * В 2010–2014 гг. объемы реализации газа в Китай учтены в объемах реализации в «Другие страны дальнего зарубежья».
A107: Участие Газпрома в обеспечении внутреннего потребления газа в России, млрд м3
B108: За год, закончившийся 31 декабря
B109: 2010 | C109: 2011 | D109: 2012 | E109: 2013 | F109: 2014 | G109: 2015 | H109: 2016 | I109: 2017 | J109: 2018 | K109: 2019 | L109: 2020
A110: Внутреннее потребление газа в России | B110: 460.3 | C110: 473 | D110: 466.1 | E110: 461.3 | F110: 458.4 | G110: 444.3 | H110: 456.7 | I110: 468 | J110: 493.2 | K110: 481 | L110: 460.5
A111: Поставка потребителям России по ГТС Газпрома* | B111: 351.7 | C111: 362.5 | D111: 360 | E111: 351.7 | F111: 353.7 | G111: 339.4 | H111: 348.8 | I111: 351.3 | J111: 361.7 | K111: 353.9 | L111: 338.8
A112: в т. ч. Группой Газпром по ГТС (с учетом покупки у компаний, не входящих в Группу Газпром) | B112: 290.2 | C112: 288.9 | D112: 274.5 | E112: 249.1 | F112: 237.8 | G112: 222 | H112: 226.9 | I112: 231.3 | J112: 244.1 | K112: 240 | L112: 225.9
A113: Поставка потребителям России по ГТС Газпрома от добычи Группы Газпром* | B113: 288.1 | C113: 290.2 | D113: 274.7 | E113: 254.5 | F113: 237 | G113: 211.2 | H113: 210.2 | I113: 216.3 | J113: 224.9 | K113: 221.2 | L113: 208.4
A114: * Без учета технологических нужд ГТС.
A116: Средневзвешенные оптовые регулируемые цены на газ в России, руб. / 1 000 м3
B117: За год, закончившийся 31 декабря
D118: 2012 | E118: 2013 | F118: 2014 | G118: 2015 | H118: 2016 | I118: 2017 | J118: 2018 | K118: 2019 | L118: 2020
A119: Все категории | D119: 2963 | E119: 3393.2 | F119: 3656.5 | G119: 3759.4 | H119: 3938.2 | I119: 3988.5 | J119: 4117.2 | K119: 4224.8 | L119: 4 286,2
A120: Промышленные потребители | D120: 3105 | E120: 3564.4 | F120: 3848.9 | G120: 3958.1 | H120: 4158.1 | I120: 4202.3 | J120: 4316.4 | K120: 4423.7 | L120: 4 499,2
A121: Население | D121: 2428.9 | E121: 2801.1 | F121: 3082.9 | G121: 3253 | H121: 3422.8 | I121: 3512.9 | J121: 3640 | K121: 3734.4 | L121: 3 813,1
A122: Примечание. Без учета объемов газа, поставляемого в соответствии с Постановлением Правительства Российской Федерации от 28 мая 2007 г. № 333 «О совершенствовании государственного регулирования цен на газ».
A124: Вернуться к содержанию

Sheet Продажи СПГ
A1: Объемы продаж крупнотоннажного СПГ Группой Газпром на рынки зарубежных стран
B2: За год, закончившийся 31 декабря
B3: 2010 | C3: 2011 | D3: 2012 | E3: 2013 | F3: 2014 | G3: 2015 | H3: 2016 | I3: 2017 | J3: 2018 | K3: 2019 | L3: 2020
A4: трлн БТЕ
A5: Аргентина | B5: – | C5: – | D5: – | E5: 18.9 | F5: 41.1 | G5: 16.2 | H5: 19.7 | I5: – | J5: – | K5: – | L5: –
A6: Бельгия | B6: – | C6: – | D6: – | E6: – | F6: – | G6: – | H6: – | I6: – | J6: – | K6: – | L6: 3.8
A7: Великобритания | B7: 3.5 | C7: 4.7 | D7: – | E7: – | F7: – | G7: – | H7: – | I7: – | J7: – | K7: 21.4 | L7: 32.8
A8: Греция | B8: – | C8: – | D8: – | E8: – | F8: – | G8: – | H8: – | I8: – | J8: – | K8: – | L8: 3.2
A9: Египет | B9: – | C9: – | D9: – | E9: – | F9: – | G9: 3.4 | H9: 3.4 | I9: – | J9: – | K9: – | L9: –
A10: Индия | B10: – | C10: 18.5 | D10: 15 | E10: 6.1 | F10: – | G10: 18.7 | H10: 22.7 | I10: 9.9 | J10: 36.1 | K10: 39.9 | L10: 94.7
A11: Испания | B11: – | C11: – | D11: – | E11: – | F11: – | G11: – | H11: – | I11: 6.5 | J11: 2.9 | K11: 10.9 | L11: 25.5
A12: Китай | B12: 19.6 | C12: 28.3 | D12: 19.7 | E12: – | F12: 6.6 | G12: 6.6 | H12: 3.4 | I12: 29.4 | J12: 29.2 | K12: 41.4 | L12: 26.5
A13: Кувейт | B13: – | C13: 6.4 | D13: – | E13: – | F13: 3 | G13: 3.3 | H13: 3.3 | I13: 16.9 | J13: 20.1 | K13: – | L13: 3.1
A14: Малайзия | B14: – | C14: – | D14: – | E14: – | F14: 6.5 | G14: – | H14: – | I14: – | J14: – | K14: – | L14: –
A15: Нидерланды | B15: – | C15: – | D15: – | E15: – | F15: – | G15: – | H15: – | I15: – | J15: – | K15: – | L15: 50.7
A16: Мексика | B16: – | C16: – | D16: – | E16: – | F16: – | G16: – | H16: 6.5 | I16: – | J16: – | K16: – | L16: –
A17: ОАЭ | B17: – | C17: 3.2 | D17: – | E17: – | F17: – | G17: – | H17: 6.5 | I17: 3.1 | J17: – | K17: – | L17: –
A18: Республика Корея | B18: 19.4 | C18: 16.2 | D18: 9.4 | E18: 25.2 | F18: 36.2 | G18: 26.5 | H18: 3.3 | I18: 13.2 | J18: 26.4 | K18: 20.2 | L18: 30.2
A19: Сингапур | B19: – | C19: – | D19: – | E19: – | F19: – | G19: – | H19: – | I19: – | J19: – | K19: – | L19: 3.3
A20: Таиланд | B20: – | C20: 3.1 | D20: – | E20: – | F20: – | G20: – | H20: – | I20: 3.3 | J20: – | K20: – | L20: 3.1
A21: Тайвань (Китай) | B21: 16.1 | C21: 9.7 | D21: 6.3 | E21: – | F21: – | G21: 9.9 | H21: 26 | I21: 19.8 | J21: 19.3 | K21: 3.3 | L21: 14
A22: Франция | B22: – | C22: – | D22: – | E22: – | F22: – | G22: – | H22: – | I22: – | J22: – | K22: – | L22: 24.8
A23: Япония | B23: 29.6 | C23: 19.5 | D23: 18.4 | E23: 29 | F23: 49.2 | G23: 78.1 | H23: 78.5 | I23: 56.9 | J23: 29.7 | K23: 19.6 | L23: 16.7
A24: Поставки на условиях FOB | B24: – | C24: – | D24: – | E24: – | F24: 17.1 | G24: 7 | H24: 3 | I24: – | J24: 21.4 | K24: 23.5 | L24: 50.8
A25: Всего* | B25: 88.3 | C25: 109.6 | D25: 68.7 | E25: 72.1 | F25: 159.6 | G25: 169.6 | H25: 176.5 | I25: 159.2 | J25: 185 | K25: 180.1 | L25: 383.3
A26: в т.ч. продажи СПГ с проекта «Сахалин-2» | B26: 75.2 | C26: 45.8 | D26: 29.6 | E26: 29.7 | F26: 53.1 | G26: 86 | H26: 59.4 | I26: 72.9 | J26: 70.1 | K26: 60.1 | L26: 69.9
A27: Всего, млн т | B27: 1.85 | C27: 2.3 | D27: 1.44 | E27: 1.51 | F27: 3.35 | G27: 3.56 | H27: 3.71 | I27: 3.34 | J27: 3.88 | K27: 3.78 | L27: 7.44
A28: Всего, млрд м3 | B28: 2.47 | C28: 3.07 | D28: 1.92 | E28: 2.02 | F28: 4.47 | G28: 4.75 | H28: 4.94 | I28: 4.46 | J28: 5.18 | K28: 5.04 | L28: 10.92
A29: * Итоговые значения могут отличаться от сумм слагаемых в результате округлений.
A30: Примечание. Рассчитано в соответствии с принципами, используемыми при подготовке управленческой отчетности. В связи с различиями в методологии подготовки консолидированной финансовой и управленческой отчетности показатели, рассчитанные по данным методикам, могут быть несопоставимы.
A32: Вернуться к содержанию

Sheet Конечные потребители
A1: Объемы реализации газа конечным потребителям дочерними организациями Группы Газпром в странах дальнего зарубежья, млн м3
B2: За год, закончившийся 31 декабря
B3: 2010 | C3: 2011 | D3: 2012 | E3: 2013 | F3: 2014 | G3: 2015 | H3: 2016 | I3: 2017 | J3: 2018 | K3: 2019 | L3: 2020
A4: Австрия | B4: – | C4: – | D4: – | E4: – | F4: – | G4: 303.5 | H4: 872.2 | I4: 869.7 | J4: 733.3 | K4: 771.8 | L4: 745.1
A5: Бельгия | B5: – | C5: – | D5: – | E5: – | F5: – | G5: 620.7 | H5: 1530.7 | I5: 1881.3 | J5: 1736.4 | K5: 1168.5 | L5: 1013.3
A6: Великобритания | B6: 1633.6 | C6: 1959.6 | D6: 2437 | E6: 2682.7 | F6: 2734.7 | G6: 3028 | H6: 3825.6 | I6: 4610.7 | J6: 4917.2 | K6: 4935.3 | L6: 4605.7
A7: Венгрия | B7: – | C7: – | D7: – | E7: – | F7: – | G7: 104.8 | H7: 197.4 | I7: 296.2 | J7: 330.1 | K7: 349.3 | L7: 7
A8: Германия | B8: – | C8: – | D8: – | E8: – | F8: – | G8: 3665.7 | H8: 13163.4 | I8: 14892.5 | J8: 14012.4 | K8: 9992.6 | L8: 10440
A9: Ирландия | B9: 590.8 | C9: 600.9 | D9: 551.4 | E9: 350.2 | F9: 158 | G9: 187.4 | H9: 59.8 | I9: 96.2 | J9: 316.4 | K9: 109.2 | L9: –
A10: Нидерланды | B10: – | C10: – | D10: 18.8 | E10: 31.5 | F10: 29.4 | G10: 1335.5 | H10: 3220.8 | I10: 2075 | J10: 2991.5 | K10: 2578.3 | L10: 2227.9
A11: Румыния | B11: – | C11: – | D11: – | E11: – | F11: – | G11: 22.8 | H11: 169.7 | I11: 221.5 | J11: 70.8 | K11: 41.8 | L11: 4.8
A12: Северная Македония | C12: – | D12: – | E12: – | F12: 88.5 | G12: 93 | H12: 139.5 | I12: – | J12: – | K12: – | L12: –
A13: Словакия | B13: – | C13: 31 | D13: 40 | E13: 72.6 | F13: – | G13: – | H13: 6.5 | I13: 173.8 | J13: 242 | K13: 246.8 | L13: 72.6
A14: Франция | B14: 874 | C14: 492.7 | D14: 457.7 | E14: 384.3 | F14: 510.1 | G14: 780.9 | H14: 947.9 | I14: 1014.3 | J14: 1083 | K14: 1621.9 | L14: 1259.1
A15: Чехия | B15: 409 | C15: 398 | D15: 526 | E15: 390.7 | F15: – | G15: 233.9 | H15: 809.1 | I15: 1755.3 | J15: 1961.5 | K15: 1123.3 | L15: 976.8
A16: Всего | B16: 3507.4 | C16: 3482.2 | D16: 4030.9 | E16: 3912 | F16: 3520.7 | G16: 10376.2 | H16: 24942.6 | I16: 27886.5 | J16: 28394.6 | K16: 22938.8 | L16: 21352.3
A17: Примечание. Учтены объемы реализации газа Gazprom Germania GmbH и его дочерними организациями промышленным предприятиям, компаниям коммунально-бытового сектора, электростанциям.
A19: Вернуться к содержанию

Sheet Газораспределение
A1: Газораспределение и газификация в России
B2: За год и по состоянию на 31 декабря
B3: 2010 | C3: 2011 | D3: 2012 | E3: 2013 | F3: 2014 | G3: 2015 | H3: 2016 | I3: 2017 | J3: 2018 | K3: 2019 | L3: 2020
A4: Протяженность наружных газопроводов, обслуживаемых дочерними и зависимыми газораспределительными организациями (ГРО) Газпрома, тыс. км | B4: 632.7 | C4: 668.6 | D4: 689.5 | E4: 716.1 | F4: 734 | G4: 746.3 | H4: 760.1 | I4: 773.4 | J4: 786.7 | K4: 802.8 | L4: 817.1
A5: Транспортировка природного газа по газораспределительным системам, обслуживаемым дочерними и зависимыми ГРО Газпрома, млрд м3 | B5: 225 | C5: 226.2 | D5: 253.4 | E5: 248.7 | F5: 246.7 | G5: 231.3 | H5: 208 | I5: 239 | J5: 239.7 | K5: 232.6 | L5: 223.2
A6: Потребители, обслуживаемые дочерними и зависимыми ГРО Газпрома (природный газ), в т.ч.:
A7: квартиры и частные домовладения, млн ед. | B7: 23.9 | C7: 25.7 | D7: 26 | E7: 26.7 | F7: 27 | G7: 26.8 | H7: 27 | I7: 28.5 | J7: 27.7 | K7: 28 | L7: 28.3
A8: промышленные объекты, тыс. ед. | B8: 19.7 | C8: 22.3 | D8: 21.8 | E8: 22.6 | F8: 31.5 | G8: 32.8 | H8: 32.9 | I8: 31.6 | J8: 32.4 | K8: 32.8 | L8: 33
A9: сельскохозяйственные объекты, тыс. ед. | B9: 4.1 | C9: 4.4 | D9: 4.7 | E9: 5.2 | F9: 6.5 | G9: 6.9 | H9: 7.2 | I9: 7.6 | J9: 32.2 | K9: 9.1 | L9: 9.8
A10: котельные*, тыс. ед. | B10: 41.4 | C10: 44.1 | D10: 44.3 | E10: 44.5 | F10: x | G10: x | H10: x | I10: x | J10: x | K10: x | L10: x
A11: коммунально-бытовые объекты, тыс. ед. | B11: 218.2 | C11: 230 | D11: 241.9 | E11: 255.1 | F11: 286.9 | G11: 303.6 | H11: 312.3 | I11: 326.1 | J11: 332.6 | K11: 344 | L11: 353.6
A12: Протяженность завершенных строительством межпоселковых газопроводов в рамках реализации программ газификации и газоснабжения регионов Российской Федерации, тыс. км | B12: 2.1 | C12: 2.5 | D12: 3.4 | E12: 2.5 | F12: 1.4 | G12: 1.3 | H12: 1.4 | I12: 1.8 | J12: 2 | K12: 1.9 | L12: 2.2
A13: Уровень газификации природным газом**, в т.ч.: | B13: 0.629 | C13: 0.631 | D13: 0.644 | E13: 0.653 | F13: 0.654 | G13: 0.662 | H13: 0.672 | I13: 0.681 | J13: 0.686 | K13: 0.701 | L13: 0.714
A14: города и поселки городского типа | B14: 0.698 | C14: 0.699 | D14: 0.701 | E14: 0.709 | F14: 0.703 | G14: 0.704 | H14: 0.709 | I14: 0.714 | J14: 0.719 | K14: 0.73 | L14: 0.737
A15: сельская местность | B15: 0.458 | C15: 0.467 | D15: 0.531 | E15: 0.54 | F15: 0.546 | G15: 0.561 | H15: 0.571 | I15: 0.587 | J15: 0.594 | K15: 0.618 | L15: 0.648
A16: * В связи с изменением методики учета с 2014 г. количество обслуживаемых котельных учитывается в составе категорий «Промышленные объекты» или «Коммунально-бытовые объекты» в зависимости от вида деятельности организации, заключившей договор на обслуживание объекта.
A17: ** Расчет показателей за 2010–2019 гг. выполнен от объема жилого фонда, фиксированного по состоянию на 2005 г. Начиная с показателей за 2020 г. уровень газификации природным газом определяется в соответствии с Методикой расчета показателей газификации, утвержденной приказом Минэнерго России от 2 апреля 2019 № 308.
A19: Деятельность Группы Газпром в области газораспределения на территории зарубежных стран
B20: За год и по состоянию на 31 декабря
E21: 2013 | F21: 2014 | G21: 2015 | H21: 2016 | I21: 2017 | J21: 2018 | K21: 2019 | L21: 2020
A22: Армения
A23: Протяженность обслуживаемых распределительных газопроводов, км | E23: 14069 | F23: 14135 | G23: 14330 | H23: 14701 | I23: 15063 | J23: 18245 | K23: 18808 | L23: 18815
A24: Объем транспортировки газа по газораспределительным сетям, млн м3 | E24: 1883.8 | F24: 2055.5 | G24: 1861.7 | H24: 1888.1 | I24: 1985.2 | J24: 2187 | K24: 2233.1 | L24: 2297.2
A25: Обслуживаемые потребители, в т.ч.:
A26: Квартиры и частные домовладения, тыс. ед. | E26: 648 | F26: 659 | G26: 669 | H26: 678 | I26: 689 | J26: 702 | K26: 714 | L26: 725
A27: Промышленные объекты, ед. | E27: 1667 | F27: 1766 | G27: 1819 | H27: 1873 | I27: 1933 | J27: 1991 | K27: 2070 | L27: 2146
A28: Сельскохозяйственные объекты, ед. | E28: 387 | F28: 448 | G28: 476 | H28: 508 | I28: 566 | J28: 654 | K28: 800 | L28: 903
A29: Коммунально-бытовые объекты, ед. | E29: 11450 | F29: 11931 | G29: 12502 | H29: 12254 | I29: 13044 | J29: 13522 | K29: 14320 | L29: 15900
A30: Кыргызстан
A31: Протяженность обслуживаемых распределительных газопроводов, км | E31: x | F31: 2826 | G31: 2861 | H31: 2896 | I31: 3093 | J31: 3632 | K31: 3 717 | L31: 3882
A32: Объем транспортировки газа по газораспределительным сетям, млн м3 | E32: x | F32: 239.3 | G32: 261.1 | H32: 262.7 | I32: 282.5 | J32: 312.4 | K32: 314.4 | L32: 324.8
A33: Обслуживаемые потребители, в т.ч.:
A34: Квартиры и частные домовладения, тыс. ед. | E34: x | F34: 289 | G34: 292 | H34: 296 | I34: 303 | J34: 317 | K34: 343 | L34: 355
A35: Промышленные объекты, ед. | E35: x | F35: 155 | G35: 159 | H35: 200 | I35: 203 | J35: 203 | K35: 203 | L35: 192
A36: Коммунально-бытовые объекты, ед. | E36: x | F36: 2636 | G36: 2729 | H36: 2890 | I36: 2992 | J36: 3189 | K36: 3 400 | L36: 3383
A37: Румыния*
A38: Протяженность обслуживаемых распределительных газопроводов, км | E38: x | F38: x | G38: 256 | H38: 284 | I38: 296 | J38: 313 | K38: x | L38: x
A39: Объем транспортировки газа по газораспределительным сетям, млн м3 | E39: x | F39: x | G39: 61.5 | H39: 63 | I39: 71.5 | J39: 73 | K39: x | L39: x
A40: Обслуживаемые потребители, в т.ч.:
A41: Квартиры и частные домовладения, тыс. ед. | E41: x | F41: x | G41: 33 | H41: 37 | I41: 41 | J41: 44 | K41: x | L41: x
A42: Промышленные предприятия, ед. | E42: x | F42: x | G42: 1383 | H42: 1457 | I42: 1590 | J42: 1685 | K42: x | L42: x
A43: * В 2019 г. прекращено участие Группы Газпром в дочерней организации, осуществляющей деятельность в области газораспределения на территории Румынии.
A45: Вернуться к содержанию

Sheet Продажа жидких и продуктов
A1: Реализация нефти, газового конденсата и продуктов переработки
A2: Выручка от реализации нефти и газового конденсата
A3: (за вычетом НДС и таможенных пошлин)
B4: За год, закончившийся 31 декабря
B5: 2010* | C5: 2011* | D5: 2012 | E5: 2013 | F5: 2014 | G5: 2015 | H5: 2016 | I5: 2017 | J5: 2018 | K5: 2019 | L5: 2020
A6: млн руб.
A7: Россия | B7: 23148 | C7: 41442 | D7: 40726 | E7: 32094 | F7: 51603 | G7: 77519 | H7: 81302 | I7: 71434 | J7: 64645 | K7: 62173 | L7: 47647
A8: Дальнее зарубежье | B8: 146959 | C8: 157645 | D8: 204648 | E8: 128007 | F8: 141618 | G8: 155509 | H8: 307128 | I8: 438754 | J8: 631560 | K8: 648752 | L8: 420989
A9: Страны БСС | B9: 25967 | C9: 36345 | D9: 30186 | E9: 50115 | F9: 16013 | G9: 27580 | H9: 23528 | I9: 29770 | J9: 38748 | K9: 41865 | L9: 18713
A10: Всего | B10: 196074 | C10: 235432 | D10: 275560 | E10: 210216 | F10: 209234 | G10: 260608 | H10: 411958 | I10: 539958 | J10: 734953 | K10: 752790 | L10: 487349
A11: млн долл.**
A12: Россия | B12: 762 | C12: 1410 | D12: 1310 | E12: 1006 | F12: 1337 | G12: 1264 | H12: 1217 | I12: 1225 | J12: 1028 | K12: 962 | L12: 658
A13: Дальнее зарубежье | B13: 4837 | C13: 5364 | D13: 6585 | E13: 4013 | F13: 3669 | G13: 2536 | H13: 4596 | I13: 7525 | J13: 10041 | K13: 10036 | L13: 5812
A14: Страны БСС | B14: 855 | C14: 1237 | D14: 971 | E14: 1571 | F14: 415 | G14: 450 | H14: 352 | I14: 511 | J14: 616 | K14: 648 | L14: 258
A15: Всего | B15: 6454 | C15: 8011 | D15: 8866 | E15: 6590 | F15: 5421 | G15: 4250 | H15: 6165 | I15: 9261 | J15: 11685 | K15: 11646 | L15: 6728
A16: млн евро**
A17: Россия | B17: 576 | C17: 1013 | D17: 1020 | E17: 757 | F17: 1012 | G17: 1140 | H17: 1099 | I17: 1082 | J17: 872 | K17: 859 | L17: 575
A18: Дальнее зарубежье | B18: 3655 | C18: 3854 | D18: 5126 | E18: 3020 | F18: 2777 | G18: 2287 | H18: 4151 | I18: 6646 | J18: 8522 | K18: 8967 | L18: 5079
A19: Страны БСС | B19: 646 | C19: 889 | D19: 756 | E19: 1182 | F19: 314 | G19: 406 | H19: 318 | I19: 451 | J19: 523 | K19: 579 | L19: 226
A20: Всего | B20: 4877 | C20: 5756 | D20: 6902 | E20: 4959 | F20: 4103 | G20: 3833 | H20: 5568 | I20: 8179 | J20: 9917 | K20: 10405 | L20: 5880
A21: * Показатели за 2010–2011 гг. не корректировались в соответствии с МСФО 11 «Совместное предпринимательство».
A22: ** Данные не являются частью финансовой отчетности и рассчитаны по среднему обменному курсу за соответствующий период.
A24: Объемы реализации нефти и газового конденсата Группой Газпром по географическим сегментам, млн т
B25: За год, закончившийся 31 декабря
B26: 2010 | C26: 2011 | D26: 2012 | E26: 2013 | F26: 2014 | G26: 2015 | H26: 2016 | I26: 2017 | J26: 2018 | K26: 2019 | L26: 2020
A27: Россия | B27: 3.26 | C27: 4.09 | D27: 3.49 | E27: 2.62 | F27: 4.71 | G27: 5.35 | H27: 5.92 | I27: 4.26 | J27: 2.66 | K27: 2.62 | L27: 2.89
A28: Дальнее зарубежье | B28: 16.33 | C28: 13.53 | D28: 14.77 | E28: 9.21 | F28: 9.77 | G28: 9.76 | H28: 17.06 | I28: 21.62 | J28: 21.15 | K28: 22.78 | L28: 20.11
A29: Страны БСС | B29: 3.02 | C29: 2.99 | D29: 2.53 | E29: 4.12 | F29: 1.17 | G29: 1.88 | H29: 1.69 | I29: 1.71 | J29: 1.74 | K29: 1.71 | L29: 1.12
A30: Всего | B30: 22.61 | C30: 20.61 | D30: 20.79 | E30: 15.95 | F30: 15.65 | G30: 16.99 | H30: 24.67 | I30: 27.59 | J30: 25.55 | K30: 27.11 | L30: 24.12
A31: Примечание. Без учета внутригрупповых продаж.
A33: Выручка от реализации продуктов нефтегазопереработки
A34: (за вычетом НДС, акциза и таможенных пошлин)
B35: За год, закончившийся 31 декабря
B36: 2010* | C36: 2011* | D36: 2012 | E36: 2013 | F36: 2014 | G36: 2015 | H36: 2016 | I36: 2017 | J36: 2018 | K36: 2019 | L36: 2020
A37: млн руб.
A38: Россия | B38: 412208 | C38: 588250 | D38: 742473 | E38: 821487 | F38: 953136 | G38: 981792 | H38: 980352 | I38: 1115125 | J38: 1394137 | K38: 1355139 | L38: 1221857
A39: Дальнее зарубежье | B39: 260812 | C39: 336146 | D39: 393475 | E39: 449669 | F39: 586204 | G39: 468464 | H39: 428327 | I39: 454330 | J39: 640977 | K39: 629731 | L39: 469373
A40: Страны БСС | B40: 36042 | C40: 48630 | D40: 73267 | E40: 80557 | F40: 79874 | G40: 105335 | H40: 88883 | I40: 117635 | J40: 144658 | K40: 126311 | L40: 107166
A41: Всего | B41: 709062 | C41: 973026 | D41: 1209215 | E41: 1351713 | F41: 1619214 | G41: 1555591 | H41: 1497562 | I41: 1687090 | J41: 2179772 | K41: 2111181 | L41: 1798396
A42: млн долл.**
A43: Россия | B43: 13568 | C43: 20015 | D43: 23889 | E43: 25752 | F43: 24693 | G43: 16011 | H43: 14669 | I43: 19124 | J43: 22164 | K43: 20964 | L43: 16869
A44: Дальнее зарубежье | B44: 8585 | C44: 11437 | D44: 12660 | E44: 14096 | F44: 15187 | G44: 7640 | H44: 6409 | I44: 7792 | J44: 10190 | K44: 9742 | L44: 6480
A45: Страны БСС | B45: 1186 | C45: 1655 | D45: 2357 | E45: 2525 | F45: 2069 | G45: 1718 | H45: 1330 | I45: 2017 | J45: 2300 | K45: 1954 | L45: 1480
A46: Всего | B46: 23339 | C46: 33107 | D46: 38906 | E46: 42373 | F46: 41949 | G46: 25369 | H46: 22408 | I46: 28933 | J46: 34654 | K46: 32660 | L46: 24829
A47: млн евро**
A48: Россия | B48: 10251 | C48: 14383 | D48: 18599 | E48: 19379 | F48: 18693 | G48: 14440 | H48: 13250 | I48: 16891 | J48: 18812 | K48: 18730 | L48: 14740
A49: Дальнее зарубежье | B49: 6486 | C49: 8219 | D49: 9857 | E49: 10608 | F49: 11496 | G49: 6890 | H49: 5789 | I49: 6882 | J49: 8649 | K49: 8704 | L49: 5662
A50: Страны БСС | B50: 896 | C50: 1189 | D50: 1835 | E50: 1900 | F50: 1566 | G50: 1549 | H50: 1201 | I50: 1782 | J50: 1952 | K50: 1746 | L50: 1293
A51: Всего | B51: 17633 | C51: 23791 | D51: 30291 | E51: 31887 | F51: 31755 | G51: 22879 | H51: 20240 | I51: 25555 | J51: 29413 | K51: 29180 | L51: 21695
A52: * Показатели за 2010–2011 гг. не корректировались в соответствии с МСФО 11 «Совместное предпринимательство».
A53: ** Данные не являются частью финансовой отчетности и рассчитаны по среднему обменному курсу за соответствующий период.
A55: Объемы реализации продуктов переработки Группой Газпром по географическим сегментам, млн т
B56: За год, закончившийся 31 декабря
B57: 2010 | C57: 2011 | D57: 2012 | E57: 2013 | F57: 2014 | G57: 2015 | H57: 2016 | I57: 2017 | J57: 2018 | K57: 2019 | L57: 2020
A58: Россия | B58: 28.72 | C58: 32.71 | D58: 36.1 | E58: 38.41 | F58: 41.55 | G58: 41.28 | H58: 41.11 | I58: 40.83 | J58: 43.18 | K58: 43.12 | L58: 40.04
A59: Дальнее зарубежье | B59: 19.7 | C59: 18.58 | D59: 22.58 | E59: 25.21 | F59: 29.84 | G59: 23.84 | H59: 22.6 | I59: 20.85 | J59: 21.31 | K59: 23.51 | L59: 23.19
A60: Страны БСС | B60: 3.78 | C60: 4.44 | D60: 5.17 | E60: 4.64 | F60: 3.97 | G60: 4.3 | H60: 4.24 | I60: 4.28 | J60: 4.37 | K60: 3.55 | L60: 3.4
A61: Всего | B61: 52.2 | C61: 55.73 | D61: 63.85 | E61: 68.26 | F61: 75.36 | G61: 69.42 | H61: 67.95 | I61: 65.96 | J61: 68.86 | K61: 70.18 | L61: 66.63
A62: Примечание. Без учета внутригрупповых продаж.
A64: Реализация продуктов переработки, газо- и нефтехимии Группой Газпром по видам, млн т
B65: За год, закончившийся 31 декабря
B66: 2010 | C66: 2011 | D66: 2012 | E66: 2013 | F66: 2014 | G66: 2015 | H66: 2016 | I66: 2017 | J66: 2018 | K66: 2019 | L66: 2020
A67: Автомобильный бензин | B67: 9.81 | C67: 12.72 | D67: 12.51 | E67: 12.69 | F67: 13.45 | G67: 13.65 | H67: 14.92 | I67: 13.39 | J67: 13.64 | K67: 13.53 | L67: 13.26
A68: Дизельное топливо | B68: 13.19 | C68: 13.9 | D68: 15.46 | E68: 18.28 | F68: 17.31 | G68: 15.49 | H68: 15.85 | I68: 15.89 | J68: 17.2 | K68: 17.36 | L68: 17.84
A69: Авиационное топливо | B69: 2.77 | C69: 3 | D69: 3.3 | E69: 3.76 | F69: 3.96 | G69: 3.76 | H69: 3.51 | I69: 3.6 | J69: 3.94 | K69: 3.98 | L69: 3.09
A70: Мазут топочный | B70: 9.47 | C70: 10.67 | D70: 9.54 | E70: 10.27 | F70: 11.17 | G70: 8.58 | H70: 7.62 | I70: 5.78 | J70: 6.46 | K70: 7 | L70: 5.49
A71: Масла | B71: 0.4 | C71: 0.44 | D71: 0.38 | E71: 0.48 | F71: 0.39 | G71: 0.43 | H71: 0.44 | I71: 0.41 | J71: 0.48 | K71: 0.48 | L71: 0.44
A72: СУГ | B72: 3.16 | C72: 3.17 | D72: 3.49 | E72: 3.66 | F72: 5.44 | G72: 4.85 | H72: 4.49 | I72: 3.7 | J72: 4.1 | K72: 4.25 | L72: 3.62
A73: Cера | B73: 6.44 | C73: 5.49 | D73: 5.71 | E73: 5 | F73: 5.54 | G73: 5.19 | H73: 5.46 | I73: 5.31 | J73: 5.24 | K73: 6.46 | L73: 6.06
A74: Минеральные удобрения | B74: – | C74: – | D74: 0.43 | E74: 0.46 | F74: 0.7 | G74: 0.69 | H74: 0.95 | I74: 0.89 | J74: 0.86 | K74: 0.81 | L74: 0.79
A75: Полимеры | B75: – | C75: – | D75: 0.14 | E75: 0.13 | F75: 0.17 | G75: 0.16 | H75: 0.14 | I75: 0.11 | J75: 0.11 | K75: 0.1 | L75: 0.16
A76: Прочие продукты переработки, газо- и нефтехимии | B76: 6.96 | C76: 6.34 | D76: 12.89 | E76: 13.53 | F76: 17.23 | G76: 16.62 | H76: 14.57 | I76: 16.88 | J76: 16.83 | K76: 16.21 | L76: 15.88
A77: Всего | B77: 52.2 | C77: 55.73 | D77: 63.85 | E77: 68.26 | F77: 75.36 | G77: 69.42 | H77: 67.95 | I77: 65.96 | J77: 68.86 | K77: 70.18 | L77: 66.63
A78: Примечание. Без учета реализации гелия и внутригрупповых продаж.
A80: Реализация гелия Группой Газпром
B81: За год, закончившийся 31 декабря
B82: 2010 | C82: 2011 | D82: 2012 | E82: 2013 | F82: 2014 | G82: 2015 | H82: 2016 | I82: 2017 | J82: 2018 | K82: 2019 | L82: 2020
A83: Гелий газообразный, млн м3 | B83: 4.86 | C83: 3.51 | D83: 2.74 | E83: 3.01 | F83: 2.74 | G83: 3.04 | H83: 3.18 | I83: 3.32 | J83: 3.42 | K83: 3.63 | L83: 3.61
A84: Гелий жидкий, т | B84: – | C84: – | D84: 391.6 | E84: 94 | F84: 139.96 | G84: 314.15 | H84: 299.32 | I84: 289.56 | J84: 260.08 | K84: 214.56 | L84: 142.11
A85: Примечание. Без учета внутригрупповых продаж.
A87: Вернуться к содержанию

Sheet Продажи энергии
A1: Реализация электроэнергии и тепла, услуг по транспортировке газа
A2: Выручка от продажи электрической и тепловой энергии
A3: (за вычетом НДС)
B4: За год, закончившийся 31 декабря
B5: 2011* | C5: 2012 | D5: 2013 | E5: 2014 | F5: 2015 | G5: 2016 | H5: 2017 | I5: 2018 | J5: 2019 | K5: 2020
A6: млн руб.
A7: Россия | B7: 333204 | C7: 326737 | D7: 362415 | E7: 409087 | F7: 403084 | G7: 461908 | H7: 487283 | I7: 501362 | J7: 495581 | K7: 467689
A8: Дальнее зарубежье | B8: 7878 | C8: 11186 | D8: 10983 | E8: 15383 | F8: 19057 | G8: 17350 | H8: 13599 | I8: 15643 | J8: 19447 | K8: 27581
A9: Страны БСС | B9: 3469 | C9: 5586 | D9: 2191 | E9: 2481 | F9: 2524 | G9: 2458 | H9: 2937 | I9: 5090 | J9: 3345 | K9: 4199
A10: Всего | B10: 344551 | C10: 343509 | D10: 375589 | E10: 426951 | F10: 424665 | G10: 481716 | H10: 503819 | I10: 522095 | J10: 518373 | K10: 499469
A11: млн долл.**
A12: Россия | B12: 11337 | C12: 10513 | D12: 11361 | E12: 10598 | F12: 6573 | G12: 6912 | H12: 8357 | I12: 7971 | J12: 7667 | K12: 6457
A13: Дальнее зарубежье | B13: 268 | C13: 360 | D13: 344 | E13: 399 | F13: 311 | G13: 260 | H13: 233 | I13: 249 | J13: 301 | K13: 381
A14: Страны БСС | B14: 118 | C14: 180 | D14: 69 | E14: 64 | F14: 41 | G14: 37 | H14: 50 | I14: 81 | J14: 52 | K14: 58
A15: Всего | B15: 11723 | C15: 11053 | D15: 11774 | E15: 11061 | F15: 6925 | G15: 7209 | H15: 8640 | I15: 8301 | J15: 8 020 | K15: 6896
A16: млн евро**
A17: Россия | B17: 8147 | C17: 8185 | D17: 8550 | E17: 8023 | F17: 5929 | G17: 6243 | H17: 7381 | I17: 6765 | J17: 6850 | K17: 5642
A18: Дальнее зарубежье | B18: 193 | C18: 280 | D18: 259 | E18: 302 | F18: 280 | G18: 234 | H18: 206 | I18: 211 | J18: 269 | K18: 333
A19: Страны БСС | B19: 85 | C19: 140 | D19: 52 | E19: 49 | F19: 37 | G19: 33 | H19: 44 | I19: 69 | J19: 46 | K19: 51
A20: Всего | B20: 8425 | C20: 8605 | D20: 8861 | E20: 8374 | F20: 6246 | G20: 6510 | H20: 7631 | I20: 7045 | J20: 7165 | K20: 6026
A21: * Показатели за 2011 г. не корректировались в соответствии с МСФО 11 «Совместное предпринимательство».
A22: ** Данные не являются частью финансовой отчетности и рассчитаны по среднему обменному курсу за соответствующий период.
A24: Вернуться к содержанию

Sheet Услуги по транспортировке
A1: Выручка от продажи услуг по транспортировке газа
A2: (за вычетом НДС)
B3: За год, закончившийся 31 декабря
B4: 2010* | C4: 2011* | D4: 2012 | E4: 2013 | F4: 2014 | G4: 2015 | H4: 2016 | I4: 2017 | J4: 2018 | K4: 2019 | L4: 2020
A5: млн руб. | B5: 92631 | C5: 112995 | D5: 125386 | E5: 163265 | F5: 172842 | G5: 193965 | H5: 198971 | I5: 235061 | J5: 225673 | K5: 215335 | L5: 223824
A6: млн долл.** | B6: 3051 | C6: 3845 | D6: 4034 | E6: 5118 | F6: 4478 | G6: 3163 | H6: 2977 | I6: 4031 | J6: 3588 | K6: 3331 | L6: 3090
A7: млн евро** | B7: 2300 | C7: 2763 | D7: 3141 | E7: 3851 | F7: 3390 | G7: 2853 | H7: 2689 | I7: 3560 | J7: 3045 | K7: 2976 | L7: 2700
A8: * Показатели не корректировались в соответствии с МСФО 11 «Совместное предпринимательство».
A9: ** Данные не являются частью финансовой отчетности и рассчитаны по среднему обменному курсу за соответствующий период.
A11: Оказание услуг по транспортировке газа компаниям, не входящим в Группу Газпром, млрд м3
B12: За год, закончившийся 31 декабря
B13: 2010 | C13: 2011 | D13: 2012 | E13: 2013 | F13: 2014 | G13: 2015 | H13: 2016 | I13: 2017 | J13: 2018 | K13: 2019 | L13: 2020
A14: Всего | B14: 72.6 | C14: 81.5 | D14: 95.8 | E14: 111.4 | F14: 121.1 | G14: 121.5 | H14: 129 | I14: 137.9 | J14: 136.4 | K14: 132.1 | L14: 129
A15: в т. ч. российский газ | B15: 64.5 | C15: 72.8 | D15: 86.9 | E15: 104.3 | F15: 113.7 | G15: 113.9 | H15: 121.3 | I15: 130.4 | J15: 128.3 | K15: 124.3 | L15: 121.3
A17: Вернуться к содержанию

Sheet Воздействие на окружающую среду
A1: Экология и энергосбережение
A2: Основные показатели воздействия Группы Газпром* на окружающую среду в Российской Федерации
B3: За год, закончившийся 31 декабря
B4: 2008 | C4: 2009 | D4: 2010 | E4: 2011 | F4: 2012 | G4: 2013 | H4: 2014 | I4: 2015 | J4: 2016 | K4: 2017 | L4: 2018 | M4: 2019 | N4: 2020
A5: Выбросы загрязняющих веществ в атмосферу, тыс. т | B5: 3340.7 | C5: 3391.1 | D5: 3225.3 | E5: 3124.2 | F5: 3410.9 | G5: 3076.4 | H5: 2797.6 | I5: 2830.6 | J5: 2868.5 | K5: 2795.9 | L5: 2894 | M5: 2862.7 | N5: 2445.7
A6: в т. ч.: оксид углерода | B6: 785.5 | C6: 645.8 | D6: 666.8 | E6: 687.2 | F6: 1031.9 | G6: 653.4 | H6: 547 | I6: 533.6 | J6: 550.5 | K6: 529.9 | L6: 594.1 | M6: 596.4 | N6: 550.7
